Workbook

Sheet WP Data Req Summary
A3: Work Paper Reference | E3: Allocation
A4: Number | B4: Page | C4: Title | E4: Factors | G4: Purpose | I4: Data to be Requested | K4: To be requested from | M4: Date Requested; Needed
A5: WPE 3.2a | B5: Pg 1, 2, 3 of 3 | C5: Allocation Factors For Cost of Sevice Study (E-3.2, Schedule12) | E5: K201, K203, K205, K300, K301, K401, K403, K405, K406, K407, K408, K413, K417, K595, K415 | G5: Energy and demand allocators, average customer allocator | I5: None - pulls from other WPs | K5: NA
A6: WPE 3.2b | B6: Pg 1 of 1 | C6: Peak & Average - Peak Day | E6: K203, K205 | G6: Shows how Peak and Average - Peak Day was calculated (K203 and K205) | I6: None - pulls from other WPs | K6: NA
A7: WPE 3.2c | B7: Pg 1, 2, 3 of 7 | C7: DAILY DEMAND ANALYSIS | G7: Calculation of Diversified Class and Non-coincident peaks | I7: None - pulls from other WPs | K7: NA
A8: WPE 3.2c | B8: Pg 4-7 of 7 | C8: Monthly Gas Daily Statistics | G8: Load Research Data RS, GS and IT | I8: Load Research data | K8: Load Research (William Baker's group)
A9: WPE 3.2d | B9: Pg 1 of 1 | C9: ALLOCATION OF LARGE INDUSTRIAL MEASURING AND REGULATING STATIONS (ACCTS 2580 & 2581) | E9: K595 | G9: Allocate sales (MCF) among customer classes | I9: Sales comes from WPE-4a | K9: James A. Riddle
A10: WPE 3.2e | B10: Pg 1 of 3 | C10: MINIMUM INTERCEPT STUDY - PLASTIC MAINS | E10: none | G10: Results of minimum intercept study | I10: None - source is WPE-3.2e, page 3 | K10: NA
A11: WPE 3.2e | B11: Pg 2 of 3 | C11: MINIMUM SYSTEM STUDY - PLASTIC MAINS | E11: none | G11: Results of minimum system study | I11: None - source is WPE-3.2e, page 3 | K11: NA
A12: WPE 3.2e | B12: Pg 3 of 3 | C12: MINIMUM SYSTEM STUDY - BACKUP DATA PLASTIC MAINS | E12: none | G12: Backup data plastic mains | I12: Detail cost and quantity by size for plastic mains | K12: Asset Accounting - Allison Coombs | L12: Wes Needman (?)
A13: WPE 3.2f | B13: Pg 1 -4 of 4 | C13: DERIVATION OF GAS SERVICES ALLOCATION FACTOR | E13: none | G13: To allocate services by size to customer class | I13: Detail cost and quantity by size for services | K13: Asset Accounting - Allison Coombs | L13: Wes Needman (?)
A14: WPE 3.2g | B14: Pg 1 -2 of 2 | C14: HOUSE REGULATORS AND INSTALLATIONS ( ACCOUNT 2830, 2840) | E14: none | G14: To develop a weighted allocator (based on cost and customers) | I14: Detail cost and quantity by size for house regulators | K14: Asset Accounting - Allison Coombs | L14: Wes Needman (?)
A15: WPE 3.2h | B15: Pg 1 of 1 | C15: METERS BACKUP | E15: none | G15: Allocate meter cost to rate class based on number of meters per GM code. | I15: Number of meters by GM code | K15: Kelly Berg
A16: WPE 3.2i | B16: Pg 1 of 1 | C16: GAS CUSTOMER ACCOUNTING EXPENSES BY ACCOUNT | E16: none | G16: Allocate accounts 901-913 by rate class based on avg customers by class | I16: Cost by acct from FERC Form 2 page 324-325; avg customer from WPE-4a | K16: FERC Form 2, James A. Riddle
A17: WPE 3.2j | B17: Pg 1 of 2 | C17: GENERAL & COMMON PLANT, ACCUMULATED DEPRECIATION, A & G EXPENSES | E17: none | G17: To allocate common and general plant and reserve to function | I17: Labor dollars from FERC Form 2 page 354 | K17: FERC Form 2
A18: WPE 3.2k | B18: Page 1 of 1 | C18: Computation Of The Rate Increase Amount By Rate Class | E18: none | G18: =C18 -> Computation Of The Rate Increase Amount By Rate Class | I18: Hard code total rate increase | K18: Lisa Steinkuhl
A19: WPE 3.2l | B19: Page 1 of 1 | C19: Cost of Service Study - Computation of Present Total Return Earned (Present NOI) | E19: none | G19: =C19 -> Cost of Service Study - Computation of Present Total Return Earned (Present NOI) | I19: None - copy of COSS study used to determine present rev | K19: NA

Sheet Print & Input
A1: DUKE ENERGY KENTUCKY, INC. | B1: company_name | C1: WorkingCap | D1: No
A2: GAS COST OF SERVICE STUDY | B2: header_name | C2: Pages | D2: 18
A3: CASE NO: 2021-00190 | B3: case_name | C3: Pages2 | D3: 15
A4: TWELVE MONTHS ENDING DECEMBER 31, 2022 | B4: time_period
A5: DATA: 12 MONTH FORECASTED PERIOD | B5: data_filing
A6: JAMES E. ZIOLKOWSKI | B6: witness
A7: JAMES E. ZIOLKOWSKI | B7: witness1
A8: TYPE OF FILING: "X" ORIGINAL UPDATED REVISED | B8: type
A9: ALLOCATION FACTORS FOR COST OF SERVICE STUDY | B9: alloc_factors
A10: TWELVE MONTHS ENDING DECEMBER 31, 2020 | B10: time_period
A14: Schedule E - Reference | C14: FR-16(7)(v)-1 | D14: FR-16(7)(v)-2 | E14: FR-16(7)(v)-3 | F14: FR-16(7)(v)-4 | G14: FR-16(7)(v)-5 | H14: FR-16(7)(v)-6 | I14: FR-16(7)(v)-8 | J14: FR-16(7)(v)-9 | K14: FR-16(7)(v)-10 | L14: FR-16(7)(v)-11 | M14: FR-16(7)(v)-12 | N14: FR-16(7)(v)-7
E15: Production | G15: Distribution | H15: Distribution | I15: Total
D16: Production | E16: Commodity | F16: Distribution | G16: Demand | H16: Customer | I16: Class | J16: Residential | K16: GS | L16: FT-L | M16: IT | N16: Storage
C17: Functional | D17: Classified | E17: Allocated | F17: Classified | G17: Allocated | H17: Allocated | I17: Allocated | J17: Classified | K17: Classified | L17: Classified | M17: Classified | N17: Classified
A18: Schedule Name | B18: Range name
A19: Schedule 1 - Summary | B19: SCH_E3.2_Summary_1 | N19: NOT USED
A20: Schedule 2 - Gross Plant | B20: SCH_E3.2_Gross_Plant_2
A21: Schedule 3 - Accum Deprec | B21: SCH_E3.2_Depreciation_Reserve_3
A22: Schedule 4 - Net Plant | B22: SCH_E3.2_Net_Plant_4
A23: Schedule 5 - Subtractive Adjustments | B23: SCH_E3.2_RB_Subtractive_Adj_5
A24: Schedule 5.1 - Additive Adjustments | B24: SCH_E3.2_RB_Additive_Adj_5.1
A25: Schedule 5.2 - Total Rate Base | B25: SCH_E3.2_RB_Total_5.2
A26: Schedule 6 - O & M Expenses | B26: SCH_E3.2_OMEXP_6
A27: Schedule 6.1 - O & M Expenses | B27: SCH_E3.2_OMEXP_6.1
A28: Schedule 7 - Depreciation Exp | B28: SCH_E3.2_Depreciation_Expense_7
A29: Schedule 8 - Oth Tax & Misc Exp | B29: SCH_E3.2_Taxes_Other_Than_Income_8
A30: Schedule 9 - Income Tax - Fed | B30: SCH_E3.2_FIT_Return_9
A31: Schedule 10 - Oth Revenues COS Calc | B31: SCH_E3.2_COS_Compute_10
A32: Schedule 11 - Rate of Return & Tax Rates | B32: SCH_E3.2_RofR_11
A33: Schedule 12 - Allocation Factors | B33: SCH_E3.2_Alloc1
A34: Schedule 13 - Income Tax Calculation | B34: SCH_E3.2_FIT_Revenue_13

Sheet Rev req link
C2: COSS | D2: Rev Req Mod | E2: Difference
B3: Gross Plant (Sch. B-1) | C3: ='FR-16(7)(v)-1 Functional'!F101 -> 771808162 | D3: =[1]!PLANT_IN_SERVICE -> 771808162 | E3: =D3-C3 -> 0
B4: Depreciation (Sch B-1) | C4: ='FR-16(7)(v)-1 Functional'!F151 -> 206903281 | D4: =-[1]SCH_B1!$I$20 -> 206903281 | E4: =D4-C4 -> 0
B5: Net Plant | C5: =C3-C4 -> 564904881 | D5: =D3-D4 -> 564904881 | E5: =E3-E4 -> 0
B7: Schedule B-5
B8: Cash WC | C8: ='FR-16(7)(v)-1 Functional'!F313 -> 0 | D8: =[1]SCH_B1!$I$26 -> 0 | E8: =D8-C8 -> 0
B9: Gas stock | C9: 0 | D9: 0 | E9: =D9-C9 -> 0
B10: Mat & Supp | C10: ='FR-16(7)(v)-1 Functional'!F304+'FR-16(7)(v)-1 Functional'!F319+'FR-16(7)(v)-1 Functional'!F310 -> 1491648 | D10: =[1]SCH_B1!$I$28 -> 1491648 | E10: =D10-C10 -> 0
B11: Tot WC | C11: =SUM(C8:C10) -> 1491648 | D11: =SUM(D8:D10) -> 1491648 | E11: =D11-C11 -> 0
A13: Rate Base Deductions | B13: Schedule B-6
A14: Customer Advances | B14: Acct 252 | C14: ='FR-16(7)(v)-1 Functional'!F232 -> 1643017 | D14: =-[1]SCH_B1!$I$32 -> 1643017 | E14: =D14-C14 -> 0 | F14: Linked To Sch. B-1
B15: Customer Service Deposits | C15: ='FR-16(7)(v)-1 Functional'!F233 -> 0 | D15: 0 | E15: =D15-C15 -> 0 | F15: Linked To Sch. B-1
A16: Post Retirement Benefits | B16: Acct 271 | C16: ='FR-16(7)(v)-1 Functional'!F234 -> 0 | D16: 0 | E16: 0 | F16: Linked To Sch. B-1
A17: ITC | B17: EDIT | C17: ='FR-16(7)(v)-1 Functional'!F235 -> 29269976 | D17: =-[1]SCH_B1!$I$38 -> 29269976 | E17: 0 | F17: Linked To Sch. B-1 | I17: =-D18-D19+D22 -> -69672082.9
B18: Acct 282 | C18: ='FR-16(7)(v)-1 Functional'!F215 -> 70178625.9 | D18: =-'[1]WPB-6''s'!$R$122+'[1]WPB-6''s'!$AE$227 -> 70178625.9 | E18: 0 | F18: Linked To Sch. B-6 | I18: 3275942 | J18: Target
B19: Acct 283 | C19: ='FR-16(7)(v)-1 Functional'!F229 -> 0 | D19: =-'[1]WPB-6''s'!$T$115+'[1]WPB-6''s'!$AM$336 -> 0 | E19: 0 | F19: Linked To Sch. B-6
B20: Total Rate Base Reductions | C20: =SUM(C14:C19) -> 101091618.9 | D20: =SUM(D14:D19) -> 101091618.9 | E20: 0 | I20: ='[1]WPB-6''s'!$AE$227 -> -3704475 | J20: 282
I21: ='[1]WPB-6''s'!$AM$336 -> -3066510 | J21: 283
A22: Rate Base Additions | B22: Acct 190 | C22: ='FR-16(7)(v)-1 Functional'!F275 -> 506543 | D22: ='[1]WPB-6''s'!$T$111-'[1]WPB-6''s'!$AM$322 -> 506543 | E22: =D22-C22 -> 0 | F22: Linked To Sch. B-6 | I22: ='[1]WPB-6''s'!$AM$322 -> 3495043 | J22: 190
B23: Other Rate Base Adj. | C23: ='FR-16(7)(v)-1 Functional'!F281 -> 675147 | D23: =[1]SCH_B1!$I$40 -> 675147 | E23: =D23-C23 -> 0 | F23: Linked To Sch. B-6 | I23: =SUM(I20:I22) -> -3275942
B24: Total Rate Base Additions | C24: =C22+C23 -> 1181690 | D24: =SUM(D22:D23) -> 1181690 | E24: =D24-C24 -> 0
I25: =I17-I20-I21-I22 -> -66396140.9
A26: Jurisdictional Rate Base | B26: Total Rate Base | C26: =C5+C11-C20+C24 -> 466486600.1 | D26: =D5+D11-D20+D24 -> 466486600.1 | E26: =D26-C26 -> 0 | F26: Ties to Sch. B-1 | I26: =I25-I20-I21-I22 -> -63120198.9
B28: Schedule C-2
A29: O&M Expenses | B29: Prod O&M | C29: ='FR-16(7)(v)-1 Functional'!F360 -> 42281170 | D29: =[1]SCH_C2!$N$27+[1]SCH_C2!$N$32+[1]SCH_C2!$N$33 -> 42281170 | E29: =D29-C29 -> 0 | F29: Linked To Sch. C-2
B30: Trans | C30: ='FR-16(7)(v)-1 Functional'!F364 -> 0 | D30: 0 | E30: =D30-C30 -> 0 | F30: Linked To Sch. C-2
B31: Dist | C31: ='FR-16(7)(v)-1 Functional'!F378 -> 8313881 | D31: =[1]SCH_C2!$N$34 -> 8313881 | E31: 0
B32: Cust Acct | C32: ='FR-16(7)(v)-1 Functional'!F389 -> 4354601 | D32: =[1]SCH_C2!$N$35 -> 4354601 | E32: 0 | I32: 0 | J32: Schedule C-1
B33: Cust serv | C33: ='FR-16(7)(v)-1 Functional'!F403 -> 389010 | D33: =[1]SCH_C2!$N$36 -> 389010 | E33: 0 | F33: Linked To Sch. C-2
B34: Sales | C34: ='FR-16(7)(v)-1 Functional'!F407 -> 399560 | D34: =[1]SCH_C2!$N$37 -> 399560 | E34: 0 | F34: Linked To Sch. C-2
B35: A&G & AMORT OF DEF EXP | C35: ='FR-16(7)(v)-1 Functional'!F431 -> 4764947 | D35: =[1]SCH_C2!$N$38+[1]SCH_C2!$N$39 -> 4764947 | E35: 0 | F35: Linked To Sch. C-2
B36: Total O&M | C36: =SUM(C29:C35) -> 60503169 | D36: =SUM(D29:D35) -> 60503169 | E36: =D36-C36 -> 0
A37: Depreciation | B37: Total Deprec Exp | C37: ='FR-16(7)(v)-1 Functional'!F465 -> 18943606.5 | D37: =[1]SCH_C2!$N$42 -> 18943607 | E37: 0.4959999993
A38: Property Tax | B38: Property Tax | C38: ='FR-16(7)(v)-1 Functional'!F481 -> 4066038 | D38: ='[1]SCH_C2.1 - Forecasted Period'!$J$270+[1]SCH_D1!$AE$242 -> 4066038 | E38: 0 | F38: Linked To Sch. C2.1
A39: Misc taxes | B39: Misc Taxes | C39: ='FR-16(7)(v)-1 Functional'!F488 -> 575675 | D39: =[1]SCH_C2!$N$47-D38 -> 575675 | E39: 0 | F39: Linked To Sch. C-2
A40: total prop & misc taxes | B40: Total Prop & Misc Taxes | C40: =C38+C39 -> 4641713 | D40: =D38+D39 -> 4641713 | E40: 0
B41: Misc. Expenses | C41: ='FR-16(7)(v)-1 Functional'!F493 -> 18721 | D41: =[1]SCH_C1!$G$22 -> 18721 | E41: 0
B42: Total O&M, Depr & MISC TAX | C42: =C36+C37+C40+C41 -> 84107209.5 | D42: =D36+D37+D40+D41 -> 84107210 | E42: 0.4959999919
B44: Schedule E-1
B45: Tax Calculation
B46: Interest Deduction | C46: ='FR-16(7)(v)-1 Functional'!F515 -> 8055343 | D46: =-[1]SCH_E1!$Q$22 -> 8055343 | E46: =D46-C46 -> 0
B47: Other Deductions | C47: ='FR-16(7)(v)-1 Functional'!F522 -> 7284160 | D47: =-[1]SCH_E1!$Q$25-[1]SCH_E1!$Q$29-[1]SCH_E1!$Q$32-[1]SCH_E1!$Q$33 -> 7284160 | E47: =D47-C47 -> 0
B49: State Tax Calc
B50: Total State Inc Tax Payable | C50: ='FR-16(7)(v)-1 Functional'!F603 -> 737092.7872 | D50: =[1]SCH_E1!$Q$99 -> 737093 | E50: =D50-C50 -> 0.2128320602
B51: State prov Acct 410.1 & 411.1 - Net | C51: ='FR-16(7)(v)-1 Functional'!F585 -> 635696 | D51: =[1]SCH_E1!$Q$105 -> 635696 | E51: 0
B52: Total SIT Adj | C52: =SUM(C50:C51) -> 1372788.787 | D52: =SUM(D50:D51) -> 1372789 | E52: 0.2128320602
B54: Federal Tax Calc
B55: Total Fed Inc Tax Payable | C55: ='FR-16(7)(v)-1 Functional'!F555 -> 4383797.585 | D55: =[1]SCH_E1!$Q$118 -> 4383798 | E55: =D55-C55 -> 0.4145902349
B56: FIT prov Acct 410.1 & 411.1 - Net | C56: ='FR-16(7)(v)-1 Functional'!F532 -> 743042 | D56: =[1]SCH_E1!$Q$125 -> 743042 | E56: =D56-C56 -> 0
B57: ITC Amort & Other Credits | C57: =-'FR-16(7)(v)-1 Functional'!F535 -> -60747 | D57: =[1]SCH_E1!$Q$127 -> -60747 | E57: =D57-C57 -> 0
B58: Total FIT Adj | C58: =SUM(C55:C57) -> 5066092.585 | D58: =SUM(D55:D57) -> 5066093 | E58: =D58-C58 -> 0.4145902349
B61: Total FIT | C61: =C58 -> 5066092.585 | D61: =D58 -> 5066093 | E61: =D61-C61 -> 0.4145902349
B63: Other Operating Revenues | C63: ='FR-16(7)(v)-1 Functional'!F630 -> 310224 | D63: =[1]SCH_C2!$N$19 -> 310224 | E63: =D63-C63 -> 0
B65: Revenue Tax | C65: ='FR-16(7)(v)-1 Functional'!F646 -> 0
B66: Deficiency @ROR | C66: ='FR-16(7)(v)-1 Functional'!F41 -> 9360372.877 | D66: ='[1]SCH_A Rate Base'!$I$33 -> 9360374 | E66: =D66-C66 -> 1.123422295
B68: Incr Uncollectible Exp/Ucoll | C68: 0 | D68: 0 | E68: =D68-C68 -> 0
B71: Present Revenue vs Sch-C2 Rev | C71: ='FR-16(7)(v)-1 Functional'!F744 -> 111388435 | D71: =[1]SCH_C2!$N$17+[1]SCH_C2!$N$18 -> 111388435 | E71: =D71-C71 -> 0

Sheet Customer Charge
A1: =co_name -> DUKE ENERGY KENTUCKY, INC.
A2: =case_name -> CASE NO: 2021-00190
A3: CUSTOMER CHARGE ANALYSIS / MINIMUM BILL RATIONALE
A4: =test_period -> TWELVE MONTHS ENDING DECEMBER 31, 2022
A7: =data_filing -> DATA: 12 MONTH FORECASTED PERIOD | G7: CUSTOMER CHARGE ANALYSIS
A8: =type -> TYPE OF FILING: "X" ORIGINAL UPDATED REVISED | G8: PAGE 1 of 1
A9: WORK PAPER REFERENCE NO(S).: SCHEDULE E-3.2e, WPE-4d | G9: WITNESS RESPONSIBLE:
G10: =Witness1 -> JAMES E. ZIOLKOWSKI
I13: IT
A14: LINE | C14: RS | E14: GS | G14: FT-L | I14: INTERUPT
A15: NO. | B15: DESCRIPTION | C15: RESIDENTIAL | E15: GEN SERV | G15: FIRM TRANS | I15: TRANS
A17: 1 | B17: Rate Base | C17: ='FR-16(7)(v)-6 DISTR Cust Alloc'!$G$15 -> 192707498 | E17: ='FR-16(7)(v)-6 DISTR Cust Alloc'!$H$15 -> 27768132 | G17: ='FR-16(7)(v)-6 DISTR Cust Alloc'!$I$15 -> 998057 | I17: ='FR-16(7)(v)-6 DISTR Cust Alloc'!$J$15 -> 603622
A19: 2 | B19: Operating Expense | C19: ='FR-16(7)(v)-6 DISTR Cust Alloc'!$G$24 -> 20766366 | E19: ='FR-16(7)(v)-6 DISTR Cust Alloc'!$H$24 -> 2947478 | G19: ='FR-16(7)(v)-6 DISTR Cust Alloc'!$I$24 -> 261123 | I19: ='FR-16(7)(v)-6 DISTR Cust Alloc'!$J$24 -> 104526
A21: 3 | B21: ="Return @ "&TEXT(RofR,"0.00%") -> Return @ 6.54% | C21: ='FR-16(7)(v)-6 DISTR Cust Alloc'!$G$26 -> 12604997 | E21: ='FR-16(7)(v)-6 DISTR Cust Alloc'!$H$26 -> 1816314 | G21: ='FR-16(7)(v)-6 DISTR Cust Alloc'!$I$26 -> 65283 | I21: ='FR-16(7)(v)-6 DISTR Cust Alloc'!$J$26 -> 39483
A23: 4 | B23: Operating Expense Plus Return | C23: =C19+C21 -> 33371363 | E23: =E19+E21 -> 4763792 | G23: =G19+G21 -> 326406 | I23: =I19+I21 -> 144009
A25: 5 | B25: Less: Revenue Credits | C25: =-'FR-16(7)(v)-6 DISTR Cust Alloc'!$G$27 -> 150392 | E25: =-'FR-16(7)(v)-6 DISTR Cust Alloc'!$H$27 -> 19223 | G25: =-'FR-16(7)(v)-6 DISTR Cust Alloc'!$I$27 -> 2475 | I25: =-'FR-16(7)(v)-6 DISTR Cust Alloc'!$J$27 -> 849
A27: 6 | B27: Customer Cost Component (Revenue Requirement) | C27: =C23-C25 -> 33220971 | E27: =E23-E25 -> 4744569 | G27: =G23-G25 -> 323931 | I27: =I23-I25 -> 143160
A29: 7 | B29: Total Customers | C29: ='Alloc Factors Summary'!$D$60 -> 93602 | E29: ='Alloc Factors Summary'!$D$61 -> 7643 | G29: ='Alloc Factors Summary'!$D$62 -> 106 | I29: ='Alloc Factors Summary'!$D$63 -> 22
A31: 8 | B31: Annual Revenue / Customer | C31: =ROUND(C27/C29,2) -> 354.92 | E31: =ROUND(E27/E29,2) -> 620.77 | G31: =ROUND(G27/G29,2) -> 3055.95 | I31: =ROUND(I27/I29,2) -> 6507.27
A33: 9 | B33: Monthly Revenue / Customer | C33: =ROUND(C31/12,2) -> 29.58 | E33: =ROUND(E31/12,2) -> 51.73 | G33: =ROUND(G31/12,2) -> 254.66 | I33: =ROUND(I31/12,2) -> 542.27

Sheet FR-16(7)(v)-1 Functional
A1: =co_name -> DUKE ENERGY KENTUCKY, INC. | J1: FR-16(7)(v)-1
A2: FUNCTIONAL GAS COST OF SERVICE | J2: WITNESS RESPONSIBLE:
A3: =case_name -> CASE NO: 2021-00190 | J3: =Witness -> JAMES E. ZIOLKOWSKI
A4: =data_filing -> DATA: 12 MONTH FORECASTED PERIOD | J4: ="PAGE "&Pages-17&" OF "&Pages -> PAGE 1 OF 18
A5: =type -> TYPE OF FILING: "X" ORIGINAL UPDATED REVISED
A8: LINE | F8: TOTAL | G8: FUNCTIONAL | J8: TOTAL | K8: ALL
A9: NO. | B9: SUMMARY OF RESULTS | D9: ALLO | F9: GAS | G9: PRODUCTION | H9: STORAGE | I9: DISTRIBUTION | J9: AT ISSUE | K9: OTHER
C10: Schedule 1 | G10: 3 | H10: 4 | I10: 5
A11: 1 | B11: NET INCOME COMPUTATION
A12: 2 | C12: GROSS GAS PLANT IN SERVICE | F12: =F101 -> 771808162 | G12: =G101 -> 11194210 | H12: =H101 -> 0 | I12: =I101 -> 760613952 | J12: =J101 -> 771808162 | K12: =F12-J12 -> 0
A13: 3 | C13: TOTAL DEPRECIATION RESERVE | F13: =-F151 -> -206903281 | G13: =-G151 -> -6119653 | H13: =-H151 -> 0 | I13: =-I151 -> -200783628 | J13: =-J151 -> -206903281 | K13: =F13-J13 -> 0
A14: 4 | C14: TOTAL RATE BASE ADJUSTMENTS | F14: =F326 -> -98418280.9 | G14: =G326 -> 2800835.096 | H14: =H326 -> 0 | I14: =I326 -> -101219116 | J14: =J326 -> -98418280.9 | K14: =F14-J14 -> 0
A15: 5 | C15: TOTAL RATE BASE | F15: =SUM(F12:F14) -> 466486600.1 | G15: 7875392.096 | H15: 0 | I15: 458611208 | J15: 466486600.1 | K15: 0
A16: 6
A17: 7 | B17: OPERATING EXPENSES
A18: 8 | C18: TOTAL O&M EXPENSE | F18: =F433 -> 60503169 | G18: =G433 -> 43021212 | H18: =H433 -> 0 | I18: =I433 -> 17481957 | J18: =J433 -> 60503169 | K18: =F18-J18 -> 0
A19: 9 | C19: TOTAL DEPRECIATION EXPENSE | F19: =F465 -> 18943606.5 | G19: =G465 -> 864535.504 | H19: =H465 -> 0 | I19: =I465 -> 18079071 | J19: =J465 -> 18943606.5 | K19: 0
A20: 10 | C20: TOTAL OTHER TAX & MISC EXPENSE | F20: =F495 -> 4660434 | G20: =$G$495 -> 128829 | H20: =$H$495 -> 0 | I20: =$I$495 -> 4531605 | J20: =$J$495 -> 4660434 | K20: 0
A21: 11 | C21: TOTAL OP EXP EXCLUDING INC & REV TAX | F21: =SUM(F17:F20) -> 84107209.5 | G21: =SUM(G17:G20) -> 44014576.5 | H21: =SUM(H17:H20) -> 0 | I21: =SUM(I17:I20) -> 40092633 | J21: =SUM(J17:J20) -> 84107209.5 | K21: 0
A22: 12 | C22: NET FED INCOME TAX EXP ALLOWABLE | F22: =F557 -> 5066092.585 | G22: =$G$557 -> 1095008 | H22: =$H$557 -> 0 | I22: =$I$557 -> 3971085 | J22: =$J$557 -> 5066093 | K22: -0.4145902349
A23: 13 | C23: NET STATE INCOME TAX EXP ALLOWABLE | F23: =F605 -> 1372788.787 | G23: =G605 -> 63866 | H23: =H605 -> 0 | I23: =I605 -> 1308923 | J23: =J605 -> 1372789 | K23: -0.2128320602
A24: 14 | C24: TOTAL OPERATING EXPENSE | F24: =SUM(F21:F23) -> 90546090.88 | G24: =SUM(G21:G23) -> 45173450.5 | H24: =SUM(H21:H23) -> 0 | I24: =SUM(I21:I23) -> 45372641 | J24: =SUM(J21:J23) -> 90546091.5 | K24: -0.627422303
A25: 15
A26: 16 | B26: RETURN ON RATE BASE | F26: =F334 -> 30512941 | G26: =G334 -> 515182 | H26: =H334 -> 0 | I26: =I334 -> 29997759 | J26: =J334 -> 30512941 | K26: =F26-J26 -> 0
A27: 17 | B27: TOTAL OTHER OPERATING REVENUES | F27: =-F630 -> -310224 | G27: =-$G$630 -> -40105 | H27: =-$H$630 -> 0 | I27: =-$I$630 -> -270119 | J27: =-$J$630 -> -310224 | K27: 0
A28: 18 | C28: TOTAL GAS COST OF SERVICE | F28: =SUM(F24:F27) -> 120748807.9 | G28: =SUM(G24:G27) -> 45648527.5 | H28: =SUM(H24:H27) -> 0 | I28: =SUM(I24:I27) -> 75100281 | J28: =SUM(J24:J27) -> 120748808.5 | K28: -0.627422303
A29: 19 | B29: ADJUSTMENT FOR INTERCLASS SUBSIDIZATION | D29: =1-'WP FR-16(7)(v)Rate Incr (40.0%)'!I11 -> 0.6 | F29: =SUM(G29:I29) -> 0 | G29: ='WP FR-16(7)(v)Rate Incr (40.0%)'!Q20 -> 0 | H29: ='WP FR-16(7)(v)Rate Incr (40.0%)'!R20 -> 0 | I29: ='WP FR-16(7)(v)Rate Incr (40.0%)'!S20 -> 0 | J29: =SUM(G29:I29) -> 0 | K29: 0
A30: 20 | B30: REQUESTED REVENUES | F30: =F29+F28 -> 120748807.9 | G30: =G29+G28 -> 45648527.5 | H30: =H29+H28 -> 0 | I30: =I29+I28 -> 75100281 | J30: =SUM(G30:I30) -> 120748808.5 | K30: -0.627422303
A31: 21 | B31: PROPOSED REVENUES | F31: =F745 -> 120790941 | G31: =G745 -> 46125229 | H31: =H745 -> 0 | I31: =I745 -> 74665712 | J31: =J745 -> 120790941 | K31: 0
A32: 22 | B32: DIFFERENCE (REQUESTED LESS PROPOSED) | F32: =F30-F31 -> -42133.12342 | G32: -476701.496 | H32: 0 | I32: 434569 | J32: -42132.496 | K32: -0.627422303
A33: 23
A34: 24 | B34: TOTAL RETURN EARNED | F34: =F654+F26 -> 31575193.91 | G34: =G654+G26 -> 921013.496 | H34: =H654+H26 -> 0 | I34: =I654+I26 -> 30654180 | J34: =J654+J26 -> 31575193.5 | K34: =F34-J34 -> 0.4145902321
A35: 25 | B35: RATE OF RETURN EARNED | F35: =IF(F331=0,0,ROUND(F34/F331,5)) -> 0.06769 | G35: 0.11695 | H35: 0 | I35: 0.06684 | J35: 0.06769 | K35: 0
A36: 26 | B36: TOTAL RATE OF RETURN ALLOWABLE | F36: =$F$688 -> 0.06541 | G36: =F688 -> 0.06541 | H36: =F688 -> 0.06541 | I36: =F688 -> 0.06541 | J36: =$F$688 -> 0.06541 | K36: =F688 -> 0.06541 | N36: Not Part of print range
A37: 27 | B37: RETURN EARNED ON COMMON EQUITY | F37: =IF(F670=0,0,(F35-$F$683-$F$684-$F$686)*$F$673/$F$670) -> 0.09820188897 | G37: =IF(F670=0,0,(G35-F683-F684-F686)*F673/F670) -> 0.1941444723 | H37: =IF(F670=0,0,(H35-F683-F684-F686)*F673/F670) -> -0.0336363868 | I37: =IF(F670=0,0,(I35-F683-F684-F686)*F673/F670) -> 0.09654636327 | J37: =IF(F670=0,0,(J35-F683-F684-F686)*F673/F670) -> 0.09820188897 | K37: =IF(F670=0,0,(K35-F683-F684-F686)*F673/F670) -> -0.0336363868 | N37: Not Filed
A38: 28 | B38: ALLOWED RETURN ON COMMON EQUITY | F38: =IF($F$670=0,0,(F36-$F$683-$F$684-$F$686)*$F$673/$F$670) -> 0.09376118475 | G38: =IF(F670=0,0,(G36-F683-F684-F686)*F673/F670) -> 0.09376118475 | H38: =IF(F670=0,0,(H36-F683-F684-F686)*F673/F670) -> 0.09376118475 | I38: =IF(F670=0,0,(I36-F683-F684-F686)*F673/F670) -> 0.09376118475 | J38: =IF($F$670=0,0,(J36-$F$683-$F$684-$F$686)*$F$673/$F$670) -> 0.09376118475 | K38: =IF(F670=0,0,(K36-F683-F684-F686)*F673/F670) -> 0.09376118475
A39: 29
A40: 30 | B40: PRESENT REVENUES | F40: =F744 -> 111388435 | G40: =G744 -> 42534788 | H40: =H744 -> 0 | I40: =I744 -> 68853647 | J40: =J744 -> 111388435 | K40: =F40-J40 -> 0
A41: 31 | B41: REVENUE INCREASE JUSTIFIED | F41: =F28-F40 -> 9360372.877 | G41: =G28-G40 -> 3113739.504 | H41: 0 | I41: 6246634 | J41: 9360373.504 | K41: -0.627422303
A42: 32 | C42: PER UNIT PRES REV | F42: =IF(F40=0,0,ROUND(F41/F40,5)) -> 0.08403 | G42: =IF(G40=0,0,ROUND(G41/G40,5)) -> 0.0732 | H42: =IF(H40=0,0,ROUND(H41/H40,5)) -> 0 | I42: =IF(I40=0,0,ROUND(I41/I40,5)) -> 0.09072 | J42: 0.08403 | K42: 0
A43: 33 | B43: REVENUE INCREASE REQUESTED | F43: =F31-F40 -> 9402506 | G43: 3590441 | H43: 0 | I43: 5812065 | J43: 9402506 | K43: 0
A44: 34 | C44: PER UNIT PRES REV | F44: =IF(F40=0,0,ROUND(F43/F40,5)) -> 0.08441 | G44: =IF(G40=0,0,ROUND(G43/G40,5)) -> 0.08441 | H44: =IF(H40=0,0,ROUND(H43/H40,5)) -> 0 | I44: =IF(I40=0,0,ROUND(I43/I40,5)) -> 0.08441 | J44: 0.08441 | K44: 0
A46: =co_name -> DUKE ENERGY KENTUCKY, INC. | J46: =$J$1 -> FR-16(7)(v)-1
A47: =$A$2 -> FUNCTIONAL GAS COST OF SERVICE | J47: =$J$2 -> WITNESS RESPONSIBLE:
A48: =case_name -> CASE NO: 2021-00190 | J48: =Witness -> JAMES E. ZIOLKOWSKI
A49: =data_filing -> DATA: 12 MONTH FORECASTED PERIOD | J49: ="PAGE "&Pages-16&" OF "&Pages -> PAGE 2 OF 18
A50: =type -> TYPE OF FILING: "X" ORIGINAL UPDATED REVISED
A53: LINE | F53: TOTAL | G53: FUNCTIONAL | J53: TOTAL | K53: ALL
A54: NO. | B54: GROSS GAS PLANT IN SERVICE | D54: ALLO | F54: GAS | G54: PRODUCTION | H54: STORAGE | I54: DISTRIBUTION | J54: AT ISSUE | K54: OTHER
C55: Schedule 2 | G55: =$G$10 -> 3 | H55: =$H$10 -> 4 | I55: =$I$10 -> 5
A56: 1 | B56: PRODUCTION PLANT
A57: 2 | C57: PRODUCTION PLANT | D57: K205 | E57: updated | F57: ='[1]SCH B-2.1'!$I$192 -> 4625622 | G57: =F57-SUM(H57:I57) -> 4625622 | H57: =ROUND(F57*VLOOKUP(D57,AllocTable_Functional,$H$10,FALSE),0) -> 0 | I57: =ROUND(F57*VLOOKUP(D57,AllocTable_Functional,$I$10,FALSE),0) -> 0 | J57: =SUM($G$57:$I$57) -> 4625622 | K57: =F57-$J$57 -> 0
A58: 3 | C58: GAS PRODUCTION -CPMPL NOT CLASS | D58: K205 | E58: updated | F58: 0 | G58: =F58-SUM(H58:I58) -> 0 | H58: =ROUND(F58*VLOOKUP(D58,AllocTable_Functional,$H$10,FALSE),0) -> 0 | I58: =ROUND(F58*VLOOKUP(D58,AllocTable_Functional,$I$10,FALSE),0) -> 0 | J58: =SUM($G$58:$I$58) -> 0 | K58: =F58-$J$58 -> 0
A59: 4 | C59: PRODUCTION PLANT IN SERVICE | F59: =SUM(F57:F58) -> 4625622 | G59: =SUM($G$57:$G$58) -> 4625622 | H59: =SUM($H$57:$H$58) -> 0 | I59: =SUM($I$57:$I$58) -> 0 | J59: =SUM($J$57:$J$58) -> 4625622 | K59: =SUM($K$57:$K$58) -> 0
A60: 5
A61: 6 | B61: TRANSMISSION PLANT
A62: 7 | C62: TRANSMISSION PLANT
A63: 8 | C63: TRANSMISSION PLANT IN SERVICE | F63: =SUM(F62) -> 0 | G63: =SUM($G$62) -> 0 | H63: =SUM($H$62) -> 0 | I63: =SUM($I$62) -> 0 | J63: =SUM($J$62) -> 0 | K63: =SUM($K$62) -> 0
A64: 9
A65: 10 | B65: TOTAL PROD & TRANS PLANT | F65: =F63+F59 -> 4625622 | G65: =$G$63+$G$59 -> 4625622 | H65: =$H$63+$H$59 -> 0 | I65: =$I$63+$I$59 -> 0 | J65: =$J$63+$J$59 -> 4625622 | K65: =$K$63+$K$59 -> 0
A66: 11
A67: 12 | B67: DISTRIBUTION PLANT
A68: 13 | C68: SYSTEM M&R - (2780, 2781) | D68: K203 | E68: updated | F68: ='[1]SCH B-2.1'!$I$224+'[1]SCH B-2.1'!$I$225 -> 41242292 | G68: =F68-SUM(H68:I68) -> 0 | H68: =ROUND(F68*VLOOKUP(D68,AllocTable_Functional,$H$10,FALSE),0) -> 0 | I68: =ROUND(F68*VLOOKUP(D68,AllocTable_Functional,$I$10,FALSE),0) -> 41242292 | J68: =SUM(G68:I68) -> 41242292 | K68: =F68-J68 -> 0
A69: 14 | C69: DIST REG EQUIP & CITY GATE M&R- (2782, 2790) | D69: K203 | E69: updated | F69: ='[1]SCH B-2.1'!$I$226 -> 2724163 | G69: 0 | H69: 0 | I69: 2724163 | J69: 2724163 | K69: 0
A70: 15 | C70: LARGE IND M&R - (2850, 2851) | D70: K595 | E70: updated | F70: ='[1]SCH B-2.1'!$I$234+'[1]SCH B-2.1'!$I$235 -> 566920 | G70: 0 | H70: 0 | I70: 566920 | J70: 566920 | K70: 0
A71: 16 | C71: MAINS - (2761, 2762, 2763, 2765) | D71: K415 | E71: updated | F71: ='[1]SCH B-2.1'!$I$220+'[1]SCH B-2.1'!$I$221+'[1]SCH B-2.1'!$I$222+'[1]SCH B-2.1'!$I$223 -> 396995775 | G71: 0 | H71: 0 | I71: 396995775 | J71: 396995775 | K71: 0
A72: 17 | C72: SERVICES - (2801, 2802, 2803) | D72: K403 | E72: updated | F72: ='[1]SCH B-2.1'!$I$227+'[1]SCH B-2.1'!$I$228+'[1]SCH B-2.1'!$I$229 -> 226116720 | G72: 0 | H72: 0 | I72: 226116720 | J72: 226116720 | K72: 0
A73: 18 | C73: MTRS & MTR INST (2810, 2811, 2820, 2821) | D73: K413 | E73: updated | F73: ='[1]SCH B-2.1'!$I$230+'[1]SCH B-2.1'!$I$231 -> 30766213 | G73: 0 | H73: 0 | I73: 30766213 | J73: 30766213 | K73: 0
A74: 19 | C74: LAND, R OF W, STRUCT & IMPROV | D74: K203 | E74: updated | F74: ='[1]SCH B-2.1'!$I$217+'[1]SCH B-2.1'!$I$218+'[1]SCH B-2.1'!$I$219 -> 11654163 | G74: 0 | H74: 0 | I74: 11654163 | J74: 11654163 | K74: 0
A75: 20 | C75: HOUSE REG & INSTALL (2830, 2840) | D75: K417 | E75: updated | F75: ='[1]SCH B-2.1'!$I$232+'[1]SCH B-2.1'!$I$233 -> 14731367 | G75: 0 | H75: 0 | I75: 14731367 | J75: 14731367 | K75: 0
A76: 21 | C76: STREET LIGHTING EQUIPMENT & OTH | D76: K597 | E76: updated | F76: ='[1]SCH B-2.1'!$I$236+'[1]SCH B-2.1'!$I$237 -> 91485 | G76: 0 | H76: 0 | I76: 91485 | J76: 91485 | K76: 0
A77: 22 | C77: ASSET RETIREMENT COST FOR DISTRIBUTION PLANT | D77: K203 | E77: updated | F77: ='[1]SCH B-2.1'!$I$238 -> 0 | G77: 0 | H77: 0 | I77: 0 | J77: 0 | K77: 0
A78: 23 | C78: DISTRIBUTION PLANT IN SERVICE | F78: =SUM(F68:F77) -> 724889098 | G78: 0 | H78: 0 | I78: 724889098 | J78: 724889098 | K78: 0
A79: 24
A80: 25 | B80: TOTAL TRANS & DIST PLANT | F80: =F78+F63 -> 724889098 | G80: =G78+$G$63 -> 0 | H80: =H78+$H$63 -> 0 | I80: =I78+$I$63 -> 724889098 | J80: =J78+$J$63 -> 724889098 | K80: =K78+$K$63 -> 0
A81: 26 | B81: TOTAL GROSS PTD PLANT | F81: =F78+F65 -> 729514720 | G81: 4625622 | H81: 0 | I81: 724889098 | J81: 729514720 | K81: 0
A82: 27
A83: 28 | B83: GENERAL & INTANGIBLE PLANT
A84: 29 | C84: PRODUCTION PLANT | D84: K201 | E84: updated | F84: ='WP FR-16(7)(v)-A&G WP'!D12 -> 2861675 | G84: =F84-SUM(H84:I84) -> 2861675 | H84: =ROUND(F84*VLOOKUP(D84,AllocTable_Functional,$H$10,FALSE),0) -> 0 | I84: =ROUND(F84*VLOOKUP(D84,AllocTable_Functional,$I$10,FALSE),0) -> 0 | J84: =SUM(G84:I84) -> 2861675 | K84: =F84-J84 -> 0
A85: 30 | C85: PRODUCTION PLANT COMMODITY | D85: P349 | E85: updated | F85: ='WP FR-16(7)(v)-A&G WP'!D13 -> 2108436 | G85: 2108436 | H85: 0 | I85: 0 | J85: 2108436 | K85: 0
A86: 31 | C86: DISTRIBUTION PLANT | D86: D349 | E86: updated | F86: ='WP FR-16(7)(v)-A&G WP'!D15 -> 18849244 | G86: 0 | H86: 0 | I86: 18849244 | J86: 18849244 | K86: 0
A87: 32 | C87: CUSTOMER ACCOUNTING | D87: CA19 | E87: updated | F87: ='WP FR-16(7)(v)-A&G WP'!D16 -> 7459729 | G87: 0 | H87: 0 | I87: 7459729 | J87: 7459729 | K87: 0
A88: 33 | C88: CUSTOMER SERVICE & INFORMATION | D88: CS19 | E88: updated | F88: ='WP FR-16(7)(v)-A&G WP'!D17 -> 722179 | G88: 0 | H88: 0 | I88: 722179 | J88: 722179 | K88: 0
A89: 34 | C89: SALES | D89: SE19 | E89: updated | F89: ='WP FR-16(7)(v)-A&G WP'!D18 -> 0 | G89: 0 | H89: 0 | I89: 0 | J89: 0 | K89: 0
A90: 35 | C90: GEN & INTANG PLANT IN SERVICE | F90: =SUM(F84:F89) -> 32001263 | G90: 4970111 | H90: 0 | I90: 27031152 | J90: 32001263 | K90: 0
A91: 36
A92: 37 | B92: COMMON & OTHER PLANT
A93: 38 | C93: PRODUCTION PLANT | D93: K201 | E93: updated | F93: ='WP FR-16(7)(v)-A&G WP'!F12 -> 920366 | G93: =F93-SUM(H93:I93) -> 920366 | H93: =ROUND(F93*VLOOKUP(D93,AllocTable_Functional,$H$10,FALSE),0) -> 0 | I93: =ROUND(F93*VLOOKUP(D93,AllocTable_Functional,$I$10,FALSE),0) -> 0 | J93: =SUM(G93:I93) -> 920366 | K93: =F93-J93 -> 0
A94: 39 | C94: PRODUCTION PLANT COMMODITY | D94: P349 | E94: updated | F94: ='WP FR-16(7)(v)-A&G WP'!F13 -> 678111 | G94: 678111 | H94: 0 | I94: 0 | J94: 678111 | K94: 0
A95: 40 | C95: DISTRIBUTION PLANT | D95: D349 | E95: updated | F95: ='WP FR-16(7)(v)-A&G WP'!F15 -> 6062254 | G95: 0 | H95: 0 | I95: 6062254 | J95: 6062254 | K95: 0
A96: 41 | C96: CUSTOMER ACCOUNTING | D96: CA19 | E96: updated | F96: ='WP FR-16(7)(v)-A&G WP'!F16 -> 2399182 | G96: 0 | H96: 0 | I96: 2399182 | J96: 2399182 | K96: 0
A97: 42 | C97: CUSTOMER SERVICE & INFORMATION | D97: CS19 | E97: updated | F97: ='WP FR-16(7)(v)-A&G WP'!F17 -> 232266 | G97: 0 | H97: 0 | I97: 232266 | J97: 232266 | K97: 0
A98: 43 | C98: SALES | D98: SE19 | E98: updated | F98: ='WP FR-16(7)(v)-A&G WP'!F18 -> 0 | G98: 0 | H98: 0 | I98: 0 | J98: 0 | K98: 0
A99: 44 | C99: COMMON & OTHER PLANT IN SERVICE | F99: =SUM(F93:F98) -> 10292179 | G99: 1598477 | H99: 0 | I99: 8693702 | J99: 10292179 | K99: 0
A100: 45
A101: 46 | B101: GROSS GAS PLANT IN SERVICE | F101: =F81+F90+F99 -> 771808162 | G101: 11194210 | H101: 0 | I101: 760613952 | J101: 771808162 | K101: 0 | M101: =ROUND(G101/F101,4) -> 0.0145 | N101: =ROUND(H101/F101,4) -> 0 | O101: =ROUND(I101/F101,4) -> 0.9855
A103: =co_name -> DUKE ENERGY KENTUCKY, INC. | J103: =$J$1 -> FR-16(7)(v)-1
A104: =$A$2 -> FUNCTIONAL GAS COST OF SERVICE | J104: =$J$2 -> WITNESS RESPONSIBLE:
A105: =case_name -> CASE NO: 2021-00190 | J105: =Witness -> JAMES E. ZIOLKOWSKI
A106: =data_filing -> DATA: 12 MONTH FORECASTED PERIOD | J106: ="PAGE "&Pages-15&" OF "&Pages -> PAGE 3 OF 18
A107: =type -> TYPE OF FILING: "X" ORIGINAL UPDATED REVISED
A110: LINE | F110: TOTAL | G110: FUNCTIONAL | J110: TOTAL | K110: ALL
A111: NO. | B111: DEPRECIATION RESERVE | D111: ALLO | F111: GAS | G111: PRODUCTION | H111: STORAGE | I111: DISTRIBUTION | J111: AT ISSUE | K111: OTHER
C112: Schedule 3 | G112: =$G$10 -> 3 | H112: =$H$10 -> 4 | I112: =$I$10 -> 5
A113: 1 | B113: PRODUCTION PLANT
A114: 2 | C114: PRODUCTION PLANT | D114: K205 | E114: updated | F114: ='[1]SCH B-3'!$K$227 -> 2553891 | G114: =F114-SUM(H114:I114) -> 2553891 | H114: =ROUND(F114*VLOOKUP(D114,AllocTable_Functional,$H$10,FALSE),0) -> 0 | I114: =ROUND(F114*VLOOKUP(D114,AllocTable_Functional,$I$10,FALSE),0) -> 0 | J114: =SUM(G114:I114) -> 2553891 | K114: =F114-J114 -> 0
A115: 3 | C115: TOTAL PROD DEPREC RESERVE | F115: =SUM(F114:F114) -> 2553891 | G115: 2553891 | H115: 0 | I115: 0 | J115: 2553891 | K115: 0
A116: 4
A117: 5 | B117: TRANSMISSION PLANT
A118: 6 | C118: TRANSMISSION PLANT
A119: 7 | C119: TOTAL TRANS DEPREC RESERVE | F119: =SUM(F118:F118) -> 0 | G119: 0 | H119: 0 | I119: 0 | J119: 0 | K119: 0
A120: 8
A121: 9 | B121: DISTRIBUTION PLANT
A122: 10 | C122: SYSTEM M&R - (2780, 2781) | D122: K203 | E122: updated | F122: ='[1]SCH B-3'!$K$265+'[1]SCH B-3'!$K$266 -> 2581527 | G122: =F122-SUM(H122:I122) -> 0 | H122: =ROUND(F122*VLOOKUP(D122,AllocTable_Functional,$H$10,FALSE),0) -> 0 | I122: =ROUND(F122*VLOOKUP(D122,AllocTable_Functional,$I$10,FALSE),0) -> 2581527 | J122: =SUM(G122:I122) -> 2581527 | K122: =F122-J122 -> 0
A123: 11 | C123: DIST REG EQUIP & CITY GATE M&R- (2782, 2790) | D123: K203 | E123: updated | F123: ='[1]SCH B-3'!$K$267 -> 1211353 | G123: 0 | H123: 0 | I123: 1211353 | J123: 1211353 | K123: 0
A124: 12 | C124: LARGE IND M&R - (2850, 2851) | D124: K595 | E124: updated | F124: ='[1]SCH B-3'!$K$275+'[1]SCH B-3'!$K$276 -> 509867 | G124: 0 | H124: 0 | I124: 509867 | J124: 509867 | K124: 0
A125: 13 | C125: MAINS - (2761, 2762, 2763, 2765) | D125: K415 | E125: updated | F125: ='[1]SCH B-3'!$K$261+'[1]SCH B-3'!$K$262+'[1]SCH B-3'!$K$263+'[1]SCH B-3'!$K$264+[1]SCH_D2.23!$J$27-[1]SCH_B1!$S$63-[1]SCH_D2.23!$Q$55 -> 113499887 | G125: 0 | H125: 0 | I125: 113499887 | J125: 113499887 | K125: 0
A126: 14 | C126: SERVICES - (2801, 2802, 2803) | D126: K403 | E126: updated | F126: ='[1]SCH B-3'!$K$268+'[1]SCH B-3'!$K$269+'[1]SCH B-3'!$K$270 -> 61310319 | G126: 0 | H126: 0 | I126: 61310319 | J126: 61310319 | K126: 0
A127: 15 | C127: MTRS & MTR INST (2810, 2811, 2820, 2821) | D127: K413 | E127: updated | F127: ='[1]SCH B-3'!$K$271+'[1]SCH B-3'!$K$272 -> -895430 | G127: 0 | H127: 0 | I127: -895430 | J127: -895430 | K127: 0
A128: 16 | C128: LAND, R OF W, STRUCT & IMPROV & OTH | D128: K203 | E128: updated | F128: ='[1]SCH B-3'!$K$258+'[1]SCH B-3'!$K$259+'[1]SCH B-3'!$K$260 -> 701479 | G128: 0 | H128: 0 | I128: 701479 | J128: 701479 | K128: 0
A129: 17 | C129: HOUSE REG & INSTALL (2830, 2840) | D129: K417 | E129: updated | F129: ='[1]SCH B-3'!$K$273+'[1]SCH B-3'!$K$274 -> 5948247 | G129: 0 | H129: 0 | I129: 5948247 | J129: 5948247 | K129: 0
A130: 18 | C130: STREET LIGHTING EQUIPMENT & OTH | D130: K597 | E130: updated | F130: ='[1]SCH B-3'!$K$277+'[1]SCH B-3'!$K$278+'[1]SCH B-3'!$K$279+'[1]SCH B-3'!$K$280+'[1]SCH B-3'!$K$281 -> -3476871 | G130: 0 | H130: 0 | I130: -3476871 | J130: -3476871 | K130: 0
A131: 19 | C131: TOTAL DIST DEPREC RESERVE | F131: =SUM(F121:F130) -> 181390378 | G131: 0 | H131: 0 | I131: 181390378 | J131: 181390378 | K131: 0
A132: 20
A133: 21 | B133: GENERAL & INTANGIBLE PLANT
A134: 22 | C134: PRODUCTION PLANT | D134: K201 | E134: updated | F134: ='WP FR-16(7)(v)-A&G WP'!E12 -> 1408783 | G134: =F134-SUM(H134:I134) -> 1408783 | H134: =ROUND(F134*VLOOKUP(D134,AllocTable_Functional,$H$10,FALSE),0) -> 0 | I134: =ROUND(F134*VLOOKUP(D134,AllocTable_Functional,$I$10,FALSE),0) -> 0 | J134: =SUM(G134:I134) -> 1408783 | K134: =F134-J134 -> 0
A135: 23 | C135: PRODUCTION PLANT COMMODITY | D135: P349 | E135: updated | F135: ='WP FR-16(7)(v)-A&G WP'!E13 -> 1037967 | G135: 1037967 | H135: 0 | I135: 0 | J135: 1037967 | K135: 0
A136: 24 | C136: DISTRIBUTION PLANT | D136: D349 | E136: updated | F136: ='WP FR-16(7)(v)-A&G WP'!E15 -> 9279343 | G136: 0 | H136: 0 | I136: 9279343 | J136: 9279343 | K136: 0
A137: 25 | C137: CUSTOMER ACCOUNTING | D137: CA19 | E137: updated | F137: ='WP FR-16(7)(v)-A&G WP'!E16 -> 3672369 | G137: 0 | H137: 0 | I137: 3672369 | J137: 3672369 | K137: 0
A138: 26 | C138: CUSTOMER SERVICE & INFORMATION | D138: CS19 | E138: updated | F138: ='WP FR-16(7)(v)-A&G WP'!E17 -> 355523 | G138: 0 | H138: 0 | I138: 355523 | J138: 355523 | K138: 0
A139: 27 | C139: SALES | D139: SE19 | E139: updated | F139: ='WP FR-16(7)(v)-A&G WP'!E18 -> 0 | G139: 0 | H139: 0 | I139: 0 | J139: 0 | K139: 0
A140: 28 | C140: TOTAL GEN DEPREC RESERVE | F140: =SUM(F133:F139) -> 15753985 | G140: 2446750 | H140: 0 | I140: 13307235 | J140: 15753985 | K140: 0
A141: 29
A142: 30 | B142: COMMON & OTHER PLANT
A143: 31 | C143: PRODUCTION PLANT | D143: K201 | E143: updated | F143: ='WP FR-16(7)(v)-A&G WP'!G12 -> 644301 | G143: =F143-SUM(H143:I143) -> 644301 | H143: =ROUND(F143*VLOOKUP(D143,AllocTable_Functional,$H$10,FALSE),0) -> 0 | I143: =ROUND(F143*VLOOKUP(D143,AllocTable_Functional,$I$10,FALSE),0) -> 0 | J143: =SUM(G143:I143) -> 644301 | K143: =F143-J143 -> 0
A144: 32 | C144: PRODUCTION PLANT COMMODITY | D144: P349 | E144: updated | F144: ='WP FR-16(7)(v)-A&G WP'!G13 -> 474711 | G144: 474711 | H144: 0 | I144: 0 | J144: 474711 | K144: 0
A145: 33 | C145: DISTRIBUTION PLANT | D145: D349 | E145: updated | F145: ='WP FR-16(7)(v)-A&G WP'!G15 -> 4243873 | G145: 0 | H145: 0 | I145: 4243873 | J145: 4243873 | K145: 0
A146: 34 | C146: CUSTOMER ACCOUNTING | D146: CA19 | E146: updated | F146: ='WP FR-16(7)(v)-A&G WP'!G16 -> 1679545 | G146: 0 | H146: 0 | I146: 1679545 | J146: 1679545 | K146: 0
A147: 35 | C147: CUSTOMER SERVICE & INFORMATION | D147: CS19 | E147: updated | F147: ='WP FR-16(7)(v)-A&G WP'!G17 -> 162597 | G147: 0 | H147: 0 | I147: 162597 | J147: 162597 | K147: 0
A148: 36 | C148: SALES | D148: SE19 | E148: updated | F148: ='WP FR-16(7)(v)-A&G WP'!G18 -> 0 | G148: 0 | H148: 0 | I148: 0 | J148: 0 | K148: 0
A149: 37 | C149: TOTAL COM & OTHER PLT RESERVE | F149: =SUM(F143:F148) -> 7205027 | G149: =SUM(G142:G148) -> 1119012 | H149: =SUM(H142:H148) -> 0 | I149: =SUM(I142:I148) -> 6086015 | J149: =SUM(J142:J148) -> 7205027 | K149: =SUM(K142:K148) -> 0
A150: 38
A151: 39 | B151: TOTAL DEPRECIATION RESERVE | F151: =F149+F140+F131+F119+F115 -> 206903281 | G151: 6119653 | H151: 0 | I151: 200783628 | J151: 206903281 | K151: 0 | M151: =ROUND(G151/F151,4) -> 0.0296 | N151: =ROUND(H151/F151,4) -> 0 | O151: =ROUND(I151/F151,4) -> 0.9704
A153: =co_name -> DUKE ENERGY KENTUCKY, INC. | J153: =$J$1 -> FR-16(7)(v)-1
A154: =$A$2 -> FUNCTIONAL GAS COST OF SERVICE | J154: =$J$2 -> WITNESS RESPONSIBLE:
A155: =case_name -> CASE NO: 2021-00190 | J155: =Witness -> JAMES E. ZIOLKOWSKI
A156: =data_filing -> DATA: 12 MONTH FORECASTED PERIOD | J156: ="PAGE "&Pages-14&" OF "&Pages -> PAGE 4 OF 18
A157: =type -> TYPE OF FILING: "X" ORIGINAL UPDATED REVISED
A160: LINE | F160: TOTAL | G160: FUNCTIONAL | J160: TOTAL | K160: ALL
A161: NO. | B161: ="NET GAS PLANT" -> NET GAS PLANT | D161: ALLO | F161: GAS | G161: PRODUCTION | H161: STORAGE | I161: DISTRIBUTION | J161: AT ISSUE | K161: OTHER
C162: Schedule 4 | G162: =$G$10 -> 3 | H162: =$H$10 -> 4 | I162: =$I$10 -> 5
A163: 1 | B163: PRODUCTION PLANT
A164: 2 | C164: PRODUCTION PLANT IN SERVICE | F164: =F59 -> 4625622 | G164: =$G$59 -> 4625622 | H164: =$H$59 -> 0 | I164: =$I$59 -> 0 | J164: =$J$59 -> 4625622 | K164: =F164-J164 -> 0
A165: 3 | C165: TOTAL PROD DEPRC RESERVE | F165: =-F115 -> -2553891 | G165: =-G115 -> -2553891 | H165: =-H115 -> 0 | I165: =-I115 -> 0 | J165: =-J115 -> -2553891 | K165: =F165-J165 -> 0
A166: 4 | C166: NET PRODUCTION PLANT | F166: =SUM(F164:F165) -> 2071731 | G166: 2071731 | H166: 0 | I166: 0 | J166: 2071731 | K166: 0
A167: 5
A168: 6 | B168: TRANSMISSION PLANT
A169: 7 | C169: TRANSMISSION PLANT IN SERVICE | F169: =F63 -> 0 | G169: =$G$63 -> 0 | H169: =$H$63 -> 0 | I169: =$I$63 -> 0 | J169: =$J$63 -> 0 | K169: =F169-J169 -> 0
A170: 8 | C170: TOTAL TRANS DEPREC RESERVE | F170: =-F119 -> 0 | G170: =-G119 -> 0 | H170: =-H119 -> 0 | I170: =-I119 -> 0 | J170: =-J119 -> 0 | K170: =F170-J170 -> 0
A171: 9 | C171: NET TRANSMISSION PLANT | F171: =SUM(F168:F170) -> 0 | G171: 0 | H171: 0 | I171: 0 | J171: 0 | K171: 0
A172: 10
A173: 11 | B173: DISTRIBUTION PLANT
A174: 12 | C174: DISTRIBUTION PLANT IN SERVICE | F174: =F78 -> 724889098 | G174: =G78 -> 0 | H174: =H78 -> 0 | I174: =I78 -> 724889098 | J174: =J78 -> 724889098 | K174: =F174-J174 -> 0
A175: 13 | C175: TOTAL DIST DEPREC RESERVE | F175: =-F131 -> -181390378 | G175: =-G131 -> 0 | H175: =-H131 -> 0 | I175: =-I131 -> -181390378 | J175: =-J131 -> -181390378 | K175: =F175-J175 -> 0
A176: 14 | C176: NET DISTRIBUTION PLANT | F176: =SUM(F173:F175) -> 543498720 | G176: 0 | H176: 0 | I176: 543498720 | J176: 543498720 | K176: 0
A177: 15
A178: 16 | B178: NET PTD PLANT | F178: =F176+F171+F166 -> 545570451 | G178: 2071731 | H178: 0 | I178: 543498720 | J178: 545570451 | K178: 0
A179: 17 | B179: NET TRANS & DIST PLANT | F179: =F176+F171 -> 543498720 | G179: 0 | H179: 0 | I179: 543498720 | J179: 543498720 | K179: 0
A180: 18
A181: 19 | B181: GENERAL & INTANGIBLE PLANT
A182: 20 | C182: GEN & INTANG PLANT IN SERVICE | F182: =F90 -> 32001263 | G182: =G90 -> 4970111 | H182: =H90 -> 0 | I182: =I90 -> 27031152 | J182: =J90 -> 32001263 | K182: =F182-J182 -> 0
A183: 21 | C183: TOTAL GEN & INTG DEPREC RESERVE | F183: =-F140 -> -15753985 | G183: =-G140 -> -2446750 | H183: =-H140 -> 0 | I183: =-I140 -> -13307235 | J183: =-J140 -> -15753985 | K183: =F183-J183 -> 0
A184: 22 | C184: NET GENERAL & INTANG PLANT | F184: =SUM(F181:F183) -> 16247278 | G184: 2523361 | H184: 0 | I184: 13723917 | J184: 16247278 | K184: 0
A185: 23
A186: 24 | B186: COMMON & OTHER PLANT
A187: 25 | C187: COMMON & OTH PLT IN SERVICE | F187: =F99 -> 10292179 | G187: =G99 -> 1598477 | H187: =H99 -> 0 | I187: =I99 -> 8693702 | J187: =J99 -> 10292179 | K187: =F187-J187 -> 0
A188: 26 | C188: TOTAL COM & OTH DEPREC RESERVE | F188: =-F149 -> -7205027 | G188: =-G149 -> -1119012 | H188: =-H149 -> 0 | I188: =-I149 -> -6086015 | J188: =-J149 -> -7205027 | K188: =F188-J188 -> 0
A189: 27 | C189: NET COMMON & OTHER PLANT | F189: =SUM(F186:F188) -> 3087152 | G189: 479465 | H189: 0 | I189: 2607687 | J189: 3087152 | K189: 0
A190: 28
A191: 29 | C191: ="NET GAS PLANT IN SERVICE" -> NET GAS PLANT IN SERVICE | F191: =F189+F184+F176+F171+F166 -> 564904881 | G191: 5074557 | H191: 0 | I191: 559830324 | J191: 564904881 | K191: 0 | M191: =ROUND(G191/F191,4) -> 0.009 | N191: =ROUND(H191/F191,4) -> 0 | O191: =ROUND(I191/F191,4) -> 0.991
A193: =co_name -> DUKE ENERGY KENTUCKY, INC. | J193: =$J$1 -> FR-16(7)(v)-1
A194: =$A$2 -> FUNCTIONAL GAS COST OF SERVICE | J194: =$J$2 -> WITNESS RESPONSIBLE:
A195: =case_name -> CASE NO: 2021-00190 | J195: =Witness -> JAMES E. ZIOLKOWSKI
A196: =data_filing -> DATA: 12 MONTH FORECASTED PERIOD | J196: ="PAGE "&Pages-13&" OF "&Pages -> PAGE 5 OF 18
A197: =type -> TYPE OF FILING: "X" ORIGINAL UPDATED REVISED
A200: LINE | F200: TOTAL | G200: FUNCTIONAL | J200: TOTAL | K200: ALL
A201: NO. | B201: SUBTRACTIVE RATE BASE ADJUSTMENTS | D201: ALLO | F201: GAS | G201: PRODUCTION | H201: STORAGE | I201: DISTRIBUTION | J201: AT ISSUE | K201: OTHER
C202: Schedule 5 | G202: =$G$10 -> 3 | H202: =$H$10 -> 4 | I202: =$I$10 -> 5
A203: 1 | B203: RATE BASE ADJUSTMENTS
A204: 2 | B204: ACCUMULATED DEFERRED INCOME TAXES
A205: 3 | B205: ACCUM DEF INC TAXES (282)
A206: 4 | C206: LIBERALIZED DEPRECIATION | D206: NP29 | E206: updated | F206: =-'[1]WPB-6''s'!$R$114 -> 66033425 | G206: =F206-SUM(H206:I206) -> 592980 | H206: =ROUND(F206*VLOOKUP(D206,AllocTable_Functional,$H$10,FALSE),0) -> 0 | I206: =ROUND(F206*VLOOKUP(D206,AllocTable_Functional,$I$10,FALSE),0) -> 65440445 | J206: =SUM(G206:I206) -> 66033425 | K206: =F206-J206 -> 0
A207: 5 | C207: LEASED METERS | D207: K413 | E207: updated | G207: 0 | H207: 0 | I207: 0 | J207: 0 | K207: 0
A208: 6 | C208: CONTRIB AID CONSTR | D208: D249 | E208: updated | F208: -1497040 | G208: 0 | H208: 0 | I208: -1497040 | J208: -1497040 | K208: 0
A209: 7 | C209: CAPITALIZED INTEREST | D209: NP29 | E209: updated | F209: -1556029 | G209: -13973 | H209: 0 | I209: -1542056 | J209: -1556029 | K209: 0
A210: 8 | C210: AFUDC IN DEBT | D210: NP29 | E210: updated | G210: 0 | H210: 0 | I210: 0 | J210: 0 | K210: 0
A211: 9 | C211: CWIP DIFFERENCES | D211: NP29 | E211: updated | G211: 0 | H211: 0 | I211: 0 | J211: 0 | K211: 0
A212: 10 | C212: NON-CASH OVERHEADS | D212: AG39 | E212: updated | F212: -624152 | G212: -96937 | H212: 0 | I212: -527215 | J212: -624152 | K212: 0
A213: 11 | C213: PLANT FAS 109 | D213: NP29 | E213: updated | G213: 0 | H213: 0 | I213: 0 | J213: 0 | K213: 0
A214: 12 | C214: MISCELLANEOUS | D214: NP29 | E214: updated | F214: =F215-SUM(F206:F213) -> 7822421.904 | G214: 70244.90411 | H214: 0 | I214: 7752177 | J214: 7822421.904 | K214: 0
... 636 more rows

Sheet FR-16(7)(v)-2 PROD Classified
A1: =co_name -> DUKE ENERGY KENTUCKY, INC. | J1: FR-16(7)(v)-2
A2: PRODUCTION CLASSIFIED - GAS COST OF SERVICE | J2: WITNESS RESPONSIBLE:
A3: =case_name -> CASE NO: 2021-00190 | J3: =Witness -> JAMES E. ZIOLKOWSKI
A4: =data_filing -> DATA: 12 MONTH FORECASTED PERIOD | J4: ="PAGE "&Pages-17&" OF "&Pages -> PAGE 1 OF 18
A5: =type -> TYPE OF FILING: "X" ORIGINAL UPDATED REVISED
A8: LINE | F8: TOTAL | G8: CLASSIFIED | J8: TOTAL | K8: ALL
A9: NO. | B9: SUMMARY OF RESULTS | D9: ALLO | F9: PRODUCTION | G9: DEMAND | H9: COMMODITY | I9: CUSTOMER | J9: AT ISSUE | K9: OTHER
C10: Schedule 1 | G10: 3 | H10: 4 | I10: 5
A11: 1 | B11: NET INCOME COMPUTATION
A12: 2 | C12: ='FR-16(7)(v)-1 Functional'!C12 -> GROSS GAS PLANT IN SERVICE | F12: =F101 -> 11194210 | G12: =G101 -> 0 | H12: =H101 -> 11194210 | I12: =I101 -> 0 | J12: =J101 -> 11194210 | K12: =F12-J12 -> 0
A13: 3 | C13: ='FR-16(7)(v)-1 Functional'!C13 -> TOTAL DEPRECIATION RESERVE | F13: =-F151 -> -6119653 | G13: =-G151 -> 0 | H13: =-H151 -> -6119653 | I13: =-I151 -> 0 | J13: =-J151 -> -6119653 | K13: =F13-J13 -> 0
A14: 4 | C14: ='FR-16(7)(v)-1 Functional'!C14 -> TOTAL RATE BASE ADJUSTMENTS | F14: =F326 -> 2800835.096 | G14: =G326 -> 0.09589040279 | H14: =H326 -> 2800835 | I14: =I326 -> 0 | J14: =J326 -> 2800835.096 | K14: =F14-J14 -> 0
A15: 5 | C15: ='FR-16(7)(v)-1 Functional'!C15 -> TOTAL RATE BASE | F15: =SUM(F12:F14) -> 7875392.096 | G15: 0.09589040279 | H15: 7875392 | I15: 0 | J15: 7875392.096 | K15: 0
A16: 6
A17: 7 | B17: OPERATING EXPENSES
A18: 8 | C18: ='FR-16(7)(v)-1 Functional'!C18 -> TOTAL O&M EXPENSE | F18: =F433 -> 43021212 | G18: =G433 -> 0 | H18: =H433 -> 43021212 | I18: =I433 -> 0 | J18: =J433 -> 43021212 | K18: =F18-J18 -> 0
A19: 9 | C19: ='FR-16(7)(v)-1 Functional'!C19 -> TOTAL DEPRECIATION EXPENSE | F19: =F465 -> 864535.504 | G19: =G465 -> -0.496 | H19: =H465 -> 864536 | I19: =I465 -> 0 | J19: =J465 -> 864535.504 | K19: 0
A20: 10 | C20: ='FR-16(7)(v)-1 Functional'!C20 -> TOTAL OTHER TAX & MISC EXPENSE | F20: =F495 -> 128829 | G20: =$G$495 -> 0 | H20: =$H$495 -> 128829 | I20: =$I$495 -> 0 | J20: =$J$495 -> 128829 | K20: 0
A21: 11 | C21: ='FR-16(7)(v)-1 Functional'!C21 -> TOTAL OP EXP EXCLUDING INC & REV TAX | F21: =SUM(F17:F20) -> 44014576.5 | G21: =SUM(G17:G20) -> -0.496 | H21: =SUM(H17:H20) -> 44014577 | I21: =SUM(I17:I20) -> 0 | J21: =SUM(J17:J20) -> 44014576.5 | K21: 0
A22: 12 | C22: ='FR-16(7)(v)-1 Functional'!C22 -> NET FED INCOME TAX EXP ALLOWABLE | F22: =F557 -> 1094994 | G22: =$G$557 -> 0 | H22: =$H$557 -> 1094994 | I22: =$I$557 -> 0 | J22: =$J$557 -> 1094994 | K22: 0
A23: 13 | C23: ='FR-16(7)(v)-1 Functional'!C23 -> NET STATE INCOME TAX EXP ALLOWABLE | F23: =F605 -> 63862 | G23: =G605 -> 0 | H23: =H605 -> 63862 | I23: =I605 -> 0 | J23: =J605 -> 63862 | K23: 0
A24: 14 | C24: ='FR-16(7)(v)-1 Functional'!C24 -> TOTAL OPERATING EXPENSE | F24: =SUM(F21:F23) -> 45173432.5 | G24: =SUM(G21:G23) -> -0.496 | H24: =SUM(H21:H23) -> 45173433 | I24: =SUM(I21:I23) -> 0 | J24: =SUM(J21:J23) -> 45173432.5 | K24: 0
A25: 15
A26: 16 | B26: RETURN ON RATE BASE | F26: =F334 -> 515130 | G26: =G334 -> 0 | H26: =H334 -> 515130 | I26: =I334 -> 0 | J26: =J334 -> 515130 | K26: =F26-J26 -> 0
A27: 17 | B27: TOTAL OTHER OPERATING REVENUES | F27: =-F630 -> -40105 | G27: =-$G$630 -> 0 | H27: =-$H$630 -> -40105 | I27: =-$I$630 -> 0 | J27: =-$J$630 -> -40105 | K27: 0
A28: 18 | C28: ='FR-16(7)(v)-1 Functional'!C28 -> TOTAL GAS COST OF SERVICE | F28: =SUM(F24:F27) -> 45648457.5 | G28: =SUM(G24:G27) -> -0.496 | H28: =SUM(H24:H27) -> 45648458 | I28: =SUM(I24:I27) -> 0 | J28: =SUM(J24:J27) -> 45648457.5 | K28: 0
A29: 19 | B29: ADJUSTMENT FOR INTERCLASS SUBSIDIZATION | D29: =1-'WP FR-16(7)(v)Rate Incr (40.0%)'!I11 -> 0.6 | F29: ='WP FR-16(7)(v)Rate Incr (40.0%)'!Q20 -> 0 | G29: 0 | H29: 0 | I29: 0 | J29: =SUM(G29:I29) -> 0 | K29: 0
A30: 20 | B30: REQUESTED REVENUES | F30: =F29+F28 -> 45648457.5 | G30: =G29+G28 -> -0.496 | H30: =H29+H28 -> 45648458 | I30: =I29+I28 -> 0 | J30: =J29+J28 -> 45648457.5 | K30: 0
A31: 21 | B31: PROPOSED REVENUES | F31: =F745 -> 46125229 | G31: =G745 -> 0 | H31: =H745 -> 46125229 | I31: =I745 -> 0 | J31: =J745 -> 46125229 | K31: 0
A32: 22 | B32: DIFFERENCE (REQUESTED LESS PROPOSED) | F32: =F30-F31 -> -476771.496 | G32: -0.496 | H32: -476771 | I32: 0 | J32: -476771.496 | K32: 0
A33: 23
A34: 24 | B34: TOTAL RETURN EARNED | F34: =F654+F26 -> 921010.496 | G34: =G654+G26 -> 0.496 | H34: =H654+H26 -> 921010 | I34: =I654+I26 -> 0 | J34: =J654+J26 -> 921010.496 | K34: =F34-J34 -> 0
A35: 25 | B35: RATE OF RETURN EARNED | F35: =IF(F331=0,0,ROUND(F34/F331,5)) -> 0.11695 | G35: 5.17257 | H35: 0.11695 | I35: 0 | J35: 0.11695 | K35: 0
A36: 26 | B36: TOTAL RATE OF RETURN ALLOWABLE | F36: =$F$688 -> 0.06541 | G36: =F688 -> 0.06541 | H36: =F688 -> 0.06541 | I36: =F688 -> 0.06541 | J36: =$F$688 -> 0.06541 | K36: =F688 -> 0.06541 | N36: Not Part of print range
A37: 27 | B37: RETURN EARNED ON COMMON EQUITY | F37: =IF(F670=0,0,(F35-$F$683-$F$684-$F$686)*$F$673/$F$670) -> 0.1941444723 | G37: =IF(F670=0,0,(G35-F683-F684-F686)*F673/F670) -> 10.04086073 | H37: =IF(F670=0,0,(H35-F683-F684-F686)*F673/F670) -> 0.1941444723 | I37: =IF(F670=0,0,(I35-F683-F684-F686)*F673/F670) -> -0.0336363868 | J37: =IF(F670=0,0,(J35-F683-F684-F686)*F673/F670) -> 0.1941444723 | K37: =IF(F670=0,0,(K35-F683-F684-F686)*F673/F670) -> -0.0336363868 | N37: Not Filed
A38: 28 | B38: ALLOWED RETURN ON COMMON EQUITY | F38: =IF($F$670=0,0,(F36-$F$683-$F$684-$F$686)*$F$673/$F$670) -> 0.09376118475 | G38: =IF(F670=0,0,(G36-F683-F684-F686)*F673/F670) -> 0.09376118475 | H38: =IF(F670=0,0,(H36-F683-F684-F686)*F673/F670) -> 0.09376118475 | I38: =IF(F670=0,0,(I36-F683-F684-F686)*F673/F670) -> 0.09376118475 | J38: =IF($F$670=0,0,(J36-$F$683-$F$684-$F$686)*$F$673/$F$670) -> 0.09376118475 | K38: =IF(F670=0,0,(K36-F683-F684-F686)*F673/F670) -> 0.09376118475
A39: 29
A40: 30 | B40: PRESENT REVENUES | F40: =F744 -> 42534788 | G40: =G744 -> 0 | H40: =H744 -> 42534788 | I40: =I744 -> 0 | J40: =J744 -> 42534788 | K40: =F40-J40 -> 0
A41: 31 | B41: REVENUE INCREASE JUSTIFIED | F41: =F28-F40 -> 3113669.504 | G41: -0.496 | H41: 3113670 | I41: 0 | J41: 3113669.504 | K41: 0
A42: 32 | C42: PER UNIT PRES REV | F42: =IF(F40=0,0,ROUND(F41/F40,5)) -> 0.0732 | G42: 0 | H42: 0.0732 | I42: 0 | J42: 0.0732 | K42: 0
A43: 33 | B43: REVENUE INCREASE REQUESTED | F43: =F31-F40 -> 3590441 | G43: 0 | H43: 3590441 | I43: 0 | J43: 3590441 | K43: 0
A44: 34 | C44: PER UNIT PRES REV | F44: =IF(F40=0,0,ROUND(F43/F40,5)) -> 0.08441 | G44: 0 | H44: 0.08441 | I44: 0 | J44: 0.08441 | K44: 0
A46: =co_name -> DUKE ENERGY KENTUCKY, INC. | J46: =$J$1 -> FR-16(7)(v)-2
A47: =$A$2 -> PRODUCTION CLASSIFIED - GAS COST OF SERVICE | J47: =$J$2 -> WITNESS RESPONSIBLE:
A48: =case_name -> CASE NO: 2021-00190 | J48: =Witness -> JAMES E. ZIOLKOWSKI
A49: =data_filing -> DATA: 12 MONTH FORECASTED PERIOD | J49: ="PAGE "&Pages-16&" OF "&Pages -> PAGE 2 OF 18
A50: =type -> TYPE OF FILING: "X" ORIGINAL UPDATED REVISED
A53: LINE | F53: =$F$8 -> TOTAL | G53: CLASSIFIED | J53: TOTAL | K53: ALL
A54: NO. | B54: GROSS GAS PLANT IN SERVICE | D54: ALLO | F54: =$F$9 -> PRODUCTION | G54: DEMAND | H54: COMMODITY | I54: CUSTOMER | J54: AT ISSUE | K54: OTHER
C55: Schedule 2 | G55: =$G$10 -> 3 | H55: =$H$10 -> 4 | I55: =$I$10 -> 5
A56: 1 | B56: PRODUCTION PLANT
A57: 2 | C57: ='FR-16(7)(v)-1 Functional'!C57 -> PRODUCTION PLANT | D57: ='FR-16(7)(v)-1 Functional'!D57 -> K205 | F57: ='FR-16(7)(v)-1 Functional'!G57 -> 4625622 | G57: =ROUND(F57*VLOOKUP(D57,AllocTable_Classified_Production,$G$10,FALSE),0) -> 0 | H57: =ROUND(F57*VLOOKUP(D57,AllocTable_Classified_Production,$H$10,FALSE),0) -> 4625622 | I57: =ROUND(F57*VLOOKUP(D57,AllocTable_Classified_Production,$I$10,FALSE),0) -> 0 | J57: =SUM($G$57:$I$57) -> 4625622 | K57: =F57-$J$57 -> 0
A58: 3 | C58: ='FR-16(7)(v)-1 Functional'!C58 -> GAS PRODUCTION -CPMPL NOT CLASS | D58: ='FR-16(7)(v)-1 Functional'!D58 -> K205 | F58: ='FR-16(7)(v)-1 Functional'!G58 -> 0 | G58: =ROUND(F58*VLOOKUP(D58,AllocTable_Classified_Production,$G$10,FALSE),0) -> 0 | H58: =ROUND(F58*VLOOKUP(D58,AllocTable_Classified_Production,$H$10,FALSE),0) -> 0 | I58: =ROUND(F58*VLOOKUP(D58,AllocTable_Classified_Production,$I$10,FALSE),0) -> 0 | J58: =SUM($G$58:$I$58) -> 0 | K58: =F58-$J$58 -> 0
A59: 4 | C59: ='FR-16(7)(v)-1 Functional'!C59 -> PRODUCTION PLANT IN SERVICE | F59: =SUM(F57:F58) -> 4625622 | G59: =SUM($G$57:$G$58) -> 0 | H59: =SUM($H$57:$H$58) -> 4625622 | I59: =SUM($I$57:$I$58) -> 0 | J59: =SUM($J$57:$J$58) -> 4625622 | K59: =SUM($K$57:$K$58) -> 0
A60: 5
A61: 6 | B61: TRANSMISSION PLANT
A62: 7 | C62: ='FR-16(7)(v)-1 Functional'!C62 -> TRANSMISSION PLANT
A63: 8 | C63: ='FR-16(7)(v)-1 Functional'!C63 -> TRANSMISSION PLANT IN SERVICE | F63: =SUM(F62) -> 0 | G63: =SUM($G$62) -> 0 | H63: =SUM($H$62) -> 0 | I63: =SUM($I$62) -> 0 | J63: =SUM($J$62) -> 0 | K63: =SUM($K$62) -> 0
A64: 9
A65: 10 | B65: TOTAL PROD & TRANS PLANT | F65: =F63+F59 -> 4625622 | G65: =$G$63+$G$59 -> 0 | H65: =$H$63+$H$59 -> 4625622 | I65: =$I$63+$I$59 -> 0 | J65: =$J$63+$J$59 -> 4625622 | K65: =$K$63+$K$59 -> 0
A66: 11
A67: 12 | B67: DISTRIBUTION PLANT
A68: 13 | C68: ='FR-16(7)(v)-1 Functional'!C68 -> SYSTEM M&R - (2780, 2781) | D68: ='FR-16(7)(v)-1 Functional'!D68 -> K203 | F68: ='FR-16(7)(v)-1 Functional'!G68 -> 0 | G68: =ROUND(F68*VLOOKUP(D68,AllocTable_Classified_Production,$G$10,FALSE),0) -> 0 | H68: =ROUND(F68*VLOOKUP(D68,AllocTable_Classified_Production,$H$10,FALSE),0) -> 0 | I68: =ROUND(F68*VLOOKUP(D68,AllocTable_Classified_Production,$I$10,FALSE),0) -> 0 | J68: =SUM(G68:I68) -> 0 | K68: =F68-J68 -> 0
A69: 14 | C69: ='FR-16(7)(v)-1 Functional'!C69 -> DIST REG EQUIP & CITY GATE M&R- (2782, 2790) | D69: ='FR-16(7)(v)-1 Functional'!D69 -> K203 | F69: ='FR-16(7)(v)-1 Functional'!G69 -> 0 | G69: 0 | H69: 0 | I69: 0 | J69: 0 | K69: 0
A70: 15 | C70: ='FR-16(7)(v)-1 Functional'!C70 -> LARGE IND M&R - (2850, 2851) | D70: ='FR-16(7)(v)-1 Functional'!D70 -> K595 | F70: ='FR-16(7)(v)-1 Functional'!G70 -> 0 | G70: 0 | H70: 0 | I70: 0 | J70: 0 | K70: 0
A71: 16 | C71: ='FR-16(7)(v)-1 Functional'!C71 -> MAINS - (2761, 2762, 2763, 2765) | D71: ='FR-16(7)(v)-1 Functional'!D71 -> K415 | F71: ='FR-16(7)(v)-1 Functional'!G71 -> 0 | G71: 0 | H71: 0 | I71: 0 | J71: 0 | K71: 0
A72: 17 | C72: ='FR-16(7)(v)-1 Functional'!C72 -> SERVICES - (2801, 2802, 2803) | D72: ='FR-16(7)(v)-1 Functional'!D72 -> K403 | F72: ='FR-16(7)(v)-1 Functional'!G72 -> 0 | G72: 0 | H72: 0 | I72: 0 | J72: 0 | K72: 0
A73: 18 | C73: ='FR-16(7)(v)-1 Functional'!C73 -> MTRS & MTR INST (2810, 2811, 2820, 2821) | D73: ='FR-16(7)(v)-1 Functional'!D73 -> K413 | F73: ='FR-16(7)(v)-1 Functional'!G73 -> 0 | G73: 0 | H73: 0 | I73: 0 | J73: 0 | K73: 0
A74: 19 | C74: ='FR-16(7)(v)-1 Functional'!C74 -> LAND, R OF W, STRUCT & IMPROV | D74: ='FR-16(7)(v)-1 Functional'!D74 -> K203 | F74: ='FR-16(7)(v)-1 Functional'!G74 -> 0 | G74: 0 | H74: 0 | I74: 0 | J74: 0 | K74: 0
A75: 20 | C75: ='FR-16(7)(v)-1 Functional'!C75 -> HOUSE REG & INSTALL (2830, 2840) | D75: ='FR-16(7)(v)-1 Functional'!D75 -> K417 | F75: ='FR-16(7)(v)-1 Functional'!G75 -> 0 | G75: 0 | H75: 0 | I75: 0 | J75: 0 | K75: 0
A76: 21 | C76: ='FR-16(7)(v)-1 Functional'!C76 -> STREET LIGHTING EQUIPMENT & OTH | D76: ='FR-16(7)(v)-1 Functional'!D76 -> K597 | F76: ='FR-16(7)(v)-1 Functional'!G76 -> 0 | G76: 0 | H76: 0 | I76: 0 | J76: 0 | K76: 0
A77: 22 | C77: ='FR-16(7)(v)-1 Functional'!C77 -> ASSET RETIREMENT COST FOR DISTRIBUTION PLANT | D77: ='FR-16(7)(v)-1 Functional'!D77 -> K203 | F77: ='FR-16(7)(v)-1 Functional'!G77 -> 0 | G77: 0 | H77: 0 | I77: 0 | J77: 0 | K77: 0
A78: 23 | C78: ='FR-16(7)(v)-1 Functional'!C78 -> DISTRIBUTION PLANT IN SERVICE | F78: =SUM(F68:F77) -> 0 | G78: 0 | H78: 0 | I78: 0 | J78: 0 | K78: 0
A79: 24
A80: 25 | B80: TOTAL TRANS & DIST PLANT | F80: =F78+F63 -> 0 | G80: =G78+$G$63 -> 0 | H80: =H78+$H$63 -> 0 | I80: =I78+$I$63 -> 0 | J80: =J78+$J$63 -> 0 | K80: =K78+$K$63 -> 0
A81: 26 | B81: TOTAL GROSS PTD PLANT | F81: =F78+F65 -> 4625622 | G81: 0 | H81: 4625622 | I81: 0 | J81: 4625622 | K81: 0
A82: 27
A83: 28 | B83: GENERAL & INTANGIBLE PLANT
A84: 29 | C84: ='FR-16(7)(v)-1 Functional'!C84 -> PRODUCTION PLANT | D84: ='FR-16(7)(v)-1 Functional'!D84 -> K201 | F84: ='FR-16(7)(v)-1 Functional'!G84 -> 2861675 | G84: =ROUND(F84*VLOOKUP(D84,AllocTable_Classified_Production,$G$10,FALSE),0) -> 0 | H84: =ROUND(F84*VLOOKUP(D84,AllocTable_Classified_Production,$H$10,FALSE),0) -> 2861675 | I84: =ROUND(F84*VLOOKUP(D84,AllocTable_Classified_Production,$I$10,FALSE),0) -> 0 | J84: =SUM(G84:I84) -> 2861675 | K84: =F84-J84 -> 0
A85: 30 | C85: ='FR-16(7)(v)-1 Functional'!C85 -> PRODUCTION PLANT COMMODITY | D85: ='FR-16(7)(v)-1 Functional'!D85 -> P349 | F85: ='FR-16(7)(v)-1 Functional'!G85 -> 2108436 | G85: 0 | H85: 2108436 | I85: 0 | J85: 2108436 | K85: 0
A86: 31 | C86: ='FR-16(7)(v)-1 Functional'!C86 -> DISTRIBUTION PLANT | D86: ='FR-16(7)(v)-1 Functional'!D86 -> D349 | F86: ='FR-16(7)(v)-1 Functional'!G86 -> 0 | G86: 0 | H86: 0 | I86: 0 | J86: 0 | K86: 0
A87: 32 | C87: ='FR-16(7)(v)-1 Functional'!C87 -> CUSTOMER ACCOUNTING | D87: ='FR-16(7)(v)-1 Functional'!D87 -> CA19 | F87: ='FR-16(7)(v)-1 Functional'!G87 -> 0 | G87: 0 | H87: 0 | I87: 0 | J87: 0 | K87: 0
A88: 33 | C88: ='FR-16(7)(v)-1 Functional'!C88 -> CUSTOMER SERVICE & INFORMATION | D88: ='FR-16(7)(v)-1 Functional'!D88 -> CS19 | F88: ='FR-16(7)(v)-1 Functional'!G88 -> 0 | G88: 0 | H88: 0 | I88: 0 | J88: 0 | K88: 0
A89: 34 | C89: ='FR-16(7)(v)-1 Functional'!C89 -> SALES | D89: ='FR-16(7)(v)-1 Functional'!D89 -> SE19 | F89: ='FR-16(7)(v)-1 Functional'!G89 -> 0 | G89: 0 | H89: 0 | I89: 0 | J89: 0 | K89: 0
A90: 35 | C90: ='FR-16(7)(v)-1 Functional'!C90 -> GEN & INTANG PLANT IN SERVICE | F90: =SUM(F84:F89) -> 4970111 | G90: 0 | H90: 4970111 | I90: 0 | J90: 4970111 | K90: 0
A91: 36
A92: 37 | B92: COMMON & OTHER PLANT
A93: 38 | C93: ='FR-16(7)(v)-1 Functional'!C93 -> PRODUCTION PLANT | D93: ='FR-16(7)(v)-1 Functional'!D93 -> K201 | F93: ='FR-16(7)(v)-1 Functional'!G93 -> 920366 | G93: =ROUND(F93*VLOOKUP(D93,AllocTable_Classified_Production,$G$10,FALSE),0) -> 0 | H93: =ROUND(F93*VLOOKUP(D93,AllocTable_Classified_Production,$H$10,FALSE),0) -> 920366 | I93: =ROUND(F93*VLOOKUP(D93,AllocTable_Classified_Production,$I$10,FALSE),0) -> 0 | J93: =SUM(G93:I93) -> 920366 | K93: =F93-J93 -> 0
A94: 39 | C94: ='FR-16(7)(v)-1 Functional'!C94 -> PRODUCTION PLANT COMMODITY | D94: ='FR-16(7)(v)-1 Functional'!D94 -> P349 | F94: ='FR-16(7)(v)-1 Functional'!G94 -> 678111 | G94: 0 | H94: 678111 | I94: 0 | J94: 678111 | K94: 0
A95: 40 | C95: ='FR-16(7)(v)-1 Functional'!C95 -> DISTRIBUTION PLANT | D95: ='FR-16(7)(v)-1 Functional'!D95 -> D349 | F95: ='FR-16(7)(v)-1 Functional'!G95 -> 0 | G95: 0 | H95: 0 | I95: 0 | J95: 0 | K95: 0
A96: 41 | C96: ='FR-16(7)(v)-1 Functional'!C96 -> CUSTOMER ACCOUNTING | D96: ='FR-16(7)(v)-1 Functional'!D96 -> CA19 | F96: ='FR-16(7)(v)-1 Functional'!G96 -> 0 | G96: 0 | H96: 0 | I96: 0 | J96: 0 | K96: 0
A97: 42 | C97: ='FR-16(7)(v)-1 Functional'!C97 -> CUSTOMER SERVICE & INFORMATION | D97: ='FR-16(7)(v)-1 Functional'!D97 -> CS19 | F97: ='FR-16(7)(v)-1 Functional'!G97 -> 0 | G97: 0 | H97: 0 | I97: 0 | J97: 0 | K97: 0
A98: 43 | C98: ='FR-16(7)(v)-1 Functional'!C98 -> SALES | D98: ='FR-16(7)(v)-1 Functional'!D98 -> SE19 | F98: ='FR-16(7)(v)-1 Functional'!G98 -> 0 | G98: 0 | H98: 0 | I98: 0 | J98: 0 | K98: 0
A99: 44 | C99: ='FR-16(7)(v)-1 Functional'!C99 -> COMMON & OTHER PLANT IN SERVICE | F99: =SUM(F93:F98) -> 1598477 | G99: 0 | H99: 1598477 | I99: 0 | J99: 1598477 | K99: 0
A100: 45
A101: 46 | B101: GROSS GAS PLANT IN SERVICE | F101: =F81+F90+F99 -> 11194210 | G101: 0 | H101: 11194210 | I101: 0 | J101: 11194210 | K101: 0
A103: =co_name -> DUKE ENERGY KENTUCKY, INC. | J103: =$J$1 -> FR-16(7)(v)-2
A104: =$A$2 -> PRODUCTION CLASSIFIED - GAS COST OF SERVICE | J104: =$J$2 -> WITNESS RESPONSIBLE:
A105: =case_name -> CASE NO: 2021-00190 | J105: =Witness -> JAMES E. ZIOLKOWSKI
A106: =data_filing -> DATA: 12 MONTH FORECASTED PERIOD | J106: ="PAGE "&Pages-15&" OF "&Pages -> PAGE 3 OF 18
A107: =type -> TYPE OF FILING: "X" ORIGINAL UPDATED REVISED
A110: LINE | F110: =$F$8 -> TOTAL | G110: CLASSIFIED | J110: TOTAL | K110: ALL
A111: NO. | B111: DEPRECIATION RESERVE | D111: ALLO | F111: =$F$9 -> PRODUCTION | G111: DEMAND | H111: COMMODITY | I111: CUSTOMER | J111: AT ISSUE | K111: OTHER
C112: Schedule 3 | G112: =$G$10 -> 3 | H112: =$H$10 -> 4 | I112: =$I$10 -> 5
A113: 1 | B113: PRODUCTION PLANT
A114: 2 | C114: ='FR-16(7)(v)-1 Functional'!C114 -> PRODUCTION PLANT | D114: ='FR-16(7)(v)-1 Functional'!D114 -> K205 | F114: ='FR-16(7)(v)-1 Functional'!G114 -> 2553891 | G114: =F114-SUM(H114:I114) -> 0 | H114: =ROUND(F114*VLOOKUP(D114,AllocTable_Classified_Production,$H$10,FALSE),0) -> 2553891 | I114: =ROUND(F114*VLOOKUP(D114,AllocTable_Classified_Production,$I$10,FALSE),0) -> 0 | J114: =SUM(G114:I114) -> 2553891 | K114: =F114-J114 -> 0
A115: 3 | C115: ='FR-16(7)(v)-1 Functional'!C115 -> TOTAL PROD DEPREC RESERVE | F115: =SUM(F114:F114) -> 2553891 | G115: 0 | H115: 2553891 | I115: 0 | J115: 2553891 | K115: 0
A116: 4
A117: 5 | B117: TRANSMISSION PLANT
A118: 6 | C118: ='FR-16(7)(v)-1 Functional'!C118 -> TRANSMISSION PLANT
A119: 7 | C119: ='FR-16(7)(v)-1 Functional'!C119 -> TOTAL TRANS DEPREC RESERVE | F119: =SUM(F118:F118) -> 0 | G119: 0 | H119: 0 | I119: 0 | J119: 0 | K119: 0
A120: 8
A121: 9 | B121: DISTRIBUTION PLANT
A122: 10 | C122: ='FR-16(7)(v)-1 Functional'!C122 -> SYSTEM M&R - (2780, 2781) | D122: ='FR-16(7)(v)-1 Functional'!D122 -> K203 | F122: ='FR-16(7)(v)-1 Functional'!G122 -> 0 | G122: =F122-SUM(H122:I122) -> 0 | H122: =ROUND(F122*VLOOKUP(D122,AllocTable_Classified_Production,$H$10,FALSE),0) -> 0 | I122: =ROUND(F122*VLOOKUP(D122,AllocTable_Classified_Production,$I$10,FALSE),0) -> 0 | J122: =SUM(G122:I122) -> 0 | K122: =F122-J122 -> 0
A123: 11 | C123: ='FR-16(7)(v)-1 Functional'!C123 -> DIST REG EQUIP & CITY GATE M&R- (2782, 2790) | D123: ='FR-16(7)(v)-1 Functional'!D123 -> K203 | F123: ='FR-16(7)(v)-1 Functional'!G123 -> 0 | G123: 0 | H123: 0 | I123: 0 | J123: 0 | K123: 0
A124: 12 | C124: ='FR-16(7)(v)-1 Functional'!C124 -> LARGE IND M&R - (2850, 2851) | D124: ='FR-16(7)(v)-1 Functional'!D124 -> K595 | F124: ='FR-16(7)(v)-1 Functional'!G124 -> 0 | G124: 0 | H124: 0 | I124: 0 | J124: 0 | K124: 0
A125: 13 | C125: ='FR-16(7)(v)-1 Functional'!C125 -> MAINS - (2761, 2762, 2763, 2765) | D125: ='FR-16(7)(v)-1 Functional'!D125 -> K415 | F125: ='FR-16(7)(v)-1 Functional'!G125 -> 0 | G125: 0 | H125: 0 | I125: 0 | J125: 0 | K125: 0
A126: 14 | C126: ='FR-16(7)(v)-1 Functional'!C126 -> SERVICES - (2801, 2802, 2803) | D126: ='FR-16(7)(v)-1 Functional'!D126 -> K403 | F126: ='FR-16(7)(v)-1 Functional'!G126 -> 0 | G126: 0 | H126: 0 | I126: 0 | J126: 0 | K126: 0
A127: 15 | C127: ='FR-16(7)(v)-1 Functional'!C127 -> MTRS & MTR INST (2810, 2811, 2820, 2821) | D127: ='FR-16(7)(v)-1 Functional'!D127 -> K413 | F127: ='FR-16(7)(v)-1 Functional'!G127 -> 0 | G127: 0 | H127: 0 | I127: 0 | J127: 0 | K127: 0
A128: 16 | C128: ='FR-16(7)(v)-1 Functional'!C128 -> LAND, R OF W, STRUCT & IMPROV & OTH | D128: ='FR-16(7)(v)-1 Functional'!D128 -> K203 | F128: ='FR-16(7)(v)-1 Functional'!G128 -> 0 | G128: 0 | H128: 0 | I128: 0 | J128: 0 | K128: 0
A129: 17 | C129: ='FR-16(7)(v)-1 Functional'!C129 -> HOUSE REG & INSTALL (2830, 2840) | D129: ='FR-16(7)(v)-1 Functional'!D129 -> K417 | F129: ='FR-16(7)(v)-1 Functional'!G129 -> 0 | G129: 0 | H129: 0 | I129: 0 | J129: 0 | K129: 0
A130: 18 | C130: ='FR-16(7)(v)-1 Functional'!C130 -> STREET LIGHTING EQUIPMENT & OTH | D130: ='FR-16(7)(v)-1 Functional'!D130 -> K597 | F130: ='FR-16(7)(v)-1 Functional'!G130 -> 0 | G130: 0 | H130: 0 | I130: 0 | J130: 0 | K130: 0
A131: 19 | C131: ='FR-16(7)(v)-1 Functional'!C131 -> TOTAL DIST DEPREC RESERVE | F131: =SUM(F121:F130) -> 0 | G131: 0 | H131: 0 | I131: 0 | J131: 0 | K131: 0
A132: 20
A133: 21 | B133: GENERAL & INTANGIBLE PLANT
A134: 22 | C134: ='FR-16(7)(v)-1 Functional'!C134 -> PRODUCTION PLANT | D134: ='FR-16(7)(v)-1 Functional'!D134 -> K201 | F134: ='FR-16(7)(v)-1 Functional'!G134 -> 1408783 | G134: =F134-SUM(H134:I134) -> 0 | H134: =ROUND(F134*VLOOKUP(D134,AllocTable_Classified_Production,$H$10,FALSE),0) -> 1408783 | I134: =ROUND(F134*VLOOKUP(D134,AllocTable_Classified_Production,$I$10,FALSE),0) -> 0 | J134: =SUM(G134:I134) -> 1408783 | K134: =F134-J134 -> 0
A135: 23 | C135: ='FR-16(7)(v)-1 Functional'!C135 -> PRODUCTION PLANT COMMODITY | D135: ='FR-16(7)(v)-1 Functional'!D135 -> P349 | F135: ='FR-16(7)(v)-1 Functional'!G135 -> 1037967 | G135: 0 | H135: 1037967 | I135: 0 | J135: 1037967 | K135: 0
A136: 24 | C136: ='FR-16(7)(v)-1 Functional'!C136 -> DISTRIBUTION PLANT | D136: ='FR-16(7)(v)-1 Functional'!D136 -> D349 | F136: ='FR-16(7)(v)-1 Functional'!G136 -> 0 | G136: 0 | H136: 0 | I136: 0 | J136: 0 | K136: 0
A137: 25 | C137: ='FR-16(7)(v)-1 Functional'!C137 -> CUSTOMER ACCOUNTING | D137: ='FR-16(7)(v)-1 Functional'!D137 -> CA19 | F137: ='FR-16(7)(v)-1 Functional'!G137 -> 0 | G137: 0 | H137: 0 | I137: 0 | J137: 0 | K137: 0
A138: 26 | C138: ='FR-16(7)(v)-1 Functional'!C138 -> CUSTOMER SERVICE & INFORMATION | D138: ='FR-16(7)(v)-1 Functional'!D138 -> CS19 | F138: ='FR-16(7)(v)-1 Functional'!G138 -> 0 | G138: 0 | H138: 0 | I138: 0 | J138: 0 | K138: 0
A139: 27 | C139: ='FR-16(7)(v)-1 Functional'!C139 -> SALES | D139: ='FR-16(7)(v)-1 Functional'!D139 -> SE19 | F139: ='FR-16(7)(v)-1 Functional'!G139 -> 0 | G139: 0 | H139: 0 | I139: 0 | J139: 0 | K139: 0
A140: 28 | C140: ='FR-16(7)(v)-1 Functional'!C140 -> TOTAL GEN DEPREC RESERVE | F140: =SUM(F133:F139) -> 2446750 | G140: 0 | H140: 2446750 | I140: 0 | J140: 2446750 | K140: 0
A141: 29
A142: 30 | B142: COMMON & OTHER PLANT
A143: 31 | C143: ='FR-16(7)(v)-1 Functional'!C143 -> PRODUCTION PLANT | D143: ='FR-16(7)(v)-1 Functional'!D143 -> K201 | F143: ='FR-16(7)(v)-1 Functional'!G143 -> 644301 | G143: =F143-SUM(H143:I143) -> 0 | H143: =ROUND(F143*VLOOKUP(D143,AllocTable_Classified_Production,$H$10,FALSE),0) -> 644301 | I143: =ROUND(F143*VLOOKUP(D143,AllocTable_Classified_Production,$I$10,FALSE),0) -> 0 | J143: =SUM(G143:I143) -> 644301 | K143: =F143-J143 -> 0
A144: 32 | C144: ='FR-16(7)(v)-1 Functional'!C144 -> PRODUCTION PLANT COMMODITY | D144: ='FR-16(7)(v)-1 Functional'!D144 -> P349 | F144: ='FR-16(7)(v)-1 Functional'!G144 -> 474711 | G144: 0 | H144: 474711 | I144: 0 | J144: 474711 | K144: 0
A145: 33 | C145: ='FR-16(7)(v)-1 Functional'!C145 -> DISTRIBUTION PLANT | D145: ='FR-16(7)(v)-1 Functional'!D145 -> D349 | F145: ='FR-16(7)(v)-1 Functional'!G145 -> 0 | G145: 0 | H145: 0 | I145: 0 | J145: 0 | K145: 0
A146: 34 | C146: ='FR-16(7)(v)-1 Functional'!C146 -> CUSTOMER ACCOUNTING | D146: ='FR-16(7)(v)-1 Functional'!D146 -> CA19 | F146: ='FR-16(7)(v)-1 Functional'!G146 -> 0 | G146: 0 | H146: 0 | I146: 0 | J146: 0 | K146: 0
A147: 35 | C147: ='FR-16(7)(v)-1 Functional'!C147 -> CUSTOMER SERVICE & INFORMATION | D147: ='FR-16(7)(v)-1 Functional'!D147 -> CS19 | F147: ='FR-16(7)(v)-1 Functional'!G147 -> 0 | G147: 0 | H147: 0 | I147: 0 | J147: 0 | K147: 0
A148: 36 | C148: ='FR-16(7)(v)-1 Functional'!C148 -> SALES | D148: ='FR-16(7)(v)-1 Functional'!D148 -> SE19 | F148: ='FR-16(7)(v)-1 Functional'!G148 -> 0 | G148: 0 | H148: 0 | I148: 0 | J148: 0 | K148: 0
A149: 37 | C149: ='FR-16(7)(v)-1 Functional'!C149 -> TOTAL COM & OTHER PLT RESERVE | F149: =SUM(F143:F148) -> 1119012 | G149: =SUM(G142:G148) -> 0 | H149: =SUM(H142:H148) -> 1119012 | I149: =SUM(I142:I148) -> 0 | J149: =SUM(J142:J148) -> 1119012 | K149: =SUM(K142:K148) -> 0
A150: 38
A151: 39 | B151: TOTAL DEPRECIATION RESERVE | F151: =F149+F140+F131+F119+F115 -> 6119653 | G151: 0 | H151: 6119653 | I151: 0 | J151: 6119653 | K151: 0
A153: =co_name -> DUKE ENERGY KENTUCKY, INC. | J153: =$J$1 -> FR-16(7)(v)-2
A154: =$A$2 -> PRODUCTION CLASSIFIED - GAS COST OF SERVICE | J154: =$J$2 -> WITNESS RESPONSIBLE:
A155: =case_name -> CASE NO: 2021-00190 | J155: =Witness -> JAMES E. ZIOLKOWSKI
A156: =data_filing -> DATA: 12 MONTH FORECASTED PERIOD | J156: ="PAGE "&Pages-14&" OF "&Pages -> PAGE 4 OF 18
A157: =type -> TYPE OF FILING: "X" ORIGINAL UPDATED REVISED
A160: LINE | F160: =$F$8 -> TOTAL | G160: CLASSIFIED | J160: TOTAL | K160: ALL
A161: NO. | B161: ="NET GAS PLANT" -> NET GAS PLANT | D161: ALLO | F161: =$F$9 -> PRODUCTION | G161: DEMAND | H161: COMMODITY | I161: CUSTOMER | J161: AT ISSUE | K161: OTHER
C162: Schedule 4 | G162: =$G$10 -> 3 | H162: =$H$10 -> 4 | I162: =$I$10 -> 5
A163: 1 | B163: PRODUCTION PLANT
A164: 2 | C164: ='FR-16(7)(v)-1 Functional'!C164 -> PRODUCTION PLANT IN SERVICE | F164: =F59 -> 4625622 | G164: =$G$59 -> 0 | H164: =$H$59 -> 4625622 | I164: =$I$59 -> 0 | J164: =$J$59 -> 4625622 | K164: =F164-J164 -> 0
A165: 3 | C165: ='FR-16(7)(v)-1 Functional'!C165 -> TOTAL PROD DEPRC RESERVE | F165: =-F115 -> -2553891 | G165: =-G115 -> 0 | H165: =-H115 -> -2553891 | I165: =-I115 -> 0 | J165: =-J115 -> -2553891 | K165: =F165-J165 -> 0
A166: 4 | C166: ='FR-16(7)(v)-1 Functional'!C166 -> NET PRODUCTION PLANT | F166: =SUM(F164:F165) -> 2071731 | G166: 0 | H166: 2071731 | I166: 0 | J166: 2071731 | K166: 0
A167: 5
A168: 6 | B168: TRANSMISSION PLANT
A169: 7 | C169: ='FR-16(7)(v)-1 Functional'!C169 -> TRANSMISSION PLANT IN SERVICE | F169: =F63 -> 0 | G169: =$G$63 -> 0 | H169: =$H$63 -> 0 | I169: =$I$63 -> 0 | J169: =$J$63 -> 0 | K169: =F169-J169 -> 0
A170: 8 | C170: ='FR-16(7)(v)-1 Functional'!C170 -> TOTAL TRANS DEPREC RESERVE | F170: =-F119 -> 0 | G170: =-G119 -> 0 | H170: =-H119 -> 0 | I170: =-I119 -> 0 | J170: =-J119 -> 0 | K170: =F170-J170 -> 0
A171: 9 | C171: ='FR-16(7)(v)-1 Functional'!C171 -> NET TRANSMISSION PLANT | F171: =SUM(F168:F170) -> 0 | G171: 0 | H171: 0 | I171: 0 | J171: 0 | K171: 0
A172: 10
A173: 11 | B173: DISTRIBUTION PLANT
A174: 12 | C174: ='FR-16(7)(v)-1 Functional'!C174 -> DISTRIBUTION PLANT IN SERVICE | F174: =F78 -> 0 | G174: =G78 -> 0 | H174: =H78 -> 0 | I174: =I78 -> 0 | J174: =J78 -> 0 | K174: =F174-J174 -> 0
A175: 13 | C175: ='FR-16(7)(v)-1 Functional'!C175 -> TOTAL DIST DEPREC RESERVE | F175: =-F131 -> 0 | G175: =-G131 -> 0 | H175: =-H131 -> 0 | I175: =-I131 -> 0 | J175: =-J131 -> 0 | K175: =F175-J175 -> 0
A176: 14 | C176: ='FR-16(7)(v)-1 Functional'!C176 -> NET DISTRIBUTION PLANT | F176: =SUM(F173:F175) -> 0 | G176: 0 | H176: 0 | I176: 0 | J176: 0 | K176: 0
A177: 15
A178: 16 | B178: NET PTD PLANT | F178: =F176+F171+F166 -> 2071731 | G178: 0 | H178: 2071731 | I178: 0 | J178: 2071731 | K178: 0
A179: 17 | B179: NET TRANS & DIST PLANT | F179: =F176+F171 -> 0 | G179: 0 | H179: 0 | I179: 0 | J179: 0 | K179: 0
A180: 18
A181: 19 | B181: GENERAL & INTANGIBLE PLANT
A182: 20 | C182: ='FR-16(7)(v)-1 Functional'!C182 -> GEN & INTANG PLANT IN SERVICE | F182: =F90 -> 4970111 | G182: =G90 -> 0 | H182: =H90 -> 4970111 | I182: =I90 -> 0 | J182: =J90 -> 4970111 | K182: =F182-J182 -> 0
A183: 21 | C183: ='FR-16(7)(v)-1 Functional'!C183 -> TOTAL GEN & INTG DEPREC RESERVE | F183: =-F140 -> -2446750 | G183: =-G140 -> 0 | H183: =-H140 -> -2446750 | I183: =-I140 -> 0 | J183: =-J140 -> -2446750 | K183: =F183-J183 -> 0
A184: 22 | C184: ='FR-16(7)(v)-1 Functional'!C184 -> NET GENERAL & INTANG PLANT | F184: =SUM(F181:F183) -> 2523361 | G184: 0 | H184: 2523361 | I184: 0 | J184: 2523361 | K184: 0
A185: 23
A186: 24 | B186: COMMON & OTHER PLANT
A187: 25 | C187: ='FR-16(7)(v)-1 Functional'!C187 -> COMMON & OTH PLT IN SERVICE | F187: =F99 -> 1598477 | G187: =G99 -> 0 | H187: =H99 -> 1598477 | I187: =I99 -> 0 | J187: =J99 -> 1598477 | K187: =F187-J187 -> 0
A188: 26 | C188: ='FR-16(7)(v)-1 Functional'!C188 -> TOTAL COM & OTH DEPREC RESERVE | F188: =-F149 -> -1119012 | G188: =-G149 -> 0 | H188: =-H149 -> -1119012 | I188: =-I149 -> 0 | J188: =-J149 -> -1119012 | K188: =F188-J188 -> 0
A189: 27 | C189: ='FR-16(7)(v)-1 Functional'!C189 -> NET COMMON & OTHER PLANT | F189: =SUM(F186:F188) -> 479465 | G189: 0 | H189: 479465 | I189: 0 | J189: 479465 | K189: 0
A190: 28
A191: 29 | C191: ='FR-16(7)(v)-1 Functional'!C191 -> NET GAS PLANT IN SERVICE | F191: =F189+F184+F176+F171+F166 -> 5074557 | G191: 0 | H191: 5074557 | I191: 0 | J191: 5074557 | K191: 0
A193: =co_name -> DUKE ENERGY KENTUCKY, INC. | J193: =$J$1 -> FR-16(7)(v)-2
A194: =$A$2 -> PRODUCTION CLASSIFIED - GAS COST OF SERVICE | J194: =$J$2 -> WITNESS RESPONSIBLE:
A195: =case_name -> CASE NO: 2021-00190 | J195: =Witness -> JAMES E. ZIOLKOWSKI
A196: =data_filing -> DATA: 12 MONTH FORECASTED PERIOD | J196: ="PAGE "&Pages-13&" OF "&Pages -> PAGE 5 OF 18
A197: =type -> TYPE OF FILING: "X" ORIGINAL UPDATED REVISED
A200: LINE | F200: =$F$8 -> TOTAL | G200: CLASSIFIED | J200: TOTAL | K200: ALL
A201: NO. | B201: SUBTRACTIVE RATE BASE ADJUSTMENTS | D201: ALLO | F201: =$F$9 -> PRODUCTION | G201: DEMAND | H201: COMMODITY | I201: CUSTOMER | J201: AT ISSUE | K201: OTHER
C202: Schedule 5 | G202: =$G$10 -> 3 | H202: =$H$10 -> 4 | I202: =$I$10 -> 5
A203: 1 | B203: RATE BASE ADJUSTMENTS
A204: 2 | B204: ACCUMULATED DEFERRED INCOME TAXES
A205: 3 | B205: ACCUM DEF INC TAXES (282)
A206: 4 | C206: ='FR-16(7)(v)-1 Functional'!C206 -> LIBERALIZED DEPRECIATION | D206: ='FR-16(7)(v)-1 Functional'!D206 -> NP29 | F206: ='FR-16(7)(v)-1 Functional'!G206 -> 592980 | G206: =F206-SUM(H206:I206) -> 0 | H206: =ROUND(F206*VLOOKUP(D206,AllocTable_Classified_Production,$H$10,FALSE),0) -> 592980 | I206: =ROUND(F206*VLOOKUP(D206,AllocTable_Classified_Production,$I$10,FALSE),0) -> 0 | J206: =SUM(G206:I206) -> 592980 | K206: =F206-J206 -> 0
A207: 5 | C207: ='FR-16(7)(v)-1 Functional'!C207 -> LEASED METERS | D207: ='FR-16(7)(v)-1 Functional'!D207 -> K413 | F207: ='FR-16(7)(v)-1 Functional'!G207 -> 0 | G207: 0 | H207: 0 | I207: 0 | J207: 0 | K207: 0
A208: 6 | C208: ='FR-16(7)(v)-1 Functional'!C208 -> CONTRIB AID CONSTR | D208: ='FR-16(7)(v)-1 Functional'!D208 -> D249 | F208: ='FR-16(7)(v)-1 Functional'!G208 -> 0 | G208: 0 | H208: 0 | I208: 0 | J208: 0 | K208: 0
A209: 7 | C209: ='FR-16(7)(v)-1 Functional'!C209 -> CAPITALIZED INTEREST | D209: ='FR-16(7)(v)-1 Functional'!D209 -> NP29 | F209: ='FR-16(7)(v)-1 Functional'!G209 -> -13973 | G209: 0 | H209: -13973 | I209: 0 | J209: -13973 | K209: 0
A210: 8 | C210: ='FR-16(7)(v)-1 Functional'!C210 -> AFUDC IN DEBT | D210: ='FR-16(7)(v)-1 Functional'!D210 -> NP29 | F210: ='FR-16(7)(v)-1 Functional'!G210 -> 0 | G210: 0 | H210: 0 | I210: 0 | J210: 0 | K210: 0
A211: 9 | C211: ='FR-16(7)(v)-1 Functional'!C211 -> CWIP DIFFERENCES | D211: ='FR-16(7)(v)-1 Functional'!D211 -> NP29 | F211: ='FR-16(7)(v)-1 Functional'!G211 -> 0 | G211: 0 | H211: 0 | I211: 0 | J211: 0 | K211: 0
A212: 10 | C212: ='FR-16(7)(v)-1 Functional'!C212 -> NON-CASH OVERHEADS | D212: ='FR-16(7)(v)-1 Functional'!D212 -> AG39 | F212: ='FR-16(7)(v)-1 Functional'!G212 -> -96937 | G212: 0 | H212: -96937 | I212: 0 | J212: -96937 | K212: 0
A213: 11 | C213: ='FR-16(7)(v)-1 Functional'!C213 -> PLANT FAS 109 | D213: ='FR-16(7)(v)-1 Functional'!D213 -> NP29 | F213: ='FR-16(7)(v)-1 Functional'!G213 -> 0 | G213: 0 | H213: 0 | I213: 0 | J213: 0 | K213: 0
A214: 12 | C214: ='FR-16(7)(v)-1 Functional'!C214 -> MISCELLANEOUS | D214: ='FR-16(7)(v)-1 Functional'!D214 -> NP29 | F214: ='FR-16(7)(v)-1 Functional'!G214 -> 70244.90411 | G214: -0.09589040279 | H214: 70245 | I214: 0 | J214: 70244.90411 | K214: 0
... 636 more rows

Sheet FR-16(7)(v)-3 PROD Comm Alloc
A1: =co_name -> DUKE ENERGY KENTUCKY, INC. | K1: FR-16(7)(v)-3
A2: PRODUCTION COMMODITY ALLOCATED - GAS COST OF SERVICE | K2: WITNESS RESPONSIBLE:
A3: =case_name -> CASE NO: 2021-00190 | K3: =Witness -> JAMES E. ZIOLKOWSKI
A4: =data_filing -> DATA: 12 MONTH FORECASTED PERIOD | K4: ="PAGE "&Pages-17&" OF "&Pages -> PAGE 1 OF 18
A5: =type -> TYPE OF FILING: "X" ORIGINAL UPDATED REVISED
F7: TOTAL
A8: LINE | F8: PRODUCTION | G8: RS | H8: GS | I8: FT-L | J8: INTERUPT | K8: TOTAL | L8: ALL
A9: NO. | B9: SUMMARY OF RESULTS | D9: ALLO | F9: COMMODITY | G9: RESIDENTIAL | H9: GEN SERV | I9: FIRM TRANS | J9: TRANS | K9: AT ISSUE | L9: OTHER
C10: Schedule 1 | G10: 3 | H10: 4 | I10: 5 | J10: 6
A11: 1 | B11: NET INCOME COMPUTATION
A12: 2 | C12: ='FR-16(7)(v)-1 Functional'!C12 -> GROSS GAS PLANT IN SERVICE | F12: =F101 -> 11194210 | G12: 6103706 | H12: 3632386 | I12: 1447585 | J12: 10533 | K12: 11194210 | L12: =F12-K12 -> 0
A13: 3 | C13: ='FR-16(7)(v)-1 Functional'!C13 -> TOTAL DEPRECIATION RESERVE | F13: =-F151 -> -6119653 | G13: -3336302 | H13: -1985758 | I13: -791875 | J13: -5718 | K13: -6119653 | L13: =F13-K13 -> 0
A14: 4 | C14: ='FR-16(7)(v)-1 Functional'!C14 -> TOTAL RATE BASE ADJUSTMENTS | F14: =F326 -> 2800835 | G14: 1842797 | H14: 1076849 | I14: -118587 | J14: -225 | K14: 2800834 | L14: =F14-K14 -> 1
A15: 5 | C15: ='FR-16(7)(v)-1 Functional'!C15 -> TOTAL RATE BASE | F15: =SUM(F12:F14) -> 7875392 | G15: 4610201 | H15: 2723477 | I15: 537123 | J15: 4590 | K15: 7875391 | L15: =F15-K15 -> 1
A16: 6
A17: 7 | B17: OPERATING EXPENSES
A18: 8 | C18: ='FR-16(7)(v)-1 Functional'!C18 -> TOTAL O&M EXPENSE | F18: =F433 -> 43021212 | G18: 26870317 | H18: 15763374 | I18: 225893 | J18: 161628 | K18: 43021212 | L18: =F18-K18 -> 0
A19: 9 | C19: ='FR-16(7)(v)-1 Functional'!C19 -> TOTAL DEPRECIATION EXPENSE | F19: =F465 -> 864536 | G19: 471836 | H19: 280526 | I19: 111325 | J19: 849 | K19: 864536 | L19: 0
A20: 10 | C20: ='FR-16(7)(v)-1 Functional'!C20 -> TOTAL OTHER TAX & MISC EXPENSE | F20: =F495 -> 128829 | G20: =$G$495 -> 77790 | H20: =$H$495 -> 45803 | I20: =$I$495 -> 5000 | J20: =$J$495 -> 236 | K20: =$K$495 -> 128829 | L20: 0
A21: 11 | C21: ='FR-16(7)(v)-1 Functional'!C21 -> TOTAL OP EXP EXCLUDING INC & REV TAX | F21: =SUM(F17:F20) -> 44014577 | G21: 27419943 | H21: 16089703 | I21: 342218 | J21: 162713 | K21: 44014577 | L21: 0
A22: 12 | C22: ='FR-16(7)(v)-1 Functional'!C22 -> NET FED INCOME TAX EXP ALLOWABLE | F22: =F557 -> 1094994 | G22: =$G$557 -> 697983 | H22: =$H$557 -> 409429 | I22: =$I$557 -> -17144 | J22: =$J$557 -> 4725 | K22: =$K$557 -> 1094993 | L22: 1
A23: 13 | C23: ='FR-16(7)(v)-1 Functional'!C23 -> NET STATE INCOME TAX EXP ALLOWABLE | F23: =F605 -> 63862 | G23: =G605 -> 40716 | H23: 24058 | I23: -1454 | J23: 542 | K23: 63863 | L23: -1
A24: 14 | C24: ='FR-16(7)(v)-1 Functional'!C24 -> TOTAL OPERATING EXPENSE | F24: =SUM(F21:F23) -> 45173433 | G24: 28158642 | H24: 16523190 | I24: 323620 | J24: 167980 | K24: 45173433 | L24: 0
A25: 15
A26: 16 | B26: RETURN ON RATE BASE | F26: =F334 -> 515130 | G26: 301554 | H26: 178143 | I26: 35133 | J26: 300 | K26: 515130 | L26: =F26-K26 -> 0
A27: 17 | B27: TOTAL OTHER OPERATING REVENUES | F27: =-F630 -> -40105 | G27: =-$G$630 -> -25145 | H27: =-$H$630 -> -14751 | I27: =-$I$630 -> -122 | J27: =-$J$630 -> -87 | K27: =-$K$630 -> -40105 | L27: 0
A28: 18 | C28: ='FR-16(7)(v)-1 Functional'!C28 -> TOTAL GAS COST OF SERVICE | F28: =SUM(F24:F27) -> 45648458 | G28: 28435051 | H28: 16686582 | I28: 358631 | J28: 168193 | K28: 45648458 | L28: 0
A29: 19 | B29: ADJUSTMENT FOR INTERCLASS SUBSIDIZATION | D29: =1-'WP FR-16(7)(v)Rate Incr (40.0%)'!I11 -> 0.6 | F29: ='WP FR-16(7)(v)Rate Incr (40.0%)'!Q20 -> 0 | G29: ='WP FR-16(7)(v)Rate Incr (40.0%)'!Q15 -> 8967 | H29: ='WP FR-16(7)(v)Rate Incr (40.0%)'!Q16 -> -20125 | I29: ='WP FR-16(7)(v)Rate Incr (40.0%)'!Q17 -> 9244 | J29: ='WP FR-16(7)(v)Rate Incr (40.0%)'!Q18 -> 1914 | K29: =SUM(G29:J29) -> 0 | L29: 0
A30: 20 | B30: REQUESTED REVENUES | F30: =F29+F28 -> 45648458 | G30: 28444018 | H30: 16666457 | I30: 367875 | J30: 170107 | K30: 45648458 | L30: 0
A31: 21 | B31: PROPOSED REVENUES | F31: =F745 -> 46125229 | G31: 31077921 | H31: 12004934 | I31: 2308373 | J31: 734001 | K31: 46125229 | L31: 0
A32: 22 | B32: DIFFERENCE (REQUESTED LESS PROPOSED) | F32: =F30-F31 -> -476771 | G32: =G30-G31 -> -2633903 | H32: 4661523 | I32: -1940498 | J32: -563894 | K32: -476771 | L32: 0
A33: 23
A34: 24 | B34: TOTAL RETURN EARNED | F34: =F654+F26 -> 921010 | G34: 2316256 | H34: -3318543 | I34: 1497808 | J34: 425487 | K34: 921008 | L34: =F34-K34 -> 2
A35: 25 | B35: RATE OF RETURN EARNED | F35: =IF(F331=0,0,ROUND(F34/F331,5)) -> 0.11695 | G35: 0.50242 | H35: -1.21849 | I35: 2.78858 | J35: 92.69869 | K35: 0.11695 | L35: 2
A36: 26 | B36: TOTAL RATE OF RETURN ALLOWABLE | F36: =$F$688 -> 0.06541 | G36: 0.06541 | H36: 0.06541 | I36: 0.06541 | J36: 0.06541 | K36: 0.06541 | L36: 0.06541 | O36: Not Part of print range
A37: 27 | B37: RETURN EARNED ON COMMON EQUITY | F37: =IF($F$670=0,0,(F35-$F$683-$F$684-$F$686)*$F$673/$F$670) -> 0.1941444723 | G37: 0.9449156373 | H37: -2.406861688 | I37: 5.397617551 | J37: 180.513497 | K37: 0.1941444723 | L37: =IF(F670=0,0,(L35-F683-F684-F686)*F673/F670) -> 3.861718194 | O37: Not Filed
A38: 28 | B38: ALLOWED RETURN ON COMMON EQUITY | F38: 0.09376118475 | G38: 0.09376118475 | H38: 0.09376118475 | I38: 0.09376118475 | J38: 0.09376118475 | K38: 0.09376118475 | L38: =IF($F$670=0,0,(L36-$F$683-$F$684-$F$686)*$F$673/$F$670) -> 0.09376118475
A39: 29
A40: 30 | B40: PRESENT REVENUES | F40: =F744 -> 42534788 | G40: 28785737 | H40: 10892831 | I40: 2175474 | J40: 680746 | K40: 42534788 | L40: =F40-K40 -> 0
A41: 31 | B41: REVENUE INCREASE JUSTIFIED | F41: =F28-F40 -> 3113670 | G41: -350686 | H41: 5793751 | I41: -1816843 | J41: -512553 | K41: 3113670 | L41: 0
A42: 32 | C42: PER UNIT PRES REV | F42: =IF(F40=0,0,ROUND(F41/F40,5)) -> 0.0732 | G42: -0.01218 | H42: 0.53189 | I42: -0.83515 | J42: -0.75293 | K42: 0.0732 | L42: 0
A43: 33 | B43: REVENUE INCREASE REQUESTED | F43: =F31-F40 -> 3590441 | G43: 2292184 | H43: 1112103 | I43: 132899 | J43: 53255 | K43: 3590441 | L43: 0
A44: 34 | C44: PER UNIT PRES REV | F44: =IF(F40=0,0,ROUND(F43/F40,5)) -> 0.08441 | G44: 0.07963 | H44: 0.10209 | I44: 0.06109 | J44: 0.07823 | K44: 0.08441 | L44: 0
A46: =co_name -> DUKE ENERGY KENTUCKY, INC. | K46: =$K$1 -> FR-16(7)(v)-3
A47: =$A$2 -> PRODUCTION COMMODITY ALLOCATED - GAS COST OF SERVICE | K47: =$K$2 -> WITNESS RESPONSIBLE:
A48: =case_name -> CASE NO: 2021-00190 | K48: =Witness -> JAMES E. ZIOLKOWSKI
A49: =data_filing -> DATA: 12 MONTH FORECASTED PERIOD | K49: ="PAGE "&Pages-16&" OF "&Pages -> PAGE 2 OF 18
A50: =type -> TYPE OF FILING: "X" ORIGINAL UPDATED REVISED
F52: =$F$7 -> TOTAL
A53: LINE | F53: =$F$8 -> PRODUCTION | G53: RS/RFT/RSLI | H53: GS/FT SMALL | I53: GS/FT LARGE | J53: INTERUPT | K53: TOTAL | L53: ALL
A54: NO. | B54: GROSS GAS PLANT IN SERVICE | D54: ALLO | F54: =$F$9 -> COMMODITY | G54: RESIDENTIAL | H54: GEN SERV | I54: GEN SERV | J54: TRANS | K54: AT ISSUE | L54: OTHER
C55: Schedule 2 | G55: =$G$10 -> 3 | H55: =$H$10 -> 4 | I55: =$I$10 -> 5 | J55: =$J$10 -> 6
A56: 1 | B56: PRODUCTION PLANT
A57: 2 | C57: ='FR-16(7)(v)-1 Functional'!C57 -> PRODUCTION PLANT | D57: ='FR-16(7)(v)-1 Functional'!D57 -> K205 | F57: ='FR-16(7)(v)-2 PROD Classified'!H57 -> 4625622 | G57: =F57-SUM(H57:J57) -> 2471100 | H57: =ROUND($F$57*VLOOKUP($D$57,ALLOCTABLE_Prod_Commodity,$H$10,FALSE),0) -> 1501384 | I57: =ROUND(F57*VLOOKUP(D57,ALLOCTABLE_Prod_Commodity,$I$10,FALSE),0) -> 653138 | J57: =ROUND(F57*VLOOKUP(D57,ALLOCTABLE_Prod_Commodity,$J$10,FALSE),0) -> 0 | K57: =SUM($G$57:$J$57) -> 4625622 | L57: =F57-$K$57 -> 0
A58: 3 | C58: ='FR-16(7)(v)-1 Functional'!C58 -> GAS PRODUCTION -CPMPL NOT CLASS | D58: ='FR-16(7)(v)-1 Functional'!D58 -> K205 | F58: ='FR-16(7)(v)-2 PROD Classified'!H58 -> 0 | G58: =F58-SUM(H58:J58) -> 0 | H58: =ROUND($F$58*VLOOKUP($D$58,ALLOCTABLE_Prod_Commodity,$H$10,FALSE),0) -> 0 | I58: =ROUND(F58*VLOOKUP(D58,ALLOCTABLE_Prod_Commodity,$I$10,FALSE),0) -> 0 | J58: =ROUND(F58*VLOOKUP(D58,ALLOCTABLE_Prod_Commodity,$J$10,FALSE),0) -> 0 | K58: =SUM($G$58:$J$58) -> 0 | L58: =F58-$K$58 -> 0
A59: 4 | C59: ='FR-16(7)(v)-1 Functional'!C59 -> PRODUCTION PLANT IN SERVICE | F59: =SUM(F57:F58) -> 4625622 | G59: =SUM($G$57:$G$58) -> 2471100 | H59: =SUM($H$57:$H$58) -> 1501384 | I59: =SUM($I$57:$I$58) -> 653138 | J59: =SUM($J$57:$J$58) -> 0 | K59: =SUM($K$57:$K$58) -> 4625622 | L59: =SUM($L$57:$L$58) -> 0
A60: 5
A61: 6 | B61: TRANSMISSION PLANT
A62: 7 | C62: ='FR-16(7)(v)-1 Functional'!C62 -> TRANSMISSION PLANT
A63: 8 | C63: ='FR-16(7)(v)-1 Functional'!C63 -> TRANSMISSION PLANT IN SERVICE | F63: =SUM(F62) -> 0 | G63: =SUM($G$62) -> 0 | H63: =SUM($H$62) -> 0 | I63: =SUM($I$62) -> 0 | J63: =SUM($J$62) -> 0 | K63: =SUM($K$62) -> 0 | L63: =SUM($L$62) -> 0
A64: 9
A65: 10 | B65: TOTAL PROD & TRANS PLANT | F65: =F63+F59 -> 4625622 | G65: =$G$63+$G$59 -> 2471100 | H65: =$H$63+$H$59 -> 1501384 | I65: =$I$63+$I$59 -> 653138 | J65: =$J$63+$J$59 -> 0 | K65: =$K$63+$K$59 -> 4625622 | L65: =$L$63+$L$59 -> 0
A66: 11
A67: 12 | B67: DISTRIBUTION PLANT
A68: 13 | C68: ='FR-16(7)(v)-1 Functional'!C68 -> SYSTEM M&R - (2780, 2781) | D68: ='FR-16(7)(v)-1 Functional'!D68 -> K203 | F68: ='FR-16(7)(v)-2 PROD Classified'!H68 -> 0 | G68: =F68-SUM(H68:J68) -> 0 | H68: =ROUND($F$68*VLOOKUP($D$68,ALLOCTABLE_Prod_Commodity,$H$10,FALSE),0) -> 0 | I68: =ROUND(F68*VLOOKUP(D68,ALLOCTABLE_Prod_Commodity,$I$10,FALSE),0) -> 0 | J68: =ROUND(F68*VLOOKUP(D68,ALLOCTABLE_Prod_Commodity,$J$10,FALSE),0) -> 0 | K68: =SUM(G68:J68) -> 0 | L68: =F68-K68 -> 0
A69: 14 | C69: ='FR-16(7)(v)-1 Functional'!C69 -> DIST REG EQUIP & CITY GATE M&R- (2782, 2790) | D69: ='FR-16(7)(v)-1 Functional'!D69 -> K203 | F69: ='FR-16(7)(v)-2 PROD Classified'!H69 -> 0 | G69: 0 | H69: =ROUND($F$69*VLOOKUP($D$69,ALLOCTABLE_Prod_Commodity,$H$10,FALSE),0) -> 0 | I69: 0 | J69: 0 | K69: 0 | L69: 0
A70: 15 | C70: ='FR-16(7)(v)-1 Functional'!C70 -> LARGE IND M&R - (2850, 2851) | D70: ='FR-16(7)(v)-1 Functional'!D70 -> K595 | F70: ='FR-16(7)(v)-2 PROD Classified'!H70 -> 0 | G70: 0 | H70: =ROUND($F$70*VLOOKUP($D$70,ALLOCTABLE_Prod_Commodity,$H$10,FALSE),0) -> 0 | I70: 0 | J70: 0 | K70: 0 | L70: 0
A71: 16 | C71: ='FR-16(7)(v)-1 Functional'!C71 -> MAINS - (2761, 2762, 2763, 2765) | D71: ='FR-16(7)(v)-1 Functional'!D71 -> K415 | F71: ='FR-16(7)(v)-2 PROD Classified'!H71 -> 0 | G71: 0 | H71: =ROUND($F$71*VLOOKUP($D$71,ALLOCTABLE_Prod_Commodity,$H$10,FALSE),0) -> 0 | I71: 0 | J71: 0 | K71: 0 | L71: 0
A72: 17 | C72: ='FR-16(7)(v)-1 Functional'!C72 -> SERVICES - (2801, 2802, 2803) | D72: ='FR-16(7)(v)-1 Functional'!D72 -> K403 | F72: ='FR-16(7)(v)-2 PROD Classified'!H72 -> 0 | G72: 0 | H72: =ROUND($F$72*VLOOKUP($D$72,ALLOCTABLE_Prod_Commodity,$H$10,FALSE),0) -> 0 | I72: 0 | J72: 0 | K72: 0 | L72: 0
A73: 18 | C73: ='FR-16(7)(v)-1 Functional'!C73 -> MTRS & MTR INST (2810, 2811, 2820, 2821) | D73: ='FR-16(7)(v)-1 Functional'!D73 -> K413 | F73: ='FR-16(7)(v)-2 PROD Classified'!H73 -> 0 | G73: 0 | H73: =ROUND($F$73*VLOOKUP($D$73,ALLOCTABLE_Prod_Commodity,$H$10,FALSE),0) -> 0 | I73: 0 | J73: 0 | K73: 0 | L73: 0
A74: 19 | C74: ='FR-16(7)(v)-1 Functional'!C74 -> LAND, R OF W, STRUCT & IMPROV | D74: ='FR-16(7)(v)-1 Functional'!D74 -> K203 | F74: ='FR-16(7)(v)-2 PROD Classified'!H74 -> 0 | G74: 0 | H74: =ROUND($F$74*VLOOKUP($D$74,ALLOCTABLE_Prod_Commodity,$H$10,FALSE),0) -> 0 | I74: 0 | J74: 0 | K74: 0 | L74: 0
A75: 20 | C75: ='FR-16(7)(v)-1 Functional'!C75 -> HOUSE REG & INSTALL (2830, 2840) | D75: ='FR-16(7)(v)-1 Functional'!D75 -> K417 | F75: ='FR-16(7)(v)-2 PROD Classified'!H75 -> 0 | G75: 0 | H75: =ROUND($F$75*VLOOKUP($D$75,ALLOCTABLE_Prod_Commodity,$H$10,FALSE),0) -> 0 | I75: 0 | J75: 0 | K75: 0 | L75: 0
A76: 21 | C76: ='FR-16(7)(v)-1 Functional'!C76 -> STREET LIGHTING EQUIPMENT & OTH | D76: ='FR-16(7)(v)-1 Functional'!D76 -> K597 | F76: ='FR-16(7)(v)-2 PROD Classified'!H76 -> 0 | G76: 0 | H76: =ROUND($F$76*VLOOKUP($D$76,ALLOCTABLE_Prod_Commodity,$H$10,FALSE),0) -> 0 | I76: 0 | J76: 0 | K76: 0 | L76: 0
A77: 22 | C77: ='FR-16(7)(v)-1 Functional'!C77 -> ASSET RETIREMENT COST FOR DISTRIBUTION PLANT | D77: ='FR-16(7)(v)-1 Functional'!D77 -> K203 | F77: ='FR-16(7)(v)-2 PROD Classified'!H77 -> 0 | G77: 0 | H77: =ROUND($F$77*VLOOKUP($D$77,ALLOCTABLE_Prod_Commodity,$H$10,FALSE),0) -> 0 | I77: 0 | J77: 0 | K77: 0 | L77: 0
A78: 23 | C78: ='FR-16(7)(v)-1 Functional'!C78 -> DISTRIBUTION PLANT IN SERVICE | F78: =SUM(F68:F77) -> 0 | G78: =SUM(G68:G77) -> 0 | H78: 0 | I78: 0 | J78: 0 | K78: 0 | L78: 0
A79: 24
A80: 25 | B80: TOTAL TRANS & DIST PLANT | F80: =F78+F63 -> 0 | G80: =G78+$G$63 -> 0 | H80: =H78+$H$63 -> 0 | I80: =I78+$I$63 -> 0 | J80: =J78+$J$63 -> 0 | K80: =K78+$K$63 -> 0 | L80: =L78+$L$63 -> 0
A81: 26 | B81: TOTAL GROSS PTD PLANT | F81: =F78+F65 -> 4625622 | G81: =G78+G65 -> 2471100 | H81: 1501384 | I81: 653138 | J81: 0 | K81: 4625622 | L81: 0
A82: 27
A83: 28 | B83: GENERAL & INTANGIBLE PLANT
A84: 29 | C84: ='FR-16(7)(v)-1 Functional'!C84 -> PRODUCTION PLANT | D84: ='FR-16(7)(v)-1 Functional'!D84 -> K201 | F84: ='FR-16(7)(v)-2 PROD Classified'!H84 -> 2861675 | G84: =F84-SUM(H84:J84) -> 1431782 | H84: =ROUND($F$84*VLOOKUP($D$84,ALLOCTABLE_Prod_Commodity,$H$10,FALSE),0) -> 839930 | I84: =ROUND(F84*VLOOKUP(D84,ALLOCTABLE_Prod_Commodity,$I$10,FALSE),0) -> 589963 | J84: =ROUND(F84*VLOOKUP(D84,ALLOCTABLE_Prod_Commodity,$J$10,FALSE),0) -> 0 | K84: =SUM(G84:J84) -> 2861675 | L84: =F84-K84 -> 0
A85: 30 | C85: ='FR-16(7)(v)-1 Functional'!C85 -> PRODUCTION PLANT COMMODITY | D85: ='FR-16(7)(v)-1 Functional'!D85 -> P349 | F85: ='FR-16(7)(v)-2 PROD Classified'!H85 -> 2108436 | G85: 1316823 | H85: =ROUND($F$85*VLOOKUP($D$85,ALLOCTABLE_Prod_Commodity,$H$10,FALSE),0) -> 772489 | I85: 11154 | J85: 7970 | K85: 2108436 | L85: 0
A86: 31 | C86: ='FR-16(7)(v)-1 Functional'!C86 -> DISTRIBUTION PLANT | D86: ='FR-16(7)(v)-1 Functional'!D86 -> D349 | F86: ='FR-16(7)(v)-2 PROD Classified'!H86 -> 0 | G86: 0 | H86: =ROUND($F$86*VLOOKUP($D$86,ALLOCTABLE_Prod_Commodity,$H$10,FALSE),0) -> 0 | I86: 0 | J86: 0 | K86: 0 | L86: 0
A87: 32 | C87: ='FR-16(7)(v)-1 Functional'!C87 -> CUSTOMER ACCOUNTING | D87: ='FR-16(7)(v)-1 Functional'!D87 -> CA19 | F87: ='FR-16(7)(v)-2 PROD Classified'!H87 -> 0 | G87: 0 | H87: =ROUND($F$87*VLOOKUP($D$87,ALLOCTABLE_Prod_Commodity,$H$10,FALSE),0) -> 0 | I87: 0 | J87: 0 | K87: 0 | L87: 0
A88: 33 | C88: ='FR-16(7)(v)-1 Functional'!C88 -> CUSTOMER SERVICE & INFORMATION | D88: ='FR-16(7)(v)-1 Functional'!D88 -> CS19 | F88: ='FR-16(7)(v)-2 PROD Classified'!H88 -> 0 | G88: 0 | H88: =ROUND($F$88*VLOOKUP($D$88,ALLOCTABLE_Prod_Commodity,$H$10,FALSE),0) -> 0 | I88: 0 | J88: 0 | K88: 0 | L88: 0
A89: 34 | C89: ='FR-16(7)(v)-1 Functional'!C89 -> SALES | D89: ='FR-16(7)(v)-1 Functional'!D89 -> SE19 | F89: ='FR-16(7)(v)-2 PROD Classified'!H89 -> 0 | G89: 0 | H89: =ROUND($F$89*VLOOKUP($D$89,ALLOCTABLE_Prod_Commodity,$H$10,FALSE),0) -> 0 | I89: 0 | J89: 0 | K89: 0 | L89: 0
A90: 35 | C90: ='FR-16(7)(v)-1 Functional'!C90 -> GEN & INTANG PLANT IN SERVICE | F90: =SUM(F84:F89) -> 4970111 | G90: =SUM(G84:G89) -> 2748605 | H90: 1612419 | I90: 601117 | J90: 7970 | K90: 4970111 | L90: 0
A91: 36
A92: 37 | B92: COMMON & OTHER PLANT
A93: 38 | C93: ='FR-16(7)(v)-1 Functional'!C93 -> PRODUCTION PLANT | D93: ='FR-16(7)(v)-1 Functional'!D93 -> K201 | F93: ='FR-16(7)(v)-2 PROD Classified'!H93 -> 920366 | G93: =F93-SUM(H93:J93) -> 460486 | H93: =ROUND($F$93*VLOOKUP($D$93,ALLOCTABLE_Prod_Commodity,$H$10,FALSE),0) -> 270137 | I93: =ROUND(F93*VLOOKUP(D93,ALLOCTABLE_Prod_Commodity,$I$10,FALSE),0) -> 189743 | J93: =ROUND(F93*VLOOKUP(D93,ALLOCTABLE_Prod_Commodity,$J$10,FALSE),0) -> 0 | K93: =SUM(G93:J93) -> 920366 | L93: =F93-K93 -> 0
A94: 39 | C94: ='FR-16(7)(v)-1 Functional'!C94 -> PRODUCTION PLANT COMMODITY | D94: ='FR-16(7)(v)-1 Functional'!D94 -> P349 | F94: ='FR-16(7)(v)-2 PROD Classified'!H94 -> 678111 | G94: 423515 | H94: =ROUND($F$94*VLOOKUP($D$94,ALLOCTABLE_Prod_Commodity,$H$10,FALSE),0) -> 248446 | I94: 3587 | J94: 2563 | K94: 678111 | L94: 0
A95: 40 | C95: ='FR-16(7)(v)-1 Functional'!C95 -> DISTRIBUTION PLANT | D95: ='FR-16(7)(v)-1 Functional'!D95 -> D349 | F95: ='FR-16(7)(v)-2 PROD Classified'!H95 -> 0 | G95: 0 | H95: =ROUND($F$95*VLOOKUP($D$95,ALLOCTABLE_Prod_Commodity,$H$10,FALSE),0) -> 0 | I95: 0 | J95: 0 | K95: 0 | L95: 0
A96: 41 | C96: ='FR-16(7)(v)-1 Functional'!C96 -> CUSTOMER ACCOUNTING | D96: ='FR-16(7)(v)-1 Functional'!D96 -> CA19 | F96: ='FR-16(7)(v)-2 PROD Classified'!H96 -> 0 | G96: 0 | H96: =ROUND($F$96*VLOOKUP($D$96,ALLOCTABLE_Prod_Commodity,$H$10,FALSE),0) -> 0 | I96: 0 | J96: 0 | K96: 0 | L96: 0
A97: 42 | C97: ='FR-16(7)(v)-1 Functional'!C97 -> CUSTOMER SERVICE & INFORMATION | D97: ='FR-16(7)(v)-1 Functional'!D97 -> CS19 | F97: ='FR-16(7)(v)-2 PROD Classified'!H97 -> 0 | G97: 0 | H97: =ROUND($F$97*VLOOKUP($D$97,ALLOCTABLE_Prod_Commodity,$H$10,FALSE),0) -> 0 | I97: 0 | J97: 0 | K97: 0 | L97: 0
A98: 43 | C98: ='FR-16(7)(v)-1 Functional'!C98 -> SALES | D98: ='FR-16(7)(v)-1 Functional'!D98 -> SE19 | F98: ='FR-16(7)(v)-2 PROD Classified'!H98 -> 0 | G98: 0 | H98: =ROUND($F$98*VLOOKUP($D$98,ALLOCTABLE_Prod_Commodity,$H$10,FALSE),0) -> 0 | I98: 0 | J98: 0 | K98: 0 | L98: 0
A99: 44 | C99: ='FR-16(7)(v)-1 Functional'!C99 -> COMMON & OTHER PLANT IN SERVICE | F99: =SUM(F93:F98) -> 1598477 | G99: =SUM(G93:G98) -> 884001 | H99: 518583 | I99: 193330 | J99: 2563 | K99: 1598477 | L99: 0
A100: 45
A101: 46 | B101: GROSS GAS PLANT IN SERVICE | F101: =F81+F90+F99 -> 11194210 | G101: =G81+G90+G99 -> 6103706 | H101: 3632386 | I101: 1447585 | J101: 10533 | K101: 11194210 | L101: 0
A103: =co_name -> DUKE ENERGY KENTUCKY, INC. | K103: =$K$1 -> FR-16(7)(v)-3
A104: =$A$2 -> PRODUCTION COMMODITY ALLOCATED - GAS COST OF SERVICE | K104: =$K$2 -> WITNESS RESPONSIBLE:
A105: =case_name -> CASE NO: 2021-00190 | K105: =Witness -> JAMES E. ZIOLKOWSKI
A106: =data_filing -> DATA: 12 MONTH FORECASTED PERIOD | K106: ="PAGE "&Pages-15&" OF "&Pages -> PAGE 3 OF 18
A107: =type -> TYPE OF FILING: "X" ORIGINAL UPDATED REVISED
F109: =$F$7 -> TOTAL
A110: LINE | F110: =$F$8 -> PRODUCTION | G110: RS/RFT | H110: GS/FT SMALL | I110: GS/FT LARGE | J110: INTERUPT | K110: TOTAL | L110: ALL
A111: NO. | B111: DEPRECIATION RESERVE | D111: ALLO | F111: =$F$9 -> COMMODITY | G111: RESIDENTIAL | H111: GEN SERV | I111: GEN SERV | J111: TRANS | K111: AT ISSUE | L111: OTHER
C112: Schedule 3 | G112: =$G$10 -> 3 | H112: =$H$10 -> 4 | I112: =$I$10 -> 5 | J112: =$J$10 -> 6
A113: 1 | B113: PRODUCTION PLANT
A114: 2 | C114: ='FR-16(7)(v)-1 Functional'!C114 -> PRODUCTION PLANT | D114: ='FR-16(7)(v)-1 Functional'!D114 -> K205 | F114: ='FR-16(7)(v)-2 PROD Classified'!H114 -> 2553891 | G114: =F114-SUM(H114:J114) -> 1364340 | H114: =ROUND($F$114*VLOOKUP($D$114,ALLOCTABLE_Prod_Commodity,$H$10,FALSE),0) -> 828942 | I114: =ROUND(F114*VLOOKUP(D114,ALLOCTABLE_Prod_Commodity,$I$10,FALSE),0) -> 360609 | J114: =ROUND(F114*VLOOKUP(D114,ALLOCTABLE_Prod_Commodity,$J$10,FALSE),0) -> 0 | K114: =SUM(G114:J114) -> 2553891 | L114: =F114-K114 -> 0
A115: 3 | C115: ='FR-16(7)(v)-1 Functional'!C115 -> TOTAL PROD DEPREC RESERVE | F115: =SUM(F114:F114) -> 2553891 | G115: =SUM(G114:G114) -> 1364340 | H115: 828942 | I115: 360609 | J115: 0 | K115: 2553891 | L115: 0
A116: 4
A117: 5 | B117: TRANSMISSION PLANT
A118: 6 | C118: ='FR-16(7)(v)-1 Functional'!C118 -> TRANSMISSION PLANT
A119: 7 | C119: ='FR-16(7)(v)-1 Functional'!C119 -> TOTAL TRANS DEPREC RESERVE | F119: =SUM(F118:F118) -> 0 | G119: =SUM(G118:G118) -> 0 | H119: 0 | I119: 0 | J119: 0 | K119: 0 | L119: 0
A120: 8
A121: 9 | B121: DISTRIBUTION PLANT
A122: 10 | C122: ='FR-16(7)(v)-1 Functional'!C122 -> SYSTEM M&R - (2780, 2781) | D122: ='FR-16(7)(v)-1 Functional'!D122 -> K203 | F122: ='FR-16(7)(v)-2 PROD Classified'!H122 -> 0 | G122: =F122-SUM(H122:J122) -> 0 | H122: =ROUND($F$122*VLOOKUP($D$122,ALLOCTABLE_Prod_Commodity,$H$10,FALSE),0) -> 0 | I122: =ROUND(F122*VLOOKUP(D122,ALLOCTABLE_Prod_Commodity,$I$10,FALSE),0) -> 0 | J122: =ROUND(F122*VLOOKUP(D122,ALLOCTABLE_Prod_Commodity,$J$10,FALSE),0) -> 0 | K122: =SUM(G122:J122) -> 0 | L122: =F122-K122 -> 0
A123: 11 | C123: ='FR-16(7)(v)-1 Functional'!C123 -> DIST REG EQUIP & CITY GATE M&R- (2782, 2790) | D123: ='FR-16(7)(v)-1 Functional'!D123 -> K203 | F123: ='FR-16(7)(v)-2 PROD Classified'!H123 -> 0 | G123: 0 | H123: =ROUND($F$123*VLOOKUP($D$123,ALLOCTABLE_Prod_Commodity,$H$10,FALSE),0) -> 0 | I123: 0 | J123: 0 | K123: 0 | L123: 0
A124: 12 | C124: ='FR-16(7)(v)-1 Functional'!C124 -> LARGE IND M&R - (2850, 2851) | D124: ='FR-16(7)(v)-1 Functional'!D124 -> K595 | F124: ='FR-16(7)(v)-2 PROD Classified'!H124 -> 0 | G124: 0 | H124: =ROUND($F$124*VLOOKUP($D$124,ALLOCTABLE_Prod_Commodity,$H$10,FALSE),0) -> 0 | I124: 0 | J124: 0 | K124: 0 | L124: 0
A125: 13 | C125: ='FR-16(7)(v)-1 Functional'!C125 -> MAINS - (2761, 2762, 2763, 2765) | D125: ='FR-16(7)(v)-1 Functional'!D125 -> K415 | F125: ='FR-16(7)(v)-2 PROD Classified'!H125 -> 0 | G125: 0 | H125: =ROUND($F$125*VLOOKUP($D$125,ALLOCTABLE_Prod_Commodity,$H$10,FALSE),0) -> 0 | I125: 0 | J125: 0 | K125: 0 | L125: 0
A126: 14 | C126: ='FR-16(7)(v)-1 Functional'!C126 -> SERVICES - (2801, 2802, 2803) | D126: ='FR-16(7)(v)-1 Functional'!D126 -> K403 | F126: ='FR-16(7)(v)-2 PROD Classified'!H126 -> 0 | G126: 0 | H126: =ROUND($F$126*VLOOKUP($D$126,ALLOCTABLE_Prod_Commodity,$H$10,FALSE),0) -> 0 | I126: 0 | J126: 0 | K126: 0 | L126: 0
A127: 15 | C127: ='FR-16(7)(v)-1 Functional'!C127 -> MTRS & MTR INST (2810, 2811, 2820, 2821) | D127: ='FR-16(7)(v)-1 Functional'!D127 -> K413 | F127: ='FR-16(7)(v)-2 PROD Classified'!H127 -> 0 | G127: 0 | H127: =ROUND($F$127*VLOOKUP($D$127,ALLOCTABLE_Prod_Commodity,$H$10,FALSE),0) -> 0 | I127: 0 | J127: 0 | K127: 0 | L127: 0
A128: 16 | C128: ='FR-16(7)(v)-1 Functional'!C128 -> LAND, R OF W, STRUCT & IMPROV & OTH | D128: ='FR-16(7)(v)-1 Functional'!D128 -> K203 | F128: ='FR-16(7)(v)-2 PROD Classified'!H128 -> 0 | G128: 0 | H128: =ROUND($F$128*VLOOKUP($D$128,ALLOCTABLE_Prod_Commodity,$H$10,FALSE),0) -> 0 | I128: 0 | J128: 0 | K128: 0 | L128: 0
A129: 17 | C129: ='FR-16(7)(v)-1 Functional'!C129 -> HOUSE REG & INSTALL (2830, 2840) | D129: ='FR-16(7)(v)-1 Functional'!D129 -> K417 | F129: ='FR-16(7)(v)-2 PROD Classified'!H129 -> 0 | G129: 0 | H129: =ROUND($F$129*VLOOKUP($D$129,ALLOCTABLE_Prod_Commodity,$H$10,FALSE),0) -> 0 | I129: 0 | J129: 0 | K129: 0 | L129: 0
A130: 18 | C130: ='FR-16(7)(v)-1 Functional'!C130 -> STREET LIGHTING EQUIPMENT & OTH | D130: ='FR-16(7)(v)-1 Functional'!D130 -> K597 | F130: ='FR-16(7)(v)-2 PROD Classified'!H130 -> 0 | G130: 0 | H130: =ROUND($F$130*VLOOKUP($D$130,ALLOCTABLE_Prod_Commodity,$H$10,FALSE),0) -> 0 | I130: 0 | J130: 0 | K130: 0 | L130: 0
A131: 19 | C131: ='FR-16(7)(v)-1 Functional'!C131 -> TOTAL DIST DEPREC RESERVE | F131: =SUM(F121:F130) -> 0 | G131: =SUM(G121:G130) -> 0 | H131: 0 | I131: 0 | J131: 0 | K131: 0 | L131: 0
A132: 20
A133: 21 | B133: GENERAL & INTANGIBLE PLANT
A134: 22 | C134: ='FR-16(7)(v)-1 Functional'!C134 -> PRODUCTION PLANT | D134: ='FR-16(7)(v)-1 Functional'!D134 -> K201 | F134: ='FR-16(7)(v)-2 PROD Classified'!H134 -> 1408783 | G134: =F134-SUM(H134:J134) -> 704856 | H134: =ROUND($F$134*VLOOKUP($D$134,ALLOCTABLE_Prod_Commodity,$H$10,FALSE),0) -> 413492 | I134: =ROUND(F134*VLOOKUP(D134,ALLOCTABLE_Prod_Commodity,$I$10,FALSE),0) -> 290435 | J134: =ROUND(F134*VLOOKUP(D134,ALLOCTABLE_Prod_Commodity,$J$10,FALSE),0) -> 0 | K134: =SUM(G134:J134) -> 1408783 | L134: =F134-K134 -> 0
A135: 23 | C135: ='FR-16(7)(v)-1 Functional'!C135 -> PRODUCTION PLANT COMMODITY | D135: ='FR-16(7)(v)-1 Functional'!D135 -> P349 | F135: ='FR-16(7)(v)-2 PROD Classified'!H135 -> 1037967 | G135: 648262 | H135: =ROUND($F$135*VLOOKUP($D$135,ALLOCTABLE_Prod_Commodity,$H$10,FALSE),0) -> 380290 | I135: 5491 | J135: 3924 | K135: 1037967 | L135: 0
A136: 24 | C136: ='FR-16(7)(v)-1 Functional'!C136 -> DISTRIBUTION PLANT | D136: ='FR-16(7)(v)-1 Functional'!D136 -> D349 | F136: ='FR-16(7)(v)-2 PROD Classified'!H136 -> 0 | G136: 0 | H136: =ROUND($F$136*VLOOKUP($D$136,ALLOCTABLE_Prod_Commodity,$H$10,FALSE),0) -> 0 | I136: 0 | J136: 0 | K136: 0 | L136: 0
A137: 25 | C137: ='FR-16(7)(v)-1 Functional'!C137 -> CUSTOMER ACCOUNTING | D137: ='FR-16(7)(v)-1 Functional'!D137 -> CA19 | F137: ='FR-16(7)(v)-2 PROD Classified'!H137 -> 0 | G137: 0 | H137: =ROUND($F$137*VLOOKUP($D$137,ALLOCTABLE_Prod_Commodity,$H$10,FALSE),0) -> 0 | I137: 0 | J137: 0 | K137: 0 | L137: 0
A138: 26 | C138: ='FR-16(7)(v)-1 Functional'!C138 -> CUSTOMER SERVICE & INFORMATION | D138: ='FR-16(7)(v)-1 Functional'!D138 -> CS19 | F138: ='FR-16(7)(v)-2 PROD Classified'!H138 -> 0 | G138: 0 | H138: =ROUND($F$138*VLOOKUP($D$138,ALLOCTABLE_Prod_Commodity,$H$10,FALSE),0) -> 0 | I138: 0 | J138: 0 | K138: 0 | L138: 0
A139: 27 | C139: ='FR-16(7)(v)-1 Functional'!C139 -> SALES | D139: ='FR-16(7)(v)-1 Functional'!D139 -> SE19 | F139: ='FR-16(7)(v)-2 PROD Classified'!H139 -> 0 | G139: 0 | H139: =ROUND($F$139*VLOOKUP($D$139,ALLOCTABLE_Prod_Commodity,$H$10,FALSE),0) -> 0 | I139: 0 | J139: 0 | K139: 0 | L139: 0
A140: 28 | C140: ='FR-16(7)(v)-1 Functional'!C140 -> TOTAL GEN DEPREC RESERVE | F140: =SUM(F133:F139) -> 2446750 | G140: =SUM(G133:G139) -> 1353118 | H140: 793782 | I140: 295926 | J140: 3924 | K140: 2446750 | L140: 0
A141: 29
A142: 30 | B142: COMMON & OTHER PLANT
A143: 31 | C143: ='FR-16(7)(v)-1 Functional'!C143 -> PRODUCTION PLANT | D143: ='FR-16(7)(v)-1 Functional'!D143 -> K201 | F143: ='FR-16(7)(v)-2 PROD Classified'!H143 -> 644301 | G143: =F143-SUM(H143:J143) -> 322363 | H143: =ROUND($F$143*VLOOKUP($D$143,ALLOCTABLE_Prod_Commodity,$H$10,FALSE),0) -> 189109 | I143: =ROUND(F143*VLOOKUP(D143,ALLOCTABLE_Prod_Commodity,$I$10,FALSE),0) -> 132829 | J143: =ROUND(F143*VLOOKUP(D143,ALLOCTABLE_Prod_Commodity,$J$10,FALSE),0) -> 0 | K143: =SUM(G143:J143) -> 644301 | L143: =F143-K143 -> 0
A144: 32 | C144: ='FR-16(7)(v)-1 Functional'!C144 -> PRODUCTION PLANT COMMODITY | D144: ='FR-16(7)(v)-1 Functional'!D144 -> P349 | F144: ='FR-16(7)(v)-2 PROD Classified'!H144 -> 474711 | G144: 296481 | H144: =ROUND($F$144*VLOOKUP($D$144,ALLOCTABLE_Prod_Commodity,$H$10,FALSE),0) -> 173925 | I144: 2511 | J144: 1794 | K144: 474711 | L144: 0
A145: 33 | C145: ='FR-16(7)(v)-1 Functional'!C145 -> DISTRIBUTION PLANT | D145: ='FR-16(7)(v)-1 Functional'!D145 -> D349 | F145: ='FR-16(7)(v)-2 PROD Classified'!H145 -> 0 | G145: 0 | H145: =ROUND($F$145*VLOOKUP($D$145,ALLOCTABLE_Prod_Commodity,$H$10,FALSE),0) -> 0 | I145: 0 | J145: 0 | K145: 0 | L145: 0
A146: 34 | C146: ='FR-16(7)(v)-1 Functional'!C146 -> CUSTOMER ACCOUNTING | D146: ='FR-16(7)(v)-1 Functional'!D146 -> CA19 | F146: ='FR-16(7)(v)-2 PROD Classified'!H146 -> 0 | G146: 0 | H146: =ROUND($F$146*VLOOKUP($D$146,ALLOCTABLE_Prod_Commodity,$H$10,FALSE),0) -> 0 | I146: 0 | J146: 0 | K146: 0 | L146: 0
A147: 35 | C147: ='FR-16(7)(v)-1 Functional'!C147 -> CUSTOMER SERVICE & INFORMATION | D147: ='FR-16(7)(v)-1 Functional'!D147 -> CS19 | F147: ='FR-16(7)(v)-2 PROD Classified'!H147 -> 0 | G147: 0 | H147: =ROUND($F$147*VLOOKUP($D$147,ALLOCTABLE_Prod_Commodity,$H$10,FALSE),0) -> 0 | I147: 0 | J147: 0 | K147: 0 | L147: 0
A148: 36 | C148: ='FR-16(7)(v)-1 Functional'!C148 -> SALES | D148: ='FR-16(7)(v)-1 Functional'!D148 -> SE19 | F148: ='FR-16(7)(v)-2 PROD Classified'!H148 -> 0 | G148: 0 | H148: =ROUND($F$148*VLOOKUP($D$148,ALLOCTABLE_Prod_Commodity,$H$10,FALSE),0) -> 0 | I148: 0 | J148: 0 | K148: 0 | L148: 0
A149: 37 | C149: ='FR-16(7)(v)-1 Functional'!C149 -> TOTAL COM & OTHER PLT RESERVE | F149: =SUM(F143:F148) -> 1119012 | G149: =SUM(G142:G148) -> 618844 | H149: 363034 | I149: 135340 | J149: 1794 | K149: 1119012 | L149: 0
A150: 38
A151: 39 | B151: TOTAL DEPRECIATION RESERVE | F151: =F149+F140+F131+F119+F115 -> 6119653 | G151: =G149+G140+G131+G119+G115 -> 3336302 | H151: 1985758 | I151: 791875 | J151: 5718 | K151: 6119653 | L151: 0
A153: =co_name -> DUKE ENERGY KENTUCKY, INC. | K153: =$K$1 -> FR-16(7)(v)-3
A154: =$A$2 -> PRODUCTION COMMODITY ALLOCATED - GAS COST OF SERVICE | K154: =$K$2 -> WITNESS RESPONSIBLE:
A155: =case_name -> CASE NO: 2021-00190 | K155: =Witness -> JAMES E. ZIOLKOWSKI
A156: =data_filing -> DATA: 12 MONTH FORECASTED PERIOD | K156: ="PAGE "&Pages-14&" OF "&Pages -> PAGE 4 OF 18
A157: =type -> TYPE OF FILING: "X" ORIGINAL UPDATED REVISED
F159: =$F$7 -> TOTAL
A160: LINE | F160: =$F$8 -> PRODUCTION | G160: RS/RFT | H160: GS/FT SMALL | I160: GS/FT LARGE | J160: INTERUPT | K160: TOTAL | L160: ALL
A161: NO. | B161: ="NET GAS PLANT" -> NET GAS PLANT | D161: ALLO | F161: =$F$9 -> COMMODITY | G161: RESIDENTIAL | H161: GEN SERV | I161: GEN SERV | J161: TRANS | K161: AT ISSUE | L161: OTHER
C162: Schedule 4 | G162: =$G$10 -> 3 | H162: =$H$10 -> 4 | I162: =$I$10 -> 5 | J162: =$J$10 -> 6
A163: 1 | B163: PRODUCTION PLANT
A164: 2 | C164: ='FR-16(7)(v)-1 Functional'!C164 -> PRODUCTION PLANT IN SERVICE | F164: =F59 -> 4625622 | G164: =$G$59 -> 2471100 | H164: =$H$59 -> 1501384 | I164: =$I$59 -> 653138 | J164: =$J$59 -> 0 | K164: =$K$59 -> 4625622 | L164: =F164-K164 -> 0
A165: 3 | C165: ='FR-16(7)(v)-1 Functional'!C165 -> TOTAL PROD DEPRC RESERVE | F165: =-F115 -> -2553891 | G165: -1364340 | H165: -828942 | I165: -360609 | J165: 0 | K165: -2553891 | L165: =F165-K165 -> 0
A166: 4 | C166: ='FR-16(7)(v)-1 Functional'!C166 -> NET PRODUCTION PLANT | F166: =SUM(F164:F165) -> 2071731 | G166: 1106760 | H166: 672442 | I166: 292529 | J166: 0 | K166: 2071731 | L166: 0
A167: 5
A168: 6 | B168: TRANSMISSION PLANT
A169: 7 | C169: ='FR-16(7)(v)-1 Functional'!C169 -> TRANSMISSION PLANT IN SERVICE | F169: =F63 -> 0 | G169: =$G$63 -> 0 | H169: =$H$63 -> 0 | I169: =$I$63 -> 0 | J169: =$J$63 -> 0 | K169: =$K$63 -> 0 | L169: =F169-K169 -> 0
A170: 8 | C170: ='FR-16(7)(v)-1 Functional'!C170 -> TOTAL TRANS DEPREC RESERVE | F170: =-F119 -> 0 | G170: 0 | H170: 0 | I170: 0 | J170: 0 | K170: 0 | L170: =F170-K170 -> 0
A171: 9 | C171: ='FR-16(7)(v)-1 Functional'!C171 -> NET TRANSMISSION PLANT | F171: =SUM(F168:F170) -> 0 | G171: 0 | H171: 0 | I171: 0 | J171: 0 | K171: 0 | L171: 0
A172: 10
A173: 11 | B173: DISTRIBUTION PLANT
A174: 12 | C174: ='FR-16(7)(v)-1 Functional'!C174 -> DISTRIBUTION PLANT IN SERVICE | F174: =F78 -> 0 | G174: 0 | H174: 0 | I174: 0 | J174: 0 | K174: 0 | L174: =F174-K174 -> 0
A175: 13 | C175: ='FR-16(7)(v)-1 Functional'!C175 -> TOTAL DIST DEPREC RESERVE | F175: =-F131 -> 0 | G175: 0 | H175: 0 | I175: 0 | J175: 0 | K175: 0 | L175: =F175-K175 -> 0
A176: 14 | C176: ='FR-16(7)(v)-1 Functional'!C176 -> NET DISTRIBUTION PLANT | F176: =SUM(F173:F175) -> 0 | G176: 0 | H176: 0 | I176: 0 | J176: 0 | K176: 0 | L176: 0
A177: 15
A178: 16 | B178: NET PTD PLANT | F178: =F176+F171+F166 -> 2071731 | G178: 1106760 | H178: 672442 | I178: 292529 | J178: 0 | K178: 2071731 | L178: 0
A179: 17 | B179: NET TRANS & DIST PLANT | F179: =F176+F171 -> 0 | G179: 0 | H179: 0 | I179: 0 | J179: 0 | K179: 0 | L179: 0
A180: 18
A181: 19 | B181: GENERAL & INTANGIBLE PLANT
A182: 20 | C182: ='FR-16(7)(v)-1 Functional'!C182 -> GEN & INTANG PLANT IN SERVICE | F182: =F90 -> 4970111 | G182: 2748605 | H182: 1612419 | I182: 601117 | J182: 7970 | K182: 4970111 | L182: =F182-K182 -> 0
A183: 21 | C183: ='FR-16(7)(v)-1 Functional'!C183 -> TOTAL GEN & INTG DEPREC RESERVE | F183: =-F140 -> -2446750 | G183: -1353118 | H183: -793782 | I183: -295926 | J183: -3924 | K183: -2446750 | L183: =F183-K183 -> 0
A184: 22 | C184: ='FR-16(7)(v)-1 Functional'!C184 -> NET GENERAL & INTANG PLANT | F184: =SUM(F181:F183) -> 2523361 | G184: 1395487 | H184: 818637 | I184: 305191 | J184: 4046 | K184: 2523361 | L184: 0
A185: 23
A186: 24 | B186: COMMON & OTHER PLANT
A187: 25 | C187: ='FR-16(7)(v)-1 Functional'!C187 -> COMMON & OTH PLT IN SERVICE | F187: =F99 -> 1598477 | G187: 884001 | H187: 518583 | I187: 193330 | J187: 2563 | K187: 1598477 | L187: =F187-K187 -> 0
A188: 26 | C188: ='FR-16(7)(v)-1 Functional'!C188 -> TOTAL COM & OTH DEPREC RESERVE | F188: =-F149 -> -1119012 | G188: -618844 | H188: -363034 | I188: -135340 | J188: -1794 | K188: -1119012 | L188: =F188-K188 -> 0
A189: 27 | C189: ='FR-16(7)(v)-1 Functional'!C189 -> NET COMMON & OTHER PLANT | F189: =SUM(F186:F188) -> 479465 | G189: 265157 | H189: 155549 | I189: 57990 | J189: 769 | K189: 479465 | L189: 0
A190: 28
A191: 29 | C191: ='FR-16(7)(v)-1 Functional'!C191 -> NET GAS PLANT IN SERVICE | F191: =F189+F184+F176+F171+F166 -> 5074557 | G191: 2767404 | H191: 1646628 | I191: 655710 | J191: 4815 | K191: 5074557 | L191: 0
A193: =co_name -> DUKE ENERGY KENTUCKY, INC. | K193: =$K$1 -> FR-16(7)(v)-3
A194: =$A$2 -> PRODUCTION COMMODITY ALLOCATED - GAS COST OF SERVICE | K194: =$K$2 -> WITNESS RESPONSIBLE:
A195: =case_name -> CASE NO: 2021-00190 | K195: =Witness -> JAMES E. ZIOLKOWSKI
A196: =data_filing -> DATA: 12 MONTH FORECASTED PERIOD | K196: ="PAGE "&Pages-13&" OF "&Pages -> PAGE 5 OF 18
A197: =type -> TYPE OF FILING: "X" ORIGINAL UPDATED REVISED
F199: =$F$7 -> TOTAL
A200: LINE | F200: =$F$8 -> PRODUCTION | G200: RS/RFT | H200: GS/FT SMALL | I200: GS/FT LARGE | J200: INTERUPT | K200: TOTAL | L200: ALL
A201: NO. | B201: SUBTRACTIVE RATE BASE ADJUSTMENTS | D201: ALLO | F201: =$F$9 -> COMMODITY | G201: RESIDENTIAL | H201: GEN SERV | I201: GEN SERV | J201: TRANS | K201: AT ISSUE | L201: OTHER
C202: Schedule 5 | G202: =$G$10 -> 3 | H202: =$H$10 -> 4 | I202: =$I$10 -> 5 | J202: =$J$10 -> 6
A203: 1 | B203: RATE BASE ADJUSTMENTS
A204: 2 | B204: ACCUMULATED DEFERRED INCOME TAXES
A205: 3 | B205: ACCUM DEF INC TAXES (282)
A206: 4 | C206: ='FR-16(7)(v)-1 Functional'!C206 -> LIBERALIZED DEPRECIATION | D206: ='FR-16(7)(v)-1 Functional'!D206 -> NP29 | F206: ='FR-16(7)(v)-2 PROD Classified'!H206 -> 592980 | G206: =F206-SUM(H206:J206) -> 323376 | H206: =ROUND($F$206*VLOOKUP($D$206,ALLOCTABLE_Prod_Commodity,$H$10,FALSE),0) -> 192416 | I206: =ROUND(F206*VLOOKUP(D206,ALLOCTABLE_Prod_Commodity,$I$10,FALSE),0) -> 76625 | J206: =ROUND(F206*VLOOKUP(D206,ALLOCTABLE_Prod_Commodity,$J$10,FALSE),0) -> 563 | K206: =SUM(G206:J206) -> 592980 | L206: =F206-K206 -> 0
A207: 5 | C207: ='FR-16(7)(v)-1 Functional'!C207 -> LEASED METERS | D207: ='FR-16(7)(v)-1 Functional'!D207 -> K413 | F207: ='FR-16(7)(v)-2 PROD Classified'!H207 -> 0 | G207: 0 | H207: =ROUND($F$207*VLOOKUP($D$207,ALLOCTABLE_Prod_Commodity,$H$10,FALSE),0) -> 0 | I207: 0 | J207: 0 | K207: 0 | L207: 0
A208: 6 | C208: ='FR-16(7)(v)-1 Functional'!C208 -> CONTRIB AID CONSTR | D208: ='FR-16(7)(v)-1 Functional'!D208 -> D249 | F208: ='FR-16(7)(v)-2 PROD Classified'!H208 -> 0 | G208: 0 | H208: =ROUND($F$208*VLOOKUP($D$208,ALLOCTABLE_Prod_Commodity,$H$10,FALSE),0) -> 0 | I208: 0 | J208: 0 | K208: 0 | L208: 0
A209: 7 | C209: ='FR-16(7)(v)-1 Functional'!C209 -> CAPITALIZED INTEREST | D209: ='FR-16(7)(v)-1 Functional'!D209 -> NP29 | F209: ='FR-16(7)(v)-2 PROD Classified'!H209 -> -13973 | G209: -7620 | H209: =ROUND($F$209*VLOOKUP($D$209,ALLOCTABLE_Prod_Commodity,$H$10,FALSE),0) -> -4534 | I209: -1806 | J209: -13 | K209: -13973 | L209: 0
... 654 more rows

Sheet FR-16(7)(v)-4 DISTR Classified
A1: =co_name -> DUKE ENERGY KENTUCKY, INC. | J1: FR-16(7)(v)-4
A2: DISTRIBUTION CLASSIFIED - GAS COST OF SERVICE | J2: WITNESS RESPONSIBLE:
A3: =case_name -> CASE NO: 2021-00190 | J3: =Witness -> JAMES E. ZIOLKOWSKI
A4: =data_filing -> DATA: 12 MONTH FORECASTED PERIOD | J4: ="PAGE "&Pages-17&" OF "&Pages -> PAGE 1 OF 18
A5: =type -> TYPE OF FILING: "X" ORIGINAL UPDATED REVISED
A8: LINE | F8: TOTAL | G8: CLASSIFIED | J8: TOTAL | K8: ALL
A9: NO. | B9: SUMMARY OF RESULTS | D9: ALLO | F9: DISTRIBUTION | G9: DEMAND | H9: COMMODITY | I9: CUSTOMER | J9: AT ISSUE | K9: OTHER
C10: Schedule 1 | G10: 3 | H10: 4 | I10: 5
A11: 1 | B11: NET INCOME COMPUTATION
A12: 2 | C12: ='FR-16(7)(v)-1 Functional'!C12 -> GROSS GAS PLANT IN SERVICE | F12: =F101 -> 760613952 | G12: =G101 -> 389792097 | H12: =H101 -> 0 | I12: =I101 -> 370821855 | J12: =J101 -> 760613952 | K12: =F12-J12 -> 0
A13: 3 | C13: ='FR-16(7)(v)-1 Functional'!C13 -> TOTAL DEPRECIATION RESERVE | F13: =-F151 -> -200783628 | G13: =-G151 -> -100967518 | H13: =-H151 -> 0 | I13: =-I151 -> -99816110 | J13: =-J151 -> -200783628 | K13: =F13-J13 -> 0
A14: 4 | C14: ='FR-16(7)(v)-1 Functional'!C14 -> TOTAL RATE BASE ADJUSTMENTS | F14: =F326 -> -101219116 | G14: =G326 -> -52290680 | H14: =H326 -> 0 | I14: =I326 -> -48928436 | J14: =J326 -> -101219116 | K14: =F14-J14 -> 0
A15: 5 | C15: ='FR-16(7)(v)-1 Functional'!C15 -> TOTAL RATE BASE | F15: =SUM(F12:F14) -> 458611208 | G15: 236533899 | H15: 0 | I15: 222077309 | J15: 458611208 | K15: 0
A16: 6
A17: 7 | B17: OPERATING EXPENSES
A18: 8 | C18: ='FR-16(7)(v)-1 Functional'!C18 -> TOTAL O&M EXPENSE | F18: =F433 -> 17481957 | G18: =G433 -> 7105108 | H18: =H433 -> 0 | I18: =I433 -> 10376849 | J18: =J433 -> 17481957 | K18: =F18-J18 -> 0
A19: 9 | C19: ='FR-16(7)(v)-1 Functional'!C19 -> TOTAL DEPRECIATION EXPENSE | F19: =F465 -> 18079071 | G19: =G465 -> 9156214 | H19: =H465 -> 0 | I19: =I465 -> 8922857 | J19: =J465 -> 18079071 | K19: 0
A20: 10 | C20: ='FR-16(7)(v)-1 Functional'!C20 -> TOTAL OTHER TAX & MISC EXPENSE | F20: =F495 -> 4531605 | G20: =$G$495 -> 2302564 | H20: =$H$495 -> 0 | I20: =$I$495 -> 2229041 | J20: =$J$495 -> 4531605 | K20: 0
A21: 11 | C21: ='FR-16(7)(v)-1 Functional'!C21 -> TOTAL OP EXP EXCLUDING INC & REV TAX | F21: =SUM(F17:F20) -> 40092633 | G21: =SUM(G17:G20) -> 18563886 | H21: =SUM(H17:H20) -> 0 | I21: =SUM(I17:I20) -> 21528747 | J21: =SUM(J17:J20) -> 40092633 | K21: 0
A22: 12 | C22: ='FR-16(7)(v)-1 Functional'!C22 -> NET FED INCOME TAX EXP ALLOWABLE | F22: =F557 -> 3971085 | G22: =$G$557 -> 2051197 | H22: =$H$557 -> 0 | I22: =$I$557 -> 1919887 | J22: =$J$557 -> 3971084 | K22: 1
A23: 13 | C23: ='FR-16(7)(v)-1 Functional'!C23 -> NET STATE INCOME TAX EXP ALLOWABLE | F23: =F605 -> 1308923 | G23: =G605 -> 678065 | H23: =H605 -> 0 | I23: =I605 -> 630858 | J23: =J605 -> 1308923 | K23: 0
A24: 14 | C24: ='FR-16(7)(v)-1 Functional'!C24 -> TOTAL OPERATING EXPENSE | F24: =SUM(F21:F23) -> 45372641 | G24: =SUM(G21:G23) -> 21293148 | H24: =SUM(H21:H23) -> 0 | I24: =SUM(I21:I23) -> 24079492 | J24: =SUM(J21:J23) -> 45372640 | K24: 1
A25: 15
A26: 16 | B26: RETURN ON RATE BASE | F26: =F334 -> 29997759 | G26: =G334 -> 15471682 | H26: =H334 -> 0 | I26: =I334 -> 14526077 | J26: =J334 -> 29997759 | K26: =F26-J26 -> 0
A27: 17 | B27: TOTAL OTHER OPERATING REVENUES | F27: =-F630 -> -270119 | G27: =-$G$630 -> -97180 | H27: =-$H$630 -> 0 | I27: =-$I$630 -> -172939 | J27: =-$J$630 -> -270119 | K27: 0
A28: 18 | C28: ='FR-16(7)(v)-1 Functional'!C28 -> TOTAL GAS COST OF SERVICE | F28: =SUM(F24:F27) -> 75100281 | G28: =SUM(G24:G27) -> 36667650 | H28: =SUM(H24:H27) -> 0 | I28: =SUM(I24:I27) -> 38432630 | J28: =SUM(J24:J27) -> 75100280 | K28: 1
A29: 19 | B29: ADJUSTMENT FOR INTERCLASS SUBSIDIZATION | D29: =1-'WP FR-16(7)(v)Rate Incr (40.0%)'!I11 -> 0.6 | F29: ='WP FR-16(7)(v)Rate Incr (40.0%)'!S20 -> 0 | G29: 0 | H29: 0 | I29: 0 | J29: =SUM(G29:I29) -> 0 | K29: 0
A30: 20 | B30: REQUESTED REVENUES | F30: =F28+F29 -> 75100281 | G30: 36667650 | H30: 0 | I30: 38432630 | J30: 75100280 | K30: 1
A31: 21 | B31: PROPOSED REVENUES | F31: =F745 -> 74665712 | G31: =G745 -> 36415961 | H31: =H745 -> 0 | I31: =I745 -> 38249751 | J31: =J745 -> 74665712 | K31: 0
A32: 22 | B32: DIFFERENCE (REQUESTED LESS PROPOSED) | F32: =F30-F31 -> 434569 | G32: 251689 | H32: 0 | I32: 182879 | J32: 434568 | K32: 1
A33: 23
A34: 24 | B34: TOTAL RETURN EARNED | F34: =F654+F26 -> 30654180 | G34: =G654+G26 -> 15791784 | H34: =H654+H26 -> 0 | I34: =I654+I26 -> 14862397 | J34: =J654+J26 -> 30654181 | K34: =F34-J34 -> -1
A35: 25 | B35: RATE OF RETURN EARNED | F35: =IF(F331=0,0,ROUND(F34/F331,5)) -> 0.06684 | G35: 0.06676 | H35: 0 | I35: 0.06692 | J35: 0.06684 | K35: 0
A36: 26 | B36: TOTAL RATE OF RETURN ALLOWABLE | F36: =$F$688 -> 0.06541 | G36: =F688 -> 0.06541 | H36: =F688 -> 0.06541 | I36: =F688 -> 0.06541 | J36: =$F$688 -> 0.06541 | K36: =F688 -> 0.06541 | N36: Not Part of print range
A37: 27 | B37: RETURN EARNED ON COMMON EQUITY | F37: =IF(F670=0,0,(F35-$F$683-$F$684-$F$686)*$F$673/$F$670) -> 0.09654636327 | G37: =IF(F670=0,0,(G35-F683-F684-F686)*F673/F670) -> 0.09639054909 | H37: =IF(F670=0,0,(H35-F683-F684-F686)*F673/F670) -> -0.0336363868 | I37: =IF(F670=0,0,(I35-F683-F684-F686)*F673/F670) -> 0.09670217746 | J37: =IF(F670=0,0,(J35-F683-F684-F686)*F673/F670) -> 0.09654636327 | K37: =IF(F670=0,0,(K35-F683-F684-F686)*F673/F670) -> -0.0336363868 | N37: Not Filed
A38: 28 | B38: ALLOWED RETURN ON COMMON EQUITY | F38: =IF($F$670=0,0,(F36-$F$683-$F$684-$F$686)*$F$673/$F$670) -> 0.09376118475 | G38: =IF(F670=0,0,(G36-F683-F684-F686)*F673/F670) -> 0.09376118475 | H38: =IF(F670=0,0,(H36-F683-F684-F686)*F673/F670) -> 0.09376118475 | I38: =IF(F670=0,0,(I36-F683-F684-F686)*F673/F670) -> 0.09376118475 | J38: =IF($F$670=0,0,(J36-$F$683-$F$684-$F$686)*$F$673/$F$670) -> 0.09376118475 | K38: =IF(F670=0,0,(K36-F683-F684-F686)*F673/F670) -> 0.09376118475
A39: 29
A40: 30 | B40: PRESENT REVENUES | F40: =F744 -> 68853647 | G40: =G744 -> 33581301 | H40: =H744 -> 0 | I40: =I744 -> 35272346 | J40: =J744 -> 68853647 | K40: =F40-J40 -> 0
A41: 31 | B41: REVENUE INCREASE JUSTIFIED | F41: =F28-F40 -> 6246634 | G41: 3086349 | H41: 0 | I41: 3160284 | J41: 6246633 | K41: 1
A42: 32 | C42: PER UNIT PRES REV | F42: =IF(F40=0,0,ROUND(F41/F40,5)) -> 0.09072 | G42: 0.09191 | H42: 0 | I42: 0.0896 | J42: 0.09072 | K42: 0
A43: 33 | B43: REVENUE INCREASE REQUESTED | F43: =F31-F40 -> 5812065 | G43: 2834660 | H43: 0 | I43: 2977405 | J43: 5812065 | K43: 0
A44: 34 | C44: PER UNIT PRES REV | F44: =IF(F40=0,0,ROUND(F43/F40,5)) -> 0.08441 | G44: 0.08441 | H44: 0 | I44: 0.08441 | J44: 0.08441 | K44: 0
A46: =co_name -> DUKE ENERGY KENTUCKY, INC. | J46: =$J$1 -> FR-16(7)(v)-4
A47: =$A$2 -> DISTRIBUTION CLASSIFIED - GAS COST OF SERVICE | J47: =$J$2 -> WITNESS RESPONSIBLE:
A48: =case_name -> CASE NO: 2021-00190 | J48: =Witness -> JAMES E. ZIOLKOWSKI
A49: =data_filing -> DATA: 12 MONTH FORECASTED PERIOD | J49: ="PAGE "&Pages-16&" OF "&Pages -> PAGE 2 OF 18
A50: =type -> TYPE OF FILING: "X" ORIGINAL UPDATED REVISED
A53: LINE | F53: TOTAL | G53: CLASSIFIED | J53: TOTAL | K53: ALL
A54: NO. | B54: GROSS GAS PLANT IN SERVICE | D54: ALLO | F54: DISTRIBUTION | G54: DEMAND | H54: COMMODITY | I54: CUSTOMER | J54: AT ISSUE | K54: OTHER
C55: Schedule 2 | G55: =$G$10 -> 3 | H55: =$H$10 -> 4 | I55: =$I$10 -> 5
A56: 1 | B56: PRODUCTION PLANT
A57: 2 | C57: ='FR-16(7)(v)-1 Functional'!C57 -> PRODUCTION PLANT | D57: ='FR-16(7)(v)-1 Functional'!D57 -> K205 | F57: ='FR-16(7)(v)-1 Functional'!I57 -> 0 | G57: =ROUND(F57*VLOOKUP(D57,Alloctable_Classified_Distribution,$G$10,FALSE),0) -> 0 | H57: =ROUND(F57*VLOOKUP(D57,Alloctable_Classified_Distribution,$H$10,FALSE),0) -> 0 | I57: =ROUND(F57*VLOOKUP(D57,Alloctable_Classified_Distribution,$I$10,FALSE),0) -> 0 | J57: =SUM($G$57:$I$57) -> 0 | K57: =F57-$J$57 -> 0
A58: 3 | C58: ='FR-16(7)(v)-1 Functional'!C58 -> GAS PRODUCTION -CPMPL NOT CLASS | D58: ='FR-16(7)(v)-1 Functional'!D58 -> K205 | F58: ='FR-16(7)(v)-1 Functional'!I58 -> 0 | G58: =ROUND(F58*VLOOKUP(D58,Alloctable_Classified_Distribution,$G$10,FALSE),0) -> 0 | H58: =ROUND(F58*VLOOKUP(D58,Alloctable_Classified_Distribution,$H$10,FALSE),0) -> 0 | I58: =ROUND(F58*VLOOKUP(D58,Alloctable_Classified_Distribution,$I$10,FALSE),0) -> 0 | J58: =SUM($G$58:$I$58) -> 0 | K58: =F58-$J$58 -> 0
A59: 4 | C59: ='FR-16(7)(v)-1 Functional'!C59 -> PRODUCTION PLANT IN SERVICE | F59: =SUM(F57:F58) -> 0 | G59: =SUM($G$57:$G$58) -> 0 | H59: =SUM($H$57:$H$58) -> 0 | I59: =SUM($I$57:$I$58) -> 0 | J59: =SUM($J$57:$J$58) -> 0 | K59: =SUM($K$57:$K$58) -> 0
A60: 5
A61: 6 | B61: TRANSMISSION PLANT
A62: 7 | C62: ='FR-16(7)(v)-1 Functional'!C62 -> TRANSMISSION PLANT
A63: 8 | C63: ='FR-16(7)(v)-1 Functional'!C63 -> TRANSMISSION PLANT IN SERVICE | F63: =SUM(F62) -> 0 | G63: =SUM($G$62) -> 0 | H63: =SUM($H$62) -> 0 | I63: =SUM($I$62) -> 0 | J63: =SUM($J$62) -> 0 | K63: =SUM($K$62) -> 0
A64: 9
A65: 10 | B65: TOTAL PROD & TRANS PLANT | F65: =F63+F59 -> 0 | G65: =$G$63+$G$59 -> 0 | H65: =$H$63+$H$59 -> 0 | I65: =$I$63+$I$59 -> 0 | J65: =$J$63+$J$59 -> 0 | K65: =$K$63+$K$59 -> 0
A66: 11
A67: 12 | B67: DISTRIBUTION PLANT
A68: 13 | C68: ='FR-16(7)(v)-1 Functional'!C68 -> SYSTEM M&R - (2780, 2781) | D68: ='FR-16(7)(v)-1 Functional'!D68 -> K203 | F68: ='FR-16(7)(v)-1 Functional'!I68 -> 41242292 | G68: =ROUND(F68*VLOOKUP(D68,Alloctable_Classified_Distribution,$G$10,FALSE),0) -> 41242292 | H68: =ROUND(F68*VLOOKUP(D68,Alloctable_Classified_Distribution,$H$10,FALSE),0) -> 0 | I68: =ROUND(F68*VLOOKUP(D68,Alloctable_Classified_Distribution,$I$10,FALSE),0) -> 0 | J68: =SUM(G68:I68) -> 41242292 | K68: =F68-J68 -> 0
A69: 14 | C69: ='FR-16(7)(v)-1 Functional'!C69 -> DIST REG EQUIP & CITY GATE M&R- (2782, 2790) | D69: ='FR-16(7)(v)-1 Functional'!D69 -> K203 | F69: ='FR-16(7)(v)-1 Functional'!I69 -> 2724163 | G69: 2724163 | H69: 0 | I69: 0 | J69: 2724163 | K69: 0
A70: 15 | C70: ='FR-16(7)(v)-1 Functional'!C70 -> LARGE IND M&R - (2850, 2851) | D70: ='FR-16(7)(v)-1 Functional'!D70 -> K595 | F70: ='FR-16(7)(v)-1 Functional'!I70 -> 566920 | G70: 566920 | H70: 0 | I70: 0 | J70: 566920 | K70: 0
A71: 16 | C71: ='FR-16(7)(v)-1 Functional'!C71 -> MAINS - (2761, 2762, 2763, 2765) | D71: ='FR-16(7)(v)-1 Functional'!D71 -> K415 | F71: ='FR-16(7)(v)-1 Functional'!I71 -> 396995775 | G71: 317596620 | H71: 0 | I71: 79399155 | J71: 396995775 | K71: 0
A72: 17 | C72: ='FR-16(7)(v)-1 Functional'!C72 -> SERVICES - (2801, 2802, 2803) | D72: ='FR-16(7)(v)-1 Functional'!D72 -> K403 | F72: ='FR-16(7)(v)-1 Functional'!I72 -> 226116720 | G72: 0 | H72: 0 | I72: 226116720 | J72: 226116720 | K72: 0
A73: 18 | C73: ='FR-16(7)(v)-1 Functional'!C73 -> MTRS & MTR INST (2810, 2811, 2820, 2821) | D73: ='FR-16(7)(v)-1 Functional'!D73 -> K413 | F73: ='FR-16(7)(v)-1 Functional'!I73 -> 30766213 | G73: 0 | H73: 0 | I73: 30766213 | J73: 30766213 | K73: 0
A74: 19 | C74: ='FR-16(7)(v)-1 Functional'!C74 -> LAND, R OF W, STRUCT & IMPROV | D74: ='FR-16(7)(v)-1 Functional'!D74 -> K203 | F74: ='FR-16(7)(v)-1 Functional'!I74 -> 11654163 | G74: 11654163 | H74: 0 | I74: 0 | J74: 11654163 | K74: 0
A75: 20 | C75: ='FR-16(7)(v)-1 Functional'!C75 -> HOUSE REG & INSTALL (2830, 2840) | D75: ='FR-16(7)(v)-1 Functional'!D75 -> K417 | F75: ='FR-16(7)(v)-1 Functional'!I75 -> 14731367 | G75: 0 | H75: 0 | I75: 14731367 | J75: 14731367 | K75: 0
A76: 21 | C76: ='FR-16(7)(v)-1 Functional'!C76 -> STREET LIGHTING EQUIPMENT & OTH | D76: ='FR-16(7)(v)-1 Functional'!D76 -> K597 | F76: ='FR-16(7)(v)-1 Functional'!I76 -> 91485 | G76: 91485 | H76: 0 | I76: 0 | J76: 91485 | K76: 0
A77: 22 | C77: ='FR-16(7)(v)-1 Functional'!C77 -> ASSET RETIREMENT COST FOR DISTRIBUTION PLANT | D77: ='FR-16(7)(v)-1 Functional'!D77 -> K203 | F77: ='FR-16(7)(v)-1 Functional'!I77 -> 0 | G77: 0 | H77: 0 | I77: 0 | J77: 0 | K77: 0
A78: 23 | C78: ='FR-16(7)(v)-1 Functional'!C78 -> DISTRIBUTION PLANT IN SERVICE | F78: =SUM(F68:F77) -> 724889098 | G78: 373875643 | H78: 0 | I78: 351013455 | J78: 724889098 | K78: 0
A79: 24
A80: 25 | B80: TOTAL TRANS & DIST PLANT | F80: =F78+F63 -> 724889098 | G80: =G78+$G$63 -> 373875643 | H80: =H78+$H$63 -> 0 | I80: =I78+$I$63 -> 351013455 | J80: =J78+$J$63 -> 724889098 | K80: =K78+$K$63 -> 0
A81: 26 | B81: TOTAL GROSS PTD PLANT | F81: =F78+F65 -> 724889098 | G81: 373875643 | H81: 0 | I81: 351013455 | J81: 724889098 | K81: 0
A82: 27
A83: 28 | B83: GENERAL & INTANGIBLE PLANT
A84: 29 | C84: ='FR-16(7)(v)-1 Functional'!C84 -> PRODUCTION PLANT | D84: ='FR-16(7)(v)-1 Functional'!D84 -> K201 | F84: ='FR-16(7)(v)-1 Functional'!I84 -> 0 | G84: =ROUND(F84*VLOOKUP(D84,Alloctable_Classified_Distribution,$G$10,FALSE),0) -> 0 | H84: =ROUND(F84*VLOOKUP(D84,Alloctable_Classified_Distribution,$H$10,FALSE),0) -> 0 | I84: =ROUND(F84*VLOOKUP(D84,Alloctable_Classified_Distribution,$I$10,FALSE),0) -> 0 | J84: =SUM(G84:I84) -> 0 | K84: =F84-J84 -> 0
A85: 30 | C85: ='FR-16(7)(v)-1 Functional'!C85 -> PRODUCTION PLANT COMMODITY | D85: ='FR-16(7)(v)-1 Functional'!D85 -> P349 | F85: ='FR-16(7)(v)-1 Functional'!I85 -> 0 | G85: 0 | H85: 0 | I85: 0 | J85: 0 | K85: 0
A86: 31 | C86: ='FR-16(7)(v)-1 Functional'!C86 -> DISTRIBUTION PLANT | D86: ='FR-16(7)(v)-1 Functional'!D86 -> D349 | F86: ='FR-16(7)(v)-1 Functional'!I86 -> 18849244 | G86: 12043159 | H86: 0 | I86: 6806085 | J86: 18849244 | K86: 0
A87: 32 | C87: ='FR-16(7)(v)-1 Functional'!C87 -> CUSTOMER ACCOUNTING | D87: ='FR-16(7)(v)-1 Functional'!D87 -> CA19 | F87: ='FR-16(7)(v)-1 Functional'!I87 -> 7459729 | G87: 0 | H87: 0 | I87: 7459729 | J87: 7459729 | K87: 0
A88: 33 | C88: ='FR-16(7)(v)-1 Functional'!C88 -> CUSTOMER SERVICE & INFORMATION | D88: ='FR-16(7)(v)-1 Functional'!D88 -> CS19 | F88: ='FR-16(7)(v)-1 Functional'!I88 -> 722179 | G88: 0 | H88: 0 | I88: 722179 | J88: 722179 | K88: 0
A89: 34 | C89: ='FR-16(7)(v)-1 Functional'!C89 -> SALES | D89: ='FR-16(7)(v)-1 Functional'!D89 -> SE19 | F89: ='FR-16(7)(v)-1 Functional'!I89 -> 0 | G89: 0 | H89: 0 | I89: 0 | J89: 0 | K89: 0
A90: 35 | C90: ='FR-16(7)(v)-1 Functional'!C90 -> GEN & INTANG PLANT IN SERVICE | F90: =SUM(F84:F89) -> 27031152 | G90: 12043159 | H90: 0 | I90: 14987993 | J90: 27031152 | K90: 0
A91: 36
A92: 37 | B92: COMMON & OTHER PLANT
A93: 38 | C93: ='FR-16(7)(v)-1 Functional'!C93 -> PRODUCTION PLANT | D93: ='FR-16(7)(v)-1 Functional'!D93 -> K201 | F93: ='FR-16(7)(v)-1 Functional'!I93 -> 0 | G93: =ROUND(F93*VLOOKUP(D93,Alloctable_Classified_Distribution,$G$10,FALSE),0) -> 0 | H93: =ROUND(F93*VLOOKUP(D93,Alloctable_Classified_Distribution,$H$10,FALSE),0) -> 0 | I93: =ROUND(F93*VLOOKUP(D93,Alloctable_Classified_Distribution,$I$10,FALSE),0) -> 0 | J93: =SUM(G93:I93) -> 0 | K93: =F93-J93 -> 0
A94: 39 | C94: ='FR-16(7)(v)-1 Functional'!C94 -> PRODUCTION PLANT COMMODITY | D94: ='FR-16(7)(v)-1 Functional'!D94 -> P349 | F94: ='FR-16(7)(v)-1 Functional'!I94 -> 0 | G94: 0 | H94: 0 | I94: 0 | J94: 0 | K94: 0
A95: 40 | C95: ='FR-16(7)(v)-1 Functional'!C95 -> DISTRIBUTION PLANT | D95: ='FR-16(7)(v)-1 Functional'!D95 -> D349 | F95: ='FR-16(7)(v)-1 Functional'!I95 -> 6062254 | G95: 3873295 | H95: 0 | I95: 2188959 | J95: 6062254 | K95: 0
A96: 41 | C96: ='FR-16(7)(v)-1 Functional'!C96 -> CUSTOMER ACCOUNTING | D96: ='FR-16(7)(v)-1 Functional'!D96 -> CA19 | F96: ='FR-16(7)(v)-1 Functional'!I96 -> 2399182 | G96: 0 | H96: 0 | I96: 2399182 | J96: 2399182 | K96: 0
A97: 42 | C97: ='FR-16(7)(v)-1 Functional'!C97 -> CUSTOMER SERVICE & INFORMATION | D97: ='FR-16(7)(v)-1 Functional'!D97 -> CS19 | F97: ='FR-16(7)(v)-1 Functional'!I97 -> 232266 | G97: 0 | H97: 0 | I97: 232266 | J97: 232266 | K97: 0
A98: 43 | C98: ='FR-16(7)(v)-1 Functional'!C98 -> SALES | D98: ='FR-16(7)(v)-1 Functional'!D98 -> SE19 | F98: ='FR-16(7)(v)-1 Functional'!I98 -> 0 | G98: 0 | H98: 0 | I98: 0 | J98: 0 | K98: 0
A99: 44 | C99: ='FR-16(7)(v)-1 Functional'!C99 -> COMMON & OTHER PLANT IN SERVICE | F99: =SUM(F93:F98) -> 8693702 | G99: 3873295 | H99: 0 | I99: 4820407 | J99: 8693702 | K99: 0
A100: 45
A101: 46 | B101: GROSS GAS PLANT IN SERVICE | F101: =F81+F90+F99 -> 760613952 | G101: 389792097 | H101: 0 | I101: 370821855 | J101: 760613952 | K101: 0
A103: =co_name -> DUKE ENERGY KENTUCKY, INC. | J103: =$J$1 -> FR-16(7)(v)-4
A104: =$A$2 -> DISTRIBUTION CLASSIFIED - GAS COST OF SERVICE | J104: =$J$2 -> WITNESS RESPONSIBLE:
A105: =case_name -> CASE NO: 2021-00190 | J105: =Witness -> JAMES E. ZIOLKOWSKI
A106: =data_filing -> DATA: 12 MONTH FORECASTED PERIOD | J106: ="PAGE "&Pages-15&" OF "&Pages -> PAGE 3 OF 18
A107: =type -> TYPE OF FILING: "X" ORIGINAL UPDATED REVISED
A110: LINE | F110: TOTAL | G110: CLASSIFIED | J110: TOTAL | K110: ALL
A111: NO. | B111: DEPRECIATION RESERVE | D111: ALLO | F111: DISTRIBUTION | G111: DEMAND | H111: COMMODITY | I111: CUSTOMER | J111: AT ISSUE | K111: OTHER
C112: Schedule 3 | G112: =$G$10 -> 3 | H112: =$H$10 -> 4 | I112: =$I$10 -> 5
A113: 1 | B113: PRODUCTION PLANT
A114: 2 | C114: ='FR-16(7)(v)-1 Functional'!C114 -> PRODUCTION PLANT | D114: ='FR-16(7)(v)-1 Functional'!D114 -> K205 | F114: ='FR-16(7)(v)-1 Functional'!I114 -> 0 | G114: =F114-SUM(H114:I114) -> 0 | H114: =ROUND(F114*VLOOKUP(D114,Alloctable_Classified_Distribution,$H$10,FALSE),0) -> 0 | I114: =ROUND(F114*VLOOKUP(D114,Alloctable_Classified_Distribution,$I$10,FALSE),0) -> 0 | J114: =SUM(G114:I114) -> 0 | K114: =F114-J114 -> 0
A115: 3 | C115: ='FR-16(7)(v)-1 Functional'!C115 -> TOTAL PROD DEPREC RESERVE | F115: =SUM(F114:F114) -> 0 | G115: 0 | H115: 0 | I115: 0 | J115: 0 | K115: 0
A116: 4
A117: 5 | B117: TRANSMISSION PLANT
A118: 6 | C118: ='FR-16(7)(v)-1 Functional'!C118 -> TRANSMISSION PLANT
A119: 7 | C119: ='FR-16(7)(v)-1 Functional'!C119 -> TOTAL TRANS DEPREC RESERVE | F119: =SUM(F118:F118) -> 0 | G119: 0 | H119: 0 | I119: 0 | J119: 0 | K119: 0
A120: 8
A121: 9 | B121: DISTRIBUTION PLANT
A122: 10 | C122: ='FR-16(7)(v)-1 Functional'!C122 -> SYSTEM M&R - (2780, 2781) | D122: ='FR-16(7)(v)-1 Functional'!D122 -> K203 | F122: ='FR-16(7)(v)-1 Functional'!I122 -> 2581527 | G122: =F122-SUM(H122:I122) -> 2581527 | H122: =ROUND(F122*VLOOKUP(D122,Alloctable_Classified_Distribution,$H$10,FALSE),0) -> 0 | I122: =ROUND(F122*VLOOKUP(D122,Alloctable_Classified_Distribution,$I$10,FALSE),0) -> 0 | J122: =SUM(G122:I122) -> 2581527 | K122: =F122-J122 -> 0
A123: 11 | C123: ='FR-16(7)(v)-1 Functional'!C123 -> DIST REG EQUIP & CITY GATE M&R- (2782, 2790) | D123: ='FR-16(7)(v)-1 Functional'!D123 -> K203 | F123: ='FR-16(7)(v)-1 Functional'!I123 -> 1211353 | G123: 1211353 | H123: 0 | I123: 0 | J123: 1211353 | K123: 0
A124: 12 | C124: ='FR-16(7)(v)-1 Functional'!C124 -> LARGE IND M&R - (2850, 2851) | D124: ='FR-16(7)(v)-1 Functional'!D124 -> K595 | F124: ='FR-16(7)(v)-1 Functional'!I124 -> 509867 | G124: 509867 | H124: 0 | I124: 0 | J124: 509867 | K124: 0
A125: 13 | C125: ='FR-16(7)(v)-1 Functional'!C125 -> MAINS - (2761, 2762, 2763, 2765) | D125: ='FR-16(7)(v)-1 Functional'!D125 -> K415 | F125: ='FR-16(7)(v)-1 Functional'!I125 -> 113499887 | G125: 90799910 | H125: 0 | I125: 22699977 | J125: 113499887 | K125: 0
A126: 14 | C126: ='FR-16(7)(v)-1 Functional'!C126 -> SERVICES - (2801, 2802, 2803) | D126: ='FR-16(7)(v)-1 Functional'!D126 -> K403 | F126: ='FR-16(7)(v)-1 Functional'!I126 -> 61310319 | G126: 0 | H126: 0 | I126: 61310319 | J126: 61310319 | K126: 0
A127: 15 | C127: ='FR-16(7)(v)-1 Functional'!C127 -> MTRS & MTR INST (2810, 2811, 2820, 2821) | D127: ='FR-16(7)(v)-1 Functional'!D127 -> K413 | F127: ='FR-16(7)(v)-1 Functional'!I127 -> -895430 | G127: 0 | H127: 0 | I127: -895430 | J127: -895430 | K127: 0
A128: 16 | C128: ='FR-16(7)(v)-1 Functional'!C128 -> LAND, R OF W, STRUCT & IMPROV & OTH | D128: ='FR-16(7)(v)-1 Functional'!D128 -> K203 | F128: ='FR-16(7)(v)-1 Functional'!I128 -> 701479 | G128: 701479 | H128: 0 | I128: 0 | J128: 701479 | K128: 0
A129: 17 | C129: ='FR-16(7)(v)-1 Functional'!C129 -> HOUSE REG & INSTALL (2830, 2840) | D129: ='FR-16(7)(v)-1 Functional'!D129 -> K417 | F129: ='FR-16(7)(v)-1 Functional'!I129 -> 5948247 | G129: 0 | H129: 0 | I129: 5948247 | J129: 5948247 | K129: 0
A130: 18 | C130: ='FR-16(7)(v)-1 Functional'!C130 -> STREET LIGHTING EQUIPMENT & OTH | D130: ='FR-16(7)(v)-1 Functional'!D130 -> K597 | F130: ='FR-16(7)(v)-1 Functional'!I130 -> -3476871 | G130: -3476871 | H130: 0 | I130: 0 | J130: -3476871 | K130: 0
A131: 19 | C131: ='FR-16(7)(v)-1 Functional'!C131 -> TOTAL DIST DEPREC RESERVE | F131: =SUM(F121:F130) -> 181390378 | G131: 92327265 | H131: 0 | I131: 89063113 | J131: 181390378 | K131: 0
A132: 20
A133: 21 | B133: GENERAL & INTANGIBLE PLANT
A134: 22 | C134: ='FR-16(7)(v)-1 Functional'!C134 -> PRODUCTION PLANT | D134: ='FR-16(7)(v)-1 Functional'!D134 -> K201 | F134: ='FR-16(7)(v)-1 Functional'!I134 -> 0 | G134: =F134-SUM(H134:I134) -> 0 | H134: =ROUND(F134*VLOOKUP(D134,Alloctable_Classified_Distribution,$H$10,FALSE),0) -> 0 | I134: =ROUND(F134*VLOOKUP(D134,Alloctable_Classified_Distribution,$I$10,FALSE),0) -> 0 | J134: =SUM(G134:I134) -> 0 | K134: =F134-J134 -> 0
A135: 23 | C135: ='FR-16(7)(v)-1 Functional'!C135 -> PRODUCTION PLANT COMMODITY | D135: ='FR-16(7)(v)-1 Functional'!D135 -> P349 | F135: ='FR-16(7)(v)-1 Functional'!I135 -> 0 | G135: 0 | H135: 0 | I135: 0 | J135: 0 | K135: 0
A136: 24 | C136: ='FR-16(7)(v)-1 Functional'!C136 -> DISTRIBUTION PLANT | D136: ='FR-16(7)(v)-1 Functional'!D136 -> D349 | F136: ='FR-16(7)(v)-1 Functional'!I136 -> 9279343 | G136: 5928758 | H136: 0 | I136: 3350585 | J136: 9279343 | K136: 0
A137: 25 | C137: ='FR-16(7)(v)-1 Functional'!C137 -> CUSTOMER ACCOUNTING | D137: ='FR-16(7)(v)-1 Functional'!D137 -> CA19 | F137: ='FR-16(7)(v)-1 Functional'!I137 -> 3672369 | G137: 0 | H137: 0 | I137: 3672369 | J137: 3672369 | K137: 0
A138: 26 | C138: ='FR-16(7)(v)-1 Functional'!C138 -> CUSTOMER SERVICE & INFORMATION | D138: ='FR-16(7)(v)-1 Functional'!D138 -> CS19 | F138: ='FR-16(7)(v)-1 Functional'!I138 -> 355523 | G138: 0 | H138: 0 | I138: 355523 | J138: 355523 | K138: 0
A139: 27 | C139: ='FR-16(7)(v)-1 Functional'!C139 -> SALES | D139: ='FR-16(7)(v)-1 Functional'!D139 -> SE19 | F139: ='FR-16(7)(v)-1 Functional'!I139 -> 0 | G139: 0 | H139: 0 | I139: 0 | J139: 0 | K139: 0
A140: 28 | C140: ='FR-16(7)(v)-1 Functional'!C140 -> TOTAL GEN DEPREC RESERVE | F140: =SUM(F133:F139) -> 13307235 | G140: 5928758 | H140: 0 | I140: 7378477 | J140: 13307235 | K140: 0
A141: 29
A142: 30 | B142: COMMON & OTHER PLANT
A143: 31 | C143: ='FR-16(7)(v)-1 Functional'!C143 -> PRODUCTION PLANT | D143: ='FR-16(7)(v)-1 Functional'!D143 -> K201 | F143: ='FR-16(7)(v)-1 Functional'!I143 -> 0 | G143: =F143-SUM(H143:I143) -> 0 | H143: =ROUND(F143*VLOOKUP(D143,Alloctable_Classified_Distribution,$H$10,FALSE),0) -> 0 | I143: =ROUND(F143*VLOOKUP(D143,Alloctable_Classified_Distribution,$I$10,FALSE),0) -> 0 | J143: =SUM(G143:I143) -> 0 | K143: =F143-J143 -> 0
A144: 32 | C144: ='FR-16(7)(v)-1 Functional'!C144 -> PRODUCTION PLANT COMMODITY | D144: ='FR-16(7)(v)-1 Functional'!D144 -> P349 | F144: ='FR-16(7)(v)-1 Functional'!I144 -> 0 | G144: 0 | H144: 0 | I144: 0 | J144: 0 | K144: 0
A145: 33 | C145: ='FR-16(7)(v)-1 Functional'!C145 -> DISTRIBUTION PLANT | D145: ='FR-16(7)(v)-1 Functional'!D145 -> D349 | F145: ='FR-16(7)(v)-1 Functional'!I145 -> 4243873 | G145: 2711495 | H145: 0 | I145: 1532378 | J145: 4243873 | K145: 0
A146: 34 | C146: ='FR-16(7)(v)-1 Functional'!C146 -> CUSTOMER ACCOUNTING | D146: ='FR-16(7)(v)-1 Functional'!D146 -> CA19 | F146: ='FR-16(7)(v)-1 Functional'!I146 -> 1679545 | G146: 0 | H146: 0 | I146: 1679545 | J146: 1679545 | K146: 0
A147: 35 | C147: ='FR-16(7)(v)-1 Functional'!C147 -> CUSTOMER SERVICE & INFORMATION | D147: ='FR-16(7)(v)-1 Functional'!D147 -> CS19 | F147: ='FR-16(7)(v)-1 Functional'!I147 -> 162597 | G147: 0 | H147: 0 | I147: 162597 | J147: 162597 | K147: 0
A148: 36 | C148: ='FR-16(7)(v)-1 Functional'!C148 -> SALES | D148: ='FR-16(7)(v)-1 Functional'!D148 -> SE19 | F148: ='FR-16(7)(v)-1 Functional'!I148 -> 0 | G148: 0 | H148: 0 | I148: 0 | J148: 0 | K148: 0
A149: 37 | C149: ='FR-16(7)(v)-1 Functional'!C149 -> TOTAL COM & OTHER PLT RESERVE | F149: =SUM(F143:F148) -> 6086015 | G149: =SUM(G142:G148) -> 2711495 | H149: =SUM(H142:H148) -> 0 | I149: =SUM(I142:I148) -> 3374520 | J149: =SUM(J142:J148) -> 6086015 | K149: =SUM(K142:K148) -> 0
A150: 38
A151: 39 | B151: TOTAL DEPRECIATION RESERVE | F151: =F149+F140+F131+F119+F115 -> 200783628 | G151: 100967518 | H151: 0 | I151: 99816110 | J151: 200783628 | K151: 0
A153: =co_name -> DUKE ENERGY KENTUCKY, INC. | J153: =$J$1 -> FR-16(7)(v)-4
A154: =$A$2 -> DISTRIBUTION CLASSIFIED - GAS COST OF SERVICE | J154: =$J$2 -> WITNESS RESPONSIBLE:
A155: =case_name -> CASE NO: 2021-00190 | J155: =Witness -> JAMES E. ZIOLKOWSKI
A156: =data_filing -> DATA: 12 MONTH FORECASTED PERIOD | J156: ="PAGE "&Pages-14&" OF "&Pages -> PAGE 4 OF 18
A157: =type -> TYPE OF FILING: "X" ORIGINAL UPDATED REVISED
A160: LINE | F160: TOTAL | G160: CLASSIFIED | J160: TOTAL | K160: ALL
A161: NO. | B161: ="NET GAS PLANT" -> NET GAS PLANT | D161: ALLO | F161: DISTRIBUTION | G161: DEMAND | H161: COMMODITY | I161: CUSTOMER | J161: AT ISSUE | K161: OTHER
C162: Schedule 4 | G162: =$G$10 -> 3 | H162: =$H$10 -> 4 | I162: =$I$10 -> 5
A163: 1 | B163: PRODUCTION PLANT
A164: 2 | C164: ='FR-16(7)(v)-1 Functional'!C164 -> PRODUCTION PLANT IN SERVICE | F164: =F59 -> 0 | G164: =$G$59 -> 0 | H164: =$H$59 -> 0 | I164: =$I$59 -> 0 | J164: =$J$59 -> 0 | K164: =F164-J164 -> 0
A165: 3 | C165: ='FR-16(7)(v)-1 Functional'!C165 -> TOTAL PROD DEPRC RESERVE | F165: =-F115 -> 0 | G165: =-G115 -> 0 | H165: =-H115 -> 0 | I165: =-I115 -> 0 | J165: =-J115 -> 0 | K165: =F165-J165 -> 0
A166: 4 | C166: ='FR-16(7)(v)-1 Functional'!C166 -> NET PRODUCTION PLANT | F166: =SUM(F164:F165) -> 0 | G166: 0 | H166: 0 | I166: 0 | J166: 0 | K166: 0
A167: 5
A168: 6 | B168: TRANSMISSION PLANT
A169: 7 | C169: ='FR-16(7)(v)-1 Functional'!C169 -> TRANSMISSION PLANT IN SERVICE | F169: =F63 -> 0 | G169: =$G$63 -> 0 | H169: =$H$63 -> 0 | I169: =$I$63 -> 0 | J169: =$J$63 -> 0 | K169: =F169-J169 -> 0
A170: 8 | C170: ='FR-16(7)(v)-1 Functional'!C170 -> TOTAL TRANS DEPREC RESERVE | F170: =-F119 -> 0 | G170: =-G119 -> 0 | H170: =-H119 -> 0 | I170: =-I119 -> 0 | J170: =-J119 -> 0 | K170: =F170-J170 -> 0
A171: 9 | C171: ='FR-16(7)(v)-1 Functional'!C171 -> NET TRANSMISSION PLANT | F171: =SUM(F168:F170) -> 0 | G171: 0 | H171: 0 | I171: 0 | J171: 0 | K171: 0
A172: 10
A173: 11 | B173: DISTRIBUTION PLANT
A174: 12 | C174: ='FR-16(7)(v)-1 Functional'!C174 -> DISTRIBUTION PLANT IN SERVICE | F174: =F78 -> 724889098 | G174: =G78 -> 373875643 | H174: =H78 -> 0 | I174: =I78 -> 351013455 | J174: =J78 -> 724889098 | K174: =F174-J174 -> 0
A175: 13 | C175: ='FR-16(7)(v)-1 Functional'!C175 -> TOTAL DIST DEPREC RESERVE | F175: =-F131 -> -181390378 | G175: =-G131 -> -92327265 | H175: =-H131 -> 0 | I175: =-I131 -> -89063113 | J175: =-J131 -> -181390378 | K175: =F175-J175 -> 0
A176: 14 | C176: ='FR-16(7)(v)-1 Functional'!C176 -> NET DISTRIBUTION PLANT | F176: =SUM(F173:F175) -> 543498720 | G176: 281548378 | H176: 0 | I176: 261950342 | J176: 543498720 | K176: 0
A177: 15
A178: 16 | B178: NET PTD PLANT | F178: =F176+F171+F166 -> 543498720 | G178: 281548378 | H178: 0 | I178: 261950342 | J178: 543498720 | K178: 0
A179: 17 | B179: NET TRANS & DIST PLANT | F179: =F176+F171 -> 543498720 | G179: 281548378 | H179: 0 | I179: 261950342 | J179: 543498720 | K179: 0
A180: 18
A181: 19 | B181: GENERAL & INTANGIBLE PLANT
A182: 20 | C182: ='FR-16(7)(v)-1 Functional'!C182 -> GEN & INTANG PLANT IN SERVICE | F182: =F90 -> 27031152 | G182: =G90 -> 12043159 | H182: =H90 -> 0 | I182: =I90 -> 14987993 | J182: =J90 -> 27031152 | K182: =F182-J182 -> 0
A183: 21 | C183: ='FR-16(7)(v)-1 Functional'!C183 -> TOTAL GEN & INTG DEPREC RESERVE | F183: =-F140 -> -13307235 | G183: =-G140 -> -5928758 | H183: =-H140 -> 0 | I183: =-I140 -> -7378477 | J183: =-J140 -> -13307235 | K183: =F183-J183 -> 0
A184: 22 | C184: ='FR-16(7)(v)-1 Functional'!C184 -> NET GENERAL & INTANG PLANT | F184: =SUM(F181:F183) -> 13723917 | G184: 6114401 | H184: 0 | I184: 7609516 | J184: 13723917 | K184: 0
A185: 23
A186: 24 | B186: COMMON & OTHER PLANT
A187: 25 | C187: ='FR-16(7)(v)-1 Functional'!C187 -> COMMON & OTH PLT IN SERVICE | F187: =F99 -> 8693702 | G187: =G99 -> 3873295 | H187: =H99 -> 0 | I187: =I99 -> 4820407 | J187: =J99 -> 8693702 | K187: =F187-J187 -> 0
A188: 26 | C188: ='FR-16(7)(v)-1 Functional'!C188 -> TOTAL COM & OTH DEPREC RESERVE | F188: =-F149 -> -6086015 | G188: =-G149 -> -2711495 | H188: =-H149 -> 0 | I188: =-I149 -> -3374520 | J188: =-J149 -> -6086015 | K188: =F188-J188 -> 0
A189: 27 | C189: ='FR-16(7)(v)-1 Functional'!C189 -> NET COMMON & OTHER PLANT | F189: =SUM(F186:F188) -> 2607687 | G189: 1161800 | H189: 0 | I189: 1445887 | J189: 2607687 | K189: 0
A190: 28
A191: 29 | C191: ='FR-16(7)(v)-1 Functional'!C191 -> NET GAS PLANT IN SERVICE | F191: =F189+F184+F176+F171+F166 -> 559830324 | G191: 288824579 | H191: 0 | I191: 271005745 | J191: 559830324 | K191: 0
A193: =co_name -> DUKE ENERGY KENTUCKY, INC. | J193: =$J$1 -> FR-16(7)(v)-4
A194: =$A$2 -> DISTRIBUTION CLASSIFIED - GAS COST OF SERVICE | J194: =$J$2 -> WITNESS RESPONSIBLE:
A195: =case_name -> CASE NO: 2021-00190 | J195: =Witness -> JAMES E. ZIOLKOWSKI
A196: =data_filing -> DATA: 12 MONTH FORECASTED PERIOD | J196: ="PAGE "&Pages-13&" OF "&Pages -> PAGE 5 OF 18
A197: =type -> TYPE OF FILING: "X" ORIGINAL UPDATED REVISED
A200: LINE | F200: TOTAL | G200: CLASSIFIED | J200: TOTAL | K200: ALL
A201: NO. | B201: SUBTRACTIVE RATE BASE ADJUSTMENTS | D201: ALLO | F201: DISTRIBUTION | G201: DEMAND | H201: COMMODITY | I201: CUSTOMER | J201: AT ISSUE | K201: OTHER
C202: Schedule 5 | G202: =$G$10 -> 3 | H202: =$H$10 -> 4 | I202: =$I$10 -> 5
A203: 1 | B203: RATE BASE ADJUSTMENTS
A204: 2 | B204: ACCUMULATED DEFERRED INCOME TAXES
A205: 3 | B205: ACCUM DEF INC TAXES (282)
A206: 4 | C206: ='FR-16(7)(v)-1 Functional'!C206 -> LIBERALIZED DEPRECIATION | D206: ='FR-16(7)(v)-1 Functional'!D206 -> NP29 | F206: ='FR-16(7)(v)-1 Functional'!I206 -> 65440445 | G206: =F206-SUM(H206:I206) -> 33761380 | H206: =ROUND(F206*VLOOKUP(D206,Alloctable_Classified_Distribution,$H$10,FALSE),0) -> 0 | I206: =ROUND(F206*VLOOKUP(D206,Alloctable_Classified_Distribution,$I$10,FALSE),0) -> 31679065 | J206: =SUM(G206:I206) -> 65440445 | K206: =F206-J206 -> 0
A207: 5 | C207: ='FR-16(7)(v)-1 Functional'!C207 -> LEASED METERS | D207: ='FR-16(7)(v)-1 Functional'!D207 -> K413 | F207: ='FR-16(7)(v)-1 Functional'!I207 -> 0 | G207: 0 | H207: 0 | I207: 0 | J207: 0 | K207: 0
A208: 6 | C208: ='FR-16(7)(v)-1 Functional'!C208 -> CONTRIB AID CONSTR | D208: ='FR-16(7)(v)-1 Functional'!D208 -> D249 | F208: ='FR-16(7)(v)-1 Functional'!I208 -> -1497040 | G208: -775512 | H208: 0 | I208: -721528 | J208: -1497040 | K208: 0
A209: 7 | C209: ='FR-16(7)(v)-1 Functional'!C209 -> CAPITALIZED INTEREST | D209: ='FR-16(7)(v)-1 Functional'!D209 -> NP29 | F209: ='FR-16(7)(v)-1 Functional'!I209 -> -1542056 | G209: -795562 | H209: 0 | I209: -746494 | J209: -1542056 | K209: 0
A210: 8 | C210: ='FR-16(7)(v)-1 Functional'!C210 -> AFUDC IN DEBT | D210: ='FR-16(7)(v)-1 Functional'!D210 -> NP29 | F210: ='FR-16(7)(v)-1 Functional'!I210 -> 0 | G210: 0 | H210: 0 | I210: 0 | J210: 0 | K210: 0
A211: 9 | C211: ='FR-16(7)(v)-1 Functional'!C211 -> CWIP DIFFERENCES | D211: ='FR-16(7)(v)-1 Functional'!D211 -> NP29 | F211: ='FR-16(7)(v)-1 Functional'!I211 -> 0 | G211: 0 | H211: 0 | I211: 0 | J211: 0 | K211: 0
A212: 10 | C212: ='FR-16(7)(v)-1 Functional'!C212 -> NON-CASH OVERHEADS | D212: ='FR-16(7)(v)-1 Functional'!D212 -> AG39 | F212: ='FR-16(7)(v)-1 Functional'!I212 -> -527215 | G212: -234890 | H212: 0 | I212: -292325 | J212: -527215 | K212: 0
A213: 11 | C213: ='FR-16(7)(v)-1 Functional'!C213 -> PLANT FAS 109 | D213: ='FR-16(7)(v)-1 Functional'!D213 -> NP29 | F213: ='FR-16(7)(v)-1 Functional'!I213 -> 0 | G213: 0 | H213: 0 | I213: 0 | J213: 0 | K213: 0
A214: 12 | C214: ='FR-16(7)(v)-1 Functional'!C214 -> MISCELLANEOUS | D214: ='FR-16(7)(v)-1 Functional'!D214 -> NP29 | F214: ='FR-16(7)(v)-1 Functional'!I214 -> 7752177 | G214: 3999426 | H214: 0 | I214: 3752751 | J214: 7752177 | K214: 0
... 636 more rows

Sheet FR-16(7)(v)-5 DISTR Dem Alloc
A1: =co_name -> DUKE ENERGY KENTUCKY, INC. | K1: FR-16(7)(v)-5
A2: DISTRIBUTION DEMAND ALLOCATED - GAS COST OF SERVICE | K2: WITNESS RESPONSIBLE:
A3: =case_name -> CASE NO: 2021-00190 | K3: =Witness -> JAMES E. ZIOLKOWSKI
A4: =data_filing -> DATA: 12 MONTH FORECASTED PERIOD | K4: ="PAGE "&Pages-17&" OF "&Pages -> PAGE 1 OF 18
A5: =type -> TYPE OF FILING: "X" ORIGINAL UPDATED REVISED
F7: TOTAL
A8: LINE | F8: DISTRIBUTION | G8: RS | H8: GS | I8: FT-L | J8: INTERUPT | K8: TOTAL | L8: ALL
A9: NO. | B9: SUMMARY OF RESULTS | D9: ALLO | F9: DEMAND | G9: RESIDENTIAL | H9: GEN SERV | I9: FIRM TRANS | J9: TRANS | K9: AT ISSUE | L9: OTHER
C10: Schedule 1 | G10: 3 | H10: 4 | I10: 5 | J10: 6
A11: 1 | B11: NET INCOME COMPUTATION
A12: 2 | C12: ='FR-16(7)(v)-1 Functional'!C12 -> GROSS GAS PLANT IN SERVICE | F12: =F101 -> 389792097 | G12: 199718630 | H12: 120144448 | I12: 52934285 | J12: 16994734 | K12: 389792097 | L12: =F12-K12 -> 0
A13: 3 | C13: ='FR-16(7)(v)-1 Functional'!C13 -> TOTAL DEPRECIATION RESERVE | F13: =-F151 -> -100967518 | G13: -53652211 | H13: -28439532 | I13: -14233728 | J13: -4642047 | K13: -100967518 | L13: =F13-K13 -> 0
A14: 4 | C14: ='FR-16(7)(v)-1 Functional'!C14 -> TOTAL RATE BASE ADJUSTMENTS | F14: =F326 -> -52290680 | G14: -26412008 | H14: -16621051 | I14: -7016804 | J14: -2240817 | K14: -52290680 | L14: =F14-K14 -> 0
A15: 5 | C15: ='FR-16(7)(v)-1 Functional'!C15 -> TOTAL RATE BASE | F15: =SUM(F12:F14) -> 236533899 | G15: 119654411 | H15: 75083865 | I15: 31683753 | J15: 10111870 | K15: 236533899 | L15: =F15-K15 -> 0
A16: 6
A17: 7 | B17: OPERATING EXPENSES
A18: 8 | C18: ='FR-16(7)(v)-1 Functional'!C18 -> TOTAL O&M EXPENSE | F18: =F433 -> 7105108 | G18: 4126297 | H18: 1961018 | I18: 784187 | J18: 233606 | K18: 7105108 | L18: =F18-K18 -> 0
A19: 9 | C19: ='FR-16(7)(v)-1 Functional'!C19 -> TOTAL DEPRECIATION EXPENSE | F19: =F465 -> 9156214 | G19: 4711865 | H19: 2862225 | I19: 1201265 | J19: 380859 | K19: 9156214 | L19: 0
A20: 10 | C20: ='FR-16(7)(v)-1 Functional'!C20 -> TOTAL OTHER TAX & MISC EXPENSE | F20: =F495 -> 2302564 | G20: =$G$495 -> 1181257 | H20: =$H$495 -> 721802 | I20: =$I$495 -> 303237 | J20: =$J$495 -> 96268 | K20: =$K$495 -> 2302564 | L20: 0
A21: 11 | C21: ='FR-16(7)(v)-1 Functional'!C21 -> TOTAL OP EXP EXCLUDING INC & REV TAX | F21: =SUM(F17:F20) -> 18563886 | G21: 10019419 | H21: 5545045 | I21: 2288689 | J21: 710733 | K21: 18563886 | L21: 0
A22: 12 | C22: ='FR-16(7)(v)-1 Functional'!C22 -> NET FED INCOME TAX EXP ALLOWABLE | F22: =F557 -> 2051197 | G22: =$G$557 -> 1024926 | H22: =$H$557 -> 658152 | I22: =$I$557 -> 278758 | J22: =$J$557 -> 89363 | K22: =$K$557 -> 2051199 | L22: -2
A23: 13 | C23: ='FR-16(7)(v)-1 Functional'!C23 -> NET STATE INCOME TAX EXP ALLOWABLE | F23: =F605 -> 678065 | G23: =G605 -> 341009 | H23: 216349 | I23: 91456 | J23: 29251 | K23: 678065 | L23: 0
A24: 14 | C24: ='FR-16(7)(v)-1 Functional'!C24 -> TOTAL OPERATING EXPENSE | F24: =SUM(F21:F23) -> 21293148 | G24: 11385354 | H24: 6419546 | I24: 2658903 | J24: 829347 | K24: 21293150 | L24: -2
A25: 15
A26: 16 | B26: RETURN ON RATE BASE | F26: =F334 -> 15471682 | G26: 7826595 | H26: 4911236 | I26: 2072434 | J26: 661417 | K26: 15471682 | L26: =F26-K26 -> 0
A27: 17 | B27: TOTAL OTHER OPERATING REVENUES | F27: =-F630 -> -97180 | G27: =-$G$630 -> -56437 | H27: =-$H$630 -> -26822 | I27: =-$I$630 -> -10726 | J27: =-$J$630 -> -3195 | K27: =-$K$630 -> -97180 | L27: 0
A28: 18 | C28: ='FR-16(7)(v)-1 Functional'!C28 -> TOTAL GAS COST OF SERVICE | F28: =SUM(F24:F27) -> 36667650 | G28: 19155512 | H28: 11303960 | I28: 4720611 | J28: 1487569 | K28: 36667652 | L28: -2
A29: 19 | B29: ADJUSTMENT FOR INTERCLASS SUBSIDIZATION | D29: =1-'WP FR-16(7)(v)Rate Incr (40.0%)'!I11 -> 0.6 | L29: 0
A30: 20 | B30: REQUESTED REVENUES | F30: =F29+F28 -> 36667650 | G30: 19155512 | H30: 11303960 | I30: 4720611 | J30: 1487569 | K30: 36667652 | L30: -2
A31: 21 | B31: PROPOSED REVENUES | F31: =F745 -> 36415961 | G31: 24536080 | H31: 9477920 | I31: 1822466 | J31: 579495 | K31: 36415961 | L31: 0
A32: 22 | B32: DIFFERENCE (REQUESTED LESS PROPOSED) | F32: =F30-F31 -> 251689 | G32: =G30-G31 -> -5380568 | H32: 1826040 | I32: 2898145 | J32: 908074 | K32: 251691 | L32: -2
A33: 23
A34: 24 | B34: TOTAL RETURN EARNED | F34: =F654+F26 -> 15791784 | G34: 12122065 | H34: 3702760 | I34: -34684 | J34: 1641 | K34: 15791782 | L34: =F34-K34 -> 2
A35: 25 | B35: RATE OF RETURN EARNED | F35: =IF(F331=0,0,ROUND(F34/F331,5)) -> 0.06676 | G35: 0.10131 | H35: 0.04931 | I35: -0.00109 | J35: 0.00016 | K35: 0.06676 | L35: 0
A36: 26 | B36: TOTAL RATE OF RETURN ALLOWABLE | F36: =$F$688 -> 0.06541 | G36: 0.06541 | H36: 0.06541 | I36: 0.06541 | J36: 0.06541 | K36: 0.06541 | L36: 0.06541 | O36: Not Part of print range
A37: 27 | B37: RETURN EARNED ON COMMON EQUITY | F37: =IF($F$670=0,0,(F35-$F$683-$F$684-$F$686)*$F$673/$F$670) -> 0.09639054909 | G37: 0.1636827995 | H37: 0.06240358038 | I37: -0.03575935505 | J37: -0.03332475844 | K37: 0.09639054909 | L37: =IF(F670=0,0,(L35-F683-F684-F686)*F673/F670) -> -0.0336363868 | O37: Not Filed
A38: 28 | B38: ALLOWED RETURN ON COMMON EQUITY | F38: 0.09376118475 | G38: 0.09376118475 | H38: 0.09376118475 | I38: 0.09376118475 | J38: 0.09376118475 | K38: 0.09376118475 | L38: =IF($F$670=0,0,(L36-$F$683-$F$684-$F$686)*$F$673/$F$670) -> 0.09376118475
A39: 29
A40: 30 | B40: PRESENT REVENUES | F40: =F744 -> 33581301 | G40: 22726398 | H40: 8599912 | I40: 1717541 | J40: 537450 | K40: 33581301 | L40: =F40-K40 -> 0
A41: 31 | B41: REVENUE INCREASE JUSTIFIED | F41: =F28-F40 -> 3086349 | G41: -3570886 | H41: 2704048 | I41: 3003070 | J41: 950119 | K41: 3086351 | L41: -2
A42: 32 | C42: PER UNIT PRES REV | F42: =IF(F40=0,0,ROUND(F41/F40,5)) -> 0.09191 | G42: -0.15713 | H42: 0.31443 | I42: 1.74847 | J42: 1.76783 | K42: 0.09191 | L42: 0
A43: 33 | B43: REVENUE INCREASE REQUESTED | F43: =F31-F40 -> 2834660 | G43: 1809682 | H43: 878008 | I43: 104925 | J43: 42045 | K43: 2834660 | L43: 0
A44: 34 | C44: PER UNIT PRES REV | F44: =IF(F40=0,0,ROUND(F43/F40,5)) -> 0.08441 | G44: 0.07963 | H44: 0.10209 | I44: 0.06109 | J44: 0.07823 | K44: 0.08441 | L44: 0
A46: =co_name -> DUKE ENERGY KENTUCKY, INC. | K46: =$K$1 -> FR-16(7)(v)-5
A47: =$A$2 -> DISTRIBUTION DEMAND ALLOCATED - GAS COST OF SERVICE | K47: =$K$2 -> WITNESS RESPONSIBLE:
A48: =case_name -> CASE NO: 2021-00190 | K48: =Witness -> JAMES E. ZIOLKOWSKI
A49: =data_filing -> DATA: 12 MONTH FORECASTED PERIOD | K49: ="PAGE "&Pages-16&" OF "&Pages -> PAGE 2 OF 18
A50: =type -> TYPE OF FILING: "X" ORIGINAL UPDATED REVISED
F52: =$F$7 -> TOTAL
A53: LINE | F53: =$F$8 -> DISTRIBUTION | G53: RS/RFT/RSLI | H53: GS/FT SMALL | I53: GS/FT LARGE | J53: INTERUPT | K53: TOTAL | L53: ALL
A54: NO. | B54: GROSS GAS PLANT IN SERVICE | D54: ALLO | F54: =$F$9 -> DEMAND | G54: RESIDENTIAL | H54: GEN SERV | I54: GEN SERV | J54: TRANS | K54: AT ISSUE | L54: OTHER
C55: Schedule 2 | G55: =$G$10 -> 3 | H55: =$H$10 -> 4 | I55: =$I$10 -> 5 | J55: =$J$10 -> 6
A56: 1 | B56: PRODUCTION PLANT
A57: 2 | C57: ='FR-16(7)(v)-1 Functional'!C57 -> PRODUCTION PLANT | D57: ='FR-16(7)(v)-1 Functional'!D57 -> K205 | F57: ='FR-16(7)(v)-4 DISTR Classified'!G57 -> 0 | G57: =F57-SUM(H57:J57) -> 0 | H57: =ROUND($F$57*VLOOKUP($D$57,ALLOCTABLE_DISTR_DEMAND,$H$10,FALSE),0) -> 0 | I57: =ROUND(F57*VLOOKUP(D57,ALLOCTABLE_DISTR_DEMAND,$I$10,FALSE),0) -> 0 | J57: =ROUND(F57*VLOOKUP(D57,ALLOCTABLE_DISTR_DEMAND,$J$10,FALSE),0) -> 0 | K57: =SUM($G$57:$J$57) -> 0 | L57: =F57-$K$57 -> 0
A58: 3 | C58: ='FR-16(7)(v)-1 Functional'!C58 -> GAS PRODUCTION -CPMPL NOT CLASS | D58: ='FR-16(7)(v)-1 Functional'!D58 -> K205 | F58: ='FR-16(7)(v)-4 DISTR Classified'!G58 -> 0 | G58: =F58-SUM(H58:J58) -> 0 | H58: =ROUND($F$58*VLOOKUP($D$58,ALLOCTABLE_DISTR_DEMAND,$H$10,FALSE),0) -> 0 | I58: =ROUND(F58*VLOOKUP(D58,ALLOCTABLE_DISTR_DEMAND,$I$10,FALSE),0) -> 0 | J58: =ROUND(F58*VLOOKUP(D58,ALLOCTABLE_DISTR_DEMAND,$J$10,FALSE),0) -> 0 | K58: =SUM($G$58:$J$58) -> 0 | L58: =F58-$K$58 -> 0
A59: 4 | C59: ='FR-16(7)(v)-1 Functional'!C59 -> PRODUCTION PLANT IN SERVICE | F59: =SUM(F57:F58) -> 0 | G59: =SUM($G$57:$G$58) -> 0 | H59: =SUM($H$57:$H$58) -> 0 | I59: =SUM($I$57:$I$58) -> 0 | J59: =SUM($J$57:$J$58) -> 0 | K59: =SUM($K$57:$K$58) -> 0 | L59: =SUM($L$57:$L$58) -> 0
A60: 5
A61: 6 | B61: TRANSMISSION PLANT
A62: 7 | C62: ='FR-16(7)(v)-1 Functional'!C62 -> TRANSMISSION PLANT
A63: 8 | C63: ='FR-16(7)(v)-1 Functional'!C63 -> TRANSMISSION PLANT IN SERVICE | F63: =SUM(F62) -> 0 | G63: =SUM($G$62) -> 0 | H63: =SUM($H$62) -> 0 | I63: =SUM($I$62) -> 0 | J63: =SUM($J$62) -> 0 | K63: =SUM($K$62) -> 0 | L63: =SUM($L$62) -> 0
A64: 9
A65: 10 | B65: TOTAL PROD & TRANS PLANT | F65: =F63+F59 -> 0 | G65: =$G$63+$G$59 -> 0 | H65: =$H$63+$H$59 -> 0 | I65: =$I$63+$I$59 -> 0 | J65: =$J$63+$J$59 -> 0 | K65: =$K$63+$K$59 -> 0 | L65: =$L$63+$L$59 -> 0
A66: 11
A67: 12 | B67: DISTRIBUTION PLANT
A68: 13 | C68: ='FR-16(7)(v)-1 Functional'!C68 -> SYSTEM M&R - (2780, 2781) | D68: ='FR-16(7)(v)-1 Functional'!D68 -> K203 | F68: ='FR-16(7)(v)-4 DISTR Classified'!G68 -> 41242292 | G68: =F68-SUM(H68:J68) -> 21048416 | H68: =ROUND($F$68*VLOOKUP($D$68,ALLOCTABLE_DISTR_DEMAND,$H$10,FALSE),0) -> 12780986 | I68: =ROUND(F68*VLOOKUP(D68,ALLOCTABLE_DISTR_DEMAND,$I$10,FALSE),0) -> 5618850 | J68: =ROUND(F68*VLOOKUP(D68,ALLOCTABLE_DISTR_DEMAND,$J$10,FALSE),0) -> 1794040 | K68: =SUM(G68:J68) -> 41242292 | L68: =F68-K68 -> 0
A69: 14 | C69: ='FR-16(7)(v)-1 Functional'!C69 -> DIST REG EQUIP & CITY GATE M&R- (2782, 2790) | D69: ='FR-16(7)(v)-1 Functional'!D69 -> K203 | F69: ='FR-16(7)(v)-4 DISTR Classified'!G69 -> 2724163 | G69: 1390304 | H69: =ROUND($F$69*VLOOKUP($D$69,ALLOCTABLE_DISTR_DEMAND,$H$10,FALSE),0) -> 844218 | I69: 371140 | J69: 118501 | K69: 2724163 | L69: 0
A70: 15 | C70: ='FR-16(7)(v)-1 Functional'!C70 -> LARGE IND M&R - (2850, 2851) | D70: ='FR-16(7)(v)-1 Functional'!D70 -> K595 | F70: ='FR-16(7)(v)-4 DISTR Classified'!G70 -> 566920 | G70: 0 | H70: =ROUND($F$70*VLOOKUP($D$70,ALLOCTABLE_DISTR_DEMAND,$H$10,FALSE),0) -> 0 | I70: 330469 | J70: 236451 | K70: 566920 | L70: 0
A71: 16 | C71: ='FR-16(7)(v)-1 Functional'!C71 -> MAINS - (2761, 2762, 2763, 2765) | D71: K203 | F71: ='FR-16(7)(v)-4 DISTR Classified'!G71 -> 317596620 | G71: 162088610 | H71: =ROUND($F$71*VLOOKUP($D$71,ALLOCTABLE_DISTR_DEMAND,$H$10,FALSE),0) -> 98423193 | I71: 43269364 | J71: 13815453 | K71: 317596620 | L71: 0
A72: 17 | C72: ='FR-16(7)(v)-1 Functional'!C72 -> SERVICES - (2801, 2802, 2803) | D72: ='FR-16(7)(v)-1 Functional'!D72 -> K403 | F72: ='FR-16(7)(v)-4 DISTR Classified'!G72 -> 0 | G72: 0 | H72: =ROUND($F$72*VLOOKUP($D$72,ALLOCTABLE_DISTR_DEMAND,$H$10,FALSE),0) -> 0 | I72: 0 | J72: 0 | K72: 0 | L72: 0
A73: 18 | C73: ='FR-16(7)(v)-1 Functional'!C73 -> MTRS & MTR INST (2810, 2811, 2820, 2821) | D73: ='FR-16(7)(v)-1 Functional'!D73 -> K413 | F73: ='FR-16(7)(v)-4 DISTR Classified'!G73 -> 0 | G73: 0 | H73: =ROUND($F$73*VLOOKUP($D$73,ALLOCTABLE_DISTR_DEMAND,$H$10,FALSE),0) -> 0 | I73: 0 | J73: 0 | K73: 0 | L73: 0
A74: 19 | C74: ='FR-16(7)(v)-1 Functional'!C74 -> LAND, R OF W, STRUCT & IMPROV | D74: ='FR-16(7)(v)-1 Functional'!D74 -> K203 | F74: ='FR-16(7)(v)-4 DISTR Classified'!G74 -> 11654163 | G74: 5947819 | H74: =ROUND($F$74*VLOOKUP($D$74,ALLOCTABLE_DISTR_DEMAND,$H$10,FALSE),0) -> 3611625 | I74: 1587763 | J74: 506956 | K74: 11654163 | L74: 0
A75: 20 | C75: ='FR-16(7)(v)-1 Functional'!C75 -> HOUSE REG & INSTALL (2830, 2840) | D75: ='FR-16(7)(v)-1 Functional'!D75 -> K417 | F75: ='FR-16(7)(v)-4 DISTR Classified'!G75 -> 0 | G75: 0 | H75: =ROUND($F$75*VLOOKUP($D$75,ALLOCTABLE_DISTR_DEMAND,$H$10,FALSE),0) -> 0 | I75: 0 | J75: 0 | K75: 0 | L75: 0
A76: 21 | C76: ='FR-16(7)(v)-1 Functional'!C76 -> STREET LIGHTING EQUIPMENT & OTH | D76: ='FR-16(7)(v)-1 Functional'!D76 -> K597 | F76: ='FR-16(7)(v)-4 DISTR Classified'!G76 -> 91485 | G76: 0 | H76: =ROUND($F$76*VLOOKUP($D$76,ALLOCTABLE_DISTR_DEMAND,$H$10,FALSE),0) -> 91485 | I76: 0 | J76: 0 | K76: 91485 | L76: 0
A77: 22 | C77: ='FR-16(7)(v)-1 Functional'!C77 -> ASSET RETIREMENT COST FOR DISTRIBUTION PLANT | D77: ='FR-16(7)(v)-1 Functional'!D77 -> K203 | F77: ='FR-16(7)(v)-4 DISTR Classified'!G77 -> 0 | G77: 0 | H77: =ROUND($F$77*VLOOKUP($D$77,ALLOCTABLE_DISTR_DEMAND,$H$10,FALSE),0) -> 0 | I77: 0 | J77: 0 | K77: 0 | L77: 0
A78: 23 | C78: ='FR-16(7)(v)-1 Functional'!C78 -> DISTRIBUTION PLANT IN SERVICE | F78: =SUM(F68:F77) -> 373875643 | G78: =SUM(G68:G77) -> 190475149 | H78: 115751507 | I78: 51177586 | J78: 16471401 | K78: 373875643 | L78: 0
A79: 24
A80: 25 | B80: TOTAL TRANS & DIST PLANT | F80: =F78+F63 -> 373875643 | G80: =G78+$G$63 -> 190475149 | H80: =H78+$H$63 -> 115751507 | I80: =I78+$I$63 -> 51177586 | J80: =J78+$J$63 -> 16471401 | K80: =K78+$K$63 -> 373875643 | L80: =L78+$L$63 -> 0
A81: 26 | B81: TOTAL GROSS PTD PLANT | F81: =F78+F65 -> 373875643 | G81: =G78+G65 -> 190475149 | H81: 115751507 | I81: 51177586 | J81: 16471401 | K81: 373875643 | L81: 0
A82: 27
A83: 28 | B83: GENERAL & INTANGIBLE PLANT
A84: 29 | C84: ='FR-16(7)(v)-1 Functional'!C84 -> PRODUCTION PLANT | D84: ='FR-16(7)(v)-1 Functional'!D84 -> K201 | F84: ='FR-16(7)(v)-4 DISTR Classified'!G84 -> 0 | G84: =F84-SUM(H84:J84) -> 0 | H84: =ROUND($F$84*VLOOKUP($D$84,ALLOCTABLE_DISTR_DEMAND,$H$10,FALSE),0) -> 0 | I84: =ROUND(F84*VLOOKUP(D84,ALLOCTABLE_DISTR_DEMAND,$I$10,FALSE),0) -> 0 | J84: =ROUND(F84*VLOOKUP(D84,ALLOCTABLE_DISTR_DEMAND,$J$10,FALSE),0) -> 0 | K84: =SUM(G84:J84) -> 0 | L84: =F84-K84 -> 0
A85: 30 | C85: ='FR-16(7)(v)-1 Functional'!C85 -> PRODUCTION PLANT COMMODITY | D85: ='FR-16(7)(v)-1 Functional'!D85 -> P349 | F85: ='FR-16(7)(v)-4 DISTR Classified'!G85 -> 0 | G85: 0 | H85: =ROUND($F$85*VLOOKUP($D$85,ALLOCTABLE_DISTR_DEMAND,$H$10,FALSE),0) -> 0 | I85: 0 | J85: 0 | K85: 0 | L85: 0
A86: 31 | C86: ='FR-16(7)(v)-1 Functional'!C86 -> DISTRIBUTION PLANT | D86: ='FR-16(7)(v)-1 Functional'!D86 -> D349 | F86: ='FR-16(7)(v)-4 DISTR Classified'!G86 -> 12043159 | G86: 6994065 | H86: =ROUND($F$86*VLOOKUP($D$86,ALLOCTABLE_DISTR_DEMAND,$H$10,FALSE),0) -> 3323912 | I86: 1329203 | J86: 395979 | K86: 12043159 | L86: 0
A87: 32 | C87: ='FR-16(7)(v)-1 Functional'!C87 -> CUSTOMER ACCOUNTING | D87: ='FR-16(7)(v)-1 Functional'!D87 -> CA19 | F87: ='FR-16(7)(v)-4 DISTR Classified'!G87 -> 0 | G87: 0 | H87: =ROUND($F$87*VLOOKUP($D$87,ALLOCTABLE_DISTR_DEMAND,$H$10,FALSE),0) -> 0 | I87: 0 | J87: 0 | K87: 0 | L87: 0
A88: 33 | C88: ='FR-16(7)(v)-1 Functional'!C88 -> CUSTOMER SERVICE & INFORMATION | D88: ='FR-16(7)(v)-1 Functional'!D88 -> CS19 | F88: ='FR-16(7)(v)-4 DISTR Classified'!G88 -> 0 | G88: 0 | H88: =ROUND($F$88*VLOOKUP($D$88,ALLOCTABLE_DISTR_DEMAND,$H$10,FALSE),0) -> 0 | I88: 0 | J88: 0 | K88: 0 | L88: 0
A89: 34 | C89: ='FR-16(7)(v)-1 Functional'!C89 -> SALES | D89: ='FR-16(7)(v)-1 Functional'!D89 -> SE19 | F89: ='FR-16(7)(v)-4 DISTR Classified'!G89 -> 0 | G89: 0 | H89: =ROUND($F$89*VLOOKUP($D$89,ALLOCTABLE_DISTR_DEMAND,$H$10,FALSE),0) -> 0 | I89: 0 | J89: 0 | K89: 0 | L89: 0
A90: 35 | C90: ='FR-16(7)(v)-1 Functional'!C90 -> GEN & INTANG PLANT IN SERVICE | F90: =SUM(F84:F89) -> 12043159 | G90: =SUM(G84:G89) -> 6994065 | H90: 3323912 | I90: 1329203 | J90: 395979 | K90: 12043159 | L90: 0
A91: 36
A92: 37 | B92: COMMON & OTHER PLANT
A93: 38 | C93: ='FR-16(7)(v)-1 Functional'!C93 -> PRODUCTION PLANT | D93: ='FR-16(7)(v)-1 Functional'!D93 -> K201 | F93: ='FR-16(7)(v)-4 DISTR Classified'!G93 -> 0 | G93: =F93-SUM(H93:J93) -> 0 | H93: =ROUND($F$93*VLOOKUP($D$93,ALLOCTABLE_DISTR_DEMAND,$H$10,FALSE),0) -> 0 | I93: =ROUND(F93*VLOOKUP(D93,ALLOCTABLE_DISTR_DEMAND,$I$10,FALSE),0) -> 0 | J93: =ROUND(F93*VLOOKUP(D93,ALLOCTABLE_DISTR_DEMAND,$J$10,FALSE),0) -> 0 | K93: =SUM(G93:J93) -> 0 | L93: =F93-K93 -> 0
A94: 39 | C94: ='FR-16(7)(v)-1 Functional'!C94 -> PRODUCTION PLANT COMMODITY | D94: ='FR-16(7)(v)-1 Functional'!D94 -> P349 | F94: ='FR-16(7)(v)-4 DISTR Classified'!G94 -> 0 | G94: 0 | H94: =ROUND($F$94*VLOOKUP($D$94,ALLOCTABLE_DISTR_DEMAND,$H$10,FALSE),0) -> 0 | I94: 0 | J94: 0 | K94: 0 | L94: 0
A95: 40 | C95: ='FR-16(7)(v)-1 Functional'!C95 -> DISTRIBUTION PLANT | D95: ='FR-16(7)(v)-1 Functional'!D95 -> D349 | F95: ='FR-16(7)(v)-4 DISTR Classified'!G95 -> 3873295 | G95: 2249416 | H95: =ROUND($F$95*VLOOKUP($D$95,ALLOCTABLE_DISTR_DEMAND,$H$10,FALSE),0) -> 1069029 | I95: 427496 | J95: 127354 | K95: 3873295 | L95: 0
A96: 41 | C96: ='FR-16(7)(v)-1 Functional'!C96 -> CUSTOMER ACCOUNTING | D96: ='FR-16(7)(v)-1 Functional'!D96 -> CA19 | F96: ='FR-16(7)(v)-4 DISTR Classified'!G96 -> 0 | G96: 0 | H96: =ROUND($F$96*VLOOKUP($D$96,ALLOCTABLE_DISTR_DEMAND,$H$10,FALSE),0) -> 0 | I96: 0 | J96: 0 | K96: 0 | L96: 0
A97: 42 | C97: ='FR-16(7)(v)-1 Functional'!C97 -> CUSTOMER SERVICE & INFORMATION | D97: ='FR-16(7)(v)-1 Functional'!D97 -> CS19 | F97: ='FR-16(7)(v)-4 DISTR Classified'!G97 -> 0 | G97: 0 | H97: =ROUND($F$97*VLOOKUP($D$97,ALLOCTABLE_DISTR_DEMAND,$H$10,FALSE),0) -> 0 | I97: 0 | J97: 0 | K97: 0 | L97: 0
A98: 43 | C98: ='FR-16(7)(v)-1 Functional'!C98 -> SALES | D98: ='FR-16(7)(v)-1 Functional'!D98 -> SE19 | F98: ='FR-16(7)(v)-4 DISTR Classified'!G98 -> 0 | G98: 0 | H98: =ROUND($F$98*VLOOKUP($D$98,ALLOCTABLE_DISTR_DEMAND,$H$10,FALSE),0) -> 0 | I98: 0 | J98: 0 | K98: 0 | L98: 0
A99: 44 | C99: ='FR-16(7)(v)-1 Functional'!C99 -> COMMON & OTHER PLANT IN SERVICE | F99: =SUM(F93:F98) -> 3873295 | G99: =SUM(G93:G98) -> 2249416 | H99: 1069029 | I99: 427496 | J99: 127354 | K99: 3873295 | L99: 0
A100: 45
A101: 46 | B101: GROSS GAS PLANT IN SERVICE | F101: =F81+F90+F99 -> 389792097 | G101: =G81+G90+G99 -> 199718630 | H101: 120144448 | I101: 52934285 | J101: 16994734 | K101: 389792097 | L101: 0
A103: =co_name -> DUKE ENERGY KENTUCKY, INC. | K103: =$K$1 -> FR-16(7)(v)-5
A104: =$A$2 -> DISTRIBUTION DEMAND ALLOCATED - GAS COST OF SERVICE | K104: =$K$2 -> WITNESS RESPONSIBLE:
A105: =case_name -> CASE NO: 2021-00190 | K105: =Witness -> JAMES E. ZIOLKOWSKI
A106: =data_filing -> DATA: 12 MONTH FORECASTED PERIOD | K106: ="PAGE "&Pages-15&" OF "&Pages -> PAGE 3 OF 18
A107: =type -> TYPE OF FILING: "X" ORIGINAL UPDATED REVISED
F109: =$F$7 -> TOTAL
A110: LINE | F110: =$F$8 -> DISTRIBUTION | G110: RS/RFT | H110: GS/FT SMALL | I110: GS/FT LARGE | J110: INTERUPT | K110: TOTAL | L110: ALL
A111: NO. | B111: DEPRECIATION RESERVE | D111: ALLO | F111: =$F$9 -> DEMAND | G111: RESIDENTIAL | H111: GEN SERV | I111: GEN SERV | J111: TRANS | K111: AT ISSUE | L111: OTHER
C112: Schedule 3 | G112: =$G$10 -> 3 | H112: =$H$10 -> 4 | I112: =$I$10 -> 5 | J112: =$J$10 -> 6
A113: 1 | B113: PRODUCTION PLANT
A114: 2 | C114: ='FR-16(7)(v)-1 Functional'!C114 -> PRODUCTION PLANT | D114: ='FR-16(7)(v)-1 Functional'!D114 -> K205 | F114: ='FR-16(7)(v)-4 DISTR Classified'!G114 -> 0 | G114: =F114-SUM(H114:J114) -> 0 | H114: =ROUND($F$114*VLOOKUP($D$114,ALLOCTABLE_DISTR_DEMAND,$H$10,FALSE),0) -> 0 | I114: =ROUND(F114*VLOOKUP(D114,ALLOCTABLE_DISTR_DEMAND,$I$10,FALSE),0) -> 0 | J114: =ROUND(F114*VLOOKUP(D114,ALLOCTABLE_DISTR_DEMAND,$J$10,FALSE),0) -> 0 | K114: =SUM(G114:J114) -> 0 | L114: =F114-K114 -> 0
A115: 3 | C115: ='FR-16(7)(v)-1 Functional'!C115 -> TOTAL PROD DEPREC RESERVE | F115: =SUM(F114:F114) -> 0 | G115: =SUM(G114:G114) -> 0 | H115: 0 | I115: 0 | J115: 0 | K115: 0 | L115: 0
A116: 4
A117: 5 | B117: TRANSMISSION PLANT
A118: 6 | C118: ='FR-16(7)(v)-1 Functional'!C118 -> TRANSMISSION PLANT
A119: 7 | C119: ='FR-16(7)(v)-1 Functional'!C119 -> TOTAL TRANS DEPREC RESERVE | F119: =SUM(F118:F118) -> 0 | G119: =SUM(G118:G118) -> 0 | H119: 0 | I119: 0 | J119: 0 | K119: 0 | L119: 0
A120: 8
A121: 9 | B121: DISTRIBUTION PLANT
A122: 10 | C122: ='FR-16(7)(v)-1 Functional'!C122 -> SYSTEM M&R - (2780, 2781) | D122: ='FR-16(7)(v)-1 Functional'!D122 -> K203 | F122: ='FR-16(7)(v)-4 DISTR Classified'!G122 -> 2581527 | G122: =F122-SUM(H122:J122) -> 1317509 | H122: =ROUND($F$122*VLOOKUP($D$122,ALLOCTABLE_DISTR_DEMAND,$H$10,FALSE),0) -> 800015 | I122: =ROUND(F122*VLOOKUP(D122,ALLOCTABLE_DISTR_DEMAND,$I$10,FALSE),0) -> 351707 | J122: =ROUND(F122*VLOOKUP(D122,ALLOCTABLE_DISTR_DEMAND,$J$10,FALSE),0) -> 112296 | K122: =SUM(G122:J122) -> 2581527 | L122: =F122-K122 -> 0
A123: 11 | C123: ='FR-16(7)(v)-1 Functional'!C123 -> DIST REG EQUIP & CITY GATE M&R- (2782, 2790) | D123: ='FR-16(7)(v)-1 Functional'!D123 -> K203 | F123: ='FR-16(7)(v)-4 DISTR Classified'!G123 -> 1211353 | G123: 618226 | H123: =ROUND($F$123*VLOOKUP($D$123,ALLOCTABLE_DISTR_DEMAND,$H$10,FALSE),0) -> 375398 | I123: 165035 | J123: 52694 | K123: 1211353 | L123: 0
A124: 12 | C124: ='FR-16(7)(v)-1 Functional'!C124 -> LARGE IND M&R - (2850, 2851) | D124: ='FR-16(7)(v)-1 Functional'!D124 -> K595 | F124: ='FR-16(7)(v)-4 DISTR Classified'!G124 -> 509867 | G124: 0 | H124: =ROUND($F$124*VLOOKUP($D$124,ALLOCTABLE_DISTR_DEMAND,$H$10,FALSE),0) -> 0 | I124: 297212 | J124: 212655 | K124: 509867 | L124: 0
A125: 13 | C125: ='FR-16(7)(v)-1 Functional'!C125 -> MAINS - (2761, 2762, 2763, 2765) | D125: =D71 -> K203 | F125: ='FR-16(7)(v)-4 DISTR Classified'!G125 -> 90799910 | G125: 46340642 | H125: =ROUND($F$125*VLOOKUP($D$125,ALLOCTABLE_DISTR_DEMAND,$H$10,FALSE),0) -> 28138892 | I125: 12370580 | J125: 3949796 | K125: 90799910 | L125: 0
A126: 14 | C126: ='FR-16(7)(v)-1 Functional'!C126 -> SERVICES - (2801, 2802, 2803) | D126: ='FR-16(7)(v)-1 Functional'!D126 -> K403 | F126: ='FR-16(7)(v)-4 DISTR Classified'!G126 -> 0 | G126: 0 | H126: =ROUND($F$126*VLOOKUP($D$126,ALLOCTABLE_DISTR_DEMAND,$H$10,FALSE),0) -> 0 | I126: 0 | J126: 0 | K126: 0 | L126: 0
A127: 15 | C127: ='FR-16(7)(v)-1 Functional'!C127 -> MTRS & MTR INST (2810, 2811, 2820, 2821) | D127: ='FR-16(7)(v)-1 Functional'!D127 -> K413 | F127: ='FR-16(7)(v)-4 DISTR Classified'!G127 -> 0 | G127: 0 | H127: =ROUND($F$127*VLOOKUP($D$127,ALLOCTABLE_DISTR_DEMAND,$H$10,FALSE),0) -> 0 | I127: 0 | J127: 0 | K127: 0 | L127: 0
A128: 16 | C128: ='FR-16(7)(v)-1 Functional'!C128 -> LAND, R OF W, STRUCT & IMPROV & OTH | D128: ='FR-16(7)(v)-1 Functional'!D128 -> K203 | F128: ='FR-16(7)(v)-4 DISTR Classified'!G128 -> 701479 | G128: 358008 | H128: =ROUND($F$128*VLOOKUP($D$128,ALLOCTABLE_DISTR_DEMAND,$H$10,FALSE),0) -> 217388 | I128: 95569 | J128: 30514 | K128: 701479 | L128: 0
A129: 17 | C129: ='FR-16(7)(v)-1 Functional'!C129 -> HOUSE REG & INSTALL (2830, 2840) | D129: ='FR-16(7)(v)-1 Functional'!D129 -> K417 | F129: ='FR-16(7)(v)-4 DISTR Classified'!G129 -> 0 | G129: 0 | H129: =ROUND($F$129*VLOOKUP($D$129,ALLOCTABLE_DISTR_DEMAND,$H$10,FALSE),0) -> 0 | I129: 0 | J129: 0 | K129: 0 | L129: 0
A130: 18 | C130: ='FR-16(7)(v)-1 Functional'!C130 -> STREET LIGHTING EQUIPMENT & OTH | D130: ='FR-16(7)(v)-1 Functional'!D130 -> K597 | F130: ='FR-16(7)(v)-4 DISTR Classified'!G130 -> -3476871 | G130: 0 | H130: =ROUND($F$130*VLOOKUP($D$130,ALLOCTABLE_DISTR_DEMAND,$H$10,FALSE),0) -> -3476871 | I130: 0 | J130: 0 | K130: -3476871 | L130: 0
A131: 19 | C131: ='FR-16(7)(v)-1 Functional'!C131 -> TOTAL DIST DEPREC RESERVE | F131: =SUM(F121:F130) -> 92327265 | G131: =SUM(G121:G130) -> 48634385 | H131: 26054822 | I131: 13280103 | J131: 4357955 | K131: 92327265 | L131: 0
A132: 20
A133: 21 | B133: GENERAL & INTANGIBLE PLANT
A134: 22 | C134: ='FR-16(7)(v)-1 Functional'!C134 -> PRODUCTION PLANT | D134: ='FR-16(7)(v)-1 Functional'!D134 -> K201 | F134: ='FR-16(7)(v)-4 DISTR Classified'!G134 -> 0 | G134: =F134-SUM(H134:J134) -> 0 | H134: =ROUND($F$134*VLOOKUP($D$134,ALLOCTABLE_DISTR_DEMAND,$H$10,FALSE),0) -> 0 | I134: =ROUND(F134*VLOOKUP(D134,ALLOCTABLE_DISTR_DEMAND,$I$10,FALSE),0) -> 0 | J134: =ROUND(F134*VLOOKUP(D134,ALLOCTABLE_DISTR_DEMAND,$J$10,FALSE),0) -> 0 | K134: =SUM(G134:J134) -> 0 | L134: =F134-K134 -> 0
A135: 23 | C135: ='FR-16(7)(v)-1 Functional'!C135 -> PRODUCTION PLANT COMMODITY | D135: ='FR-16(7)(v)-1 Functional'!D135 -> P349 | F135: ='FR-16(7)(v)-4 DISTR Classified'!G135 -> 0 | G135: 0 | H135: =ROUND($F$135*VLOOKUP($D$135,ALLOCTABLE_DISTR_DEMAND,$H$10,FALSE),0) -> 0 | I135: 0 | J135: 0 | K135: 0 | L135: 0
A136: 24 | C136: ='FR-16(7)(v)-1 Functional'!C136 -> DISTRIBUTION PLANT | D136: ='FR-16(7)(v)-1 Functional'!D136 -> D349 | F136: ='FR-16(7)(v)-4 DISTR Classified'!G136 -> 5928758 | G136: 3443126 | H136: =ROUND($F$136*VLOOKUP($D$136,ALLOCTABLE_DISTR_DEMAND,$H$10,FALSE),0) -> 1636337 | I136: 654357 | J136: 194938 | K136: 5928758 | L136: 0
A137: 25 | C137: ='FR-16(7)(v)-1 Functional'!C137 -> CUSTOMER ACCOUNTING | D137: ='FR-16(7)(v)-1 Functional'!D137 -> CA19 | F137: ='FR-16(7)(v)-4 DISTR Classified'!G137 -> 0 | G137: 0 | H137: =ROUND($F$137*VLOOKUP($D$137,ALLOCTABLE_DISTR_DEMAND,$H$10,FALSE),0) -> 0 | I137: 0 | J137: 0 | K137: 0 | L137: 0
A138: 26 | C138: ='FR-16(7)(v)-1 Functional'!C138 -> CUSTOMER SERVICE & INFORMATION | D138: ='FR-16(7)(v)-1 Functional'!D138 -> CS19 | F138: ='FR-16(7)(v)-4 DISTR Classified'!G138 -> 0 | G138: 0 | H138: =ROUND($F$138*VLOOKUP($D$138,ALLOCTABLE_DISTR_DEMAND,$H$10,FALSE),0) -> 0 | I138: 0 | J138: 0 | K138: 0 | L138: 0
A139: 27 | C139: ='FR-16(7)(v)-1 Functional'!C139 -> SALES | D139: ='FR-16(7)(v)-1 Functional'!D139 -> SE19 | F139: ='FR-16(7)(v)-4 DISTR Classified'!G139 -> 0 | G139: 0 | H139: =ROUND($F$139*VLOOKUP($D$139,ALLOCTABLE_DISTR_DEMAND,$H$10,FALSE),0) -> 0 | I139: 0 | J139: 0 | K139: 0 | L139: 0
A140: 28 | C140: ='FR-16(7)(v)-1 Functional'!C140 -> TOTAL GEN DEPREC RESERVE | F140: =SUM(F133:F139) -> 5928758 | G140: =SUM(G133:G139) -> 3443126 | H140: 1636337 | I140: 654357 | J140: 194938 | K140: 5928758 | L140: 0
A141: 29
A142: 30 | B142: COMMON & OTHER PLANT
A143: 31 | C143: ='FR-16(7)(v)-1 Functional'!C143 -> PRODUCTION PLANT | D143: ='FR-16(7)(v)-1 Functional'!D143 -> K201 | F143: ='FR-16(7)(v)-4 DISTR Classified'!G143 -> 0 | G143: =F143-SUM(H143:J143) -> 0 | H143: =ROUND($F$143*VLOOKUP($D$143,ALLOCTABLE_DISTR_DEMAND,$H$10,FALSE),0) -> 0 | I143: =ROUND(F143*VLOOKUP(D143,ALLOCTABLE_DISTR_DEMAND,$I$10,FALSE),0) -> 0 | J143: =ROUND(F143*VLOOKUP(D143,ALLOCTABLE_DISTR_DEMAND,$J$10,FALSE),0) -> 0 | K143: =SUM(G143:J143) -> 0 | L143: =F143-K143 -> 0
A144: 32 | C144: ='FR-16(7)(v)-1 Functional'!C144 -> PRODUCTION PLANT COMMODITY | D144: ='FR-16(7)(v)-1 Functional'!D144 -> P349 | F144: ='FR-16(7)(v)-4 DISTR Classified'!G144 -> 0 | G144: 0 | H144: =ROUND($F$144*VLOOKUP($D$144,ALLOCTABLE_DISTR_DEMAND,$H$10,FALSE),0) -> 0 | I144: 0 | J144: 0 | K144: 0 | L144: 0
A145: 33 | C145: ='FR-16(7)(v)-1 Functional'!C145 -> DISTRIBUTION PLANT | D145: ='FR-16(7)(v)-1 Functional'!D145 -> D349 | F145: ='FR-16(7)(v)-4 DISTR Classified'!G145 -> 2711495 | G145: 1574700 | H145: =ROUND($F$145*VLOOKUP($D$145,ALLOCTABLE_DISTR_DEMAND,$H$10,FALSE),0) -> 748373 | I145: 299268 | J145: 89154 | K145: 2711495 | L145: 0
A146: 34 | C146: ='FR-16(7)(v)-1 Functional'!C146 -> CUSTOMER ACCOUNTING | D146: ='FR-16(7)(v)-1 Functional'!D146 -> CA19 | F146: ='FR-16(7)(v)-4 DISTR Classified'!G146 -> 0 | G146: 0 | H146: =ROUND($F$146*VLOOKUP($D$146,ALLOCTABLE_DISTR_DEMAND,$H$10,FALSE),0) -> 0 | I146: 0 | J146: 0 | K146: 0 | L146: 0
A147: 35 | C147: ='FR-16(7)(v)-1 Functional'!C147 -> CUSTOMER SERVICE & INFORMATION | D147: ='FR-16(7)(v)-1 Functional'!D147 -> CS19 | F147: ='FR-16(7)(v)-4 DISTR Classified'!G147 -> 0 | G147: 0 | H147: =ROUND($F$147*VLOOKUP($D$147,ALLOCTABLE_DISTR_DEMAND,$H$10,FALSE),0) -> 0 | I147: 0 | J147: 0 | K147: 0 | L147: 0
A148: 36 | C148: ='FR-16(7)(v)-1 Functional'!C148 -> SALES | D148: ='FR-16(7)(v)-1 Functional'!D148 -> SE19 | F148: ='FR-16(7)(v)-4 DISTR Classified'!G148 -> 0 | G148: 0 | H148: =ROUND($F$148*VLOOKUP($D$148,ALLOCTABLE_DISTR_DEMAND,$H$10,FALSE),0) -> 0 | I148: 0 | J148: 0 | K148: 0 | L148: 0
A149: 37 | C149: ='FR-16(7)(v)-1 Functional'!C149 -> TOTAL COM & OTHER PLT RESERVE | F149: =SUM(F143:F148) -> 2711495 | G149: =SUM(G142:G148) -> 1574700 | H149: 748373 | I149: 299268 | J149: 89154 | K149: 2711495 | L149: 0
A150: 38
A151: 39 | B151: TOTAL DEPRECIATION RESERVE | F151: =F149+F140+F131+F119+F115 -> 100967518 | G151: =G149+G140+G131+G119+G115 -> 53652211 | H151: 28439532 | I151: 14233728 | J151: 4642047 | K151: 100967518 | L151: 0
A153: =co_name -> DUKE ENERGY KENTUCKY, INC. | K153: =$K$1 -> FR-16(7)(v)-5
A154: =$A$2 -> DISTRIBUTION DEMAND ALLOCATED - GAS COST OF SERVICE | K154: =$K$2 -> WITNESS RESPONSIBLE:
A155: =case_name -> CASE NO: 2021-00190 | K155: =Witness -> JAMES E. ZIOLKOWSKI
A156: =data_filing -> DATA: 12 MONTH FORECASTED PERIOD | K156: ="PAGE "&Pages-14&" OF "&Pages -> PAGE 4 OF 18
A157: =type -> TYPE OF FILING: "X" ORIGINAL UPDATED REVISED
F159: =$F$7 -> TOTAL
A160: LINE | F160: =$F$8 -> DISTRIBUTION | G160: RS/RFT | H160: GS/FT SMALL | I160: GS/FT LARGE | J160: INTERUPT | K160: TOTAL | L160: ALL
A161: NO. | B161: ="NET GAS PLANT" -> NET GAS PLANT | D161: ALLO | F161: =$F$9 -> DEMAND | G161: RESIDENTIAL | H161: GEN SERV | I161: GEN SERV | J161: TRANS | K161: AT ISSUE | L161: OTHER
C162: Schedule 4 | G162: =$G$10 -> 3 | H162: =$H$10 -> 4 | I162: =$I$10 -> 5 | J162: =$J$10 -> 6
A163: 1 | B163: PRODUCTION PLANT
A164: 2 | C164: ='FR-16(7)(v)-1 Functional'!C164 -> PRODUCTION PLANT IN SERVICE | F164: =F59 -> 0 | G164: =$G$59 -> 0 | H164: =$H$59 -> 0 | I164: =$I$59 -> 0 | J164: =$J$59 -> 0 | K164: =$K$59 -> 0 | L164: =F164-K164 -> 0
A165: 3 | C165: ='FR-16(7)(v)-1 Functional'!C165 -> TOTAL PROD DEPRC RESERVE | F165: =-F115 -> 0 | G165: 0 | H165: 0 | I165: 0 | J165: 0 | K165: 0 | L165: =F165-K165 -> 0
A166: 4 | C166: ='FR-16(7)(v)-1 Functional'!C166 -> NET PRODUCTION PLANT | F166: =SUM(F164:F165) -> 0 | G166: 0 | H166: 0 | I166: 0 | J166: 0 | K166: 0 | L166: 0
A167: 5
A168: 6 | B168: TRANSMISSION PLANT
A169: 7 | C169: ='FR-16(7)(v)-1 Functional'!C169 -> TRANSMISSION PLANT IN SERVICE | F169: =F63 -> 0 | G169: =$G$63 -> 0 | H169: =$H$63 -> 0 | I169: =$I$63 -> 0 | J169: =$J$63 -> 0 | K169: =$K$63 -> 0 | L169: =F169-K169 -> 0
A170: 8 | C170: ='FR-16(7)(v)-1 Functional'!C170 -> TOTAL TRANS DEPREC RESERVE | F170: =-F119 -> 0 | G170: 0 | H170: 0 | I170: 0 | J170: 0 | K170: 0 | L170: =F170-K170 -> 0
A171: 9 | C171: ='FR-16(7)(v)-1 Functional'!C171 -> NET TRANSMISSION PLANT | F171: =SUM(F168:F170) -> 0 | G171: 0 | H171: 0 | I171: 0 | J171: 0 | K171: 0 | L171: 0
A172: 10
A173: 11 | B173: DISTRIBUTION PLANT
A174: 12 | C174: ='FR-16(7)(v)-1 Functional'!C174 -> DISTRIBUTION PLANT IN SERVICE | F174: =F78 -> 373875643 | G174: 190475149 | H174: 115751507 | I174: 51177586 | J174: 16471401 | K174: 373875643 | L174: =F174-K174 -> 0
A175: 13 | C175: ='FR-16(7)(v)-1 Functional'!C175 -> TOTAL DIST DEPREC RESERVE | F175: =-F131 -> -92327265 | G175: -48634385 | H175: -26054822 | I175: -13280103 | J175: -4357955 | K175: -92327265 | L175: =F175-K175 -> 0
A176: 14 | C176: ='FR-16(7)(v)-1 Functional'!C176 -> NET DISTRIBUTION PLANT | F176: =SUM(F173:F175) -> 281548378 | G176: 141840764 | H176: 89696685 | I176: 37897483 | J176: 12113446 | K176: 281548378 | L176: 0
A177: 15
A178: 16 | B178: NET PTD PLANT | F178: =F176+F171+F166 -> 281548378 | G178: 141840764 | H178: 89696685 | I178: 37897483 | J178: 12113446 | K178: 281548378 | L178: 0
A179: 17 | B179: NET TRANS & DIST PLANT | F179: =F176+F171 -> 281548378 | G179: 141840764 | H179: 89696685 | I179: 37897483 | J179: 12113446 | K179: 281548378 | L179: 0
A180: 18
A181: 19 | B181: GENERAL & INTANGIBLE PLANT
A182: 20 | C182: ='FR-16(7)(v)-1 Functional'!C182 -> GEN & INTANG PLANT IN SERVICE | F182: =F90 -> 12043159 | G182: 6994065 | H182: 3323912 | I182: 1329203 | J182: 395979 | K182: 12043159 | L182: =F182-K182 -> 0
A183: 21 | C183: ='FR-16(7)(v)-1 Functional'!C183 -> TOTAL GEN & INTG DEPREC RESERVE | F183: =-F140 -> -5928758 | G183: -3443126 | H183: -1636337 | I183: -654357 | J183: -194938 | K183: -5928758 | L183: =F183-K183 -> 0
A184: 22 | C184: ='FR-16(7)(v)-1 Functional'!C184 -> NET GENERAL & INTANG PLANT | F184: =SUM(F181:F183) -> 6114401 | G184: 3550939 | H184: 1687575 | I184: 674846 | J184: 201041 | K184: 6114401 | L184: 0
A185: 23
A186: 24 | B186: COMMON & OTHER PLANT
A187: 25 | C187: ='FR-16(7)(v)-1 Functional'!C187 -> COMMON & OTH PLT IN SERVICE | F187: =F99 -> 3873295 | G187: 2249416 | H187: 1069029 | I187: 427496 | J187: 127354 | K187: 3873295 | L187: =F187-K187 -> 0
A188: 26 | C188: ='FR-16(7)(v)-1 Functional'!C188 -> TOTAL COM & OTH DEPREC RESERVE | F188: =-F149 -> -2711495 | G188: -1574700 | H188: -748373 | I188: -299268 | J188: -89154 | K188: -2711495 | L188: =F188-K188 -> 0
A189: 27 | C189: ='FR-16(7)(v)-1 Functional'!C189 -> NET COMMON & OTHER PLANT | F189: =SUM(F186:F188) -> 1161800 | G189: 674716 | H189: 320656 | I189: 128228 | J189: 38200 | K189: 1161800 | L189: 0
A190: 28
A191: 29 | C191: ='FR-16(7)(v)-1 Functional'!C191 -> NET GAS PLANT IN SERVICE | F191: =F189+F184+F176+F171+F166 -> 288824579 | G191: 146066419 | H191: 91704916 | I191: 38700557 | J191: 12352687 | K191: 288824579 | L191: 0
A193: =co_name -> DUKE ENERGY KENTUCKY, INC. | K193: =$K$1 -> FR-16(7)(v)-5
A194: =$A$2 -> DISTRIBUTION DEMAND ALLOCATED - GAS COST OF SERVICE | K194: =$K$2 -> WITNESS RESPONSIBLE:
A195: =case_name -> CASE NO: 2021-00190 | K195: =Witness -> JAMES E. ZIOLKOWSKI
A196: =data_filing -> DATA: 12 MONTH FORECASTED PERIOD | K196: ="PAGE "&Pages-13&" OF "&Pages -> PAGE 5 OF 18
A197: =type -> TYPE OF FILING: "X" ORIGINAL UPDATED REVISED
F199: =$F$7 -> TOTAL
A200: LINE | F200: =$F$8 -> DISTRIBUTION | G200: RS/RFT | H200: GS/FT SMALL | I200: GS/FT LARGE | J200: INTERUPT | K200: TOTAL | L200: ALL
A201: NO. | B201: SUBTRACTIVE RATE BASE ADJUSTMENTS | D201: ALLO | F201: =$F$9 -> DEMAND | G201: RESIDENTIAL | H201: GEN SERV | I201: GEN SERV | J201: TRANS | K201: AT ISSUE | L201: OTHER
C202: Schedule 5 | G202: =$G$10 -> 3 | H202: =$H$10 -> 4 | I202: =$I$10 -> 5 | J202: =$J$10 -> 6
A203: 1 | B203: RATE BASE ADJUSTMENTS
A204: 2 | B204: ACCUMULATED DEFERRED INCOME TAXES
A205: 3 | B205: ACCUM DEF INC TAXES (282)
A206: 4 | C206: ='FR-16(7)(v)-1 Functional'!C206 -> LIBERALIZED DEPRECIATION | D206: ='FR-16(7)(v)-1 Functional'!D206 -> NP29 | F206: ='FR-16(7)(v)-4 DISTR Classified'!G206 -> 33761380 | G206: =F206-SUM(H206:J206) -> 17074143 | H206: =ROUND($F$206*VLOOKUP($D$206,ALLOCTABLE_DISTR_DEMAND,$H$10,FALSE),0) -> 10719576 | I206: =ROUND(F206*VLOOKUP(D206,ALLOCTABLE_DISTR_DEMAND,$I$10,FALSE),0) -> 4523687 | J206: =ROUND(F206*VLOOKUP(D206,ALLOCTABLE_DISTR_DEMAND,$J$10,FALSE),0) -> 1443974 | K206: =SUM(G206:J206) -> 33761380 | L206: =F206-K206 -> 0
A207: 5 | C207: ='FR-16(7)(v)-1 Functional'!C207 -> LEASED METERS | D207: ='FR-16(7)(v)-1 Functional'!D207 -> K413 | F207: ='FR-16(7)(v)-4 DISTR Classified'!G207 -> 0 | G207: 0 | H207: =ROUND($F$207*VLOOKUP($D$207,ALLOCTABLE_DISTR_DEMAND,$H$10,FALSE),0) -> 0 | I207: 0 | J207: 0 | K207: 0 | L207: 0
A208: 6 | C208: ='FR-16(7)(v)-1 Functional'!C208 -> CONTRIB AID CONSTR | D208: ='FR-16(7)(v)-1 Functional'!D208 -> D249 | F208: ='FR-16(7)(v)-4 DISTR Classified'!G208 -> -775512 | G208: -390702 | H208: =ROUND($F$208*VLOOKUP($D$208,ALLOCTABLE_DISTR_DEMAND,$H$10,FALSE),0) -> -247063 | I208: -104384 | J208: -33363 | K208: -775512 | L208: 0
A209: 7 | C209: ='FR-16(7)(v)-1 Functional'!C209 -> CAPITALIZED INTEREST | D209: ='FR-16(7)(v)-1 Functional'!D209 -> NP29 | F209: ='FR-16(7)(v)-4 DISTR Classified'!G209 -> -795562 | G209: -402340 | H209: =ROUND($F$209*VLOOKUP($D$209,ALLOCTABLE_DISTR_DEMAND,$H$10,FALSE),0) -> -252599 | I209: -106597 | J209: -34026 | K209: -795562 | L209: 0
... 655 more rows

Sheet FR-16(7)(v)-6 DISTR Cust Alloc
A1: =co_name -> DUKE ENERGY KENTUCKY, INC. | K1: FR-16(7)(v)-6
A2: DISTRIBUTION CUSTOMER ALLOCATED - GAS COST OF SERVICE | K2: WITNESS RESPONSIBLE:
A3: =case_name -> CASE NO: 2021-00190 | K3: =Witness -> JAMES E. ZIOLKOWSKI
A4: =data_filing -> DATA: 12 MONTH FORECASTED PERIOD | K4: ="PAGE "&Pages-17&" OF "&Pages -> PAGE 1 OF 18
A5: =type -> TYPE OF FILING: "X" ORIGINAL UPDATED REVISED
F7: TOTAL
A8: LINE | F8: DISTRIBUTION | G8: RS | H8: GS | I8: FT-L | J8: INTERUPT | K8: TOTAL | L8: ALL
A9: NO. | B9: SUMMARY OF RESULTS | D9: ALLO | F9: CUSTOMER | G9: RESIDENTIAL | H9: GEN SERV | I9: FIRM TRANS | J9: TRANS | K9: AT ISSUE | L9: OTHER
C10: Schedule 1 | G10: 3 | H10: 4 | I10: 5 | J10: 6
A11: 1 | B11: NET INCOME COMPUTATION
A12: 2 | C12: ='FR-16(7)(v)-1 Functional'!C12 -> GROSS GAS PLANT IN SERVICE | F12: =F101 -> 370821855 | G12: 321913090 | H12: 46404148 | I12: 1593072 | J12: 911545 | K12: 370821855 | L12: =F12-K12 -> 0
A13: 3 | C13: ='FR-16(7)(v)-1 Functional'!C13 -> TOTAL DEPRECIATION RESERVE | F13: =-F151 -> -99816110 | G13: -86734503 | H13: -12518692 | I13: -385286 | J13: -177629 | K13: -99816110 | L13: =F13-K13 -> 0
A14: 4 | C14: ='FR-16(7)(v)-1 Functional'!C14 -> TOTAL RATE BASE ADJUSTMENTS | F14: =F326 -> -48928436 | G14: -42471089 | H14: -6117324 | I14: -209729 | J14: -130294 | K14: -48928436 | L14: =F14-K14 -> 0
A15: 5 | C15: ='FR-16(7)(v)-1 Functional'!C15 -> TOTAL RATE BASE | F15: =SUM(F12:F14) -> 222077309 | G15: 192707498 | H15: 27768132 | I15: 998057 | J15: 603622 | K15: 222077309 | L15: =F15-K15 -> 0
A16: 6
A17: 7 | B17: OPERATING EXPENSES
A18: 8 | C18: ='FR-16(7)(v)-1 Functional'!C18 -> TOTAL O&M EXPENSE | F18: =F433 -> 10376849 | G18: 8902044 | H18: 1234506 | I18: 178614 | J18: 61685 | K18: 10376849 | L18: =F18-K18 -> 0
A19: 9 | C19: ='FR-16(7)(v)-1 Functional'!C19 -> TOTAL DEPRECIATION EXPENSE | F19: =F465 -> 8922857 | G19: 7714628 | H19: 1117660 | I19: 60731 | J19: 29838 | K19: 8922857 | L19: 0
A20: 10 | C20: ='FR-16(7)(v)-1 Functional'!C20 -> TOTAL OTHER TAX & MISC EXPENSE | F20: =F495 -> 2229041 | G20: =$G$495 -> 1928422 | H20: =$H$495 -> 279134 | I20: =$I$495 -> 14270 | J20: =$J$495 -> 7215 | K20: =$K$495 -> 2229041 | L20: 0
A21: 11 | C21: ='FR-16(7)(v)-1 Functional'!C21 -> TOTAL OP EXP EXCLUDING INC & REV TAX | F21: =SUM(F17:F20) -> 21528747 | G21: 18545094 | H21: 2631300 | I21: 253615 | J21: 98738 | K21: 21528747 | L21: 0
A22: 12 | C22: ='FR-16(7)(v)-1 Functional'!C22 -> NET FED INCOME TAX EXP ALLOWABLE | F22: =F557 -> 1919887 | G22: =$G$557 -> 1673007 | H22: =$H$557 -> 237465 | I22: =$I$557 -> 5196 | J22: =$J$557 -> 4219 | K22: =$K$557 -> 1919887 | L22: 0
A23: 13 | C23: ='FR-16(7)(v)-1 Functional'!C23 -> NET STATE INCOME TAX EXP ALLOWABLE | F23: =F605 -> 630858 | G23: =G605 -> 548265 | H23: 78713 | I23: 2312 | J23: 1569 | K23: 630858 | L23: 0
A24: 14 | C24: ='FR-16(7)(v)-1 Functional'!C24 -> TOTAL OPERATING EXPENSE | F24: =SUM(F21:F23) -> 24079492 | G24: 20766366 | H24: 2947478 | I24: 261123 | J24: 104526 | K24: 24079492 | L24: 0
A25: 15
A26: 16 | B26: RETURN ON RATE BASE | F26: =F334 -> 14526077 | G26: 12604997 | H26: 1816314 | I26: 65283 | J26: 39483 | K26: 14526077 | L26: =F26-K26 -> 0
A27: 17 | B27: TOTAL OTHER OPERATING REVENUES | F27: =-F630 -> -172939 | G27: =-$G$630 -> -150392 | H27: =-$H$630 -> -19223 | I27: =-$I$630 -> -2475 | J27: =-$J$630 -> -849 | K27: =-$K$630 -> -172939 | L27: 0
A28: 18 | C28: ='FR-16(7)(v)-1 Functional'!C28 -> TOTAL GAS COST OF SERVICE | F28: =SUM(F24:F27) -> 38432630 | G28: 33220971 | H28: 4744569 | I28: 323931 | J28: 143160 | K28: 38432630 | L28: 0
A29: 19 | B29: ADJUSTMENT FOR INTERCLASS SUBSIDIZATION | D29: =1-'WP FR-16(7)(v)Rate Incr (40.0%)'!I11 -> 0.6 | L29: 0
A30: 20 | B30: REQUESTED REVENUES | F30: =F28+F29 -> 38432630 | G30: 33220971 | H30: 4744569 | I30: 323931 | J30: 143160 | K30: 38432630 | L30: 0
A31: 21 | B31: PROPOSED REVENUES | F31: =F745 -> 38249751 | G31: 25771639 | H31: 9955197 | I31: 1914239 | J31: 608676 | K31: 38249751 | L31: 0
A32: 22 | B32: DIFFERENCE (REQUESTED LESS PROPOSED) | F32: =F30-F31 -> 182879 | G32: =G30-G31 -> 7449332 | H32: -5210628 | I32: -1590308 | J32: -465516 | K32: 182879 | L32: 0
A33: 23
A34: 24 | B34: TOTAL RETURN EARNED | F34: =F654+F26 -> 14862397 | G34: 7424021 | H34: 5787287 | I34: 1260941 | J34: 390147 | K34: 14862396 | L34: =F34-K34 -> 1
A35: 25 | B35: RATE OF RETURN EARNED | F35: =IF(F331=0,0,ROUND(F34/F331,5)) -> 0.06692 | G35: 0.03852 | H35: 0.20841 | I35: 1.2634 | J35: 0.64634 | K35: 0.06692 | L35: 0
A36: 26 | B36: TOTAL RATE OF RETURN ALLOWABLE | F36: =$F$688 -> 0.06541 | G36: 0.06541 | H36: 0.06541 | I36: 0.06541 | J36: 0.06541 | K36: 0.06541 | L36: 0.06541 | O36: Not Part of print range
A37: 27 | B37: RETURN EARNED ON COMMON EQUITY | F37: =IF($F$670=0,0,(F35-$F$683-$F$684-$F$686)*$F$673/$F$670) -> 0.09670217746 | G37: 0.04138814242 | H37: 0.3722790372 | I37: 2.427059102 | J37: 1.225225353 | K37: 0.09670217746 | L37: =IF(F670=0,0,(L35-F683-F684-F686)*F673/F670) -> -0.0336363868 | O37: Not Filed
A38: 28 | B38: ALLOWED RETURN ON COMMON EQUITY | F38: 0.09376118475 | G38: 0.09376118475 | H38: 0.09376118475 | I38: 0.09376118475 | J38: 0.09376118475 | K38: 0.09376118475 | L38: =IF($F$670=0,0,(L36-$F$683-$F$684-$F$686)*$F$673/$F$670) -> 0.09376118475
A39: 29
A40: 30 | B40: PRESENT REVENUES | F40: =F744 -> 35272346 | G40: 23870825 | H40: 9032976 | I40: 1804031 | J40: 564514 | K40: 35272346 | L40: =F40-K40 -> 0
A41: 31 | B41: REVENUE INCREASE JUSTIFIED | F41: =F28-F40 -> 3160284 | G41: 9350146 | H41: -4288407 | I41: -1480100 | J41: -421354 | K41: 3160284 | L41: 0
A42: 32 | C42: PER UNIT PRES REV | F42: =IF(F40=0,0,ROUND(F41/F40,5)) -> 0.0896 | G42: 0.3917 | H42: -0.47475 | I42: -0.82044 | J42: -0.7464 | K42: 0.0896 | L42: 0
A43: 33 | B43: REVENUE INCREASE REQUESTED | F43: =F31-F40 -> 2977405 | G43: 1900814 | H43: 922221 | I43: 110208 | J43: 44162 | K43: 2977405 | L43: 0
A44: 34 | C44: PER UNIT PRES REV | F44: =IF(F40=0,0,ROUND(F43/F40,5)) -> 0.08441 | G44: 0.07963 | H44: 0.10209 | I44: 0.06109 | J44: 0.07823 | K44: 0.08441 | L44: 0
A46: =co_name -> DUKE ENERGY KENTUCKY, INC. | K46: =$K$1 -> FR-16(7)(v)-6
A47: =$A$2 -> DISTRIBUTION CUSTOMER ALLOCATED - GAS COST OF SERVICE | K47: =$K$2 -> WITNESS RESPONSIBLE:
A48: =case_name -> CASE NO: 2021-00190 | K48: =Witness -> JAMES E. ZIOLKOWSKI
A49: =data_filing -> DATA: 12 MONTH FORECASTED PERIOD | K49: ="PAGE "&Pages-16&" OF "&Pages -> PAGE 2 OF 18
A50: =type -> TYPE OF FILING: "X" ORIGINAL UPDATED REVISED
F52: =$F$7 -> TOTAL
A53: LINE | F53: =$F$8 -> DISTRIBUTION | G53: =$G$8 -> RS | H53: =$H$8 -> GS | I53: =$I$8 -> FT-L | J53: =$J$8 -> INTERUPT | K53: TOTAL | L53: ALL
A54: NO. | B54: GROSS GAS PLANT IN SERVICE | D54: ALLO | F54: =$F$9 -> CUSTOMER | G54: =$G$9 -> RESIDENTIAL | H54: =$H$9 -> GEN SERV | I54: =$I$9 -> FIRM TRANS | J54: =$J$9 -> TRANS | K54: AT ISSUE | L54: OTHER
C55: Schedule 2 | G55: =$G$10 -> 3 | H55: =$H$10 -> 4 | I55: =$I$10 -> 5 | J55: =$J$10 -> 6
A56: 1 | B56: PRODUCTION PLANT
A57: 2 | C57: ='FR-16(7)(v)-1 Functional'!C57 -> PRODUCTION PLANT | D57: ='FR-16(7)(v)-1 Functional'!D57 -> K205 | F57: ='FR-16(7)(v)-4 DISTR Classified'!I57 -> 0 | G57: =F57-SUM(H57:J57) -> 0 | H57: =ROUND($F$57*VLOOKUP($D$57,ALLOCTABLE_DISTR_CUSTOMER,$H$10,FALSE),0) -> 0 | I57: =ROUND(F57*VLOOKUP(D57,ALLOCTABLE_DISTR_CUSTOMER,$I$10,FALSE),0) -> 0 | J57: =ROUND(F57*VLOOKUP(D57,ALLOCTABLE_DISTR_CUSTOMER,$J$10,FALSE),0) -> 0 | K57: =SUM($G$57:$J$57) -> 0 | L57: =F57-$K$57 -> 0
A58: 3 | C58: ='FR-16(7)(v)-1 Functional'!C58 -> GAS PRODUCTION -CPMPL NOT CLASS | D58: ='FR-16(7)(v)-1 Functional'!D58 -> K205 | F58: ='FR-16(7)(v)-4 DISTR Classified'!I58 -> 0 | G58: =F58-SUM(H58:J58) -> 0 | H58: =ROUND($F$58*VLOOKUP($D$58,ALLOCTABLE_DISTR_CUSTOMER,$H$10,FALSE),0) -> 0 | I58: =ROUND(F58*VLOOKUP(D58,ALLOCTABLE_DISTR_CUSTOMER,$I$10,FALSE),0) -> 0 | J58: =ROUND(F58*VLOOKUP(D58,ALLOCTABLE_DISTR_CUSTOMER,$J$10,FALSE),0) -> 0 | K58: =SUM($G$58:$J$58) -> 0 | L58: =F58-$K$58 -> 0
A59: 4 | C59: ='FR-16(7)(v)-1 Functional'!C59 -> PRODUCTION PLANT IN SERVICE | F59: =SUM(F57:F58) -> 0 | G59: =SUM($G$57:$G$58) -> 0 | H59: =SUM($H$57:$H$58) -> 0 | I59: =SUM($I$57:$I$58) -> 0 | J59: =SUM($J$57:$J$58) -> 0 | K59: =SUM($K$57:$K$58) -> 0 | L59: =SUM($L$57:$L$58) -> 0
A60: 5
A61: 6 | B61: TRANSMISSION PLANT
A62: 7 | C62: ='FR-16(7)(v)-1 Functional'!C62 -> TRANSMISSION PLANT
A63: 8 | C63: ='FR-16(7)(v)-1 Functional'!C63 -> TRANSMISSION PLANT IN SERVICE | F63: =SUM(F62) -> 0 | G63: =SUM($G$62) -> 0 | H63: =SUM($H$62) -> 0 | I63: =SUM($I$62) -> 0 | J63: =SUM($J$62) -> 0 | K63: =SUM($K$62) -> 0 | L63: =SUM($L$62) -> 0
A64: 9
A65: 10 | B65: TOTAL PROD & TRANS PLANT | F65: =F63+F59 -> 0 | G65: =$G$63+$G$59 -> 0 | H65: =$H$63+$H$59 -> 0 | I65: =$I$63+$I$59 -> 0 | J65: =$J$63+$J$59 -> 0 | K65: =$K$63+$K$59 -> 0 | L65: =$L$63+$L$59 -> 0
A66: 11
A67: 12 | B67: DISTRIBUTION PLANT
A68: 13 | C68: ='FR-16(7)(v)-1 Functional'!C68 -> SYSTEM M&R - (2780, 2781) | D68: ='FR-16(7)(v)-1 Functional'!D68 -> K203 | F68: ='FR-16(7)(v)-4 DISTR Classified'!I68 -> 0 | G68: =F68-SUM(H68:J68) -> 0 | H68: =ROUND($F$68*VLOOKUP($D$68,ALLOCTABLE_DISTR_CUSTOMER,$H$10,FALSE),0) -> 0 | I68: =ROUND(F68*VLOOKUP(D68,ALLOCTABLE_DISTR_CUSTOMER,$I$10,FALSE),0) -> 0 | J68: =ROUND(F68*VLOOKUP(D68,ALLOCTABLE_DISTR_CUSTOMER,$J$10,FALSE),0) -> 0 | K68: =SUM(G68:J68) -> 0 | L68: =F68-K68 -> 0
A69: 14 | C69: ='FR-16(7)(v)-1 Functional'!C69 -> DIST REG EQUIP & CITY GATE M&R- (2782, 2790) | D69: ='FR-16(7)(v)-1 Functional'!D69 -> K203 | F69: ='FR-16(7)(v)-4 DISTR Classified'!I69 -> 0 | G69: 0 | H69: =ROUND($F$69*VLOOKUP($D$69,ALLOCTABLE_DISTR_CUSTOMER,$H$10,FALSE),0) -> 0 | I69: 0 | J69: 0 | K69: 0 | L69: 0
A70: 15 | C70: ='FR-16(7)(v)-1 Functional'!C70 -> LARGE IND M&R - (2850, 2851) | D70: ='FR-16(7)(v)-1 Functional'!D70 -> K595 | F70: ='FR-16(7)(v)-4 DISTR Classified'!I70 -> 0 | G70: 0 | H70: =ROUND($F$70*VLOOKUP($D$70,ALLOCTABLE_DISTR_CUSTOMER,$H$10,FALSE),0) -> 0 | I70: 0 | J70: 0 | K70: 0 | L70: 0
A71: 16 | C71: ='FR-16(7)(v)-1 Functional'!C71 -> MAINS - (2761, 2762, 2763, 2765) | D71: K401 | F71: ='FR-16(7)(v)-4 DISTR Classified'!I71 -> 79399155 | G71: 73312416 | H71: =ROUND($F$71*VLOOKUP($D$71,ALLOCTABLE_DISTR_CUSTOMER,$H$10,FALSE),0) -> 5985902 | I71: 83369 | J71: 17468 | K71: 79399155 | L71: 0
A72: 17 | C72: ='FR-16(7)(v)-1 Functional'!C72 -> SERVICES - (2801, 2802, 2803) | D72: ='FR-16(7)(v)-1 Functional'!D72 -> K403 | F72: ='FR-16(7)(v)-4 DISTR Classified'!I72 -> 226116720 | G72: 198085030 | H72: =ROUND($F$72*VLOOKUP($D$72,ALLOCTABLE_DISTR_CUSTOMER,$H$10,FALSE),0) -> 27233498 | I72: 431883 | J72: 366309 | K72: 226116720 | L72: 0
A73: 18 | C73: ='FR-16(7)(v)-1 Functional'!C73 -> MTRS & MTR INST (2810, 2811, 2820, 2821) | D73: ='FR-16(7)(v)-1 Functional'!D73 -> K413 | F73: ='FR-16(7)(v)-4 DISTR Classified'!I73 -> 30766213 | G73: 24635122 | H73: =ROUND($F$73*VLOOKUP($D$73,ALLOCTABLE_DISTR_CUSTOMER,$H$10,FALSE),0) -> 5195798 | I73: 568252 | J73: 367041 | K73: 30766213 | L73: 0
A74: 19 | C74: ='FR-16(7)(v)-1 Functional'!C74 -> LAND, R OF W, STRUCT & IMPROV | D74: ='FR-16(7)(v)-1 Functional'!D74 -> K203 | F74: ='FR-16(7)(v)-4 DISTR Classified'!I74 -> 0 | G74: 0 | H74: =ROUND($F$74*VLOOKUP($D$74,ALLOCTABLE_DISTR_CUSTOMER,$H$10,FALSE),0) -> 0 | I74: 0 | J74: 0 | K74: 0 | L74: 0
A75: 20 | C75: ='FR-16(7)(v)-1 Functional'!C75 -> HOUSE REG & INSTALL (2830, 2840) | D75: ='FR-16(7)(v)-1 Functional'!D75 -> K417 | F75: ='FR-16(7)(v)-4 DISTR Classified'!I75 -> 14731367 | G75: 9112234 | H75: =ROUND($F$75*VLOOKUP($D$75,ALLOCTABLE_DISTR_CUSTOMER,$H$10,FALSE),0) -> 5482573 | I75: 113137 | J75: 23423 | K75: 14731367 | L75: 0
A76: 21 | C76: ='FR-16(7)(v)-1 Functional'!C76 -> STREET LIGHTING EQUIPMENT & OTH | D76: ='FR-16(7)(v)-1 Functional'!D76 -> K597 | F76: ='FR-16(7)(v)-4 DISTR Classified'!I76 -> 0 | G76: 0 | H76: =ROUND($F$76*VLOOKUP($D$76,ALLOCTABLE_DISTR_CUSTOMER,$H$10,FALSE),0) -> 0 | I76: 0 | J76: 0 | K76: 0 | L76: 0
A77: 22 | C77: ='FR-16(7)(v)-1 Functional'!C77 -> ASSET RETIREMENT COST FOR DISTRIBUTION PLANT | D77: ='FR-16(7)(v)-1 Functional'!D77 -> K203 | F77: ='FR-16(7)(v)-4 DISTR Classified'!I77 -> 0 | G77: 0 | H77: =ROUND($F$77*VLOOKUP($D$77,ALLOCTABLE_DISTR_CUSTOMER,$H$10,FALSE),0) -> 0 | I77: 0 | J77: 0 | K77: 0 | L77: 0
A78: 23 | C78: ='FR-16(7)(v)-1 Functional'!C78 -> DISTRIBUTION PLANT IN SERVICE | F78: =SUM(F68:F77) -> 351013455 | G78: =SUM(G68:G77) -> 305144802 | H78: 43897771 | I78: 1196641 | J78: 774241 | K78: 351013455 | L78: 0
A79: 24
A80: 25 | B80: TOTAL TRANS & DIST PLANT | F80: =F78+F63 -> 351013455 | G80: =G78+$G$63 -> 305144802 | H80: =H78+$H$63 -> 43897771 | I80: =I78+$I$63 -> 1196641 | J80: =J78+$J$63 -> 774241 | K80: =K78+$K$63 -> 351013455 | L80: =L78+$L$63 -> 0
A81: 26 | B81: TOTAL GROSS PTD PLANT | F81: =F78+F65 -> 351013455 | G81: =G78+G65 -> 305144802 | H81: 43897771 | I81: 1196641 | J81: 774241 | K81: 351013455 | L81: 0
A82: 27
A83: 28 | B83: GENERAL & INTANGIBLE PLANT
A84: 29 | C84: ='FR-16(7)(v)-1 Functional'!C84 -> PRODUCTION PLANT | D84: ='FR-16(7)(v)-1 Functional'!D84 -> K201 | F84: ='FR-16(7)(v)-4 DISTR Classified'!I84 -> 0 | G84: =F84-SUM(H84:J84) -> 0 | H84: =ROUND($F$84*VLOOKUP($D$84,ALLOCTABLE_DISTR_CUSTOMER,$H$10,FALSE),0) -> 0 | I84: =ROUND(F84*VLOOKUP(D84,ALLOCTABLE_DISTR_CUSTOMER,$I$10,FALSE),0) -> 0 | J84: =ROUND(F84*VLOOKUP(D84,ALLOCTABLE_DISTR_CUSTOMER,$J$10,FALSE),0) -> 0 | K84: =SUM(G84:J84) -> 0 | L84: =F84-K84 -> 0
A85: 30 | C85: ='FR-16(7)(v)-1 Functional'!C85 -> PRODUCTION PLANT COMMODITY | D85: ='FR-16(7)(v)-1 Functional'!D85 -> P349 | F85: ='FR-16(7)(v)-4 DISTR Classified'!I85 -> 0 | G85: 0 | H85: =ROUND($F$85*VLOOKUP($D$85,ALLOCTABLE_DISTR_CUSTOMER,$H$10,FALSE),0) -> 0 | I85: 0 | J85: 0 | K85: 0 | L85: 0
A86: 31 | C86: ='FR-16(7)(v)-1 Functional'!C86 -> DISTRIBUTION PLANT | D86: ='FR-16(7)(v)-1 Functional'!D86 -> D349 | F86: ='FR-16(7)(v)-4 DISTR Classified'!I86 -> 6806085 | G86: 5133014 | H86: =ROUND($F$86*VLOOKUP($D$86,ALLOCTABLE_DISTR_CUSTOMER,$H$10,FALSE),0) -> 1279612 | I86: 291368 | J86: 102091 | K86: 6806085 | L86: 0
A87: 32 | C87: ='FR-16(7)(v)-1 Functional'!C87 -> CUSTOMER ACCOUNTING | D87: ='FR-16(7)(v)-1 Functional'!D87 -> CA19 | F87: ='FR-16(7)(v)-4 DISTR Classified'!I87 -> 7459729 | G87: 6887866 | H87: =ROUND($F$87*VLOOKUP($D$87,ALLOCTABLE_DISTR_CUSTOMER,$H$10,FALSE),0) -> 562389 | I87: 7833 | J87: 1641 | K87: 7459729 | L87: 0
A88: 33 | C88: ='FR-16(7)(v)-1 Functional'!C88 -> CUSTOMER SERVICE & INFORMATION | D88: ='FR-16(7)(v)-1 Functional'!D88 -> CS19 | F88: ='FR-16(7)(v)-4 DISTR Classified'!I88 -> 722179 | G88: 666817 | H88: =ROUND($F$88*VLOOKUP($D$88,ALLOCTABLE_DISTR_CUSTOMER,$H$10,FALSE),0) -> 54445 | I88: 758 | J88: 159 | K88: 722179 | L88: 0
A89: 34 | C89: ='FR-16(7)(v)-1 Functional'!C89 -> SALES | D89: ='FR-16(7)(v)-1 Functional'!D89 -> SE19 | F89: ='FR-16(7)(v)-4 DISTR Classified'!I89 -> 0 | G89: 0 | H89: =ROUND($F$89*VLOOKUP($D$89,ALLOCTABLE_DISTR_CUSTOMER,$H$10,FALSE),0) -> 0 | I89: 0 | J89: 0 | K89: 0 | L89: 0
A90: 35 | C90: ='FR-16(7)(v)-1 Functional'!C90 -> GEN & INTANG PLANT IN SERVICE | F90: =SUM(F84:F89) -> 14987993 | G90: =SUM(G84:G89) -> 12687697 | H90: 1896446 | I90: 299959 | J90: 103891 | K90: 14987993 | L90: 0
A91: 36
A92: 37 | B92: COMMON & OTHER PLANT
A93: 38 | C93: ='FR-16(7)(v)-1 Functional'!C93 -> PRODUCTION PLANT | D93: ='FR-16(7)(v)-1 Functional'!D93 -> K201 | F93: ='FR-16(7)(v)-4 DISTR Classified'!I93 -> 0 | G93: =F93-SUM(H93:J93) -> 0 | H93: =ROUND($F$93*VLOOKUP($D$93,ALLOCTABLE_DISTR_CUSTOMER,$H$10,FALSE),0) -> 0 | I93: =ROUND(F93*VLOOKUP(D93,ALLOCTABLE_DISTR_CUSTOMER,$I$10,FALSE),0) -> 0 | J93: =ROUND(F93*VLOOKUP(D93,ALLOCTABLE_DISTR_CUSTOMER,$J$10,FALSE),0) -> 0 | K93: =SUM(G93:J93) -> 0 | L93: =F93-K93 -> 0
A94: 39 | C94: ='FR-16(7)(v)-1 Functional'!C94 -> PRODUCTION PLANT COMMODITY | D94: ='FR-16(7)(v)-1 Functional'!D94 -> P349 | F94: ='FR-16(7)(v)-4 DISTR Classified'!I94 -> 0 | G94: 0 | H94: =ROUND($F$94*VLOOKUP($D$94,ALLOCTABLE_DISTR_CUSTOMER,$H$10,FALSE),0) -> 0 | I94: 0 | J94: 0 | K94: 0 | L94: 0
A95: 40 | C95: ='FR-16(7)(v)-1 Functional'!C95 -> DISTRIBUTION PLANT | D95: ='FR-16(7)(v)-1 Functional'!D95 -> D349 | F95: ='FR-16(7)(v)-4 DISTR Classified'!I95 -> 2188959 | G95: 1650870 | H95: =ROUND($F$95*VLOOKUP($D$95,ALLOCTABLE_DISTR_CUSTOMER,$H$10,FALSE),0) -> 411546 | I95: 93709 | J95: 32834 | K95: 2188959 | L95: 0
A96: 41 | C96: ='FR-16(7)(v)-1 Functional'!C96 -> CUSTOMER ACCOUNTING | D96: ='FR-16(7)(v)-1 Functional'!D96 -> CA19 | F96: ='FR-16(7)(v)-4 DISTR Classified'!I96 -> 2399182 | G96: 2215261 | H96: =ROUND($F$96*VLOOKUP($D$96,ALLOCTABLE_DISTR_CUSTOMER,$H$10,FALSE),0) -> 180874 | I96: 2519 | J96: 528 | K96: 2399182 | L96: 0
A97: 42 | C97: ='FR-16(7)(v)-1 Functional'!C97 -> CUSTOMER SERVICE & INFORMATION | D97: ='FR-16(7)(v)-1 Functional'!D97 -> CS19 | F97: ='FR-16(7)(v)-4 DISTR Classified'!I97 -> 232266 | G97: 214460 | H97: =ROUND($F$97*VLOOKUP($D$97,ALLOCTABLE_DISTR_CUSTOMER,$H$10,FALSE),0) -> 17511 | I97: 244 | J97: 51 | K97: 232266 | L97: 0
A98: 43 | C98: ='FR-16(7)(v)-1 Functional'!C98 -> SALES | D98: ='FR-16(7)(v)-1 Functional'!D98 -> SE19 | F98: ='FR-16(7)(v)-4 DISTR Classified'!I98 -> 0 | G98: 0 | H98: =ROUND($F$98*VLOOKUP($D$98,ALLOCTABLE_DISTR_CUSTOMER,$H$10,FALSE),0) -> 0 | I98: 0 | J98: 0 | K98: 0 | L98: 0
A99: 44 | C99: ='FR-16(7)(v)-1 Functional'!C99 -> COMMON & OTHER PLANT IN SERVICE | F99: =SUM(F93:F98) -> 4820407 | G99: =SUM(G93:G98) -> 4080591 | H99: 609931 | I99: 96472 | J99: 33413 | K99: 4820407 | L99: 0
A100: 45
A101: 46 | B101: GROSS GAS PLANT IN SERVICE | F101: =F81+F90+F99 -> 370821855 | G101: =G81+G90+G99 -> 321913090 | H101: 46404148 | I101: 1593072 | J101: 911545 | K101: 370821855 | L101: 0
A103: =co_name -> DUKE ENERGY KENTUCKY, INC. | K103: =$K$1 -> FR-16(7)(v)-6
A104: =$A$2 -> DISTRIBUTION CUSTOMER ALLOCATED - GAS COST OF SERVICE | K104: =$K$2 -> WITNESS RESPONSIBLE:
A105: =case_name -> CASE NO: 2021-00190 | K105: =Witness -> JAMES E. ZIOLKOWSKI
A106: =data_filing -> DATA: 12 MONTH FORECASTED PERIOD | K106: ="PAGE "&Pages-15&" OF "&Pages -> PAGE 3 OF 18
A107: =type -> TYPE OF FILING: "X" ORIGINAL UPDATED REVISED
F109: =$F$7 -> TOTAL
A110: LINE | F110: =$F$8 -> DISTRIBUTION | G110: =$G$8 -> RS | H110: =$H$8 -> GS | I110: =$I$8 -> FT-L | J110: =$J$8 -> INTERUPT | K110: TOTAL | L110: ALL
A111: NO. | B111: DEPRECIATION RESERVE | D111: ALLO | F111: =$F$9 -> CUSTOMER | G111: =$G$9 -> RESIDENTIAL | H111: =$H$9 -> GEN SERV | I111: =$I$9 -> FIRM TRANS | J111: =$J$9 -> TRANS | K111: AT ISSUE | L111: OTHER
C112: Schedule 3 | G112: =$G$10 -> 3 | H112: =$H$10 -> 4 | I112: =$I$10 -> 5 | J112: =$J$10 -> 6
A113: 1 | B113: PRODUCTION PLANT
A114: 2 | C114: ='FR-16(7)(v)-1 Functional'!C114 -> PRODUCTION PLANT | D114: ='FR-16(7)(v)-1 Functional'!D114 -> K205 | F114: ='FR-16(7)(v)-4 DISTR Classified'!I114 -> 0 | G114: =F114-SUM(H114:J114) -> 0 | H114: =ROUND($F$114*VLOOKUP($D$114,ALLOCTABLE_DISTR_CUSTOMER,$H$10,FALSE),0) -> 0 | I114: =ROUND(F114*VLOOKUP(D114,ALLOCTABLE_DISTR_CUSTOMER,$I$10,FALSE),0) -> 0 | J114: =ROUND(F114*VLOOKUP(D114,ALLOCTABLE_DISTR_CUSTOMER,$J$10,FALSE),0) -> 0 | K114: =SUM(G114:J114) -> 0 | L114: =F114-K114 -> 0
A115: 3 | C115: ='FR-16(7)(v)-1 Functional'!C115 -> TOTAL PROD DEPREC RESERVE | F115: =SUM(F114:F114) -> 0 | G115: =SUM(G114:G114) -> 0 | H115: 0 | I115: 0 | J115: 0 | K115: 0 | L115: 0
A116: 4
A117: 5 | B117: TRANSMISSION PLANT
A118: 6 | C118: ='FR-16(7)(v)-1 Functional'!C118 -> TRANSMISSION PLANT
A119: 7 | C119: ='FR-16(7)(v)-1 Functional'!C119 -> TOTAL TRANS DEPREC RESERVE | F119: =SUM(F118:F118) -> 0 | G119: =SUM(G118:G118) -> 0 | H119: 0 | I119: 0 | J119: 0 | K119: 0 | L119: 0
A120: 8
A121: 9 | B121: DISTRIBUTION PLANT
A122: 10 | C122: ='FR-16(7)(v)-1 Functional'!C122 -> SYSTEM M&R - (2780, 2781) | D122: ='FR-16(7)(v)-1 Functional'!D122 -> K203 | F122: ='FR-16(7)(v)-4 DISTR Classified'!I122 -> 0 | G122: =F122-SUM(H122:J122) -> 0 | H122: =ROUND($F$122*VLOOKUP($D$122,ALLOCTABLE_DISTR_CUSTOMER,$H$10,FALSE),0) -> 0 | I122: =ROUND(F122*VLOOKUP(D122,ALLOCTABLE_DISTR_CUSTOMER,$I$10,FALSE),0) -> 0 | J122: =ROUND(F122*VLOOKUP(D122,ALLOCTABLE_DISTR_CUSTOMER,$J$10,FALSE),0) -> 0 | K122: =SUM(G122:J122) -> 0 | L122: =F122-K122 -> 0
A123: 11 | C123: ='FR-16(7)(v)-1 Functional'!C123 -> DIST REG EQUIP & CITY GATE M&R- (2782, 2790) | D123: ='FR-16(7)(v)-1 Functional'!D123 -> K203 | F123: ='FR-16(7)(v)-4 DISTR Classified'!I123 -> 0 | G123: 0 | H123: =ROUND($F$123*VLOOKUP($D$123,ALLOCTABLE_DISTR_CUSTOMER,$H$10,FALSE),0) -> 0 | I123: 0 | J123: 0 | K123: 0 | L123: 0
A124: 12 | C124: ='FR-16(7)(v)-1 Functional'!C124 -> LARGE IND M&R - (2850, 2851) | D124: ='FR-16(7)(v)-1 Functional'!D124 -> K595 | F124: ='FR-16(7)(v)-4 DISTR Classified'!I124 -> 0 | G124: 0 | H124: =ROUND($F$124*VLOOKUP($D$124,ALLOCTABLE_DISTR_CUSTOMER,$H$10,FALSE),0) -> 0 | I124: 0 | J124: 0 | K124: 0 | L124: 0
A125: 13 | C125: ='FR-16(7)(v)-1 Functional'!C125 -> MAINS - (2761, 2762, 2763, 2765) | D125: =D71 -> K401 | F125: ='FR-16(7)(v)-4 DISTR Classified'!I125 -> 22699977 | G125: 20959797 | H125: =ROUND($F$125*VLOOKUP($D$125,ALLOCTABLE_DISTR_CUSTOMER,$H$10,FALSE),0) -> 1711351 | I125: 23835 | J125: 4994 | K125: 22699977 | L125: 0
A126: 14 | C126: ='FR-16(7)(v)-1 Functional'!C126 -> SERVICES - (2801, 2802, 2803) | D126: ='FR-16(7)(v)-1 Functional'!D126 -> K403 | F126: ='FR-16(7)(v)-4 DISTR Classified'!I126 -> 61310319 | G126: 53709678 | H126: =ROUND($F$126*VLOOKUP($D$126,ALLOCTABLE_DISTR_CUSTOMER,$H$10,FALSE),0) -> 7384215 | I126: 117103 | J126: 99323 | K126: 61310319 | L126: 0
A127: 15 | C127: ='FR-16(7)(v)-1 Functional'!C127 -> MTRS & MTR INST (2810, 2811, 2820, 2821) | D127: ='FR-16(7)(v)-1 Functional'!D127 -> K413 | F127: ='FR-16(7)(v)-4 DISTR Classified'!I127 -> -895430 | G127: -716989 | H127: =ROUND($F$127*VLOOKUP($D$127,ALLOCTABLE_DISTR_CUSTOMER,$H$10,FALSE),0) -> -151220 | I127: -16539 | J127: -10682 | K127: -895430 | L127: 0
A128: 16 | C128: ='FR-16(7)(v)-1 Functional'!C128 -> LAND, R OF W, STRUCT & IMPROV & OTH | D128: ='FR-16(7)(v)-1 Functional'!D128 -> K203 | F128: ='FR-16(7)(v)-4 DISTR Classified'!I128 -> 0 | G128: 0 | H128: =ROUND($F$128*VLOOKUP($D$128,ALLOCTABLE_DISTR_CUSTOMER,$H$10,FALSE),0) -> 0 | I128: 0 | J128: 0 | K128: 0 | L128: 0
A129: 17 | C129: ='FR-16(7)(v)-1 Functional'!C129 -> HOUSE REG & INSTALL (2830, 2840) | D129: ='FR-16(7)(v)-1 Functional'!D129 -> K417 | F129: ='FR-16(7)(v)-4 DISTR Classified'!I129 -> 5948247 | G129: 3679347 | H129: =ROUND($F$129*VLOOKUP($D$129,ALLOCTABLE_DISTR_CUSTOMER,$H$10,FALSE),0) -> 2213759 | I129: 45683 | J129: 9458 | K129: 5948247 | L129: 0
A130: 18 | C130: ='FR-16(7)(v)-1 Functional'!C130 -> STREET LIGHTING EQUIPMENT & OTH | D130: ='FR-16(7)(v)-1 Functional'!D130 -> K597 | F130: ='FR-16(7)(v)-4 DISTR Classified'!I130 -> 0 | G130: 0 | H130: =ROUND($F$130*VLOOKUP($D$130,ALLOCTABLE_DISTR_CUSTOMER,$H$10,FALSE),0) -> 0 | I130: 0 | J130: 0 | K130: 0 | L130: 0
A131: 19 | C131: ='FR-16(7)(v)-1 Functional'!C131 -> TOTAL DIST DEPREC RESERVE | F131: =SUM(F121:F130) -> 89063113 | G131: =SUM(G121:G130) -> 77631833 | H131: 11158105 | I131: 170082 | J131: 103093 | K131: 89063113 | L131: 0
A132: 20
A133: 21 | B133: GENERAL & INTANGIBLE PLANT
A134: 22 | C134: ='FR-16(7)(v)-1 Functional'!C134 -> PRODUCTION PLANT | D134: ='FR-16(7)(v)-1 Functional'!D134 -> K201 | F134: ='FR-16(7)(v)-4 DISTR Classified'!I134 -> 0 | G134: =F134-SUM(H134:J134) -> 0 | H134: =ROUND($F$134*VLOOKUP($D$134,ALLOCTABLE_DISTR_CUSTOMER,$H$10,FALSE),0) -> 0 | I134: =ROUND(F134*VLOOKUP(D134,ALLOCTABLE_DISTR_CUSTOMER,$I$10,FALSE),0) -> 0 | J134: =ROUND(F134*VLOOKUP(D134,ALLOCTABLE_DISTR_CUSTOMER,$J$10,FALSE),0) -> 0 | K134: =SUM(G134:J134) -> 0 | L134: =F134-K134 -> 0
A135: 23 | C135: ='FR-16(7)(v)-1 Functional'!C135 -> PRODUCTION PLANT COMMODITY | D135: ='FR-16(7)(v)-1 Functional'!D135 -> P349 | F135: ='FR-16(7)(v)-4 DISTR Classified'!I135 -> 0 | G135: 0 | H135: =ROUND($F$135*VLOOKUP($D$135,ALLOCTABLE_DISTR_CUSTOMER,$H$10,FALSE),0) -> 0 | I135: 0 | J135: 0 | K135: 0 | L135: 0
A136: 24 | C136: ='FR-16(7)(v)-1 Functional'!C136 -> DISTRIBUTION PLANT | D136: ='FR-16(7)(v)-1 Functional'!D136 -> D349 | F136: ='FR-16(7)(v)-4 DISTR Classified'!I136 -> 3350585 | G136: 2526944 | H136: =ROUND($F$136*VLOOKUP($D$136,ALLOCTABLE_DISTR_CUSTOMER,$H$10,FALSE),0) -> 629943 | I136: 143439 | J136: 50259 | K136: 3350585 | L136: 0
A137: 25 | C137: ='FR-16(7)(v)-1 Functional'!C137 -> CUSTOMER ACCOUNTING | D137: ='FR-16(7)(v)-1 Functional'!D137 -> CA19 | F137: ='FR-16(7)(v)-4 DISTR Classified'!I137 -> 3672369 | G137: 3390845 | H137: =ROUND($F$137*VLOOKUP($D$137,ALLOCTABLE_DISTR_CUSTOMER,$H$10,FALSE),0) -> 276860 | I137: 3856 | J137: 808 | K137: 3672369 | L137: 0
A138: 26 | C138: ='FR-16(7)(v)-1 Functional'!C138 -> CUSTOMER SERVICE & INFORMATION | D138: ='FR-16(7)(v)-1 Functional'!D138 -> CS19 | F138: ='FR-16(7)(v)-4 DISTR Classified'!I138 -> 355523 | G138: 328269 | H138: =ROUND($F$138*VLOOKUP($D$138,ALLOCTABLE_DISTR_CUSTOMER,$H$10,FALSE),0) -> 26803 | I138: 373 | J138: 78 | K138: 355523 | L138: 0
A139: 27 | C139: ='FR-16(7)(v)-1 Functional'!C139 -> SALES | D139: ='FR-16(7)(v)-1 Functional'!D139 -> SE19 | F139: ='FR-16(7)(v)-4 DISTR Classified'!I139 -> 0 | G139: 0 | H139: =ROUND($F$139*VLOOKUP($D$139,ALLOCTABLE_DISTR_CUSTOMER,$H$10,FALSE),0) -> 0 | I139: 0 | J139: 0 | K139: 0 | L139: 0
A140: 28 | C140: ='FR-16(7)(v)-1 Functional'!C140 -> TOTAL GEN DEPREC RESERVE | F140: =SUM(F133:F139) -> 7378477 | G140: =SUM(G133:G139) -> 6246058 | H140: 933606 | I140: 147668 | J140: 51145 | K140: 7378477 | L140: 0
A141: 29
A142: 30 | B142: COMMON & OTHER PLANT
A143: 31 | C143: ='FR-16(7)(v)-1 Functional'!C143 -> PRODUCTION PLANT | D143: ='FR-16(7)(v)-1 Functional'!D143 -> K201 | F143: ='FR-16(7)(v)-4 DISTR Classified'!I143 -> 0 | G143: =F143-SUM(H143:J143) -> 0 | H143: =ROUND($F$143*VLOOKUP($D$143,ALLOCTABLE_DISTR_CUSTOMER,$H$10,FALSE),0) -> 0 | I143: =ROUND(F143*VLOOKUP(D143,ALLOCTABLE_DISTR_CUSTOMER,$I$10,FALSE),0) -> 0 | J143: =ROUND(F143*VLOOKUP(D143,ALLOCTABLE_DISTR_CUSTOMER,$J$10,FALSE),0) -> 0 | K143: =SUM(G143:J143) -> 0 | L143: =F143-K143 -> 0
A144: 32 | C144: ='FR-16(7)(v)-1 Functional'!C144 -> PRODUCTION PLANT COMMODITY | D144: ='FR-16(7)(v)-1 Functional'!D144 -> P349 | F144: ='FR-16(7)(v)-4 DISTR Classified'!I144 -> 0 | G144: 0 | H144: =ROUND($F$144*VLOOKUP($D$144,ALLOCTABLE_DISTR_CUSTOMER,$H$10,FALSE),0) -> 0 | I144: 0 | J144: 0 | K144: 0 | L144: 0
A145: 33 | C145: ='FR-16(7)(v)-1 Functional'!C145 -> DISTRIBUTION PLANT | D145: ='FR-16(7)(v)-1 Functional'!D145 -> D349 | F145: ='FR-16(7)(v)-4 DISTR Classified'!I145 -> 1532378 | G145: 1155689 | H145: =ROUND($F$145*VLOOKUP($D$145,ALLOCTABLE_DISTR_CUSTOMER,$H$10,FALSE),0) -> 288102 | I145: 65601 | J145: 22986 | K145: 1532378 | L145: 0
A146: 34 | C146: ='FR-16(7)(v)-1 Functional'!C146 -> CUSTOMER ACCOUNTING | D146: ='FR-16(7)(v)-1 Functional'!D146 -> CA19 | F146: ='FR-16(7)(v)-4 DISTR Classified'!I146 -> 1679545 | G146: 1550791 | H146: =ROUND($F$146*VLOOKUP($D$146,ALLOCTABLE_DISTR_CUSTOMER,$H$10,FALSE),0) -> 126621 | I146: 1764 | J146: 369 | K146: 1679545 | L146: 0
A147: 35 | C147: ='FR-16(7)(v)-1 Functional'!C147 -> CUSTOMER SERVICE & INFORMATION | D147: ='FR-16(7)(v)-1 Functional'!D147 -> CS19 | F147: ='FR-16(7)(v)-4 DISTR Classified'!I147 -> 162597 | G147: 150132 | H147: =ROUND($F$147*VLOOKUP($D$147,ALLOCTABLE_DISTR_CUSTOMER,$H$10,FALSE),0) -> 12258 | I147: 171 | J147: 36 | K147: 162597 | L147: 0
A148: 36 | C148: ='FR-16(7)(v)-1 Functional'!C148 -> SALES | D148: ='FR-16(7)(v)-1 Functional'!D148 -> SE19 | F148: ='FR-16(7)(v)-4 DISTR Classified'!I148 -> 0 | G148: 0 | H148: =ROUND($F$148*VLOOKUP($D$148,ALLOCTABLE_DISTR_CUSTOMER,$H$10,FALSE),0) -> 0 | I148: 0 | J148: 0 | K148: 0 | L148: 0
A149: 37 | C149: ='FR-16(7)(v)-1 Functional'!C149 -> TOTAL COM & OTHER PLT RESERVE | F149: =SUM(F143:F148) -> 3374520 | G149: =SUM(G142:G148) -> 2856612 | H149: 426981 | I149: 67536 | J149: 23391 | K149: 3374520 | L149: 0
A150: 38
A151: 39 | B151: TOTAL DEPRECIATION RESERVE | F151: =F149+F140+F131+F119+F115 -> 99816110 | G151: =G149+G140+G131+G119+G115 -> 86734503 | H151: 12518692 | I151: 385286 | J151: 177629 | K151: 99816110 | L151: 0
A153: =co_name -> DUKE ENERGY KENTUCKY, INC. | K153: =$K$1 -> FR-16(7)(v)-6
A154: =$A$2 -> DISTRIBUTION CUSTOMER ALLOCATED - GAS COST OF SERVICE | K154: =$K$2 -> WITNESS RESPONSIBLE:
A155: =case_name -> CASE NO: 2021-00190 | K155: =Witness -> JAMES E. ZIOLKOWSKI
A156: =data_filing -> DATA: 12 MONTH FORECASTED PERIOD | K156: ="PAGE "&Pages-14&" OF "&Pages -> PAGE 4 OF 18
A157: =type -> TYPE OF FILING: "X" ORIGINAL UPDATED REVISED
F159: =$F$7 -> TOTAL
A160: LINE | F160: =$F$8 -> DISTRIBUTION | G160: =$G$8 -> RS | H160: =$H$8 -> GS | I160: =$I$8 -> FT-L | J160: =$J$8 -> INTERUPT | K160: TOTAL | L160: ALL
A161: NO. | B161: ="NET GAS PLANT" -> NET GAS PLANT | D161: ALLO | F161: =$F$9 -> CUSTOMER | G161: =$G$9 -> RESIDENTIAL | H161: =$H$9 -> GEN SERV | I161: =$I$9 -> FIRM TRANS | J161: =$J$9 -> TRANS | K161: AT ISSUE | L161: OTHER
C162: Schedule 4 | G162: =$G$10 -> 3 | H162: =$H$10 -> 4 | I162: =$I$10 -> 5 | J162: =$J$10 -> 6
A163: 1 | B163: PRODUCTION PLANT
A164: 2 | C164: ='FR-16(7)(v)-1 Functional'!C164 -> PRODUCTION PLANT IN SERVICE | F164: =F59 -> 0 | G164: =$G$59 -> 0 | H164: =$H$59 -> 0 | I164: =$I$59 -> 0 | J164: =$J$59 -> 0 | K164: =$K$59 -> 0 | L164: =F164-K164 -> 0
A165: 3 | C165: ='FR-16(7)(v)-1 Functional'!C165 -> TOTAL PROD DEPRC RESERVE | F165: =-F115 -> 0 | G165: 0 | H165: 0 | I165: 0 | J165: 0 | K165: 0 | L165: =F165-K165 -> 0
A166: 4 | C166: ='FR-16(7)(v)-1 Functional'!C166 -> NET PRODUCTION PLANT | F166: =SUM(F164:F165) -> 0 | G166: 0 | H166: 0 | I166: 0 | J166: 0 | K166: 0 | L166: 0
A167: 5
A168: 6 | B168: TRANSMISSION PLANT
A169: 7 | C169: ='FR-16(7)(v)-1 Functional'!C169 -> TRANSMISSION PLANT IN SERVICE | F169: =F63 -> 0 | G169: =$G$63 -> 0 | H169: =$H$63 -> 0 | I169: =$I$63 -> 0 | J169: =$J$63 -> 0 | K169: =$K$63 -> 0 | L169: =F169-K169 -> 0
A170: 8 | C170: ='FR-16(7)(v)-1 Functional'!C170 -> TOTAL TRANS DEPREC RESERVE | F170: =-F119 -> 0 | G170: 0 | H170: 0 | I170: 0 | J170: 0 | K170: 0 | L170: =F170-K170 -> 0
A171: 9 | C171: ='FR-16(7)(v)-1 Functional'!C171 -> NET TRANSMISSION PLANT | F171: =SUM(F168:F170) -> 0 | G171: 0 | H171: 0 | I171: 0 | J171: 0 | K171: 0 | L171: 0
A172: 10
A173: 11 | B173: DISTRIBUTION PLANT
A174: 12 | C174: ='FR-16(7)(v)-1 Functional'!C174 -> DISTRIBUTION PLANT IN SERVICE | F174: =F78 -> 351013455 | G174: 305144802 | H174: 43897771 | I174: 1196641 | J174: 774241 | K174: 351013455 | L174: =F174-K174 -> 0
A175: 13 | C175: ='FR-16(7)(v)-1 Functional'!C175 -> TOTAL DIST DEPREC RESERVE | F175: =-F131 -> -89063113 | G175: -77631833 | H175: -11158105 | I175: -170082 | J175: -103093 | K175: -89063113 | L175: =F175-K175 -> 0
A176: 14 | C176: ='FR-16(7)(v)-1 Functional'!C176 -> NET DISTRIBUTION PLANT | F176: =SUM(F173:F175) -> 261950342 | G176: 227512969 | H176: 32739666 | I176: 1026559 | J176: 671148 | K176: 261950342 | L176: 0
A177: 15
A178: 16 | B178: NET PTD PLANT | F178: =F176+F171+F166 -> 261950342 | G178: 227512969 | H178: 32739666 | I178: 1026559 | J178: 671148 | K178: 261950342 | L178: 0
A179: 17 | B179: NET TRANS & DIST PLANT | F179: =F176+F171 -> 261950342 | G179: 227512969 | H179: 32739666 | I179: 1026559 | J179: 671148 | K179: 261950342 | L179: 0
A180: 18
A181: 19 | B181: GENERAL & INTANGIBLE PLANT
A182: 20 | C182: ='FR-16(7)(v)-1 Functional'!C182 -> GEN & INTANG PLANT IN SERVICE | F182: =F90 -> 14987993 | G182: 12687697 | H182: 1896446 | I182: 299959 | J182: 103891 | K182: 14987993 | L182: =F182-K182 -> 0
A183: 21 | C183: ='FR-16(7)(v)-1 Functional'!C183 -> TOTAL GEN & INTG DEPREC RESERVE | F183: =-F140 -> -7378477 | G183: -6246058 | H183: -933606 | I183: -147668 | J183: -51145 | K183: -7378477 | L183: =F183-K183 -> 0
A184: 22 | C184: ='FR-16(7)(v)-1 Functional'!C184 -> NET GENERAL & INTANG PLANT | F184: =SUM(F181:F183) -> 7609516 | G184: 6441639 | H184: 962840 | I184: 152291 | J184: 52746 | K184: 7609516 | L184: 0
A185: 23
A186: 24 | B186: COMMON & OTHER PLANT
A187: 25 | C187: ='FR-16(7)(v)-1 Functional'!C187 -> COMMON & OTH PLT IN SERVICE | F187: =F99 -> 4820407 | G187: 4080591 | H187: 609931 | I187: 96472 | J187: 33413 | K187: 4820407 | L187: =F187-K187 -> 0
A188: 26 | C188: ='FR-16(7)(v)-1 Functional'!C188 -> TOTAL COM & OTH DEPREC RESERVE | F188: =-F149 -> -3374520 | G188: -2856612 | H188: -426981 | I188: -67536 | J188: -23391 | K188: -3374520 | L188: =F188-K188 -> 0
A189: 27 | C189: ='FR-16(7)(v)-1 Functional'!C189 -> NET COMMON & OTHER PLANT | F189: =SUM(F186:F188) -> 1445887 | G189: 1223979 | H189: 182950 | I189: 28936 | J189: 10022 | K189: 1445887 | L189: 0
A190: 28
A191: 29 | C191: ='FR-16(7)(v)-1 Functional'!C191 -> NET GAS PLANT IN SERVICE | F191: =F189+F184+F176+F171+F166 -> 271005745 | G191: 235178587 | H191: 33885456 | I191: 1207786 | J191: 733916 | K191: 271005745 | L191: 0
A193: =co_name -> DUKE ENERGY KENTUCKY, INC. | K193: =$K$1 -> FR-16(7)(v)-6
A194: =$A$2 -> DISTRIBUTION CUSTOMER ALLOCATED - GAS COST OF SERVICE | K194: =$K$2 -> WITNESS RESPONSIBLE:
A195: =case_name -> CASE NO: 2021-00190 | K195: =Witness -> JAMES E. ZIOLKOWSKI
A196: =data_filing -> DATA: 12 MONTH FORECASTED PERIOD | K196: ="PAGE "&Pages-13&" OF "&Pages -> PAGE 5 OF 18
A197: =type -> TYPE OF FILING: "X" ORIGINAL UPDATED REVISED
F199: =$F$7 -> TOTAL
A200: LINE | F200: =$F$8 -> DISTRIBUTION | G200: =$G$8 -> RS | H200: =$H$8 -> GS | I200: =$I$8 -> FT-L | J200: =$J$8 -> INTERUPT | K200: TOTAL | L200: ALL
A201: NO. | B201: SUBTRACTIVE RATE BASE ADJUSTMENTS | D201: ALLO | F201: =$F$9 -> CUSTOMER | G201: =$G$9 -> RESIDENTIAL | H201: =$H$9 -> GEN SERV | I201: =$I$9 -> FIRM TRANS | J201: =$J$9 -> TRANS | K201: AT ISSUE | L201: OTHER
C202: Schedule 5 | G202: =$G$10 -> 3 | H202: =$H$10 -> 4 | I202: =$I$10 -> 5 | J202: =$J$10 -> 6
A203: 1 | B203: RATE BASE ADJUSTMENTS
A204: 2 | B204: ACCUMULATED DEFERRED INCOME TAXES
A205: 3 | B205: ACCUM DEF INC TAXES (282)
A206: 4 | C206: ='FR-16(7)(v)-1 Functional'!C206 -> LIBERALIZED DEPRECIATION | D206: ='FR-16(7)(v)-1 Functional'!D206 -> NP29 | F206: ='FR-16(7)(v)-4 DISTR Classified'!I206 -> 31679065 | G206: =F206-SUM(H206:J206) -> 27490776 | H206: =ROUND($F$206*VLOOKUP($D$206,ALLOCTABLE_DISTR_CUSTOMER,$H$10,FALSE),0) -> 3961150 | I206: =ROUND(F206*VLOOKUP(D206,ALLOCTABLE_DISTR_CUSTOMER,$I$10,FALSE),0) -> 141289 | J206: =ROUND(F206*VLOOKUP(D206,ALLOCTABLE_DISTR_CUSTOMER,$J$10,FALSE),0) -> 85850 | K206: =SUM(G206:J206) -> 31679065 | L206: =F206-K206 -> 0
A207: 5 | C207: ='FR-16(7)(v)-1 Functional'!C207 -> LEASED METERS | D207: ='FR-16(7)(v)-1 Functional'!D207 -> K413 | F207: ='FR-16(7)(v)-4 DISTR Classified'!I207 -> 0 | G207: 0 | H207: =ROUND($F$207*VLOOKUP($D$207,ALLOCTABLE_DISTR_CUSTOMER,$H$10,FALSE),0) -> 0 | I207: 0 | J207: 0 | K207: 0 | L207: 0
A208: 6 | C208: ='FR-16(7)(v)-1 Functional'!C208 -> CONTRIB AID CONSTR | D208: ='FR-16(7)(v)-1 Functional'!D208 -> D249 | F208: ='FR-16(7)(v)-4 DISTR Classified'!I208 -> -721528 | G208: -626676 | H208: =ROUND($F$208*VLOOKUP($D$208,ALLOCTABLE_DISTR_CUSTOMER,$H$10,FALSE),0) -> -90177 | I208: -2828 | J208: -1847 | K208: -721528 | L208: 0
A209: 7 | C209: ='FR-16(7)(v)-1 Functional'!C209 -> CAPITALIZED INTEREST | D209: ='FR-16(7)(v)-1 Functional'!D209 -> NP29 | F209: ='FR-16(7)(v)-4 DISTR Classified'!I209 -> -746494 | G209: -647800 | H209: =ROUND($F$209*VLOOKUP($D$209,ALLOCTABLE_DISTR_CUSTOMER,$H$10,FALSE),0) -> -93342 | I209: -3329 | J209: -2023 | K209: -746494 | L209: 0
... 655 more rows

Sheet FR-16(7)(v)-7 STOR Classified (hidden)
A1: =co_name -> DUKE ENERGY KENTUCKY, INC. | J1: FR-16(7)(v)-7
A2: STORAGE CLASSIFIED - GAS COST OF SERVICE | J2: WITNESS RESPONSIBLE:
A3: =case_name -> CASE NO: 2021-00190 | J3: =Witness -> JAMES E. ZIOLKOWSKI
A4: =data_filing -> DATA: 12 MONTH FORECASTED PERIOD | J4: ="PAGE "&Pages2-14&" OF "&Pages2 -> PAGE 1 OF 15
A5: =type -> TYPE OF FILING: "X" ORIGINAL UPDATED REVISED
A8: LINE | F8: TOTAL | G8: CLASSIFIED | J8: TOTAL | K8: ALL
A9: NO. | B9: SUMMARY OF RESULTS | D9: ALLO | F9: STORAGE | G9: DEMAND | H9: COMMODITY | I9: CUSTOMER | J9: AT ISSUE | K9: OTHER
C10: Schedule 1 | G10: 3 | H10: 4 | I10: 5
A11: 1 | B11: NET INCOME COMPUTATION
A12: 2 | C12: ='FR-16(7)(v)-1 Functional'!C12 -> GROSS GAS PLANT IN SERVICE | F12: =F101 -> 0 | G12: 0 | H12: 0 | I12: 0 | J12: 0 | K12: 0
A13: 3 | C13: ='FR-16(7)(v)-1 Functional'!C13 -> TOTAL DEPRECIATION RESERVE | F13: =-F151 -> 0 | G13: 0 | H13: 0 | I13: 0 | J13: 0 | K13: 0
A14: 4 | C14: ='FR-16(7)(v)-1 Functional'!C14 -> TOTAL RATE BASE ADJUSTMENTS | F14: =F326 -> 0 | G14: 0 | H14: 0 | I14: 0 | J14: 0 | K14: 0
A15: 5 | C15: ='FR-16(7)(v)-1 Functional'!C15 -> TOTAL RATE BASE | F15: =SUM(F12:F14) -> 0 | G15: 0 | H15: 0 | I15: 0 | J15: 0 | K15: 0
A16: 6
A17: 7 | B17: OPERATING EXPENSES
A18: 8 | C18: ='FR-16(7)(v)-1 Functional'!C18 -> TOTAL O&M EXPENSE | F18: =F433 -> 0 | G18: 0 | H18: 0 | I18: 0 | J18: 0 | K18: 0
A19: 9 | C19: ='FR-16(7)(v)-1 Functional'!C19 -> TOTAL DEPRECIATION EXPENSE | F19: =F465 -> 0 | G19: 0 | H19: 0 | I19: 0 | J19: 0 | K19: 0
A20: 10 | C20: ='FR-16(7)(v)-1 Functional'!C20 -> TOTAL OTHER TAX & MISC EXPENSE | F20: =F495 -> 0 | G20: =$G$495 -> 0 | H20: =$H$495 -> 0 | I20: =$I$495 -> 0 | J20: =$J$495 -> 0 | K20: =$K$495 -> 0
A21: 11 | C21: ='FR-16(7)(v)-1 Functional'!C21 -> TOTAL OP EXP EXCLUDING INC & REV TAX | F21: =SUM(F17:F20) -> 0 | G21: 0 | H21: 0 | I21: 0 | J21: 0 | K21: 0
A22: 12 | C22: ='FR-16(7)(v)-1 Functional'!C22 -> NET FED INCOME TAX EXP ALLOWABLE | F22: =F557 -> 342298 | G22: =$G$557 ->  | H22: =$H$557 ->  | I22: =$I$557 ->  | J22: =$J$557 ->  | K22: =$K$557 -> 
A23: 13 | C23: ='FR-16(7)(v)-1 Functional'!C23 -> NET STATE INCOME TAX EXP ALLOWABLE | F23: =F605 -> 332509 | G23: =G605 ->  | H23: =H605 ->  | I23: =I605 ->  | J23: =J605 ->  | K23: =K646 -> 
A24: 14 | C24: ='FR-16(7)(v)-1 Functional'!C24 -> TOTAL OPERATING EXPENSE | F24: =SUM(F21:F23) -> 674807
A25: 15
A26: 16 | B26: RETURN ON RATE BASE | F26: =F334 -> 0 | G26: 0 | H26: 0 | I26: 0 | J26: 0 | K26: 0
A27: 17 | B27: TOTAL OTHER OPERATING REVENUES | F27: =-F630 -> 0 | G27: =-$G$630 -> 0 | H27: =-$H$630 -> 0 | I27: =-$I$630 -> 0 | J27: =-$J$630 -> 0 | K27: =-$K$630 -> 0
A28: 18 | C28: ='FR-16(7)(v)-1 Functional'!C28 -> TOTAL GAS COST OF SERVICE | F28: =SUM(F24:F27) -> 674807
A29: 19 | B29: ADJUSTMENT FOR INTERCLASS SUBSIDIZATION | D29: =1-'WP FR-16(7)(v)Rate Incr (40.0%)'!I11 -> 0.6 | F29: ='WP FR-16(7)(v)Rate Incr (40.0%)'!R20 -> 0 | G29: 0 | H29: 0 | I29: 0 | K29: =$K$495 -> 0
A30: 20 | B30: REQUESTED REVENUES | F30: =F28+F29 -> 674807
A31: 21 | B31: PROPOSED REVENUES | F31: =F745 -> 0 | G31: =G745 ->  | H31: =H745 ->  | I31: =I745 ->  | J31: =K745 ->  | K31: =L745 -> 0
A32: 22 | B32: DIFFERENCE (REQUESTED LESS PROPOSED) | F32: =F30-F31 -> 674807
A33: 23
A34: 24 | B34: TOTAL RETURN EARNED | F34: =F654+F26 -> -222494
A35: 25 | B35: RATE OF RETURN EARNED | F35: =IF(F331=0,0,ROUND(F34/F331,5)) -> 0 | G35: 0 | H35: 0 | I35: 0 | J35: 0 | K35: 0
A36: 26 | B36: TOTAL RATE OF RETURN ALLOWABLE | F36: =$F$688 -> 0.0653 | G36: =F688 -> 0.0653 | H36: =F688 -> 0.0653 | I36: =F688 -> 0.0653 | J36: =$F$688 -> 0.0653 | K36: =F688 -> 0.0653 | N36: Not Part of print range
A37: 27 | B37: RETURN EARNED ON COMMON EQUITY | F37: =IF(F670=0,0,(F35-$F$683-$F$684-$F$686)*$F$673/$F$670) -> -0.03350004939 | G37: =IF(F670=0,0,(G35-F683-F684-F686)*F673/F670) -> -0.03350004939 | H37: =IF(F670=0,0,(H35-F683-F684-F686)*F673/F670) -> -0.03350004939 | I37: =IF(F670=0,0,(I35-F683-F684-F686)*F673/F670) -> -0.03350004939 | J37: =IF(F670=0,0,(J35-F683-F684-F686)*F673/F670) -> -0.03350004939 | K37: =IF(F670=0,0,(K35-F683-F684-F686)*F673/F670) -> -0.03350004939 | N37: Not Filed
A38: 28 | B38: ALLOWED RETURN ON COMMON EQUITY | F38: =IF(F670=0,0,(F36-$F$683-$F$684-$F$686)*$F$673/$F$670) -> 0.09368327766 | G38: =IF(F670=0,0,(G36-F683-F684-F686)*F673/F670) -> 0.09368327766 | H38: =IF(F670=0,0,(H36-F683-F684-F686)*F673/F670) -> 0.09368327766 | I38: =IF(F670=0,0,(I36-F683-F684-F686)*F673/F670) -> 0.09368327766 | J38: =IF($F$670=0,0,(J36-$F$683-$F$684-$F$686)*$F$673/$F$670) -> 0.09368327766 | K38: =IF(F670=0,0,(K36-F683-F684-F686)*F673/F670) -> 0.09368327766
A39: 29
A40: 30 | B40: PRESENT REVENUES | F40: =F744 -> 0 | G40: =G744 ->  | H40: =H744 ->  | I40: =I744 ->  | J40: =K744 ->  | K40: =L744 -> 0
A41: 31 | B41: REVENUE INCREASE JUSTIFIED | F41: =F28-F40 -> 674807
A42: 32 | C42: PER UNIT PRES REV | F42: =IF(F40=0,0,ROUND(F41/F40,5)) -> 0 | K42: 0
A43: 33 | B43: REVENUE INCREASE REQUESTED | F43: =F31-F40 -> 0 | K43: 0
A44: 34 | C44: PER UNIT PRES REV | F44: =IF(F40=0,0,ROUND(F43/F40,5)) -> 0 | K44: 0
A46: =co_name -> DUKE ENERGY KENTUCKY, INC. | J46: =$J$1 -> FR-16(7)(v)-7
A47: =$A$2 -> STORAGE CLASSIFIED - GAS COST OF SERVICE | J47: =$J$2 -> WITNESS RESPONSIBLE:
A48: =case_name -> CASE NO: 2021-00190 | J48: =Witness -> JAMES E. ZIOLKOWSKI
A49: =data_filing -> DATA: 12 MONTH FORECASTED PERIOD | J49: ="PAGE "&Pages2-13&" OF "&Pages2 -> PAGE 2 OF 15
A50: =type -> TYPE OF FILING: "X" ORIGINAL UPDATED REVISED
A53: LINE | F53: =$F$8 -> TOTAL | G53: CLASSIFIED | J53: TOTAL | K53: ALL
A54: NO. | B54: GROSS GAS PLANT IN SERVICE | D54: ALLO | F54: =$F$9 -> STORAGE | G54: DEMAND | H54: COMMODITY | I54: CUSTOMER | J54: AT ISSUE | K54: OTHER
C55: Schedule 2 | G55: =$G$10 -> 3 | H55: =$H$10 -> 4 | I55: =$I$10 -> 5
A56: 1 | B56: PRODUCTION PLANT
A57: 2 | C57: ='FR-16(7)(v)-1 Functional'!C57 -> PRODUCTION PLANT | D57: ='FR-16(7)(v)-1 Functional'!D57 -> K205 | F57: ='FR-16(7)(v)-1 Functional'!H57 -> 0 | G57: =ROUND(F57*VLOOKUP(D57,AllocTable_Classified_Storage,$G$10,FALSE),0) -> 0 | H57: =ROUND(F57*VLOOKUP(D57,AllocTable_Classified_Storage,$H$10,FALSE),0) -> 0 | I57: =ROUND(F57*VLOOKUP(D57,AllocTable_Classified_Storage,$I$10,FALSE),0) -> 0 | J57: =SUM($G$57:$I$57) -> 0 | K57: =F57-$J$57 -> 0
A58: 3 | C58: ='FR-16(7)(v)-1 Functional'!C58 -> GAS PRODUCTION -CPMPL NOT CLASS | D58: ='FR-16(7)(v)-1 Functional'!D58 -> K205 | F58: ='FR-16(7)(v)-1 Functional'!H58 -> 0 | G58: =ROUND(F58*VLOOKUP(D58,AllocTable_Classified_Storage,$G$10,FALSE),0) -> 0 | H58: =ROUND(F58*VLOOKUP(D58,AllocTable_Classified_Storage,$H$10,FALSE),0) -> 0 | I58: =ROUND(F58*VLOOKUP(D58,AllocTable_Classified_Storage,$I$10,FALSE),0) -> 0 | J58: =SUM($G$58:$I$58) -> 0 | K58: =F58-$J$58 -> 0
A59: 4 | C59: ='FR-16(7)(v)-1 Functional'!C59 -> PRODUCTION PLANT IN SERVICE | F59: =SUM(F57:F58) -> 0 | G59: =SUM($G$57:$G$58) -> 0 | H59: =SUM($H$57:$H$58) -> 0 | I59: =SUM($I$57:$I$58) -> 0 | J59: =SUM($J$57:$J$58) -> 0 | K59: =SUM($K$57:$K$58) -> 0
A60: 5
A61: 6 | B61: TRANSMISSION PLANT
A62: 7 | C62: ='FR-16(7)(v)-1 Functional'!C62 -> TRANSMISSION PLANT
A63: 8 | C63: ='FR-16(7)(v)-1 Functional'!C63 -> TRANSMISSION PLANT IN SERVICE | F63: =SUM(F62) -> 0 | G63: =SUM($G$62) -> 0 | H63: =SUM($H$62) -> 0 | I63: =SUM($I$62) -> 0 | J63: =SUM($J$62) -> 0 | K63: =SUM($K$62) -> 0
A64: 9
A65: 10 | B65: TOTAL PROD & TRANS PLANT | F65: =F63+F59 -> 0 | G65: =$G$63+$G$59 -> 0 | H65: =$H$63+$H$59 -> 0 | I65: =$I$63+$I$59 -> 0 | J65: =$J$63+$J$59 -> 0 | K65: =$K$63+$K$59 -> 0
A66: 11
A67: 12 | B67: DISTRIBUTION PLANT
A68: 13 | C68: ='FR-16(7)(v)-1 Functional'!C68 -> SYSTEM M&R - (2780, 2781) | D68: ='FR-16(7)(v)-1 Functional'!D68 -> K203 | F68: ='FR-16(7)(v)-1 Functional'!H68 -> 0 | G68: =ROUND(F68*VLOOKUP(D68,AllocTable_Classified_Storage,$G$10,FALSE),0) -> 0 | H68: =ROUND(F68*VLOOKUP(D68,AllocTable_Classified_Storage,$H$10,FALSE),0) -> 0 | I68: =ROUND(F68*VLOOKUP(D68,AllocTable_Classified_Storage,$I$10,FALSE),0) -> 0 | J68: =SUM(G68:I68) -> 0 | K68: =F68-J68 -> 0
A69: 14 | C69: ='FR-16(7)(v)-1 Functional'!C69 -> DIST REG EQUIP & CITY GATE M&R- (2782, 2790) | D69: ='FR-16(7)(v)-1 Functional'!D69 -> K203 | F69: ='FR-16(7)(v)-1 Functional'!H69 -> 0 | G69: 0 | H69: 0 | I69: 0 | J69: 0 | K69: 0
A70: 15 | C70: ='FR-16(7)(v)-1 Functional'!C70 -> LARGE IND M&R - (2850, 2851) | D70: ='FR-16(7)(v)-1 Functional'!D70 -> K595 | F70: ='FR-16(7)(v)-1 Functional'!H70 -> 0 | G70: 0 | H70: 0 | I70: 0 | J70: 0 | K70: 0
A71: 16 | C71: ='FR-16(7)(v)-1 Functional'!C71 -> MAINS - (2761, 2762, 2763, 2765) | D71: ='FR-16(7)(v)-1 Functional'!D71 -> K415 | F71: ='FR-16(7)(v)-1 Functional'!H71 -> 0 | G71: 0 | H71: 0 | I71: 0 | J71: 0 | K71: 0
A72: 17 | C72: ='FR-16(7)(v)-1 Functional'!C72 -> SERVICES - (2801, 2802, 2803) | D72: ='FR-16(7)(v)-1 Functional'!D72 -> K403 | F72: ='FR-16(7)(v)-1 Functional'!H72 -> 0 | G72: 0 | H72: 0 | I72: 0 | J72: 0 | K72: 0
A73: 18 | C73: ='FR-16(7)(v)-1 Functional'!C73 -> MTRS & MTR INST (2810, 2811, 2820, 2821) | D73: ='FR-16(7)(v)-1 Functional'!D73 -> K413 | F73: ='FR-16(7)(v)-1 Functional'!H73 -> 0 | G73: 0 | H73: 0 | I73: 0 | J73: 0 | K73: 0
A74: 19 | C74: ='FR-16(7)(v)-1 Functional'!C74 -> LAND, R OF W, STRUCT & IMPROV | D74: ='FR-16(7)(v)-1 Functional'!D74 -> K203 | F74: ='FR-16(7)(v)-1 Functional'!H74 -> 0 | G74: 0 | H74: 0 | I74: 0 | J74: 0 | K74: 0
A75: 20 | C75: ='FR-16(7)(v)-1 Functional'!C75 -> HOUSE REG & INSTALL (2830, 2840) | D75: ='FR-16(7)(v)-1 Functional'!D75 -> K417 | F75: ='FR-16(7)(v)-1 Functional'!H75 -> 0 | G75: 0 | H75: 0 | I75: 0 | J75: 0 | K75: 0
A76: 21 | C76: ='FR-16(7)(v)-1 Functional'!C76 -> STREET LIGHTING EQUIPMENT & OTH | D76: ='FR-16(7)(v)-1 Functional'!D76 -> K597 | F76: ='FR-16(7)(v)-1 Functional'!H76 -> 0 | G76: 0 | H76: 0 | I76: 0 | J76: 0 | K76: 0
A77: 22 | C77: ='FR-16(7)(v)-1 Functional'!C77 -> ASSET RETIREMENT COST FOR DISTRIBUTION PLANT | D77: ='FR-16(7)(v)-1 Functional'!D77 -> K203 | F77: ='FR-16(7)(v)-1 Functional'!H77 -> 0 | G77: 0 | H77: 0 | I77: 0 | J77: 0 | K77: 0
A78: 23 | C78: ='FR-16(7)(v)-1 Functional'!C78 -> DISTRIBUTION PLANT IN SERVICE | F78: =SUM(F68:F77) -> 0 | G78: 0 | H78: 0 | I78: 0 | J78: 0 | K78: 0
A79: 24
A80: 25 | B80: TOTAL TRANS & DIST PLANT | F80: =F78+F63 -> 0 | G80: =G78+$G$63 -> 0 | H80: =H78+$H$63 -> 0 | I80: =I78+$I$63 -> 0 | J80: =J78+$J$63 -> 0 | K80: =K78+$K$63 -> 0
A81: 26 | B81: TOTAL GROSS PTD PLANT | F81: =F78+F65 -> 0 | G81: 0 | H81: 0 | I81: 0 | J81: 0 | K81: 0
A82: 27
A83: 28 | B83: GENERAL & INTANGIBLE PLANT
A84: 29 | C84: ='FR-16(7)(v)-1 Functional'!C84 -> PRODUCTION PLANT | D84: ='FR-16(7)(v)-1 Functional'!D84 -> K201 | F84: ='FR-16(7)(v)-1 Functional'!H84 -> 0 | G84: =ROUND(F84*VLOOKUP(D84,AllocTable_Classified_Storage,$G$10,FALSE),0) -> 0 | H84: =ROUND(F84*VLOOKUP(D84,AllocTable_Classified_Storage,$H$10,FALSE),0) -> 0 | I84: =ROUND(F84*VLOOKUP(D84,AllocTable_Classified_Storage,$I$10,FALSE),0) -> 0 | J84: =SUM(G84:I84) -> 0 | K84: =F84-J84 -> 0
A85: 30 | C85: ='FR-16(7)(v)-1 Functional'!C85 -> PRODUCTION PLANT COMMODITY | D85: ='FR-16(7)(v)-1 Functional'!D85 -> P349 | F85: ='FR-16(7)(v)-1 Functional'!H85 -> 0 | G85: 0 | H85: 0 | I85: 0 | J85: 0 | K85: 0
A86: 31 | C86: ='FR-16(7)(v)-1 Functional'!C86 -> DISTRIBUTION PLANT | D86: ='FR-16(7)(v)-1 Functional'!D86 -> D349 | F86: ='FR-16(7)(v)-1 Functional'!H86 -> 0 | G86: 0 | H86: 0 | I86: 0 | J86: 0 | K86: 0
A87: 32 | C87: ='FR-16(7)(v)-1 Functional'!C87 -> CUSTOMER ACCOUNTING | D87: ='FR-16(7)(v)-1 Functional'!D87 -> CA19 | F87: ='FR-16(7)(v)-1 Functional'!H87 -> 0 | G87: 0 | H87: 0 | I87: 0 | J87: 0 | K87: 0
A88: 33 | C88: ='FR-16(7)(v)-1 Functional'!C88 -> CUSTOMER SERVICE & INFORMATION | D88: ='FR-16(7)(v)-1 Functional'!D88 -> CS19 | F88: ='FR-16(7)(v)-1 Functional'!H88 -> 0 | G88: 0 | H88: 0 | I88: 0 | J88: 0 | K88: 0
A89: 34 | C89: ='FR-16(7)(v)-1 Functional'!C89 -> SALES | D89: ='FR-16(7)(v)-1 Functional'!D89 -> SE19 | F89: ='FR-16(7)(v)-1 Functional'!H89 -> 0 | G89: 0 | H89: 0 | I89: 0 | J89: 0 | K89: 0
A90: 35 | C90: ='FR-16(7)(v)-1 Functional'!C90 -> GEN & INTANG PLANT IN SERVICE | F90: =SUM(F84:F89) -> 0 | G90: 0 | H90: 0 | I90: 0 | J90: 0 | K90: 0
A91: 36
A92: 37 | B92: COMMON & OTHER PLANT
A93: 38 | C93: ='FR-16(7)(v)-1 Functional'!C93 -> PRODUCTION PLANT | D93: ='FR-16(7)(v)-1 Functional'!D93 -> K201 | F93: ='FR-16(7)(v)-1 Functional'!H93 -> 0 | G93: =ROUND(F93*VLOOKUP(D93,AllocTable_Classified_Storage,$G$10,FALSE),0) -> 0 | H93: =ROUND(F93*VLOOKUP(D93,AllocTable_Classified_Storage,$H$10,FALSE),0) -> 0 | I93: =ROUND(F93*VLOOKUP(D93,AllocTable_Classified_Storage,$I$10,FALSE),0) -> 0 | J93: =SUM(G93:I93) -> 0 | K93: =F93-J93 -> 0
A94: 39 | C94: ='FR-16(7)(v)-1 Functional'!C94 -> PRODUCTION PLANT COMMODITY | D94: ='FR-16(7)(v)-1 Functional'!D94 -> P349 | F94: ='FR-16(7)(v)-1 Functional'!H94 -> 0 | G94: 0 | H94: 0 | I94: 0 | J94: 0 | K94: 0
A95: 40 | C95: ='FR-16(7)(v)-1 Functional'!C95 -> DISTRIBUTION PLANT | D95: ='FR-16(7)(v)-1 Functional'!D95 -> D349 | F95: ='FR-16(7)(v)-1 Functional'!H95 -> 0 | G95: 0 | H95: 0 | I95: 0 | J95: 0 | K95: 0
A96: 41 | C96: ='FR-16(7)(v)-1 Functional'!C96 -> CUSTOMER ACCOUNTING | D96: ='FR-16(7)(v)-1 Functional'!D96 -> CA19 | F96: ='FR-16(7)(v)-1 Functional'!H96 -> 0 | G96: 0 | H96: 0 | I96: 0 | J96: 0 | K96: 0
A97: 42 | C97: ='FR-16(7)(v)-1 Functional'!C97 -> CUSTOMER SERVICE & INFORMATION | D97: ='FR-16(7)(v)-1 Functional'!D97 -> CS19 | F97: ='FR-16(7)(v)-1 Functional'!H97 -> 0 | G97: 0 | H97: 0 | I97: 0 | J97: 0 | K97: 0
A98: 43 | C98: ='FR-16(7)(v)-1 Functional'!C98 -> SALES | D98: ='FR-16(7)(v)-1 Functional'!D98 -> SE19 | F98: ='FR-16(7)(v)-1 Functional'!H98 -> 0 | G98: 0 | H98: 0 | I98: 0 | J98: 0 | K98: 0
A99: 44 | C99: ='FR-16(7)(v)-1 Functional'!C99 -> COMMON & OTHER PLANT IN SERVICE | F99: =SUM(F93:F98) -> 0 | G99: 0 | H99: 0 | I99: 0 | J99: 0 | K99: 0
A100: 45
A101: 46 | B101: GROSS GAS PLANT IN SERVICE | F101: =F81+F90+F99 -> 0 | G101: 0 | H101: 0 | I101: 0 | J101: 0 | K101: 0
A103: =co_name -> DUKE ENERGY KENTUCKY, INC. | J103: =$J$1 -> FR-16(7)(v)-7
A104: =$A$2 -> STORAGE CLASSIFIED - GAS COST OF SERVICE | J104: =$J$2 -> WITNESS RESPONSIBLE:
A105: =case_name -> CASE NO: 2021-00190 | J105: =Witness -> JAMES E. ZIOLKOWSKI
A106: =data_filing -> DATA: 12 MONTH FORECASTED PERIOD | J106: ="PAGE "&Pages2-12&" OF "&Pages2 -> PAGE 3 OF 15
A107: =type -> TYPE OF FILING: "X" ORIGINAL UPDATED REVISED
A110: LINE | F110: =$F$8 -> TOTAL | G110: CLASSIFIED | J110: TOTAL | K110: ALL
A111: NO. | B111: DEPRECIATION RESERVE | D111: ALLO | F111: =$F$9 -> STORAGE | G111: DEMAND | H111: COMMODITY | I111: CUSTOMER | J111: AT ISSUE | K111: OTHER
C112: Schedule 3 | G112: =$G$10 -> 3 | H112: =$H$10 -> 4 | I112: =$I$10 -> 5
A113: 1 | B113: PRODUCTION PLANT
A114: 2 | C114: ='FR-16(7)(v)-1 Functional'!C114 -> PRODUCTION PLANT | D114: ='FR-16(7)(v)-1 Functional'!D114 -> K205 | F114: ='FR-16(7)(v)-1 Functional'!H114 -> 0 | G114: =F114-SUM(H114:I114) -> 0 | H114: =ROUND(F114*VLOOKUP(D114,AllocTable_Classified_Storage,$H$10,FALSE),0) -> 0 | I114: =ROUND(F114*VLOOKUP(D114,AllocTable_Classified_Storage,$I$10,FALSE),0) -> 0 | J114: =SUM(G114:I114) -> 0 | K114: =F114-J114 -> 0
A115: 3 | C115: ='FR-16(7)(v)-1 Functional'!C115 -> TOTAL PROD DEPREC RESERVE | F115: =SUM(F114:F114) -> 0 | G115: 0 | H115: 0 | I115: 0 | J115: 0 | K115: 0
A116: 4
A117: 5 | B117: TRANSMISSION PLANT
A118: 6 | C118: ='FR-16(7)(v)-1 Functional'!C118 -> TRANSMISSION PLANT
A119: 7 | C119: ='FR-16(7)(v)-1 Functional'!C119 -> TOTAL TRANS DEPREC RESERVE | F119: =SUM(F118:F118) -> 0 | G119: 0 | H119: 0 | I119: 0 | J119: 0 | K119: 0
A120: 8
A121: 9 | B121: DISTRIBUTION PLANT
A122: 10 | C122: ='FR-16(7)(v)-1 Functional'!C122 -> SYSTEM M&R - (2780, 2781) | D122: ='FR-16(7)(v)-1 Functional'!D122 -> K203 | F122: ='FR-16(7)(v)-1 Functional'!H122 -> 0 | G122: =F122-SUM(H122:I122) -> 0 | H122: =ROUND(F122*VLOOKUP(D122,AllocTable_Classified_Storage,$H$10,FALSE),0) -> 0 | I122: =ROUND(F122*VLOOKUP(D122,AllocTable_Classified_Storage,$I$10,FALSE),0) -> 0 | J122: =SUM(G122:I122) -> 0 | K122: =F122-J122 -> 0
A123: 11 | C123: ='FR-16(7)(v)-1 Functional'!C123 -> DIST REG EQUIP & CITY GATE M&R- (2782, 2790) | D123: ='FR-16(7)(v)-1 Functional'!D123 -> K203 | F123: ='FR-16(7)(v)-1 Functional'!H123 -> 0 | G123: 0 | H123: 0 | I123: 0 | J123: 0 | K123: 0
A124: 12 | C124: ='FR-16(7)(v)-1 Functional'!C124 -> LARGE IND M&R - (2850, 2851) | D124: ='FR-16(7)(v)-1 Functional'!D124 -> K595 | F124: ='FR-16(7)(v)-1 Functional'!H124 -> 0 | G124: 0 | H124: 0 | I124: 0 | J124: 0 | K124: 0
A125: 13 | C125: ='FR-16(7)(v)-1 Functional'!C125 -> MAINS - (2761, 2762, 2763, 2765) | D125: ='FR-16(7)(v)-1 Functional'!D125 -> K415 | F125: ='FR-16(7)(v)-1 Functional'!H125 -> 0 | G125: 0 | H125: 0 | I125: 0 | J125: 0 | K125: 0
A126: 14 | C126: ='FR-16(7)(v)-1 Functional'!C126 -> SERVICES - (2801, 2802, 2803) | D126: ='FR-16(7)(v)-1 Functional'!D126 -> K403 | F126: ='FR-16(7)(v)-1 Functional'!H126 -> 0 | G126: 0 | H126: 0 | I126: 0 | J126: 0 | K126: 0
A127: 15 | C127: ='FR-16(7)(v)-1 Functional'!C127 -> MTRS & MTR INST (2810, 2811, 2820, 2821) | D127: ='FR-16(7)(v)-1 Functional'!D127 -> K413 | F127: ='FR-16(7)(v)-1 Functional'!H127 -> 0 | G127: 0 | H127: 0 | I127: 0 | J127: 0 | K127: 0
A128: 16 | C128: ='FR-16(7)(v)-1 Functional'!C128 -> LAND, R OF W, STRUCT & IMPROV & OTH | D128: ='FR-16(7)(v)-1 Functional'!D128 -> K203 | F128: ='FR-16(7)(v)-1 Functional'!H128 -> 0 | G128: 0 | H128: 0 | I128: 0 | J128: 0 | K128: 0
A129: 17 | C129: ='FR-16(7)(v)-1 Functional'!C129 -> HOUSE REG & INSTALL (2830, 2840) | D129: ='FR-16(7)(v)-1 Functional'!D129 -> K417 | F129: ='FR-16(7)(v)-1 Functional'!H129 -> 0 | G129: 0 | H129: 0 | I129: 0 | J129: 0 | K129: 0
A130: 18 | C130: ='FR-16(7)(v)-1 Functional'!C130 -> STREET LIGHTING EQUIPMENT & OTH | D130: ='FR-16(7)(v)-1 Functional'!D130 -> K597 | F130: ='FR-16(7)(v)-1 Functional'!H130 -> 0 | G130: 0 | H130: 0 | I130: 0 | J130: 0 | K130: 0
A131: 19 | C131: ='FR-16(7)(v)-1 Functional'!C131 -> TOTAL DIST DEPREC RESERVE | F131: =SUM(F121:F130) -> 0 | G131: 0 | H131: 0 | I131: 0 | J131: 0 | K131: 0
A132: 20
A133: 21 | B133: GENERAL & INTANGIBLE PLANT
A134: 22 | C134: ='FR-16(7)(v)-1 Functional'!C134 -> PRODUCTION PLANT | D134: ='FR-16(7)(v)-1 Functional'!D134 -> K201 | F134: ='FR-16(7)(v)-1 Functional'!H134 -> 0 | G134: =F134-SUM(H134:I134) -> 0 | H134: =ROUND(F134*VLOOKUP(D134,AllocTable_Classified_Storage,$H$10,FALSE),0) -> 0 | I134: =ROUND(F134*VLOOKUP(D134,AllocTable_Classified_Storage,$I$10,FALSE),0) -> 0 | J134: =SUM(G134:I134) -> 0 | K134: =F134-J134 -> 0
A135: 23 | C135: ='FR-16(7)(v)-1 Functional'!C135 -> PRODUCTION PLANT COMMODITY | D135: ='FR-16(7)(v)-1 Functional'!D135 -> P349 | F135: ='FR-16(7)(v)-1 Functional'!H135 -> 0 | G135: 0 | H135: 0 | I135: 0 | J135: 0 | K135: 0
A136: 24 | C136: ='FR-16(7)(v)-1 Functional'!C136 -> DISTRIBUTION PLANT | D136: ='FR-16(7)(v)-1 Functional'!D136 -> D349 | F136: ='FR-16(7)(v)-1 Functional'!H136 -> 0 | G136: 0 | H136: 0 | I136: 0 | J136: 0 | K136: 0
A137: 25 | C137: ='FR-16(7)(v)-1 Functional'!C137 -> CUSTOMER ACCOUNTING | D137: ='FR-16(7)(v)-1 Functional'!D137 -> CA19 | F137: ='FR-16(7)(v)-1 Functional'!H137 -> 0 | G137: 0 | H137: 0 | I137: 0 | J137: 0 | K137: 0
A138: 26 | C138: ='FR-16(7)(v)-1 Functional'!C138 -> CUSTOMER SERVICE & INFORMATION | D138: ='FR-16(7)(v)-1 Functional'!D138 -> CS19 | F138: ='FR-16(7)(v)-1 Functional'!H138 -> 0 | G138: 0 | H138: 0 | I138: 0 | J138: 0 | K138: 0
A139: 27 | C139: ='FR-16(7)(v)-1 Functional'!C139 -> SALES | D139: ='FR-16(7)(v)-1 Functional'!D139 -> SE19 | F139: ='FR-16(7)(v)-1 Functional'!H139 -> 0 | G139: 0 | H139: 0 | I139: 0 | J139: 0 | K139: 0
A140: 28 | C140: ='FR-16(7)(v)-1 Functional'!C140 -> TOTAL GEN DEPREC RESERVE | F140: =SUM(F133:F139) -> 0 | G140: 0 | H140: 0 | I140: 0 | J140: 0 | K140: 0
A141: 29
A142: 30 | B142: COMMON & OTHER PLANT
A143: 31 | C143: ='FR-16(7)(v)-1 Functional'!C143 -> PRODUCTION PLANT | D143: ='FR-16(7)(v)-1 Functional'!D143 -> K201 | F143: ='FR-16(7)(v)-1 Functional'!H143 -> 0 | G143: =F143-SUM(H143:I143) -> 0 | H143: =ROUND(F143*VLOOKUP(D143,AllocTable_Classified_Storage,$H$10,FALSE),0) -> 0 | I143: =ROUND(F143*VLOOKUP(D143,AllocTable_Classified_Storage,$I$10,FALSE),0) -> 0 | J143: =SUM(G143:I143) -> 0 | K143: =F143-J143 -> 0
A144: 32 | C144: ='FR-16(7)(v)-1 Functional'!C144 -> PRODUCTION PLANT COMMODITY | D144: ='FR-16(7)(v)-1 Functional'!D144 -> P349 | F144: ='FR-16(7)(v)-1 Functional'!H144 -> 0 | G144: 0 | H144: 0 | I144: 0 | J144: 0 | K144: 0
A145: 33 | C145: ='FR-16(7)(v)-1 Functional'!C145 -> DISTRIBUTION PLANT | D145: ='FR-16(7)(v)-1 Functional'!D145 -> D349 | F145: ='FR-16(7)(v)-1 Functional'!H145 -> 0 | G145: 0 | H145: 0 | I145: 0 | J145: 0 | K145: 0
A146: 34 | C146: ='FR-16(7)(v)-1 Functional'!C146 -> CUSTOMER ACCOUNTING | D146: ='FR-16(7)(v)-1 Functional'!D146 -> CA19 | F146: ='FR-16(7)(v)-1 Functional'!H146 -> 0 | G146: 0 | H146: 0 | I146: 0 | J146: 0 | K146: 0
A147: 35 | C147: ='FR-16(7)(v)-1 Functional'!C147 -> CUSTOMER SERVICE & INFORMATION | D147: ='FR-16(7)(v)-1 Functional'!D147 -> CS19 | F147: ='FR-16(7)(v)-1 Functional'!H147 -> 0 | G147: 0 | H147: 0 | I147: 0 | J147: 0 | K147: 0
A148: 36 | C148: ='FR-16(7)(v)-1 Functional'!C148 -> SALES | D148: ='FR-16(7)(v)-1 Functional'!D148 -> SE19 | F148: ='FR-16(7)(v)-1 Functional'!H148 -> 0 | G148: 0 | H148: 0 | I148: 0 | J148: 0 | K148: 0
A149: 37 | C149: ='FR-16(7)(v)-1 Functional'!C149 -> TOTAL COM & OTHER PLT RESERVE | F149: =SUM(F143:F148) -> 0 | G149: =SUM(G142:G148) -> 0 | H149: =SUM(H142:H148) -> 0 | I149: =SUM(I142:I148) -> 0 | J149: =SUM(J142:J148) -> 0 | K149: =SUM(K142:K148) -> 0
A150: 38
A151: 39 | B151: TOTAL DEPRECIATION RESERVE | F151: =F149+F140+F131+F119+F115 -> 0 | G151: 0 | H151: 0 | I151: 0 | J151: 0 | K151: 0
A153: =co_name -> DUKE ENERGY KENTUCKY, INC. | J153: =$J$1 -> FR-16(7)(v)-7
A154: =$A$2 -> STORAGE CLASSIFIED - GAS COST OF SERVICE | J154: =$J$2 -> WITNESS RESPONSIBLE:
A155: =case_name -> CASE NO: 2021-00190 | J155: =Witness -> JAMES E. ZIOLKOWSKI
A156: =data_filing -> DATA: 12 MONTH FORECASTED PERIOD | J156: ="PAGE "&Pages2-11&" OF "&Pages2 -> PAGE 4 OF 15
A157: =type -> TYPE OF FILING: "X" ORIGINAL UPDATED REVISED
A160: LINE | F160: =$F$8 -> TOTAL | G160: CLASSIFIED | J160: TOTAL | K160: ALL
A161: NO. | B161: ="NET GAS PLANT" -> NET GAS PLANT | D161: ALLO | F161: =$F$9 -> STORAGE | G161: DEMAND | H161: COMMODITY | I161: CUSTOMER | J161: AT ISSUE | K161: OTHER
C162: Schedule 4 | G162: =$G$10 -> 3 | H162: =$H$10 -> 4 | I162: =$I$10 -> 5
A163: 1 | B163: PRODUCTION PLANT
A164: 2 | C164: ='FR-16(7)(v)-1 Functional'!C164 -> PRODUCTION PLANT IN SERVICE | F164: =F59 -> 0 | G164: =$G$59 -> 0 | H164: =$H$59 -> 0 | I164: =$I$59 -> 0 | J164: =$J$59 -> 0 | K164: =F164-J164 -> 0
A165: 3 | C165: ='FR-16(7)(v)-1 Functional'!C165 -> TOTAL PROD DEPRC RESERVE | F165: =-F115 -> 0 | G165: =-G115 -> 0 | H165: =-H115 -> 0 | I165: =-I115 -> 0 | J165: =-J115 -> 0 | K165: =F165-J165 -> 0
A166: 4 | C166: ='FR-16(7)(v)-1 Functional'!C166 -> NET PRODUCTION PLANT | F166: =SUM(F164:F165) -> 0 | G166: 0 | H166: 0 | I166: 0 | J166: 0 | K166: 0
A167: 5
A168: 6 | B168: TRANSMISSION PLANT
A169: 7 | C169: ='FR-16(7)(v)-1 Functional'!C169 -> TRANSMISSION PLANT IN SERVICE | F169: =F63 -> 0 | G169: =$G$63 -> 0 | H169: =$H$63 -> 0 | I169: =$I$63 -> 0 | J169: =$J$63 -> 0 | K169: =F169-J169 -> 0
A170: 8 | C170: ='FR-16(7)(v)-1 Functional'!C170 -> TOTAL TRANS DEPREC RESERVE | F170: =-F119 -> 0 | G170: =-G119 -> 0 | H170: =-H119 -> 0 | I170: =-I119 -> 0 | J170: =-J119 -> 0 | K170: =F170-J170 -> 0
A171: 9 | C171: ='FR-16(7)(v)-1 Functional'!C171 -> NET TRANSMISSION PLANT | F171: =SUM(F168:F170) -> 0 | G171: 0 | H171: 0 | I171: 0 | J171: 0 | K171: 0
A172: 10
A173: 11 | B173: DISTRIBUTION PLANT
A174: 12 | C174: ='FR-16(7)(v)-1 Functional'!C174 -> DISTRIBUTION PLANT IN SERVICE | F174: =F78 -> 0 | G174: =G78 -> 0 | H174: =H78 -> 0 | I174: =I78 -> 0 | J174: =J78 -> 0 | K174: =F174-J174 -> 0
A175: 13 | C175: ='FR-16(7)(v)-1 Functional'!C175 -> TOTAL DIST DEPREC RESERVE | F175: =-F131 -> 0 | G175: =-G131 -> 0 | H175: =-H131 -> 0 | I175: =-I131 -> 0 | J175: =-J131 -> 0 | K175: =F175-J175 -> 0
A176: 14 | C176: ='FR-16(7)(v)-1 Functional'!C176 -> NET DISTRIBUTION PLANT | F176: =SUM(F173:F175) -> 0 | G176: 0 | H176: 0 | I176: 0 | J176: 0 | K176: 0
A177: 15
A178: 16 | B178: NET PTD PLANT | F178: =F176+F171+F166 -> 0 | G178: 0 | H178: 0 | I178: 0 | J178: 0 | K178: 0
A179: 17 | B179: NET TRANS & DIST PLANT | F179: =F176+F171 -> 0 | G179: 0 | H179: 0 | I179: 0 | J179: 0 | K179: 0
A180: 18
A181: 19 | B181: GENERAL & INTANGIBLE PLANT
A182: 20 | C182: ='FR-16(7)(v)-1 Functional'!C182 -> GEN & INTANG PLANT IN SERVICE | F182: =F90 -> 0 | G182: =G90 -> 0 | H182: =H90 -> 0 | I182: =I90 -> 0 | J182: =J90 -> 0 | K182: =F182-J182 -> 0
A183: 21 | C183: ='FR-16(7)(v)-1 Functional'!C183 -> TOTAL GEN & INTG DEPREC RESERVE | F183: =-F140 -> 0 | G183: =-G140 -> 0 | H183: =-H140 -> 0 | I183: =-I140 -> 0 | J183: =-J140 -> 0 | K183: =F183-J183 -> 0
A184: 22 | C184: ='FR-16(7)(v)-1 Functional'!C184 -> NET GENERAL & INTANG PLANT | F184: =SUM(F181:F183) -> 0 | G184: 0 | H184: 0 | I184: 0 | J184: 0 | K184: 0
A185: 23
A186: 24 | B186: COMMON & OTHER PLANT
A187: 25 | C187: ='FR-16(7)(v)-1 Functional'!C187 -> COMMON & OTH PLT IN SERVICE | F187: =F99 -> 0 | G187: =G99 -> 0 | H187: =H99 -> 0 | I187: =I99 -> 0 | J187: =J99 -> 0 | K187: =F187-J187 -> 0
A188: 26 | C188: ='FR-16(7)(v)-1 Functional'!C188 -> TOTAL COM & OTH DEPREC RESERVE | F188: =-F149 -> 0 | G188: =-G149 -> 0 | H188: =-H149 -> 0 | I188: =-I149 -> 0 | J188: =-J149 -> 0 | K188: =F188-J188 -> 0
A189: 27 | C189: ='FR-16(7)(v)-1 Functional'!C189 -> NET COMMON & OTHER PLANT | F189: =SUM(F186:F188) -> 0 | G189: 0 | H189: 0 | I189: 0 | J189: 0 | K189: 0
A190: 28
A191: 29 | C191: ='FR-16(7)(v)-1 Functional'!C191 -> NET GAS PLANT IN SERVICE | F191: =F189+F184+F176+F171+F166 -> 0 | G191: 0 | H191: 0 | I191: 0 | J191: 0 | K191: 0
A193: =co_name -> DUKE ENERGY KENTUCKY, INC. | J193: =$J$1 -> FR-16(7)(v)-7
A194: =$A$2 -> STORAGE CLASSIFIED - GAS COST OF SERVICE | J194: =$J$2 -> WITNESS RESPONSIBLE:
A195: =case_name -> CASE NO: 2021-00190 | J195: =Witness -> JAMES E. ZIOLKOWSKI
A196: =data_filing -> DATA: 12 MONTH FORECASTED PERIOD | J196: ="PAGE "&Pages2-10&" OF "&Pages2 -> PAGE 5 OF 15
A197: =type -> TYPE OF FILING: "X" ORIGINAL UPDATED REVISED
A200: LINE | F200: =$F$8 -> TOTAL | G200: CLASSIFIED | J200: TOTAL | K200: ALL
A201: NO. | B201: SUBTRACTIVE RATE BASE ADJUSTMENTS | D201: ALLO | F201: =$F$9 -> STORAGE | G201: DEMAND | H201: COMMODITY | I201: CUSTOMER | J201: AT ISSUE | K201: OTHER
C202: Schedule 5 | G202: =$G$10 -> 3 | H202: =$H$10 -> 4 | I202: =$I$10 -> 5
A203: 1 | B203: RATE BASE ADJUSTMENTS
A204: 2 | B204: ACCUMULATED DEFERRED INCOME TAXES
A205: 3 | B205: ACCUM DEF INC TAXES (282)
A206: 4 | C206: ='FR-16(7)(v)-1 Functional'!C206 -> LIBERALIZED DEPRECIATION | D206: ='FR-16(7)(v)-1 Functional'!D206 -> NP29 | F206: ='FR-16(7)(v)-1 Functional'!H206 -> 0 | G206: =F206-SUM(H206:I206) -> 0 | H206: =ROUND(F206*VLOOKUP(D206,AllocTable_Classified_Storage,$H$10,FALSE),0) -> 0 | I206: =ROUND(F206*VLOOKUP(D206,AllocTable_Classified_Storage,$I$10,FALSE),0) -> 0 | J206: =SUM(G206:I206) -> 0 | K206: =F206-J206 -> 0
A207: 5 | C207: ='FR-16(7)(v)-1 Functional'!C207 -> LEASED METERS | D207: ='FR-16(7)(v)-1 Functional'!D207 -> K413 | F207: ='FR-16(7)(v)-1 Functional'!H207 -> 0 | G207: 0 | H207: 0 | I207: 0 | J207: 0 | K207: 0
A208: 6 | C208: ='FR-16(7)(v)-1 Functional'!C208 -> CONTRIB AID CONSTR | D208: ='FR-16(7)(v)-1 Functional'!D208 -> D249 | F208: ='FR-16(7)(v)-1 Functional'!H208 -> 0 | G208: 0 | H208: 0 | I208: 0 | J208: 0 | K208: 0
A209: 7 | C209: ='FR-16(7)(v)-1 Functional'!C209 -> CAPITALIZED INTEREST | D209: ='FR-16(7)(v)-1 Functional'!D209 -> NP29 | F209: ='FR-16(7)(v)-1 Functional'!H209 -> 0 | G209: 0 | H209: 0 | I209: 0 | J209: 0 | K209: 0
A210: 8 | C210: ='FR-16(7)(v)-1 Functional'!C210 -> AFUDC IN DEBT | D210: ='FR-16(7)(v)-1 Functional'!D210 -> NP29 | F210: ='FR-16(7)(v)-1 Functional'!H210 -> 0 | G210: 0 | H210: 0 | I210: 0 | J210: 0 | K210: 0
A211: 9 | C211: ='FR-16(7)(v)-1 Functional'!C211 -> CWIP DIFFERENCES | D211: ='FR-16(7)(v)-1 Functional'!D211 -> NP29 | F211: ='FR-16(7)(v)-1 Functional'!H211 -> 0 | G211: 0 | H211: 0 | I211: 0 | J211: 0 | K211: 0
A212: 10 | C212: ='FR-16(7)(v)-1 Functional'!C212 -> NON-CASH OVERHEADS | D212: ='FR-16(7)(v)-1 Functional'!D212 -> AG39 | F212: ='FR-16(7)(v)-1 Functional'!H212 -> 0 | G212: 0 | H212: 0 | I212: 0 | J212: 0 | K212: 0
A213: 11 | C213: ='FR-16(7)(v)-1 Functional'!C213 -> PLANT FAS 109 | D213: ='FR-16(7)(v)-1 Functional'!D213 -> NP29 | F213: ='FR-16(7)(v)-1 Functional'!H213 -> 0 | G213: 0 | H213: 0 | I213: 0 | J213: 0 | K213: 0
A214: 12 | C214: ='FR-16(7)(v)-1 Functional'!C214 -> MISCELLANEOUS | D214: ='FR-16(7)(v)-1 Functional'!D214 -> NP29 | F214: ='FR-16(7)(v)-1 Functional'!H214 -> 0 | G214: 0 | H214: 0 | I214: 0 | J214: 0 | K214: 0
... 636 more rows

Sheet FR-16(7)(v)-8 TOT CLASS Alloc
A1: =co_name -> DUKE ENERGY KENTUCKY, INC. | K1: FR-16(7)(v)-8
A2: TOTAL CLASS ALLOCATED - GAS COST OF SERVICE | K2: WITNESS RESPONSIBLE:
A3: =case_name -> CASE NO: 2021-00190 | K3: =Witness -> JAMES E. ZIOLKOWSKI
A4: =data_filing -> DATA: 12 MONTH FORECASTED PERIOD | K4: ="PAGE "&Pages2-14&" OF "&Pages2 -> PAGE 1 OF 15
A5: =type -> TYPE OF FILING: "X" ORIGINAL UPDATED REVISED
F7: TOTAL
A8: LINE | F8: CLASS | G8: RS | H8: GS | I8: FT-L | J8: INTERUPT | K8: TOTAL | L8: ALL
A9: NO. | B9: SUMMARY OF RESULTS | D9: ALLO | F9: ALLOCATED | G9: RESIDENTIAL | H9: GEN SERV | I9: FIRM TRANS | J9: TRANS | K9: AT ISSUE | L9: OTHER
C10: Schedule 1 | G10: 3 | H10: 4 | I10: 5 | J10: 6
A11: 1 | B11: NET INCOME COMPUTATION
A12: 2 | C12: ='FR-16(7)(v)-1 Functional'!C12 -> GROSS GAS PLANT IN SERVICE | F12: =F101 -> 771808162 | G12: 527735426 | H12: 170180982 | I12: 55974942 | J12: 17916812 | K12: 771808162 | L12: =F12-K12 -> 0 | P12: =H12+I12 -> 226155924
A13: 3 | C13: ='FR-16(7)(v)-1 Functional'!C13 -> TOTAL DEPRECIATION RESERVE | F13: =-F151 -> -206903281 | G13: -143723016 | H13: -42943982 | I13: -15410889 | J13: -4825394 | K13: -206903281 | L13: =F13-K13 -> 0 | P13: =H13+I13 -> -58354871
A14: 4 | C14: ='FR-16(7)(v)-1 Functional'!C14 -> TOTAL RATE BASE ADJUSTMENTS | F14: =F326 -> -98418280.9 | G14: -67040300 | H14: -21661526 | I14: -7345120 | J14: -2371336 | K14: -98418282 | L14: =F14-K14 -> 1.095890403 | P14: =H14+I14 -> -29006646
A15: 5 | C15: ='FR-16(7)(v)-1 Functional'!C15 -> TOTAL RATE BASE | F15: =SUM(F12:F14) -> 466486600.1 | G15: 316972110 | H15: 105575474 | I15: 33218933 | J15: 10720082 | K15: 466486599 | L15: =F15-K15 -> 1.095890403 | P15: =H15+I15 -> 138794407
A16: 6
A17: 7 | B17: OPERATING EXPENSES
A18: 8 | C18: ='FR-16(7)(v)-1 Functional'!C18 -> TOTAL O&M EXPENSE | F18: =F433 -> 60503169 | G18: 39898658 | H18: 18958898 | I18: 1188694 | J18: 456919 | K18: 60503169 | L18: =F18-K18 -> 0 | P18: =H18+I18 -> 20147592
A19: 9 | C19: ='FR-16(7)(v)-1 Functional'!C19 -> TOTAL DEPRECIATION EXPENSE | F19: =F465 -> 18943606.5 | G19: 12898329 | H19: 4260411 | I19: 1373321 | J19: 411546 | K19: 18943607 | L19: -0.4959999993 | P19: 5633732
A20: 10 | C20: ='FR-16(7)(v)-1 Functional'!C20 -> TOTAL OTHER TAX & MISC EXPENSE | F20: =F495 -> 4660434 | G20: =$G$495 -> 3187469 | H20: =$H$495 -> 1046739 | I20: =$I$495 -> 322507 | J20: =$J$495 -> 103719 | K20: =$K$495 -> 4660434 | L20: 0 | P20: 1369246
A21: 11 | C21: ='FR-16(7)(v)-1 Functional'!C21 -> TOTAL OP EXP EXCLUDING INC & REV TAX | F21: =SUM(F17:F20) -> 84107209.5 | G21: 55984456 | H21: 24266048 | I21: 2884522 | J21: 972184 | K21: 84107210 | L21: -0.4959999919 | P21: 27150570
A22: 12 | C22: ='FR-16(7)(v)-1 Functional'!C22 -> NET FED INCOME TAX EXP ALLOWABLE | F22: =F557 -> 5066079 | G22: =$G$557 -> 3395916 | H22: =$H$557 -> 1305046 | I22: =$I$557 -> 266810 | J22: =$J$557 -> 98307 | K22: =$K$557 -> 5066079 | L22: 0 | P22: 1571856
A23: 13 | C23: ='FR-16(7)(v)-1 Functional'!C23 -> NET STATE INCOME TAX EXP ALLOWABLE | F23: =F605 -> 1372785 | G23: =G605 -> 929990 | H23: 319119 | I23: 92314 | J23: 31363 | K23: 1372786 | L23: -1 | P23: 411433
A24: 14 | C24: ='FR-16(7)(v)-1 Functional'!C24 -> TOTAL OPERATING EXPENSE | F24: =SUM(F21:F23) -> 90546073.5 | G24: 60310362 | H24: 25890213 | I24: 3243646 | J24: 1101854 | K24: 90546075 | L24: -1.495999992 | P24: 29133859
A25: 15
A26: 16 | B26: RETURN ON RATE BASE | F26: =F334 -> 30512889 | G26: 20733146 | H26: 6905692 | I26: 2172850 | J26: 701201 | K26: 30512889 | L26: =F26-K26 -> 0 | P26: =H26+I26 -> 9078542
A27: 17 | B27: TOTAL OTHER OPERATING REVENUES | F27: =-F630 -> -310224 | G27: =-$G$630 -> -231974 | H27: =-$H$630 -> -60796 | I27: =-$I$630 -> -13323 | J27: =-$J$630 -> -4131 | K27: =-$K$630 -> -310224 | L27: 0 | P27: =H27+I27 -> -74119
A28: 18 | C28: ='FR-16(7)(v)-1 Functional'!C28 -> TOTAL GAS COST OF SERVICE | F28: =SUM(F24:F27) -> 120748738.5 | G28: 80811534 | H28: 32735109 | I28: 5403173 | J28: 1798924 | K28: 120748740 | L28: -1.495999992 | P28: =H28+I28 -> 38138282
A29: 19 | B29: ADJUSTMENT FOR INTERCLASS SUBSIDIZATION | D29: =1-'WP FR-16(7)(v)Rate Incr (40.0%)'!I11 -> 0.6 | F29: ='WP FR-16(7)(v)Rate Incr (40.0%)'!H20-'WP FR-16(7)(v)Rate Incr (40.0%)'!I20 -> 0 | G29: ='WP FR-16(7)(v)Rate Incr (40.0%)'!H15-'WP FR-16(7)(v)Rate Incr (40.0%)'!I15 -> 531213 | H29: ='WP FR-16(7)(v)Rate Incr (40.0%)'!H16-'WP FR-16(7)(v)Rate Incr (40.0%)'!I16 -> -1192245 | I29: ='WP FR-16(7)(v)Rate Incr (40.0%)'!H17-'WP FR-16(7)(v)Rate Incr (40.0%)'!I17 -> 547627 | J29: ='WP FR-16(7)(v)Rate Incr (40.0%)'!H18-'WP FR-16(7)(v)Rate Incr (40.0%)'!I18 -> 113405 | K29: =SUM(G29:J29) -> 0 | L29: 0
A30: 20 | B30: REQUESTED REVENUES | F30: =F28+F29 -> 120748738.5 | G30: 81342747 | H30: 31542864 | I30: 5950800 | J30: 1912329 | K30: 120748740 | L30: -1.495999992
A31: 21 | B31: PROPOSED REVENUES | F31: =SUM(G31:J31) -> 120790941 | G31: ='FR-16(7)(v)-6 DISTR Cust Alloc'!G31+'FR-16(7)(v)-5 DISTR Dem Alloc'!G31+'FR-16(7)(v)-3 PROD Comm Alloc'!G31 -> 81385640 | H31: ='FR-16(7)(v)-6 DISTR Cust Alloc'!H31+'FR-16(7)(v)-5 DISTR Dem Alloc'!H31+'FR-16(7)(v)-3 PROD Comm Alloc'!H31 -> 31438051 | I31: ='FR-16(7)(v)-6 DISTR Cust Alloc'!I31+'FR-16(7)(v)-5 DISTR Dem Alloc'!I31+'FR-16(7)(v)-3 PROD Comm Alloc'!I31 -> 6045078 | J31: ='FR-16(7)(v)-6 DISTR Cust Alloc'!J31+'FR-16(7)(v)-5 DISTR Dem Alloc'!J31+'FR-16(7)(v)-3 PROD Comm Alloc'!J31 -> 1922172 | K31: =SUM(G31:J31) -> 120790941 | L31: 0 | P31: =H31+I31 -> 37483129
A32: 22 | B32: DIFFERENCE (REQUESTED LESS PROPOSED) | F32: =F30-F31 -> -42202.496 | G32: -42893 | H32: 104813 | I32: -94278 | J32: -9843 | K32: -42201 | L32: -1.495999992 | P32: =H32+I32 -> 10535
A33: 23
A34: 24 | B34: TOTAL RETURN EARNED | F34: =F654+F26 -> 31575190.5 | G34: 21862347 | H34: 6171504 | I34: 2724064 | J34: 817275 | K34: 31575190 | L34: =F34-K34 -> 0.4959999919 | P34: =H34+I34 -> 8895568
A35: 25 | B35: RATE OF RETURN EARNED | F35: =IF(F331=0,0,ROUND(F34/F331,5)) -> 0.06769 | G35: 0.06897 | H35: 0.05846 | I35: 0.082 | J35: 0.07624 | K35: 0.06769 | L35: 0.4526
A36: 26 | B36: TOTAL RATE OF RETURN ALLOWABLE | F36: =$F$688 -> 0.06541 | G36: 0.06541 | H36: 0.06541 | I36: 0.06541 | J36: 0.06541 | K36: 0.06541 | L36: =IF(L35=0,0,$F$688) -> 0.06541
A37: 27 | B37: RETURN EARNED ON COMMON EQUITY | F37: =IF($F$670=0,0,(F35-$F$683-$F$684-$F$686)*$F$673/$F$670) -> 0.09820188897 | G37: 0.1006949159 | H37: 0.08022482758 | I37: 0.126073151 | J37: 0.1148545298 | K37: 0.09820188897 | L37: =IF(OR(F670=0,L35=0)=TRUE,0,(L35-F683-F684-F686)*F673/F670) -> 0.8478823547
A38: 28 | B38: ALLOWED RETURN ON COMMON EQUITY | F38: 0.09376118475 | G38: 0.09376118475 | H38: 0.09376118475 | I38: 0.09376118475 | J38: 0.09376118475 | K38: 0.09376118475 | L38: =IF(OR($F$670=0,L36=0)=TRUE,0,(L36-$F$683-$F$684-$F$686)*$F$673/$F$670) -> 0.09376118475
A39: 29
A40: 30 | B40: PRESENT REVENUES (SCHEDULE E-4) | F40: =SUM(G40:J40) -> 111388435 | G40: ='FR-16(7)(v)-3 PROD Comm Alloc'!G761 -> 75382959 | H40: ='FR-16(7)(v)-3 PROD Comm Alloc'!H761 -> 28525719 | I40: ='FR-16(7)(v)-3 PROD Comm Alloc'!I761 -> 5697047 | J40: ='FR-16(7)(v)-3 PROD Comm Alloc'!J761 -> 1782710 | K40: =SUM(G40:J40) -> 111388435 | L40: =F40-K40 -> 0
A41: 31 | B41: REVENUE INCREASE JUSTIFIED | F41: =F28-F40 -> 9360303.504 | G41: 5428575 | H41: 4209390 | I41: -293874 | J41: 16214 | K41: 9360305 | L41: -1.495999992
A42: 32 | C42: PER UNIT PRES REV | F42: =IF(F40=0,0,ROUND(F41/F40,5)) -> 0.08403 | G42: 0.07201 | H42: 0.14756 | I42: -0.05158 | J42: 0.0091 | K42: 0.08403 | L42: 0
A43: 33 | B43: REVENUE INCREASE REQUESTED | F43: =F31-F40 -> 9402506 | G43: 6002681 | H43: 2912332 | I43: 348031 | J43: 139462 | K43: 9402506 | L43: 0
A44: 34 | C44: PER UNIT PRES REV | F44: =IF(F40=0,0,ROUND(F43/F40,5)) -> 0.08441 | G44: 0.07963 | H44: 0.10209 | I44: 0.06109 | J44: 0.07823 | K44: 0.08441 | L44: 0
A46: =co_name -> DUKE ENERGY KENTUCKY, INC. | K46: =$K$1 -> FR-16(7)(v)-8
A47: =$A$2 -> TOTAL CLASS ALLOCATED - GAS COST OF SERVICE | K47: =$K$2 -> WITNESS RESPONSIBLE:
A48: =case_name -> CASE NO: 2021-00190 | K48: =Witness -> JAMES E. ZIOLKOWSKI
A49: =data_filing -> DATA: 12 MONTH FORECASTED PERIOD | K49: ="PAGE "&Pages2-13&" OF "&Pages2 -> PAGE 2 OF 15
A50: =type -> TYPE OF FILING: "X" ORIGINAL UPDATED REVISED
F52: =$F$7 -> TOTAL
A53: LINE | F53: =$F$8 -> CLASS | G53: RS | H53: GS | I53: FT-L | J53: INTERUPT | K53: TOTAL | L53: ALL
A54: NO. | B54: GROSS GAS PLANT IN SERVICE | D54: ALLO | F54: =$F$9 -> ALLOCATED | G54: RESIDENTIAL | H54: GEN SERV | I54: FIRM TRANS | J54: TRANS | K54: AT ISSUE | L54: OTHER
C55: Schedule 2 | G55: =$G$10 -> 3 | H55: =$H$10 -> 4 | I55: =$I$10 -> 5 | J55: =$J$10 -> 6
A56: 1 | B56: PRODUCTION PLANT
A57: 2 | C57: ='FR-16(7)(v)-1 Functional'!C57 -> PRODUCTION PLANT | D57: ='FR-16(7)(v)-1 Functional'!D57 -> K205 | F57: ='FR-16(7)(v)-1 Functional'!F57 -> 4625622 | G57: ='FR-16(7)(v)-6 DISTR Cust Alloc'!$G$57+'FR-16(7)(v)-5 DISTR Dem Alloc'!$G$57+'FR-16(7)(v)-3 PROD Comm Alloc'!$G$57 -> 2471100 | H57: ='FR-16(7)(v)-6 DISTR Cust Alloc'!$H$57+'FR-16(7)(v)-5 DISTR Dem Alloc'!$H$57+'FR-16(7)(v)-3 PROD Comm Alloc'!$H$57 -> 1501384 | I57: ='FR-16(7)(v)-6 DISTR Cust Alloc'!$I$57+'FR-16(7)(v)-5 DISTR Dem Alloc'!$I$57+'FR-16(7)(v)-3 PROD Comm Alloc'!$I$57 -> 653138 | J57: ='FR-16(7)(v)-6 DISTR Cust Alloc'!$J$57+'FR-16(7)(v)-5 DISTR Dem Alloc'!$J$57+'FR-16(7)(v)-3 PROD Comm Alloc'!$J$57 -> 0 | K57: =SUM($G$57:$J$57) -> 4625622 | L57: =F57-$K$57 -> 0
A58: 3 | C58: ='FR-16(7)(v)-1 Functional'!C58 -> GAS PRODUCTION -CPMPL NOT CLASS | D58: ='FR-16(7)(v)-1 Functional'!D58 -> K205 | F58: ='FR-16(7)(v)-1 Functional'!F58 -> 0 | G58: ='FR-16(7)(v)-6 DISTR Cust Alloc'!$G$58+'FR-16(7)(v)-5 DISTR Dem Alloc'!$G$58+'FR-16(7)(v)-3 PROD Comm Alloc'!$G$58 -> 0 | H58: ='FR-16(7)(v)-6 DISTR Cust Alloc'!$H$58+'FR-16(7)(v)-5 DISTR Dem Alloc'!$H$58+'FR-16(7)(v)-3 PROD Comm Alloc'!$H$58 -> 0 | I58: ='FR-16(7)(v)-6 DISTR Cust Alloc'!$I$58+'FR-16(7)(v)-5 DISTR Dem Alloc'!$I$58+'FR-16(7)(v)-3 PROD Comm Alloc'!$I$58 -> 0 | J58: ='FR-16(7)(v)-6 DISTR Cust Alloc'!$J$58+'FR-16(7)(v)-5 DISTR Dem Alloc'!$J$58+'FR-16(7)(v)-3 PROD Comm Alloc'!$J$58 -> 0 | K58: =SUM($G$58:$J$58) -> 0 | L58: =F58-$K$58 -> 0
A59: 4 | C59: ='FR-16(7)(v)-1 Functional'!C59 -> PRODUCTION PLANT IN SERVICE | F59: =SUM(F57:F58) -> 4625622 | G59: =SUM($G$57:$G$58) -> 2471100 | H59: =SUM($H$57:$H$58) -> 1501384 | I59: =SUM($I$57:$I$58) -> 653138 | J59: =SUM($J$57:$J$58) -> 0 | K59: =SUM($K$57:$K$58) -> 4625622 | L59: =SUM($L$57:$L$58) -> 0
A60: 5
A61: 6 | B61: TRANSMISSION PLANT
A62: 7 | C62: ='FR-16(7)(v)-1 Functional'!C62 -> TRANSMISSION PLANT
A63: 8 | C63: ='FR-16(7)(v)-1 Functional'!C63 -> TRANSMISSION PLANT IN SERVICE | F63: =SUM(F62) -> 0 | G63: =SUM($G$62) -> 0 | H63: =SUM($H$62) -> 0 | I63: =SUM($I$62) -> 0 | J63: =SUM($J$62) -> 0 | K63: =SUM($K$62) -> 0 | L63: =SUM($L$62) -> 0
A64: 9
A65: 10 | B65: TOTAL PROD & TRANS PLANT | F65: =F63+F59 -> 4625622 | G65: =$G$63+$G$59 -> 2471100 | H65: =$H$63+$H$59 -> 1501384 | I65: =$I$63+$I$59 -> 653138 | J65: =$J$63+$J$59 -> 0 | K65: =$K$63+$K$59 -> 4625622 | L65: =$L$63+$L$59 -> 0
A66: 11
A67: 12 | B67: DISTRIBUTION PLANT
A68: 13 | C68: ='FR-16(7)(v)-1 Functional'!C68 -> SYSTEM M&R - (2780, 2781) | D68: ='FR-16(7)(v)-1 Functional'!D68 -> K203 | F68: ='FR-16(7)(v)-1 Functional'!F68 -> 41242292 | G68: ='FR-16(7)(v)-6 DISTR Cust Alloc'!G68+'FR-16(7)(v)-5 DISTR Dem Alloc'!G68+'FR-16(7)(v)-3 PROD Comm Alloc'!G68 -> 21048416 | H68: ='FR-16(7)(v)-6 DISTR Cust Alloc'!H68+'FR-16(7)(v)-5 DISTR Dem Alloc'!H68+'FR-16(7)(v)-3 PROD Comm Alloc'!H68 -> 12780986 | I68: ='FR-16(7)(v)-6 DISTR Cust Alloc'!I68+'FR-16(7)(v)-5 DISTR Dem Alloc'!I68+'FR-16(7)(v)-3 PROD Comm Alloc'!I68 -> 5618850 | J68: ='FR-16(7)(v)-6 DISTR Cust Alloc'!J68+'FR-16(7)(v)-5 DISTR Dem Alloc'!J68+'FR-16(7)(v)-3 PROD Comm Alloc'!J68 -> 1794040 | K68: =SUM(G68:J68) -> 41242292 | L68: =F68-K68 -> 0
A69: 14 | C69: ='FR-16(7)(v)-1 Functional'!C69 -> DIST REG EQUIP & CITY GATE M&R- (2782, 2790) | D69: ='FR-16(7)(v)-1 Functional'!D69 -> K203 | F69: ='FR-16(7)(v)-1 Functional'!F69 -> 2724163 | G69: ='FR-16(7)(v)-6 DISTR Cust Alloc'!G69+'FR-16(7)(v)-5 DISTR Dem Alloc'!G69+'FR-16(7)(v)-3 PROD Comm Alloc'!G69 -> 1390304 | H69: ='FR-16(7)(v)-6 DISTR Cust Alloc'!H69+'FR-16(7)(v)-5 DISTR Dem Alloc'!H69+'FR-16(7)(v)-3 PROD Comm Alloc'!H69 -> 844218 | I69: ='FR-16(7)(v)-6 DISTR Cust Alloc'!I69+'FR-16(7)(v)-5 DISTR Dem Alloc'!I69+'FR-16(7)(v)-3 PROD Comm Alloc'!I69 -> 371140 | J69: ='FR-16(7)(v)-6 DISTR Cust Alloc'!J69+'FR-16(7)(v)-5 DISTR Dem Alloc'!J69+'FR-16(7)(v)-3 PROD Comm Alloc'!J69 -> 118501 | K69: 2724163 | L69: 0
A70: 15 | C70: ='FR-16(7)(v)-1 Functional'!C70 -> LARGE IND M&R - (2850, 2851) | D70: ='FR-16(7)(v)-1 Functional'!D70 -> K595 | F70: ='FR-16(7)(v)-1 Functional'!F70 -> 566920 | G70: ='FR-16(7)(v)-6 DISTR Cust Alloc'!G70+'FR-16(7)(v)-5 DISTR Dem Alloc'!G70+'FR-16(7)(v)-3 PROD Comm Alloc'!G70 -> 0 | H70: ='FR-16(7)(v)-6 DISTR Cust Alloc'!H70+'FR-16(7)(v)-5 DISTR Dem Alloc'!H70+'FR-16(7)(v)-3 PROD Comm Alloc'!H70 -> 0 | I70: ='FR-16(7)(v)-6 DISTR Cust Alloc'!I70+'FR-16(7)(v)-5 DISTR Dem Alloc'!I70+'FR-16(7)(v)-3 PROD Comm Alloc'!I70 -> 330469 | J70: ='FR-16(7)(v)-6 DISTR Cust Alloc'!J70+'FR-16(7)(v)-5 DISTR Dem Alloc'!J70+'FR-16(7)(v)-3 PROD Comm Alloc'!J70 -> 236451 | K70: 566920 | L70: 0
A71: 16 | C71: ='FR-16(7)(v)-1 Functional'!C71 -> MAINS - (2761, 2762, 2763, 2765) | D71: ='FR-16(7)(v)-1 Functional'!D71 -> K415 | F71: ='FR-16(7)(v)-1 Functional'!F71 -> 396995775 | G71: ='FR-16(7)(v)-6 DISTR Cust Alloc'!G71+'FR-16(7)(v)-5 DISTR Dem Alloc'!G71+'FR-16(7)(v)-3 PROD Comm Alloc'!G71 -> 235401026 | H71: ='FR-16(7)(v)-6 DISTR Cust Alloc'!H71+'FR-16(7)(v)-5 DISTR Dem Alloc'!H71+'FR-16(7)(v)-3 PROD Comm Alloc'!H71 -> 104409095 | I71: ='FR-16(7)(v)-6 DISTR Cust Alloc'!I71+'FR-16(7)(v)-5 DISTR Dem Alloc'!I71+'FR-16(7)(v)-3 PROD Comm Alloc'!I71 -> 43352733 | J71: ='FR-16(7)(v)-6 DISTR Cust Alloc'!J71+'FR-16(7)(v)-5 DISTR Dem Alloc'!J71+'FR-16(7)(v)-3 PROD Comm Alloc'!J71 -> 13832921 | K71: 396995775 | L71: 0
A72: 17 | C72: ='FR-16(7)(v)-1 Functional'!C72 -> SERVICES - (2801, 2802, 2803) | D72: ='FR-16(7)(v)-1 Functional'!D72 -> K403 | F72: ='FR-16(7)(v)-1 Functional'!F72 -> 226116720 | G72: ='FR-16(7)(v)-6 DISTR Cust Alloc'!G72+'FR-16(7)(v)-5 DISTR Dem Alloc'!G72+'FR-16(7)(v)-3 PROD Comm Alloc'!G72 -> 198085030 | H72: ='FR-16(7)(v)-6 DISTR Cust Alloc'!H72+'FR-16(7)(v)-5 DISTR Dem Alloc'!H72+'FR-16(7)(v)-3 PROD Comm Alloc'!H72 -> 27233498 | I72: ='FR-16(7)(v)-6 DISTR Cust Alloc'!I72+'FR-16(7)(v)-5 DISTR Dem Alloc'!I72+'FR-16(7)(v)-3 PROD Comm Alloc'!I72 -> 431883 | J72: ='FR-16(7)(v)-6 DISTR Cust Alloc'!J72+'FR-16(7)(v)-5 DISTR Dem Alloc'!J72+'FR-16(7)(v)-3 PROD Comm Alloc'!J72 -> 366309 | K72: 226116720 | L72: 0
A73: 18 | C73: ='FR-16(7)(v)-1 Functional'!C73 -> MTRS & MTR INST (2810, 2811, 2820, 2821) | D73: ='FR-16(7)(v)-1 Functional'!D73 -> K413 | F73: ='FR-16(7)(v)-1 Functional'!F73 -> 30766213 | G73: ='FR-16(7)(v)-6 DISTR Cust Alloc'!G73+'FR-16(7)(v)-5 DISTR Dem Alloc'!G73+'FR-16(7)(v)-3 PROD Comm Alloc'!G73 -> 24635122 | H73: ='FR-16(7)(v)-6 DISTR Cust Alloc'!H73+'FR-16(7)(v)-5 DISTR Dem Alloc'!H73+'FR-16(7)(v)-3 PROD Comm Alloc'!H73 -> 5195798 | I73: ='FR-16(7)(v)-6 DISTR Cust Alloc'!I73+'FR-16(7)(v)-5 DISTR Dem Alloc'!I73+'FR-16(7)(v)-3 PROD Comm Alloc'!I73 -> 568252 | J73: ='FR-16(7)(v)-6 DISTR Cust Alloc'!J73+'FR-16(7)(v)-5 DISTR Dem Alloc'!J73+'FR-16(7)(v)-3 PROD Comm Alloc'!J73 -> 367041 | K73: 30766213 | L73: 0
A74: 19 | C74: ='FR-16(7)(v)-1 Functional'!C74 -> LAND, R OF W, STRUCT & IMPROV | D74: ='FR-16(7)(v)-1 Functional'!D74 -> K203 | F74: ='FR-16(7)(v)-1 Functional'!F74 -> 11654163 | G74: ='FR-16(7)(v)-6 DISTR Cust Alloc'!G74+'FR-16(7)(v)-5 DISTR Dem Alloc'!G74+'FR-16(7)(v)-3 PROD Comm Alloc'!G74 -> 5947819 | H74: ='FR-16(7)(v)-6 DISTR Cust Alloc'!H74+'FR-16(7)(v)-5 DISTR Dem Alloc'!H74+'FR-16(7)(v)-3 PROD Comm Alloc'!H74 -> 3611625 | I74: ='FR-16(7)(v)-6 DISTR Cust Alloc'!I74+'FR-16(7)(v)-5 DISTR Dem Alloc'!I74+'FR-16(7)(v)-3 PROD Comm Alloc'!I74 -> 1587763 | J74: ='FR-16(7)(v)-6 DISTR Cust Alloc'!J74+'FR-16(7)(v)-5 DISTR Dem Alloc'!J74+'FR-16(7)(v)-3 PROD Comm Alloc'!J74 -> 506956 | K74: 11654163 | L74: 0
A75: 20 | C75: ='FR-16(7)(v)-1 Functional'!C75 -> HOUSE REG & INSTALL (2830, 2840) | D75: ='FR-16(7)(v)-1 Functional'!D75 -> K417 | F75: ='FR-16(7)(v)-1 Functional'!F75 -> 14731367 | G75: ='FR-16(7)(v)-6 DISTR Cust Alloc'!G75+'FR-16(7)(v)-5 DISTR Dem Alloc'!G75+'FR-16(7)(v)-3 PROD Comm Alloc'!G75 -> 9112234 | H75: ='FR-16(7)(v)-6 DISTR Cust Alloc'!H75+'FR-16(7)(v)-5 DISTR Dem Alloc'!H75+'FR-16(7)(v)-3 PROD Comm Alloc'!H75 -> 5482573 | I75: ='FR-16(7)(v)-6 DISTR Cust Alloc'!I75+'FR-16(7)(v)-5 DISTR Dem Alloc'!I75+'FR-16(7)(v)-3 PROD Comm Alloc'!I75 -> 113137 | J75: ='FR-16(7)(v)-6 DISTR Cust Alloc'!J75+'FR-16(7)(v)-5 DISTR Dem Alloc'!J75+'FR-16(7)(v)-3 PROD Comm Alloc'!J75 -> 23423 | K75: 14731367 | L75: 0
A76: 21 | C76: ='FR-16(7)(v)-1 Functional'!C76 -> STREET LIGHTING EQUIPMENT & OTH | D76: ='FR-16(7)(v)-1 Functional'!D76 -> K597 | F76: ='FR-16(7)(v)-1 Functional'!F76 -> 91485 | G76: ='FR-16(7)(v)-6 DISTR Cust Alloc'!G76+'FR-16(7)(v)-5 DISTR Dem Alloc'!G76+'FR-16(7)(v)-3 PROD Comm Alloc'!G76 -> 0 | H76: ='FR-16(7)(v)-6 DISTR Cust Alloc'!H76+'FR-16(7)(v)-5 DISTR Dem Alloc'!H76+'FR-16(7)(v)-3 PROD Comm Alloc'!H76 -> 91485 | I76: ='FR-16(7)(v)-6 DISTR Cust Alloc'!I76+'FR-16(7)(v)-5 DISTR Dem Alloc'!I76+'FR-16(7)(v)-3 PROD Comm Alloc'!I76 -> 0 | J76: ='FR-16(7)(v)-6 DISTR Cust Alloc'!J76+'FR-16(7)(v)-5 DISTR Dem Alloc'!J76+'FR-16(7)(v)-3 PROD Comm Alloc'!J76 -> 0 | K76: 91485 | L76: 0
A77: 22 | C77: ='FR-16(7)(v)-1 Functional'!C77 -> ASSET RETIREMENT COST FOR DISTRIBUTION PLANT | D77: ='FR-16(7)(v)-1 Functional'!D77 -> K203 | F77: ='FR-16(7)(v)-1 Functional'!F77 -> 0 | G77: ='FR-16(7)(v)-6 DISTR Cust Alloc'!G77+'FR-16(7)(v)-5 DISTR Dem Alloc'!G77+'FR-16(7)(v)-3 PROD Comm Alloc'!G77 -> 0 | H77: ='FR-16(7)(v)-6 DISTR Cust Alloc'!H77+'FR-16(7)(v)-5 DISTR Dem Alloc'!H77+'FR-16(7)(v)-3 PROD Comm Alloc'!H77 -> 0 | I77: ='FR-16(7)(v)-6 DISTR Cust Alloc'!I77+'FR-16(7)(v)-5 DISTR Dem Alloc'!I77+'FR-16(7)(v)-3 PROD Comm Alloc'!I77 -> 0 | J77: ='FR-16(7)(v)-6 DISTR Cust Alloc'!J77+'FR-16(7)(v)-5 DISTR Dem Alloc'!J77+'FR-16(7)(v)-3 PROD Comm Alloc'!J77 -> 0 | K77: 0 | L77: 0
A78: 23 | C78: ='FR-16(7)(v)-1 Functional'!C78 -> DISTRIBUTION PLANT IN SERVICE | F78: =SUM(F68:F77) -> 724889098 | G78: 495619951 | H78: 159649278 | I78: 52374227 | J78: 17245642 | K78: 724889098 | L78: 0
A79: 24
A80: 25 | B80: TOTAL TRANS & DIST PLANT | F80: =F78+F63 -> 724889098 | G80: =G78+$G$63 -> 495619951 | H80: =H78+$H$63 -> 159649278 | I80: =I78+$I$63 -> 52374227 | J80: =J78+$J$63 -> 17245642 | K80: =K78+$K$63 -> 724889098 | L80: =L78+$L$63 -> 0
A81: 26 | B81: TOTAL GROSS PTD PLANT | F81: =F78+F65 -> 729514720 | G81: 498091051 | H81: 161150662 | I81: 53027365 | J81: 17245642 | K81: 729514720 | L81: 0
A82: 27
A83: 28 | B83: GENERAL & INTANGIBLE PLANT
A84: 29 | C84: ='FR-16(7)(v)-1 Functional'!C84 -> PRODUCTION PLANT | D84: ='FR-16(7)(v)-1 Functional'!D84 -> K201 | F84: ='FR-16(7)(v)-1 Functional'!F84 -> 2861675 | G84: ='FR-16(7)(v)-6 DISTR Cust Alloc'!G84+'FR-16(7)(v)-5 DISTR Dem Alloc'!G84+'FR-16(7)(v)-3 PROD Comm Alloc'!G84 -> 1431782 | H84: ='FR-16(7)(v)-6 DISTR Cust Alloc'!H84+'FR-16(7)(v)-5 DISTR Dem Alloc'!H84+'FR-16(7)(v)-3 PROD Comm Alloc'!H84 -> 839930 | I84: ='FR-16(7)(v)-6 DISTR Cust Alloc'!I84+'FR-16(7)(v)-5 DISTR Dem Alloc'!I84+'FR-16(7)(v)-3 PROD Comm Alloc'!I84 -> 589963 | J84: ='FR-16(7)(v)-6 DISTR Cust Alloc'!J84+'FR-16(7)(v)-5 DISTR Dem Alloc'!J84+'FR-16(7)(v)-3 PROD Comm Alloc'!J84 -> 0 | K84: =SUM(G84:J84) -> 2861675 | L84: =F84-K84 -> 0
A85: 30 | C85: ='FR-16(7)(v)-1 Functional'!C85 -> PRODUCTION PLANT COMMODITY | D85: ='FR-16(7)(v)-1 Functional'!D85 -> P349 | F85: ='FR-16(7)(v)-1 Functional'!F85 -> 2108436 | G85: ='FR-16(7)(v)-6 DISTR Cust Alloc'!G85+'FR-16(7)(v)-5 DISTR Dem Alloc'!G85+'FR-16(7)(v)-3 PROD Comm Alloc'!G85 -> 1316823 | H85: ='FR-16(7)(v)-6 DISTR Cust Alloc'!H85+'FR-16(7)(v)-5 DISTR Dem Alloc'!H85+'FR-16(7)(v)-3 PROD Comm Alloc'!H85 -> 772489 | I85: ='FR-16(7)(v)-6 DISTR Cust Alloc'!I85+'FR-16(7)(v)-5 DISTR Dem Alloc'!I85+'FR-16(7)(v)-3 PROD Comm Alloc'!I85 -> 11154 | J85: ='FR-16(7)(v)-6 DISTR Cust Alloc'!J85+'FR-16(7)(v)-5 DISTR Dem Alloc'!J85+'FR-16(7)(v)-3 PROD Comm Alloc'!J85 -> 7970 | K85: 2108436 | L85: 0
A86: 31 | C86: ='FR-16(7)(v)-1 Functional'!C86 -> DISTRIBUTION PLANT | D86: ='FR-16(7)(v)-1 Functional'!D86 -> D349 | F86: ='FR-16(7)(v)-1 Functional'!F86 -> 18849244 | G86: ='FR-16(7)(v)-6 DISTR Cust Alloc'!G86+'FR-16(7)(v)-5 DISTR Dem Alloc'!G86+'FR-16(7)(v)-3 PROD Comm Alloc'!G86 -> 12127079 | H86: ='FR-16(7)(v)-6 DISTR Cust Alloc'!H86+'FR-16(7)(v)-5 DISTR Dem Alloc'!H86+'FR-16(7)(v)-3 PROD Comm Alloc'!H86 -> 4603524 | I86: ='FR-16(7)(v)-6 DISTR Cust Alloc'!I86+'FR-16(7)(v)-5 DISTR Dem Alloc'!I86+'FR-16(7)(v)-3 PROD Comm Alloc'!I86 -> 1620571 | J86: ='FR-16(7)(v)-6 DISTR Cust Alloc'!J86+'FR-16(7)(v)-5 DISTR Dem Alloc'!J86+'FR-16(7)(v)-3 PROD Comm Alloc'!J86 -> 498070 | K86: 18849244 | L86: 0
A87: 32 | C87: ='FR-16(7)(v)-1 Functional'!C87 -> CUSTOMER ACCOUNTING | D87: ='FR-16(7)(v)-1 Functional'!D87 -> CA19 | F87: ='FR-16(7)(v)-1 Functional'!F87 -> 7459729 | G87: ='FR-16(7)(v)-6 DISTR Cust Alloc'!G87+'FR-16(7)(v)-5 DISTR Dem Alloc'!G87+'FR-16(7)(v)-3 PROD Comm Alloc'!G87 -> 6887866 | H87: ='FR-16(7)(v)-6 DISTR Cust Alloc'!H87+'FR-16(7)(v)-5 DISTR Dem Alloc'!H87+'FR-16(7)(v)-3 PROD Comm Alloc'!H87 -> 562389 | I87: ='FR-16(7)(v)-6 DISTR Cust Alloc'!I87+'FR-16(7)(v)-5 DISTR Dem Alloc'!I87+'FR-16(7)(v)-3 PROD Comm Alloc'!I87 -> 7833 | J87: ='FR-16(7)(v)-6 DISTR Cust Alloc'!J87+'FR-16(7)(v)-5 DISTR Dem Alloc'!J87+'FR-16(7)(v)-3 PROD Comm Alloc'!J87 -> 1641 | K87: 7459729 | L87: 0
A88: 33 | C88: ='FR-16(7)(v)-1 Functional'!C88 -> CUSTOMER SERVICE & INFORMATION | D88: ='FR-16(7)(v)-1 Functional'!D88 -> CS19 | F88: ='FR-16(7)(v)-1 Functional'!F88 -> 722179 | G88: ='FR-16(7)(v)-6 DISTR Cust Alloc'!G88+'FR-16(7)(v)-5 DISTR Dem Alloc'!G88+'FR-16(7)(v)-3 PROD Comm Alloc'!G88 -> 666817 | H88: ='FR-16(7)(v)-6 DISTR Cust Alloc'!H88+'FR-16(7)(v)-5 DISTR Dem Alloc'!H88+'FR-16(7)(v)-3 PROD Comm Alloc'!H88 -> 54445 | I88: ='FR-16(7)(v)-6 DISTR Cust Alloc'!I88+'FR-16(7)(v)-5 DISTR Dem Alloc'!I88+'FR-16(7)(v)-3 PROD Comm Alloc'!I88 -> 758 | J88: ='FR-16(7)(v)-6 DISTR Cust Alloc'!J88+'FR-16(7)(v)-5 DISTR Dem Alloc'!J88+'FR-16(7)(v)-3 PROD Comm Alloc'!J88 -> 159 | K88: 722179 | L88: 0
A89: 34 | C89: ='FR-16(7)(v)-1 Functional'!C89 -> SALES | D89: ='FR-16(7)(v)-1 Functional'!D89 -> SE19 | F89: ='FR-16(7)(v)-1 Functional'!F89 -> 0 | G89: ='FR-16(7)(v)-6 DISTR Cust Alloc'!G89+'FR-16(7)(v)-5 DISTR Dem Alloc'!G89+'FR-16(7)(v)-3 PROD Comm Alloc'!G89 -> 0 | H89: ='FR-16(7)(v)-6 DISTR Cust Alloc'!H89+'FR-16(7)(v)-5 DISTR Dem Alloc'!H89+'FR-16(7)(v)-3 PROD Comm Alloc'!H89 -> 0 | I89: ='FR-16(7)(v)-6 DISTR Cust Alloc'!I89+'FR-16(7)(v)-5 DISTR Dem Alloc'!I89+'FR-16(7)(v)-3 PROD Comm Alloc'!I89 -> 0 | J89: ='FR-16(7)(v)-6 DISTR Cust Alloc'!J89+'FR-16(7)(v)-5 DISTR Dem Alloc'!J89+'FR-16(7)(v)-3 PROD Comm Alloc'!J89 -> 0 | K89: 0 | L89: 0
A90: 35 | C90: ='FR-16(7)(v)-1 Functional'!C90 -> GEN & INTANG PLANT IN SERVICE | F90: =SUM(F84:F89) -> 32001263 | G90: 22430367 | H90: 6832777 | I90: 2230279 | J90: 507840 | K90: 32001263 | L90: 0
A91: 36
A92: 37 | B92: COMMON & OTHER PLANT
A93: 38 | C93: ='FR-16(7)(v)-1 Functional'!C93 -> PRODUCTION PLANT | D93: ='FR-16(7)(v)-1 Functional'!D93 -> K201 | F93: ='FR-16(7)(v)-1 Functional'!F93 -> 920366 | G93: ='FR-16(7)(v)-6 DISTR Cust Alloc'!G93+'FR-16(7)(v)-5 DISTR Dem Alloc'!G93+'FR-16(7)(v)-3 PROD Comm Alloc'!G93 -> 460486 | H93: ='FR-16(7)(v)-6 DISTR Cust Alloc'!H93+'FR-16(7)(v)-5 DISTR Dem Alloc'!H93+'FR-16(7)(v)-3 PROD Comm Alloc'!H93 -> 270137 | I93: ='FR-16(7)(v)-6 DISTR Cust Alloc'!I93+'FR-16(7)(v)-5 DISTR Dem Alloc'!I93+'FR-16(7)(v)-3 PROD Comm Alloc'!I93 -> 189743 | J93: ='FR-16(7)(v)-6 DISTR Cust Alloc'!J93+'FR-16(7)(v)-5 DISTR Dem Alloc'!J93+'FR-16(7)(v)-3 PROD Comm Alloc'!J93 -> 0 | K93: =SUM(G93:J93) -> 920366 | L93: =F93-K93 -> 0
A94: 39 | C94: ='FR-16(7)(v)-1 Functional'!C94 -> PRODUCTION PLANT COMMODITY | D94: ='FR-16(7)(v)-1 Functional'!D94 -> P349 | F94: ='FR-16(7)(v)-1 Functional'!F94 -> 678111 | G94: ='FR-16(7)(v)-6 DISTR Cust Alloc'!G94+'FR-16(7)(v)-5 DISTR Dem Alloc'!G94+'FR-16(7)(v)-3 PROD Comm Alloc'!G94 -> 423515 | H94: ='FR-16(7)(v)-6 DISTR Cust Alloc'!H94+'FR-16(7)(v)-5 DISTR Dem Alloc'!H94+'FR-16(7)(v)-3 PROD Comm Alloc'!H94 -> 248446 | I94: ='FR-16(7)(v)-6 DISTR Cust Alloc'!I94+'FR-16(7)(v)-5 DISTR Dem Alloc'!I94+'FR-16(7)(v)-3 PROD Comm Alloc'!I94 -> 3587 | J94: ='FR-16(7)(v)-6 DISTR Cust Alloc'!J94+'FR-16(7)(v)-5 DISTR Dem Alloc'!J94+'FR-16(7)(v)-3 PROD Comm Alloc'!J94 -> 2563 | K94: 678111 | L94: 0
A95: 40 | C95: ='FR-16(7)(v)-1 Functional'!C95 -> DISTRIBUTION PLANT | D95: ='FR-16(7)(v)-1 Functional'!D95 -> D349 | F95: ='FR-16(7)(v)-1 Functional'!F95 -> 6062254 | G95: ='FR-16(7)(v)-6 DISTR Cust Alloc'!G95+'FR-16(7)(v)-5 DISTR Dem Alloc'!G95+'FR-16(7)(v)-3 PROD Comm Alloc'!G95 -> 3900286 | H95: ='FR-16(7)(v)-6 DISTR Cust Alloc'!H95+'FR-16(7)(v)-5 DISTR Dem Alloc'!H95+'FR-16(7)(v)-3 PROD Comm Alloc'!H95 -> 1480575 | I95: ='FR-16(7)(v)-6 DISTR Cust Alloc'!I95+'FR-16(7)(v)-5 DISTR Dem Alloc'!I95+'FR-16(7)(v)-3 PROD Comm Alloc'!I95 -> 521205 | J95: ='FR-16(7)(v)-6 DISTR Cust Alloc'!J95+'FR-16(7)(v)-5 DISTR Dem Alloc'!J95+'FR-16(7)(v)-3 PROD Comm Alloc'!J95 -> 160188 | K95: 6062254 | L95: 0
A96: 41 | C96: ='FR-16(7)(v)-1 Functional'!C96 -> CUSTOMER ACCOUNTING | D96: ='FR-16(7)(v)-1 Functional'!D96 -> CA19 | F96: ='FR-16(7)(v)-1 Functional'!F96 -> 2399182 | G96: ='FR-16(7)(v)-6 DISTR Cust Alloc'!G96+'FR-16(7)(v)-5 DISTR Dem Alloc'!G96+'FR-16(7)(v)-3 PROD Comm Alloc'!G96 -> 2215261 | H96: ='FR-16(7)(v)-6 DISTR Cust Alloc'!H96+'FR-16(7)(v)-5 DISTR Dem Alloc'!H96+'FR-16(7)(v)-3 PROD Comm Alloc'!H96 -> 180874 | I96: ='FR-16(7)(v)-6 DISTR Cust Alloc'!I96+'FR-16(7)(v)-5 DISTR Dem Alloc'!I96+'FR-16(7)(v)-3 PROD Comm Alloc'!I96 -> 2519 | J96: ='FR-16(7)(v)-6 DISTR Cust Alloc'!J96+'FR-16(7)(v)-5 DISTR Dem Alloc'!J96+'FR-16(7)(v)-3 PROD Comm Alloc'!J96 -> 528 | K96: 2399182 | L96: 0
A97: 42 | C97: ='FR-16(7)(v)-1 Functional'!C97 -> CUSTOMER SERVICE & INFORMATION | D97: ='FR-16(7)(v)-1 Functional'!D97 -> CS19 | F97: ='FR-16(7)(v)-1 Functional'!F97 -> 232266 | G97: ='FR-16(7)(v)-6 DISTR Cust Alloc'!G97+'FR-16(7)(v)-5 DISTR Dem Alloc'!G97+'FR-16(7)(v)-3 PROD Comm Alloc'!G97 -> 214460 | H97: ='FR-16(7)(v)-6 DISTR Cust Alloc'!H97+'FR-16(7)(v)-5 DISTR Dem Alloc'!H97+'FR-16(7)(v)-3 PROD Comm Alloc'!H97 -> 17511 | I97: ='FR-16(7)(v)-6 DISTR Cust Alloc'!I97+'FR-16(7)(v)-5 DISTR Dem Alloc'!I97+'FR-16(7)(v)-3 PROD Comm Alloc'!I97 -> 244 | J97: ='FR-16(7)(v)-6 DISTR Cust Alloc'!J97+'FR-16(7)(v)-5 DISTR Dem Alloc'!J97+'FR-16(7)(v)-3 PROD Comm Alloc'!J97 -> 51 | K97: 232266 | L97: 0
A98: 43 | C98: ='FR-16(7)(v)-1 Functional'!C98 -> SALES | D98: ='FR-16(7)(v)-1 Functional'!D98 -> SE19 | F98: ='FR-16(7)(v)-1 Functional'!F98 -> 0 | G98: ='FR-16(7)(v)-6 DISTR Cust Alloc'!G98+'FR-16(7)(v)-5 DISTR Dem Alloc'!G98+'FR-16(7)(v)-3 PROD Comm Alloc'!G98 -> 0 | H98: ='FR-16(7)(v)-6 DISTR Cust Alloc'!H98+'FR-16(7)(v)-5 DISTR Dem Alloc'!H98+'FR-16(7)(v)-3 PROD Comm Alloc'!H98 -> 0 | I98: ='FR-16(7)(v)-6 DISTR Cust Alloc'!I98+'FR-16(7)(v)-5 DISTR Dem Alloc'!I98+'FR-16(7)(v)-3 PROD Comm Alloc'!I98 -> 0 | J98: ='FR-16(7)(v)-6 DISTR Cust Alloc'!J98+'FR-16(7)(v)-5 DISTR Dem Alloc'!J98+'FR-16(7)(v)-3 PROD Comm Alloc'!J98 -> 0 | K98: 0 | L98: 0
A99: 44 | C99: ='FR-16(7)(v)-1 Functional'!C99 -> COMMON & OTHER PLANT IN SERVICE | F99: =SUM(F93:F98) -> 10292179 | G99: 7214008 | H99: 2197543 | I99: 717298 | J99: 163330 | K99: 10292179 | L99: 0
A100: 45
A101: 46 | B101: GROSS GAS PLANT IN SERVICE | F101: =F81+F90+F99 -> 771808162 | G101: 527735426 | H101: 170180982 | I101: 55974942 | J101: 17916812 | K101: 771808162 | L101: 0
A103: =co_name -> DUKE ENERGY KENTUCKY, INC. | K103: =$K$1 -> FR-16(7)(v)-8
A104: =$A$2 -> TOTAL CLASS ALLOCATED - GAS COST OF SERVICE | K104: =$K$2 -> WITNESS RESPONSIBLE:
A105: =case_name -> CASE NO: 2021-00190 | K105: =Witness -> JAMES E. ZIOLKOWSKI
A106: =data_filing -> DATA: 12 MONTH FORECASTED PERIOD | K106: ="PAGE "&Pages2-12&" OF "&Pages2 -> PAGE 3 OF 15
A107: =type -> TYPE OF FILING: "X" ORIGINAL UPDATED REVISED
F109: =$F$7 -> TOTAL
A110: LINE | F110: =$F$8 -> CLASS | G110: RS | H110: GS | I110: FT-L | J110: INTERUPT | K110: TOTAL | L110: ALL
A111: NO. | B111: DEPRECIATION RESERVE | D111: ALLO | F111: =$F$9 -> ALLOCATED | G111: RESIDENTIAL | H111: GEN SERV | I111: FIRM TRANS | J111: TRANS | K111: AT ISSUE | L111: OTHER
C112: Schedule 3 | G112: =$G$10 -> 3 | H112: =$H$10 -> 4 | I112: =$I$10 -> 5 | J112: =$J$10 -> 6
A113: 1 | B113: PRODUCTION PLANT
A114: 2 | C114: ='FR-16(7)(v)-1 Functional'!C114 -> PRODUCTION PLANT | D114: ='FR-16(7)(v)-1 Functional'!D114 -> K205 | F114: ='FR-16(7)(v)-1 Functional'!F114 -> 2553891 | G114: ='FR-16(7)(v)-6 DISTR Cust Alloc'!G114+'FR-16(7)(v)-5 DISTR Dem Alloc'!G114+'FR-16(7)(v)-3 PROD Comm Alloc'!G114 -> 1364340 | H114: ='FR-16(7)(v)-6 DISTR Cust Alloc'!H114+'FR-16(7)(v)-5 DISTR Dem Alloc'!H114+'FR-16(7)(v)-3 PROD Comm Alloc'!H114 -> 828942 | I114: ='FR-16(7)(v)-6 DISTR Cust Alloc'!I114+'FR-16(7)(v)-5 DISTR Dem Alloc'!I114+'FR-16(7)(v)-3 PROD Comm Alloc'!I114 -> 360609 | J114: ='FR-16(7)(v)-6 DISTR Cust Alloc'!J114+'FR-16(7)(v)-5 DISTR Dem Alloc'!J114+'FR-16(7)(v)-3 PROD Comm Alloc'!J114 -> 0 | K114: =SUM(G114:J114) -> 2553891 | L114: =F114-K114 -> 0
A115: 3 | C115: ='FR-16(7)(v)-1 Functional'!C115 -> TOTAL PROD DEPREC RESERVE | F115: =SUM(F114:F114) -> 2553891 | G115: 1364340 | H115: 828942 | I115: 360609 | J115: 0 | K115: 2553891 | L115: 0
A116: 4
A117: 5 | B117: TRANSMISSION PLANT
A118: 6 | C118: ='FR-16(7)(v)-1 Functional'!C118 -> TRANSMISSION PLANT
A119: 7 | C119: ='FR-16(7)(v)-1 Functional'!C119 -> TOTAL TRANS DEPREC RESERVE | F119: =SUM(F118:F118) -> 0 | G119: 0 | H119: 0 | I119: 0 | J119: 0 | K119: 0 | L119: 0
A120: 8
A121: 9 | B121: DISTRIBUTION PLANT
A122: 10 | C122: ='FR-16(7)(v)-1 Functional'!C122 -> SYSTEM M&R - (2780, 2781) | D122: ='FR-16(7)(v)-1 Functional'!D122 -> K203 | F122: ='FR-16(7)(v)-1 Functional'!F122 -> 2581527 | G122: ='FR-16(7)(v)-6 DISTR Cust Alloc'!G122+'FR-16(7)(v)-5 DISTR Dem Alloc'!G122+'FR-16(7)(v)-3 PROD Comm Alloc'!G122 -> 1317509 | H122: ='FR-16(7)(v)-6 DISTR Cust Alloc'!H122+'FR-16(7)(v)-5 DISTR Dem Alloc'!H122+'FR-16(7)(v)-3 PROD Comm Alloc'!H122 -> 800015 | I122: ='FR-16(7)(v)-6 DISTR Cust Alloc'!I122+'FR-16(7)(v)-5 DISTR Dem Alloc'!I122+'FR-16(7)(v)-3 PROD Comm Alloc'!I122 -> 351707 | J122: ='FR-16(7)(v)-6 DISTR Cust Alloc'!J122+'FR-16(7)(v)-5 DISTR Dem Alloc'!J122+'FR-16(7)(v)-3 PROD Comm Alloc'!J122 -> 112296 | K122: =SUM(G122:J122) -> 2581527 | L122: =F122-K122 -> 0
A123: 11 | C123: ='FR-16(7)(v)-1 Functional'!C123 -> DIST REG EQUIP & CITY GATE M&R- (2782, 2790) | D123: ='FR-16(7)(v)-1 Functional'!D123 -> K203 | F123: ='FR-16(7)(v)-1 Functional'!F123 -> 1211353 | G123: ='FR-16(7)(v)-6 DISTR Cust Alloc'!G123+'FR-16(7)(v)-5 DISTR Dem Alloc'!G123+'FR-16(7)(v)-3 PROD Comm Alloc'!G123 -> 618226 | H123: ='FR-16(7)(v)-6 DISTR Cust Alloc'!H123+'FR-16(7)(v)-5 DISTR Dem Alloc'!H123+'FR-16(7)(v)-3 PROD Comm Alloc'!H123 -> 375398 | I123: ='FR-16(7)(v)-6 DISTR Cust Alloc'!I123+'FR-16(7)(v)-5 DISTR Dem Alloc'!I123+'FR-16(7)(v)-3 PROD Comm Alloc'!I123 -> 165035 | J123: ='FR-16(7)(v)-6 DISTR Cust Alloc'!J123+'FR-16(7)(v)-5 DISTR Dem Alloc'!J123+'FR-16(7)(v)-3 PROD Comm Alloc'!J123 -> 52694 | K123: 1211353 | L123: 0
A124: 12 | C124: ='FR-16(7)(v)-1 Functional'!C124 -> LARGE IND M&R - (2850, 2851) | D124: ='FR-16(7)(v)-1 Functional'!D124 -> K595 | F124: ='FR-16(7)(v)-1 Functional'!F124 -> 509867 | G124: ='FR-16(7)(v)-6 DISTR Cust Alloc'!G124+'FR-16(7)(v)-5 DISTR Dem Alloc'!G124+'FR-16(7)(v)-3 PROD Comm Alloc'!G124 -> 0 | H124: ='FR-16(7)(v)-6 DISTR Cust Alloc'!H124+'FR-16(7)(v)-5 DISTR Dem Alloc'!H124+'FR-16(7)(v)-3 PROD Comm Alloc'!H124 -> 0 | I124: ='FR-16(7)(v)-6 DISTR Cust Alloc'!I124+'FR-16(7)(v)-5 DISTR Dem Alloc'!I124+'FR-16(7)(v)-3 PROD Comm Alloc'!I124 -> 297212 | J124: ='FR-16(7)(v)-6 DISTR Cust Alloc'!J124+'FR-16(7)(v)-5 DISTR Dem Alloc'!J124+'FR-16(7)(v)-3 PROD Comm Alloc'!J124 -> 212655 | K124: 509867 | L124: 0
A125: 13 | C125: ='FR-16(7)(v)-1 Functional'!C125 -> MAINS - (2761, 2762, 2763, 2765) | D125: ='FR-16(7)(v)-1 Functional'!D125 -> K415 | F125: ='FR-16(7)(v)-1 Functional'!F125 -> 113499887 | G125: ='FR-16(7)(v)-6 DISTR Cust Alloc'!G125+'FR-16(7)(v)-5 DISTR Dem Alloc'!G125+'FR-16(7)(v)-3 PROD Comm Alloc'!G125 -> 67300439 | H125: ='FR-16(7)(v)-6 DISTR Cust Alloc'!H125+'FR-16(7)(v)-5 DISTR Dem Alloc'!H125+'FR-16(7)(v)-3 PROD Comm Alloc'!H125 -> 29850243 | I125: ='FR-16(7)(v)-6 DISTR Cust Alloc'!I125+'FR-16(7)(v)-5 DISTR Dem Alloc'!I125+'FR-16(7)(v)-3 PROD Comm Alloc'!I125 -> 12394415 | J125: ='FR-16(7)(v)-6 DISTR Cust Alloc'!J125+'FR-16(7)(v)-5 DISTR Dem Alloc'!J125+'FR-16(7)(v)-3 PROD Comm Alloc'!J125 -> 3954790 | K125: 113499887 | L125: 0
A126: 14 | C126: ='FR-16(7)(v)-1 Functional'!C126 -> SERVICES - (2801, 2802, 2803) | D126: ='FR-16(7)(v)-1 Functional'!D126 -> K403 | F126: ='FR-16(7)(v)-1 Functional'!F126 -> 61310319 | G126: ='FR-16(7)(v)-6 DISTR Cust Alloc'!G126+'FR-16(7)(v)-5 DISTR Dem Alloc'!G126+'FR-16(7)(v)-3 PROD Comm Alloc'!G126 -> 53709678 | H126: ='FR-16(7)(v)-6 DISTR Cust Alloc'!H126+'FR-16(7)(v)-5 DISTR Dem Alloc'!H126+'FR-16(7)(v)-3 PROD Comm Alloc'!H126 -> 7384215 | I126: ='FR-16(7)(v)-6 DISTR Cust Alloc'!I126+'FR-16(7)(v)-5 DISTR Dem Alloc'!I126+'FR-16(7)(v)-3 PROD Comm Alloc'!I126 -> 117103 | J126: ='FR-16(7)(v)-6 DISTR Cust Alloc'!J126+'FR-16(7)(v)-5 DISTR Dem Alloc'!J126+'FR-16(7)(v)-3 PROD Comm Alloc'!J126 -> 99323 | K126: 61310319 | L126: 0
A127: 15 | C127: ='FR-16(7)(v)-1 Functional'!C127 -> MTRS & MTR INST (2810, 2811, 2820, 2821) | D127: ='FR-16(7)(v)-1 Functional'!D127 -> K413 | F127: ='FR-16(7)(v)-1 Functional'!F127 -> -895430 | G127: ='FR-16(7)(v)-6 DISTR Cust Alloc'!G127+'FR-16(7)(v)-5 DISTR Dem Alloc'!G127+'FR-16(7)(v)-3 PROD Comm Alloc'!G127 -> -716989 | H127: ='FR-16(7)(v)-6 DISTR Cust Alloc'!H127+'FR-16(7)(v)-5 DISTR Dem Alloc'!H127+'FR-16(7)(v)-3 PROD Comm Alloc'!H127 -> -151220 | I127: ='FR-16(7)(v)-6 DISTR Cust Alloc'!I127+'FR-16(7)(v)-5 DISTR Dem Alloc'!I127+'FR-16(7)(v)-3 PROD Comm Alloc'!I127 -> -16539 | J127: ='FR-16(7)(v)-6 DISTR Cust Alloc'!J127+'FR-16(7)(v)-5 DISTR Dem Alloc'!J127+'FR-16(7)(v)-3 PROD Comm Alloc'!J127 -> -10682 | K127: -895430 | L127: 0
A128: 16 | C128: ='FR-16(7)(v)-1 Functional'!C128 -> LAND, R OF W, STRUCT & IMPROV & OTH | D128: ='FR-16(7)(v)-1 Functional'!D128 -> K203 | F128: ='FR-16(7)(v)-1 Functional'!F128 -> 701479 | G128: ='FR-16(7)(v)-6 DISTR Cust Alloc'!G128+'FR-16(7)(v)-5 DISTR Dem Alloc'!G128+'FR-16(7)(v)-3 PROD Comm Alloc'!G128 -> 358008 | H128: ='FR-16(7)(v)-6 DISTR Cust Alloc'!H128+'FR-16(7)(v)-5 DISTR Dem Alloc'!H128+'FR-16(7)(v)-3 PROD Comm Alloc'!H128 -> 217388 | I128: ='FR-16(7)(v)-6 DISTR Cust Alloc'!I128+'FR-16(7)(v)-5 DISTR Dem Alloc'!I128+'FR-16(7)(v)-3 PROD Comm Alloc'!I128 -> 95569 | J128: ='FR-16(7)(v)-6 DISTR Cust Alloc'!J128+'FR-16(7)(v)-5 DISTR Dem Alloc'!J128+'FR-16(7)(v)-3 PROD Comm Alloc'!J128 -> 30514 | K128: 701479 | L128: 0
A129: 17 | C129: ='FR-16(7)(v)-1 Functional'!C129 -> HOUSE REG & INSTALL (2830, 2840) | D129: ='FR-16(7)(v)-1 Functional'!D129 -> K417 | F129: ='FR-16(7)(v)-1 Functional'!F129 -> 5948247 | G129: ='FR-16(7)(v)-6 DISTR Cust Alloc'!G129+'FR-16(7)(v)-5 DISTR Dem Alloc'!G129+'FR-16(7)(v)-3 PROD Comm Alloc'!G129 -> 3679347 | H129: ='FR-16(7)(v)-6 DISTR Cust Alloc'!H129+'FR-16(7)(v)-5 DISTR Dem Alloc'!H129+'FR-16(7)(v)-3 PROD Comm Alloc'!H129 -> 2213759 | I129: ='FR-16(7)(v)-6 DISTR Cust Alloc'!I129+'FR-16(7)(v)-5 DISTR Dem Alloc'!I129+'FR-16(7)(v)-3 PROD Comm Alloc'!I129 -> 45683 | J129: ='FR-16(7)(v)-6 DISTR Cust Alloc'!J129+'FR-16(7)(v)-5 DISTR Dem Alloc'!J129+'FR-16(7)(v)-3 PROD Comm Alloc'!J129 -> 9458 | K129: 5948247 | L129: 0
A130: 18 | C130: ='FR-16(7)(v)-1 Functional'!C130 -> STREET LIGHTING EQUIPMENT & OTH | D130: ='FR-16(7)(v)-1 Functional'!D130 -> K597 | F130: ='FR-16(7)(v)-1 Functional'!F130 -> -3476871 | G130: ='FR-16(7)(v)-6 DISTR Cust Alloc'!G130+'FR-16(7)(v)-5 DISTR Dem Alloc'!G130+'FR-16(7)(v)-3 PROD Comm Alloc'!G130 -> 0 | H130: ='FR-16(7)(v)-6 DISTR Cust Alloc'!H130+'FR-16(7)(v)-5 DISTR Dem Alloc'!H130+'FR-16(7)(v)-3 PROD Comm Alloc'!H130 -> -3476871 | I130: ='FR-16(7)(v)-6 DISTR Cust Alloc'!I130+'FR-16(7)(v)-5 DISTR Dem Alloc'!I130+'FR-16(7)(v)-3 PROD Comm Alloc'!I130 -> 0 | J130: ='FR-16(7)(v)-6 DISTR Cust Alloc'!J130+'FR-16(7)(v)-5 DISTR Dem Alloc'!J130+'FR-16(7)(v)-3 PROD Comm Alloc'!J130 -> 0 | K130: -3476871 | L130: 0
A131: 19 | C131: ='FR-16(7)(v)-1 Functional'!C131 -> TOTAL DIST DEPREC RESERVE | F131: =SUM(F121:F130) -> 181390378 | G131: 126266218 | H131: 37212927 | I131: 13450185 | J131: 4461048 | K131: 181390378 | L131: 0
A132: 20
A133: 21 | B133: GENERAL & INTANGIBLE PLANT
A134: 22 | C134: ='FR-16(7)(v)-1 Functional'!C134 -> PRODUCTION PLANT | D134: ='FR-16(7)(v)-1 Functional'!D134 -> K201 | F134: ='FR-16(7)(v)-1 Functional'!F134 -> 1408783 | G134: ='FR-16(7)(v)-6 DISTR Cust Alloc'!G134+'FR-16(7)(v)-5 DISTR Dem Alloc'!G134+'FR-16(7)(v)-3 PROD Comm Alloc'!G134 -> 704856 | H134: ='FR-16(7)(v)-6 DISTR Cust Alloc'!H134+'FR-16(7)(v)-5 DISTR Dem Alloc'!H134+'FR-16(7)(v)-3 PROD Comm Alloc'!H134 -> 413492 | I134: ='FR-16(7)(v)-6 DISTR Cust Alloc'!I134+'FR-16(7)(v)-5 DISTR Dem Alloc'!I134+'FR-16(7)(v)-3 PROD Comm Alloc'!I134 -> 290435 | J134: ='FR-16(7)(v)-6 DISTR Cust Alloc'!J134+'FR-16(7)(v)-5 DISTR Dem Alloc'!J134+'FR-16(7)(v)-3 PROD Comm Alloc'!J134 -> 0 | K134: =SUM(G134:J134) -> 1408783 | L134: =F134-K134 -> 0
A135: 23 | C135: ='FR-16(7)(v)-1 Functional'!C135 -> PRODUCTION PLANT COMMODITY | D135: ='FR-16(7)(v)-1 Functional'!D135 -> P349 | F135: ='FR-16(7)(v)-1 Functional'!F135 -> 1037967 | G135: ='FR-16(7)(v)-6 DISTR Cust Alloc'!G135+'FR-16(7)(v)-5 DISTR Dem Alloc'!G135+'FR-16(7)(v)-3 PROD Comm Alloc'!G135 -> 648262 | H135: ='FR-16(7)(v)-6 DISTR Cust Alloc'!H135+'FR-16(7)(v)-5 DISTR Dem Alloc'!H135+'FR-16(7)(v)-3 PROD Comm Alloc'!H135 -> 380290 | I135: ='FR-16(7)(v)-6 DISTR Cust Alloc'!I135+'FR-16(7)(v)-5 DISTR Dem Alloc'!I135+'FR-16(7)(v)-3 PROD Comm Alloc'!I135 -> 5491 | J135: ='FR-16(7)(v)-6 DISTR Cust Alloc'!J135+'FR-16(7)(v)-5 DISTR Dem Alloc'!J135+'FR-16(7)(v)-3 PROD Comm Alloc'!J135 -> 3924 | K135: 1037967 | L135: 0
A136: 24 | C136: ='FR-16(7)(v)-1 Functional'!C136 -> DISTRIBUTION PLANT | D136: ='FR-16(7)(v)-1 Functional'!D136 -> D349 | F136: ='FR-16(7)(v)-1 Functional'!F136 -> 9279343 | G136: ='FR-16(7)(v)-6 DISTR Cust Alloc'!G136+'FR-16(7)(v)-5 DISTR Dem Alloc'!G136+'FR-16(7)(v)-3 PROD Comm Alloc'!G136 -> 5970070 | H136: ='FR-16(7)(v)-6 DISTR Cust Alloc'!H136+'FR-16(7)(v)-5 DISTR Dem Alloc'!H136+'FR-16(7)(v)-3 PROD Comm Alloc'!H136 -> 2266280 | I136: ='FR-16(7)(v)-6 DISTR Cust Alloc'!I136+'FR-16(7)(v)-5 DISTR Dem Alloc'!I136+'FR-16(7)(v)-3 PROD Comm Alloc'!I136 -> 797796 | J136: ='FR-16(7)(v)-6 DISTR Cust Alloc'!J136+'FR-16(7)(v)-5 DISTR Dem Alloc'!J136+'FR-16(7)(v)-3 PROD Comm Alloc'!J136 -> 245197 | K136: 9279343 | L136: 0
A137: 25 | C137: ='FR-16(7)(v)-1 Functional'!C137 -> CUSTOMER ACCOUNTING | D137: ='FR-16(7)(v)-1 Functional'!D137 -> CA19 | F137: ='FR-16(7)(v)-1 Functional'!F137 -> 3672369 | G137: ='FR-16(7)(v)-6 DISTR Cust Alloc'!G137+'FR-16(7)(v)-5 DISTR Dem Alloc'!G137+'FR-16(7)(v)-3 PROD Comm Alloc'!G137 -> 3390845 | H137: ='FR-16(7)(v)-6 DISTR Cust Alloc'!H137+'FR-16(7)(v)-5 DISTR Dem Alloc'!H137+'FR-16(7)(v)-3 PROD Comm Alloc'!H137 -> 276860 | I137: ='FR-16(7)(v)-6 DISTR Cust Alloc'!I137+'FR-16(7)(v)-5 DISTR Dem Alloc'!I137+'FR-16(7)(v)-3 PROD Comm Alloc'!I137 -> 3856 | J137: ='FR-16(7)(v)-6 DISTR Cust Alloc'!J137+'FR-16(7)(v)-5 DISTR Dem Alloc'!J137+'FR-16(7)(v)-3 PROD Comm Alloc'!J137 -> 808 | K137: 3672369 | L137: 0
A138: 26 | C138: ='FR-16(7)(v)-1 Functional'!C138 -> CUSTOMER SERVICE & INFORMATION | D138: ='FR-16(7)(v)-1 Functional'!D138 -> CS19 | F138: ='FR-16(7)(v)-1 Functional'!F138 -> 355523 | G138: ='FR-16(7)(v)-6 DISTR Cust Alloc'!G138+'FR-16(7)(v)-5 DISTR Dem Alloc'!G138+'FR-16(7)(v)-3 PROD Comm Alloc'!G138 -> 328269 | H138: ='FR-16(7)(v)-6 DISTR Cust Alloc'!H138+'FR-16(7)(v)-5 DISTR Dem Alloc'!H138+'FR-16(7)(v)-3 PROD Comm Alloc'!H138 -> 26803 | I138: ='FR-16(7)(v)-6 DISTR Cust Alloc'!I138+'FR-16(7)(v)-5 DISTR Dem Alloc'!I138+'FR-16(7)(v)-3 PROD Comm Alloc'!I138 -> 373 | J138: ='FR-16(7)(v)-6 DISTR Cust Alloc'!J138+'FR-16(7)(v)-5 DISTR Dem Alloc'!J138+'FR-16(7)(v)-3 PROD Comm Alloc'!J138 -> 78 | K138: 355523 | L138: 0
A139: 27 | C139: ='FR-16(7)(v)-1 Functional'!C139 -> SALES | D139: ='FR-16(7)(v)-1 Functional'!D139 -> SE19 | F139: ='FR-16(7)(v)-1 Functional'!F139 -> 0 | G139: ='FR-16(7)(v)-6 DISTR Cust Alloc'!G139+'FR-16(7)(v)-5 DISTR Dem Alloc'!G139+'FR-16(7)(v)-3 PROD Comm Alloc'!G139 -> 0 | H139: ='FR-16(7)(v)-6 DISTR Cust Alloc'!H139+'FR-16(7)(v)-5 DISTR Dem Alloc'!H139+'FR-16(7)(v)-3 PROD Comm Alloc'!H139 -> 0 | I139: ='FR-16(7)(v)-6 DISTR Cust Alloc'!I139+'FR-16(7)(v)-5 DISTR Dem Alloc'!I139+'FR-16(7)(v)-3 PROD Comm Alloc'!I139 -> 0 | J139: ='FR-16(7)(v)-6 DISTR Cust Alloc'!J139+'FR-16(7)(v)-5 DISTR Dem Alloc'!J139+'FR-16(7)(v)-3 PROD Comm Alloc'!J139 -> 0 | K139: 0 | L139: 0
A140: 28 | C140: ='FR-16(7)(v)-1 Functional'!C140 -> TOTAL GEN DEPREC RESERVE | F140: =SUM(F133:F139) -> 15753985 | G140: 11042302 | H140: 3363725 | I140: 1097951 | J140: 250007 | K140: 15753985 | L140: 0
A141: 29
A142: 30 | B142: COMMON & OTHER PLANT
A143: 31 | C143: ='FR-16(7)(v)-1 Functional'!C143 -> PRODUCTION PLANT | D143: ='FR-16(7)(v)-1 Functional'!D143 -> K201 | F143: ='FR-16(7)(v)-1 Functional'!F143 -> 644301 | G143: ='FR-16(7)(v)-6 DISTR Cust Alloc'!G143+'FR-16(7)(v)-5 DISTR Dem Alloc'!G143+'FR-16(7)(v)-3 PROD Comm Alloc'!G143 -> 322363 | H143: ='FR-16(7)(v)-6 DISTR Cust Alloc'!H143+'FR-16(7)(v)-5 DISTR Dem Alloc'!H143+'FR-16(7)(v)-3 PROD Comm Alloc'!H143 -> 189109 | I143: ='FR-16(7)(v)-6 DISTR Cust Alloc'!I143+'FR-16(7)(v)-5 DISTR Dem Alloc'!I143+'FR-16(7)(v)-3 PROD Comm Alloc'!I143 -> 132829 | J143: ='FR-16(7)(v)-6 DISTR Cust Alloc'!J143+'FR-16(7)(v)-5 DISTR Dem Alloc'!J143+'FR-16(7)(v)-3 PROD Comm Alloc'!J143 -> 0 | K143: =SUM(G143:J143) -> 644301 | L143: =F143-K143 -> 0
A144: 32 | C144: ='FR-16(7)(v)-1 Functional'!C144 -> PRODUCTION PLANT COMMODITY | D144: ='FR-16(7)(v)-1 Functional'!D144 -> P349 | F144: ='FR-16(7)(v)-1 Functional'!F144 -> 474711 | G144: ='FR-16(7)(v)-6 DISTR Cust Alloc'!G144+'FR-16(7)(v)-5 DISTR Dem Alloc'!G144+'FR-16(7)(v)-3 PROD Comm Alloc'!G144 -> 296481 | H144: ='FR-16(7)(v)-6 DISTR Cust Alloc'!H144+'FR-16(7)(v)-5 DISTR Dem Alloc'!H144+'FR-16(7)(v)-3 PROD Comm Alloc'!H144 -> 173925 | I144: ='FR-16(7)(v)-6 DISTR Cust Alloc'!I144+'FR-16(7)(v)-5 DISTR Dem Alloc'!I144+'FR-16(7)(v)-3 PROD Comm Alloc'!I144 -> 2511 | J144: ='FR-16(7)(v)-6 DISTR Cust Alloc'!J144+'FR-16(7)(v)-5 DISTR Dem Alloc'!J144+'FR-16(7)(v)-3 PROD Comm Alloc'!J144 -> 1794 | K144: 474711 | L144: 0
A145: 33 | C145: ='FR-16(7)(v)-1 Functional'!C145 -> DISTRIBUTION PLANT | D145: ='FR-16(7)(v)-1 Functional'!D145 -> D349 | F145: ='FR-16(7)(v)-1 Functional'!F145 -> 4243873 | G145: ='FR-16(7)(v)-6 DISTR Cust Alloc'!G145+'FR-16(7)(v)-5 DISTR Dem Alloc'!G145+'FR-16(7)(v)-3 PROD Comm Alloc'!G145 -> 2730389 | H145: ='FR-16(7)(v)-6 DISTR Cust Alloc'!H145+'FR-16(7)(v)-5 DISTR Dem Alloc'!H145+'FR-16(7)(v)-3 PROD Comm Alloc'!H145 -> 1036475 | I145: ='FR-16(7)(v)-6 DISTR Cust Alloc'!I145+'FR-16(7)(v)-5 DISTR Dem Alloc'!I145+'FR-16(7)(v)-3 PROD Comm Alloc'!I145 -> 364869 | J145: ='FR-16(7)(v)-6 DISTR Cust Alloc'!J145+'FR-16(7)(v)-5 DISTR Dem Alloc'!J145+'FR-16(7)(v)-3 PROD Comm Alloc'!J145 -> 112140 | K145: 4243873 | L145: 0
A146: 34 | C146: ='FR-16(7)(v)-1 Functional'!C146 -> CUSTOMER ACCOUNTING | D146: ='FR-16(7)(v)-1 Functional'!D146 -> CA19 | F146: ='FR-16(7)(v)-1 Functional'!F146 -> 1679545 | G146: ='FR-16(7)(v)-6 DISTR Cust Alloc'!G146+'FR-16(7)(v)-5 DISTR Dem Alloc'!G146+'FR-16(7)(v)-3 PROD Comm Alloc'!G146 -> 1550791 | H146: ='FR-16(7)(v)-6 DISTR Cust Alloc'!H146+'FR-16(7)(v)-5 DISTR Dem Alloc'!H146+'FR-16(7)(v)-3 PROD Comm Alloc'!H146 -> 126621 | I146: ='FR-16(7)(v)-6 DISTR Cust Alloc'!I146+'FR-16(7)(v)-5 DISTR Dem Alloc'!I146+'FR-16(7)(v)-3 PROD Comm Alloc'!I146 -> 1764 | J146: ='FR-16(7)(v)-6 DISTR Cust Alloc'!J146+'FR-16(7)(v)-5 DISTR Dem Alloc'!J146+'FR-16(7)(v)-3 PROD Comm Alloc'!J146 -> 369 | K146: 1679545 | L146: 0
A147: 35 | C147: ='FR-16(7)(v)-1 Functional'!C147 -> CUSTOMER SERVICE & INFORMATION | D147: ='FR-16(7)(v)-1 Functional'!D147 -> CS19 | F147: ='FR-16(7)(v)-1 Functional'!F147 -> 162597 | G147: ='FR-16(7)(v)-6 DISTR Cust Alloc'!G147+'FR-16(7)(v)-5 DISTR Dem Alloc'!G147+'FR-16(7)(v)-3 PROD Comm Alloc'!G147 -> 150132 | H147: ='FR-16(7)(v)-6 DISTR Cust Alloc'!H147+'FR-16(7)(v)-5 DISTR Dem Alloc'!H147+'FR-16(7)(v)-3 PROD Comm Alloc'!H147 -> 12258 | I147: ='FR-16(7)(v)-6 DISTR Cust Alloc'!I147+'FR-16(7)(v)-5 DISTR Dem Alloc'!I147+'FR-16(7)(v)-3 PROD Comm Alloc'!I147 -> 171 | J147: ='FR-16(7)(v)-6 DISTR Cust Alloc'!J147+'FR-16(7)(v)-5 DISTR Dem Alloc'!J147+'FR-16(7)(v)-3 PROD Comm Alloc'!J147 -> 36 | K147: 162597 | L147: 0
A148: 36 | C148: ='FR-16(7)(v)-1 Functional'!C148 -> SALES | D148: ='FR-16(7)(v)-1 Functional'!D148 -> SE19 | F148: ='FR-16(7)(v)-1 Functional'!F148 -> 0 | G148: ='FR-16(7)(v)-6 DISTR Cust Alloc'!G148+'FR-16(7)(v)-5 DISTR Dem Alloc'!G148+'FR-16(7)(v)-3 PROD Comm Alloc'!G148 -> 0 | H148: ='FR-16(7)(v)-6 DISTR Cust Alloc'!H148+'FR-16(7)(v)-5 DISTR Dem Alloc'!H148+'FR-16(7)(v)-3 PROD Comm Alloc'!H148 -> 0 | I148: ='FR-16(7)(v)-6 DISTR Cust Alloc'!I148+'FR-16(7)(v)-5 DISTR Dem Alloc'!I148+'FR-16(7)(v)-3 PROD Comm Alloc'!I148 -> 0 | J148: ='FR-16(7)(v)-6 DISTR Cust Alloc'!J148+'FR-16(7)(v)-5 DISTR Dem Alloc'!J148+'FR-16(7)(v)-3 PROD Comm Alloc'!J148 -> 0 | K148: 0 | L148: 0
A149: 37 | C149: ='FR-16(7)(v)-1 Functional'!C149 -> TOTAL COM & OTHER PLT RESERVE | F149: =SUM(F143:F148) -> 7205027 | G149: =SUM(G142:G148) -> 5050156 | H149: 1538388 | I149: 502144 | J149: 114339 | K149: 7205027 | L149: 0
A150: 38
A151: 39 | B151: TOTAL DEPRECIATION RESERVE | F151: =F149+F140+F131+F119+F115 -> 206903281 | G151: 143723016 | H151: 42943982 | I151: 15410889 | J151: 4825394 | K151: 206903281 | L151: 0
A153: =co_name -> DUKE ENERGY KENTUCKY, INC. | K153: =$K$1 -> FR-16(7)(v)-8
A154: =$A$2 -> TOTAL CLASS ALLOCATED - GAS COST OF SERVICE | K154: =$K$2 -> WITNESS RESPONSIBLE:
A155: =case_name -> CASE NO: 2021-00190 | K155: =Witness -> JAMES E. ZIOLKOWSKI
A156: =data_filing -> DATA: 12 MONTH FORECASTED PERIOD | K156: ="PAGE "&Pages2-11&" OF "&Pages2 -> PAGE 4 OF 15
A157: =type -> TYPE OF FILING: "X" ORIGINAL UPDATED REVISED
F159: =$F$7 -> TOTAL
A160: LINE | F160: =$F$8 -> CLASS | G160: RS | H160: GS | I160: FT-L | J160: INTERUPT | K160: TOTAL | L160: ALL
A161: NO. | B161: ="NET GAS PLANT" -> NET GAS PLANT | D161: ALLO | F161: =$F$9 -> ALLOCATED | G161: RESIDENTIAL | H161: GEN SERV | I161: FIRM TRANS | J161: TRANS | K161: AT ISSUE | L161: OTHER
C162: Schedule 4 | G162: =$G$10 -> 3 | H162: =$H$10 -> 4 | I162: =$I$10 -> 5 | J162: =$J$10 -> 6
A163: 1 | B163: PRODUCTION PLANT
A164: 2 | C164: ='FR-16(7)(v)-1 Functional'!C164 -> PRODUCTION PLANT IN SERVICE | F164: =F59 -> 4625622 | G164: =$G$59 -> 2471100 | H164: =$H$59 -> 1501384 | I164: =$I$59 -> 653138 | J164: =$J$59 -> 0 | K164: =$K$59 -> 4625622 | L164: =F164-K164 -> 0
A165: 3 | C165: ='FR-16(7)(v)-1 Functional'!C165 -> TOTAL PROD DEPRC RESERVE | F165: =-F115 -> -2553891 | G165: -1364340 | H165: -828942 | I165: -360609 | J165: 0 | K165: -2553891 | L165: =F165-K165 -> 0
A166: 4 | C166: ='FR-16(7)(v)-1 Functional'!C166 -> NET PRODUCTION PLANT | F166: =SUM(F164:F165) -> 2071731 | G166: 1106760 | H166: 672442 | I166: 292529 | J166: 0 | K166: 2071731 | L166: 0
A167: 5
A168: 6 | B168: TRANSMISSION PLANT
A169: 7 | C169: ='FR-16(7)(v)-1 Functional'!C169 -> TRANSMISSION PLANT IN SERVICE | F169: =F63 -> 0 | G169: =$G$63 -> 0 | H169: =$H$63 -> 0 | I169: =$I$63 -> 0 | J169: =$J$63 -> 0 | K169: =$K$63 -> 0 | L169: =F169-K169 -> 0
A170: 8 | C170: ='FR-16(7)(v)-1 Functional'!C170 -> TOTAL TRANS DEPREC RESERVE | F170: =-F119 -> 0 | G170: 0 | H170: 0 | I170: 0 | J170: 0 | K170: 0 | L170: =F170-K170 -> 0
A171: 9 | C171: ='FR-16(7)(v)-1 Functional'!C171 -> NET TRANSMISSION PLANT | F171: =SUM(F168:F170) -> 0 | G171: 0 | H171: 0 | I171: 0 | J171: 0 | K171: 0 | L171: 0
A172: 10
A173: 11 | B173: DISTRIBUTION PLANT
A174: 12 | C174: ='FR-16(7)(v)-1 Functional'!C174 -> DISTRIBUTION PLANT IN SERVICE | F174: =F78 -> 724889098 | G174: 495619951 | H174: 159649278 | I174: 52374227 | J174: 17245642 | K174: 724889098 | L174: =F174-K174 -> 0
A175: 13 | C175: ='FR-16(7)(v)-1 Functional'!C175 -> TOTAL DIST DEPREC RESERVE | F175: =-F131 -> -181390378 | G175: -126266218 | H175: -37212927 | I175: -13450185 | J175: -4461048 | K175: -181390378 | L175: =F175-K175 -> 0
A176: 14 | C176: ='FR-16(7)(v)-1 Functional'!C176 -> NET DISTRIBUTION PLANT | F176: =SUM(F173:F175) -> 543498720 | G176: 369353733 | H176: 122436351 | I176: 38924042 | J176: 12784594 | K176: 543498720 | L176: 0
A177: 15
A178: 16 | B178: NET PTD PLANT | F178: =F176+F171+F166 -> 545570451 | G178: 370460493 | H178: 123108793 | I178: 39216571 | J178: 12784594 | K178: 545570451 | L178: 0
A179: 17 | B179: NET TRANS & DIST PLANT | F179: =F176+F171 -> 543498720 | G179: 369353733 | H179: 122436351 | I179: 38924042 | J179: 12784594 | K179: 543498720 | L179: 0
A180: 18
A181: 19 | B181: GENERAL & INTANGIBLE PLANT
A182: 20 | C182: ='FR-16(7)(v)-1 Functional'!C182 -> GEN & INTANG PLANT IN SERVICE | F182: =F90 -> 32001263 | G182: 22430367 | H182: 6832777 | I182: 2230279 | J182: 507840 | K182: 32001263 | L182: =F182-K182 -> 0
A183: 21 | C183: ='FR-16(7)(v)-1 Functional'!C183 -> TOTAL GEN & INTG DEPREC RESERVE | F183: =-F140 -> -15753985 | G183: -11042302 | H183: -3363725 | I183: -1097951 | J183: -250007 | K183: -15753985 | L183: =F183-K183 -> 0
A184: 22 | C184: ='FR-16(7)(v)-1 Functional'!C184 -> NET GENERAL & INTANG PLANT | F184: =SUM(F181:F183) -> 16247278 | G184: 11388065 | H184: 3469052 | I184: 1132328 | J184: 257833 | K184: 16247278 | L184: 0
A185: 23
A186: 24 | B186: COMMON & OTHER PLANT
A187: 25 | C187: ='FR-16(7)(v)-1 Functional'!C187 -> COMMON & OTH PLT IN SERVICE | F187: =F99 -> 10292179 | G187: 7214008 | H187: 2197543 | I187: 717298 | J187: 163330 | K187: 10292179 | L187: =F187-K187 -> 0
A188: 26 | C188: ='FR-16(7)(v)-1 Functional'!C188 -> TOTAL COM & OTH DEPREC RESERVE | F188: =-F149 -> -7205027 | G188: -5050156 | H188: -1538388 | I188: -502144 | J188: -114339 | K188: -7205027 | L188: =F188-K188 -> 0
A189: 27 | C189: ='FR-16(7)(v)-1 Functional'!C189 -> NET COMMON & OTHER PLANT | F189: =SUM(F186:F188) -> 3087152 | G189: 2163852 | H189: 659155 | I189: 215154 | J189: 48991 | K189: 3087152 | L189: 0
A190: 28
A191: 29 | C191: ='FR-16(7)(v)-1 Functional'!C191 -> NET GAS PLANT IN SERVICE | F191: =F189+F184+F176+F171+F166 -> 564904881 | G191: 384012410 | H191: 127237000 | I191: 40564053 | J191: 13091418 | K191: 564904881 | L191: 0
A193: =co_name -> DUKE ENERGY KENTUCKY, INC. | K193: =$K$1 -> FR-16(7)(v)-8
A194: =$A$2 -> TOTAL CLASS ALLOCATED - GAS COST OF SERVICE | K194: =$K$2 -> WITNESS RESPONSIBLE:
A195: =case_name -> CASE NO: 2021-00190 | K195: =Witness -> JAMES E. ZIOLKOWSKI
A196: =data_filing -> DATA: 12 MONTH FORECASTED PERIOD | K196: ="PAGE "&Pages2-10&" OF "&Pages2 -> PAGE 5 OF 15
A197: =type -> TYPE OF FILING: "X" ORIGINAL UPDATED REVISED
F199: =$F$7 -> TOTAL
A200: LINE | F200: =$F$8 -> CLASS | G200: RS | H200: GS | I200: FT-L | J200: INTERUPT | K200: TOTAL | L200: ALL
A201: NO. | B201: SUBTRACTIVE RATE BASE ADJUSTMENTS | D201: ALLO | F201: =$F$9 -> ALLOCATED | G201: RESIDENTIAL | H201: GEN SERV | I201: FIRM TRANS | J201: TRANS | K201: AT ISSUE | L201: OTHER
C202: Schedule 5 | G202: =$G$10 -> 3 | H202: =$H$10 -> 4 | I202: =$I$10 -> 5 | J202: =$J$10 -> 6
A203: 1 | B203: RATE BASE ADJUSTMENTS
A204: 2 | B204: ACCUMULATED DEFERRED INCOME TAXES
A205: 3 | B205: ACCUM DEF INC TAXES (282)
A206: 4 | C206: ='FR-16(7)(v)-1 Functional'!C206 -> LIBERALIZED DEPRECIATION | D206: ='FR-16(7)(v)-1 Functional'!D206 -> NP29 | F206: ='FR-16(7)(v)-1 Functional'!F206 -> 66033425 | G206: ='FR-16(7)(v)-6 DISTR Cust Alloc'!G206+'FR-16(7)(v)-5 DISTR Dem Alloc'!G206+'FR-16(7)(v)-3 PROD Comm Alloc'!G206 -> 44888295 | H206: ='FR-16(7)(v)-6 DISTR Cust Alloc'!H206+'FR-16(7)(v)-5 DISTR Dem Alloc'!H206+'FR-16(7)(v)-3 PROD Comm Alloc'!H206 -> 14873142 | I206: ='FR-16(7)(v)-6 DISTR Cust Alloc'!I206+'FR-16(7)(v)-5 DISTR Dem Alloc'!I206+'FR-16(7)(v)-3 PROD Comm Alloc'!I206 -> 4741601 | J206: ='FR-16(7)(v)-6 DISTR Cust Alloc'!J206+'FR-16(7)(v)-5 DISTR Dem Alloc'!J206+'FR-16(7)(v)-3 PROD Comm Alloc'!J206 -> 1530387 | K206: =SUM(G206:J206) -> 66033425 | L206: =F206-K206 -> 0
A207: 5 | C207: ='FR-16(7)(v)-1 Functional'!C207 -> LEASED METERS | D207: ='FR-16(7)(v)-1 Functional'!D207 -> K413 | F207: ='FR-16(7)(v)-1 Functional'!F207 -> 0 | G207: ='FR-16(7)(v)-6 DISTR Cust Alloc'!G207+'FR-16(7)(v)-5 DISTR Dem Alloc'!G207+'FR-16(7)(v)-3 PROD Comm Alloc'!G207 -> 0 | H207: ='FR-16(7)(v)-6 DISTR Cust Alloc'!H207+'FR-16(7)(v)-5 DISTR Dem Alloc'!H207+'FR-16(7)(v)-3 PROD Comm Alloc'!H207 -> 0 | I207: ='FR-16(7)(v)-6 DISTR Cust Alloc'!I207+'FR-16(7)(v)-5 DISTR Dem Alloc'!I207+'FR-16(7)(v)-3 PROD Comm Alloc'!I207 -> 0 | J207: ='FR-16(7)(v)-6 DISTR Cust Alloc'!J207+'FR-16(7)(v)-5 DISTR Dem Alloc'!J207+'FR-16(7)(v)-3 PROD Comm Alloc'!J207 -> 0 | K207: 0 | L207: 0
A208: 6 | C208: ='FR-16(7)(v)-1 Functional'!C208 -> CONTRIB AID CONSTR | D208: ='FR-16(7)(v)-1 Functional'!D208 -> D249 | F208: ='FR-16(7)(v)-1 Functional'!F208 -> -1497040 | G208: ='FR-16(7)(v)-6 DISTR Cust Alloc'!G208+'FR-16(7)(v)-5 DISTR Dem Alloc'!G208+'FR-16(7)(v)-3 PROD Comm Alloc'!G208 -> -1017378 | H208: ='FR-16(7)(v)-6 DISTR Cust Alloc'!H208+'FR-16(7)(v)-5 DISTR Dem Alloc'!H208+'FR-16(7)(v)-3 PROD Comm Alloc'!H208 -> -337240 | I208: ='FR-16(7)(v)-6 DISTR Cust Alloc'!I208+'FR-16(7)(v)-5 DISTR Dem Alloc'!I208+'FR-16(7)(v)-3 PROD Comm Alloc'!I208 -> -107212 | J208: ='FR-16(7)(v)-6 DISTR Cust Alloc'!J208+'FR-16(7)(v)-5 DISTR Dem Alloc'!J208+'FR-16(7)(v)-3 PROD Comm Alloc'!J208 -> -35210 | K208: -1497040 | L208: 0
A209: 7 | C209: ='FR-16(7)(v)-1 Functional'!C209 -> CAPITALIZED INTEREST | D209: ='FR-16(7)(v)-1 Functional'!D209 -> NP29 | F209: ='FR-16(7)(v)-1 Functional'!F209 -> -1556029 | G209: ='FR-16(7)(v)-6 DISTR Cust Alloc'!G209+'FR-16(7)(v)-5 DISTR Dem Alloc'!G209+'FR-16(7)(v)-3 PROD Comm Alloc'!G209 -> -1057760 | H209: ='FR-16(7)(v)-6 DISTR Cust Alloc'!H209+'FR-16(7)(v)-5 DISTR Dem Alloc'!H209+'FR-16(7)(v)-3 PROD Comm Alloc'!H209 -> -350475 | I209: ='FR-16(7)(v)-6 DISTR Cust Alloc'!I209+'FR-16(7)(v)-5 DISTR Dem Alloc'!I209+'FR-16(7)(v)-3 PROD Comm Alloc'!I209 -> -111732 | J209: ='FR-16(7)(v)-6 DISTR Cust Alloc'!J209+'FR-16(7)(v)-5 DISTR Dem Alloc'!J209+'FR-16(7)(v)-3 PROD Comm Alloc'!J209 -> -36062 | K209: -1556029 | L209: 0
... 502 more rows

Sheet FR-16(7)(v)-9 RES Classified
A1: =co_name -> DUKE ENERGY KENTUCKY, INC. | J1: FR-16(7)(v)-9
A2: RESIDENTIAL CLASSIFIED - GAS COST OF SERVICE | J2: WITNESS RESPONSIBLE:
A3: =case_name -> CASE NO: 2021-00190 | J3: =Witness -> JAMES E. ZIOLKOWSKI
A4: =data_filing -> DATA: 12 MONTH FORECASTED PERIOD | J4: ="PAGE "&Pages2-14&" OF "&Pages2 -> PAGE 1 OF 15
A5: =type -> TYPE OF FILING: "X" ORIGINAL UPDATED REVISED
A8: LINE | F8: TOTAL | G8: CLASSIFIED | J8: TOTAL | K8: ALL
A9: NO. | B9: SUMMARY OF RESULTS | D9: ALLO | F9: RESIDENTIAL | G9: DEMAND | H9: COMMODITY | I9: CUSTOMER | J9: AT ISSUE | K9: OTHER
C10: Schedule 1 | G10: 3 | H10: 4 | I10: 5
A11: 1 | B11: NET INCOME COMPUTATION
A12: 2 | C12: ='FR-16(7)(v)-1 Functional'!C12 -> GROSS GAS PLANT IN SERVICE | F12: =F101 -> 527735426 | G12: =G101 -> 199718630 | H12: =H101 -> 6103706 | I12: =I101 -> 321913090 | J12: =J101 -> 527735426 | K12: =F12-J12 -> 0
A13: 3 | C13: ='FR-16(7)(v)-1 Functional'!C13 -> TOTAL DEPRECIATION RESERVE | F13: =-F151 -> -143723016 | G13: =-G151 -> -53652211 | H13: =-H151 -> -3336302 | I13: =-I151 -> -86734503 | J13: =-J151 -> -143723016 | K13: =F13-J13 -> 0
A14: 4 | C14: ='FR-16(7)(v)-1 Functional'!C14 -> TOTAL RATE BASE ADJUSTMENTS | F14: =F326 -> -67040300 | G14: =G326 -> -26412008 | H14: =H326 -> 1842797 | I14: =I326 -> -42471089 | J14: =J326 -> -67040300 | K14: =F14-J14 -> 0
A15: 5 | C15: ='FR-16(7)(v)-1 Functional'!C15 -> TOTAL RATE BASE | F15: =SUM(F12:F14) -> 316972110 | G15: 119654411 | H15: 4610201 | I15: 192707498 | J15: 316972110 | K15: 0
A16: 6
A17: 7 | B17: OPERATING EXPENSES
A18: 8 | C18: ='FR-16(7)(v)-1 Functional'!C18 -> TOTAL O&M EXPENSE | F18: =F433 -> 39898658 | G18: =G433 -> 4126297 | H18: =H433 -> 26870317 | I18: =I433 -> 8902044 | J18: =J433 -> 39898658 | K18: =F18-J18 -> 0
A19: 9 | C19: ='FR-16(7)(v)-1 Functional'!C19 -> TOTAL DEPRECIATION EXPENSE | F19: =F465 -> 12898329 | G19: =G465 -> 4711865 | H19: =H465 -> 471836 | I19: =I465 -> 7714628 | J19: =J465 -> 12898329 | K19: 0
A20: 10 | C20: ='FR-16(7)(v)-1 Functional'!C20 -> TOTAL OTHER TAX & MISC EXPENSE | F20: =F495 -> 3187469 | G20: =$G$495 -> 1181257 | H20: =$H$495 -> 77790 | I20: =$I$495 -> 1928422 | J20: =$J$495 -> 3187469 | K20: 0
A21: 11 | C21: ='FR-16(7)(v)-1 Functional'!C21 -> TOTAL OP EXP EXCLUDING INC & REV TAX | F21: =SUM(F17:F20) -> 55984456 | G21: =SUM(G17:G20) -> 10019419 | H21: =SUM(H17:H20) -> 27419943 | I21: =SUM(I17:I20) -> 18545094 | J21: =SUM(J17:J20) -> 55984456 | K21: 0
A22: 12 | C22: ='FR-16(7)(v)-1 Functional'!C22 -> NET FED INCOME TAX EXP ALLOWABLE | F22: =F557 -> 3395916 | G22: =$G$557 -> 982261 | H22: =$H$557 -> 697331 | I22: =$I$557 -> 1716323 | J22: =$J$557 -> 3395915 | K22: 1
A23: 13 | C23: ='FR-16(7)(v)-1 Functional'!C23 -> NET STATE INCOME TAX EXP ALLOWABLE | F23: =F605 -> 929990 | G23: =G605 -> 259349 | H23: =H605 -> 39465 | I23: =I605 -> 631177 | J23: =J605 -> 929991 | K23: -1
A24: 14 | C24: ='FR-16(7)(v)-1 Functional'!C24 -> TOTAL OPERATING EXPENSE | F24: =SUM(F21:F23) -> 60310362 | G24: =SUM(G21:G23) -> 11261029 | H24: =SUM(H21:H23) -> 28156739 | I24: =SUM(I21:I23) -> 20892594 | J24: =SUM(J21:J23) -> 60310362 | K24: 0
A25: 15
A26: 16 | B26: RETURN ON RATE BASE | F26: =F334 -> 20733146 | G26: =G334 -> 7826595 | H26: =H334 -> 301553 | I26: =I334 -> 12604997 | J26: =J334 -> 20733145 | K26: =F26-J26 -> 1
A27: 17 | B27: TOTAL OTHER OPERATING REVENUES | F27: =-F630 -> -231974 | G27: =-$G$630 -> -56437 | H27: =-$H$630 -> -25145 | I27: =-$I$630 -> -150392 | J27: =-$J$630 -> -231974 | K27: 0
A28: 18 | C28: ='FR-16(7)(v)-1 Functional'!C28 -> TOTAL GAS COST OF SERVICE | F28: =SUM(F24:F27) -> 80811534 | G28: =SUM(G24:G27) -> 19031187 | H28: =SUM(H24:H27) -> 28433147 | I28: =SUM(I24:I27) -> 33347199 | J28: =SUM(J24:J27) -> 80811533 | K28: 1
